Workbook

Sheet Instructions
B2: Show summer times as | C2: BST
B49: Version Control: | C49: Ver | D49: Date | E49: Change | F49: Author / Contributor
C51: 1.00 | D51: 01/03/2010 | E51: Initial Release | F51: P.Orr
C52: 1.01 | D52: 26/04/2010 | E52: Add BST view option, and Liverpool and Dover times. | F52: P. Orr / N. Hackney
C53: 1.02 | D53: 12/01/2011 | E53: 2011 data inserted | F53: P.Orr
C54: 1.03 | D54: 29/10/2010 | E54: 2012 data inserted | F54: P.Orr
C55: 1.04 | D55: 09/03/2012 | E55: Victoria Dock gate operation times added | F55: P.Orr
C56: 1.05 | D56: 2012-02-03 | E56: 2013 data inserted REPLACED with 2014 data 09/02/2014 | F56: P. Orr

Sheet 4 day view
D1: 10 | E1: 11 | F1: 12 | G1: 13 | H1: 14 | I1: 15 | J1: 16 | K1: 17 | L1: 18 | M1: 19 | N1: 20 | O1: 21 | P1: 22 | Q1: 23 | R1: 24 | S1: 25
A2: =MATCH(B3,Tides!D11:D1420,0) ->  | B2: 9 | C2: 10 | D2: =$A$2+D1 -> 
A3: 5 | B3: =TODAY()+ C3 - 365 -> 2021-11-20 | C3: 1904-12-31 | D3: =INDIRECT("'Tides'!"&ADDRESS(D$2,$A3)) -> 
A4: 3
A5: 13 | B5: =IF(Instructions!C2="BST","All Times Local","All Times UTC") -> All Times Local | C5: =INDIRECT("'Tides'!"&ADDRESS(C$2,$A5)) -> State
A6: 11 | B6: =INDIRECT("'Tides'!"&ADDRESS(B$2,$A6)) -> HOLYHEAD | C6: Time
A7: 12 | B7: =INDIRECT("'Tides 2010'!"&ADDRESS(B$2,$A7)) ->  | C7: Ht
A8: 19 | B8: =INDIRECT("'Tides'!"&ADDRESS(B$2,$A8)) -> Beaumaris | C8: Time
A9: 20 | B9: =INDIRECT("'Tides 2010'!"&ADDRESS(B$2,$A9)) ->  | C9: Ht
A10: 21 | B10: =INDIRECT("'Tides'!"&ADDRESS(B$2,$A10)) -> SLACK | C10: Time
A11: 22 | B11: =INDIRECT("'Tides'!"&ADDRESS(B$2,$A11)) -> Menai Bridge | C11: Time
A12: 23 | B12: =INDIRECT("'Tides 2010'!"&ADDRESS(B$2,$A12)) ->  | C12: Ht
A13: 24 | B13: =INDIRECT("'Tides'!"&ADDRESS(B$2,$A13)) -> Swellies SLACK | C13: Time | D13: =INDIRECT("'Tides'!"&ADDRESS(D$2,$A13)) -> 
A14: 25 | B14: =INDIRECT("'Tides'!"&ADDRESS(B$2,$A14)) -> P'dinorwic | C14: Time
A15: 26 | B15: =INDIRECT("'Tides 2010'!"&ADDRESS(B$2,$A15)) ->  | C15: Ht
A16: 27 | B16: =INDIRECT("'Tides'!"&ADDRESS(B$2,$A16)) -> P.D. SLACK | C16: Time
A17: 28 | B17: =INDIRECT("'Tides'!"&ADDRESS(B$2,$A17)) -> Caern'fon | C17: Time
A18: 29 | B18: =INDIRECT("'Tides 2010'!"&ADDRESS(B$2,$A18)) ->  | C18: Ht
A19: 30 | B19: =INDIRECT("'Tides'!"&ADDRESS(B$2,$A19)) -> Victoria Dock Gt | C19: Gate | D19: =INDIRECT("'Tides'!"&ADDRESS(D$2,$A19)) -> 
A20: 31 | B20: =INDIRECT("'Tides 2010'!"&ADDRESS(B$2,$A20)) ->  | C20: =INDIRECT("'Tides'!"&ADDRESS(C$2,$A20)) -> Time
A21: 32 | B21: =INDIRECT("'Tides'!"&ADDRESS(B$2,$A21)) -> Ft Belan | C21: Time
A22: 33 | B22: =INDIRECT("'Tides 2010'!"&ADDRESS(B$2,$A22)) ->  | C22: Ht
A23: 34 | B23: =INDIRECT("'Tides'!"&ADDRESS(B$2,$A23)) -> Llanddwyn | C23: Time
A24: 35 | B24: =INDIRECT("'Tides 2010'!"&ADDRESS(B$2,$A24)) ->  | C24: Ht
A25: 36 | B25: =INDIRECT("'Tides'!"&ADDRESS(B$2,$A25)) -> Trwyn Dimnor | C25: Time
A26: 37 | B26: =INDIRECT("'Tides 2010'!"&ADDRESS(B$2,$A26)) ->  | C26: Ht
A27: 38 | B27: =INDIRECT("'Tides'!"&ADDRESS(B$2,$A27)) -> Moelfre | C27: Time
A28: 39 | B28: =INDIRECT("'Tides 2010'!"&ADDRESS(B$2,$A28)) ->  | C28: Ht
A29: 40 | B29: =INDIRECT("'Tides'!"&ADDRESS(B$2,$A29)) -> Amlwch | C29: Time
A30: 41 | B30: =INDIRECT("'Tides 2010'!"&ADDRESS(B$2,$A30)) ->  | C30: Ht
A31: 42 | B31: =INDIRECT("'Tides'!"&ADDRESS(B$2,$A31)) -> Cemaes | C31: Time
A32: 43 | B32: =INDIRECT("'Tides 2010'!"&ADDRESS(B$2,$A32)) ->  | C32: Ht
A33: 44 | B33: =INDIRECT("'Tides'!"&ADDRESS(B$2,$A33)) -> Skrries SLACK | C33: Time
A34: 45 | B34: =INDIRECT("'Tides'!"&ADDRESS(B$2,$A34)) -> Sth.Stck SLACK | C34: Time
A35: 46 | B35: =INDIRECT("'Tides'!"&ADDRESS(B$2,$A35)) -> Tr'ddr Bay | C35: Time | S35: =INDIRECT("'Tides'!"&ADDRESS(S$2,$A35)) -> 
A36: 47 | B36: =INDIRECT("'Tides 2010'!"&ADDRESS(B$2,$A36)) ->  | C36: Ht
A37: 48 | B37: =INDIRECT("'Tides'!"&ADDRESS(B$2,$A37)) -> Porth T'castell | C37: Time
A38: 49 | B38: =INDIRECT("'Tides 2010'!"&ADDRESS(B$2,$A38)) ->  | C38: Ht
A39: 50 | B39: =INDIRECT("'Tides'!"&ADDRESS(B$2,$A39)) -> Trefor | C39: Time
A40: 51 | B40: =INDIRECT("'Tides 2010'!"&ADDRESS(B$2,$A40)) ->  | C40: Ht
A41: 52 | B41: =INDIRECT("'Tides'!"&ADDRESS(B$2,$A41)) -> Porth Dinllaen | C41: Time
A42: 53 | B42: =INDIRECT("'Tides 2010'!"&ADDRESS(B$2,$A42)) ->  | C42: Ht
A43: 54 | B43: =INDIRECT("'Tides'!"&ADDRESS(B$2,$A43)) -> Port Ysgaden | C43: Time
A44: 55 | B44: =INDIRECT("'Tides 2010'!"&ADDRESS(B$2,$A44)) ->  | C44: Ht
A45: 56 | B45: =INDIRECT("'Tides'!"&ADDRESS(B$2,$A45)) -> Bardsey Is | C45: Time
A46: 57 | B46: =INDIRECT("'Tides 2010'!"&ADDRESS(B$2,$A46)) ->  | C46: Ht
A47: 58 | B47: =INDIRECT("'Tides'!"&ADDRESS(B$2,$A47)) -> Sound SLACK | C47: Time
A48: 3
A49: 60 | B49: =INDIRECT("'Tides'!"&ADDRESS(B$2,$A49)) -> L'pool G'stone | C49: Time | R49: =INDIRECT("'Tides'!"&ADDRESS(R$2,$A49)) ->  | S49: =INDIRECT("'Tides'!"&ADDRESS(S$2,$A49)) -> 
A50: 61 | B50: Dover (approx) | C50: Time | R50: =INDIRECT("'Tides'!"&ADDRESS(R$2,$A50)) ->  | S50: =INDIRECT("'Tides'!"&ADDRESS(S$2,$A50)) -> 

Sheet Tides
A1: Time | B1: Adjustment to apply | C1: Raw HOLYHEAD DateTime | G1: MHWS | K1: 5.64 | S1: 7.6 | V1: 7.3 | Y1: 5.6 | AB1: 5.2 | AF1: 4.6 | AH1: 4.9 | AJ1: 7.5 | AL1: 7.5 | AN1: 7.2 | AP1: 6.6 | AT1: 5.2 | AV1: 5 | AX1: 4.8 | AZ1: 4.6 | BB1: 4.5 | BD1: 4.4 | BK1: Raw Lpl DateTime | BL1: Lpl Time (local)
G2: MHWN | K2: 4.49 | S2: 6 | V2: 5.8 | X2: vs Lpl | Y2: 4.4 | AB2: 4 | AF2: 3.5 | AH2: 3.9 | AJ2: 5.9 | AL2: 5.8 | AN2: 5.7 | AP2: 5.1 | AT2: 4 | AV2: 3.8 | AX2: 3.5 | AZ2: 3.4 | BB2: 3.4 | BD2: 3.2
A3: BST Offset | G3: MLWN | K3: 2.02 | S3: 2.5 | V3: 2.3 | X3: HW time | Y3: 2 | AB3: 1.9 | AF3: 1.8 | AH3: 1.9 | AJ3: 2.5 | AL3: 2.5 | AN3: 2.5 | AP3: 2.3 | AT3: 2 | AV3: 2 | AX3: 1.8 | AZ3: 1.8 | BB3: 1.9 | BD3: 1.5
G4: MLWS | K4: 0.71 | S4: 0.8 | V4: 0.7 | Y4: 0.8 | AB4: 0.6 | AF4: 0.6 | AH4: 0.7 | AJ4: 0.9 | AL4: 0.9 | AN4: 0.9 | AP4: 0.8 | AT4: 0.8 | AV4: 0.7 | AX4: 0.6 | AZ4: 0.5 | BB4: 0.6 | BD4: 0.6
G5: T Diff HW Sp | K5: @ | L5: 00:00:00 | M5: 12:00:00 | S5: 00:25:00 | U5: 02:00:00 | V5: 00:30:00 | X5: HW slk:- | Y5: -0.01041666667 | AA5: -0.02083333333 | AB5: -0.02083333333 | AF5: -0.02777777778 | AH5: -0.05208333333 | AJ5: 00:25:00 | AL5: 00:25:00 | AN5: 00:20:00 | AP5: 00:20:00 | AR5: -0.01041666667 | AS5: 00:15:00 | AT5: -0.03125 | AV5: -0.03125 | AX5: -0.05208333333 | AZ5: -0.05555555556 | BB5: -0.05902777778 | BD5: -0.09722222222 | BF5: -0.01041666667 | BI5: 00:45:00
G6: T Diff HW Np | K6: @ | L6: 06:00:00 | M6: 18:00:00 | S6: 00:10:00 | U6: 01:45:00 | V6: 00:10:00 | X6: =-0.0416666666666667*2 -> -0.08333333333 | Y6: -0.01736111111 | AA6: -0.02777777778 | AB6: -0.02083333333 | AF6: -0.01041666667 | AH6: -0.03819444444 | AJ6: 00:15:00 | AL6: 00:20:00 | AN6: 00:10:00 | AP6: 00:25:00 | AR6: -0.01041666667 | AS6: 00:15:00 | AT6: -0.01736111111 | AV6: -0.01736111111 | AX6: -0.04166666667 | AZ6: -0.04513888889 | BB6: -0.04861111111 | BD6: -0.1111111111 | BF6: -0.01041666667 | BI6: 00:45:00
G7: T Diff LW Sp | K7: @ | L7: 05:00:00 | M7: 17:00:00 | S7: 00:55:00 | U7: 02:30:00 | V7: 00:10:00 | X7: LW slk:- | Y7: 00:30:00 | AA7: -0.03125 | AB7: 00:15:00 | AD7: +/- HW | AF7: -0.01736111111 | AH7: -0.02083333333 | AJ7: 00:50:00 | AL7: 00:50:00 | AN7: 00:35:00 | AP7: 00:40:00 | AR7: -0.01041666667 | AS7: 00:20:00 | AT7: -0.01041666667 | AV7: -0.003472222222 | AX7: -0.02083333333 | AZ7: -0.02430555556 | BB7: -0.02777777778 | BD7: -0.07291666667 | BF7: 00:35:00 | BI7: 00:45:00
G8: T Diff LW Np | K8: @ | L8: 11:00:00 | M8: 23:00:00 | S8: 00:35:00 | U8: 02:10:00 | V8: 00:35:00 | X8: =0.0416666666666667*4 -> 04:00:00 | Y8: 00:00:00 | AA8: -0.01041666667 | AB8: -0.003472222222 | AD8: 02:45:00 | AF8: -0.003472222222 | AH8: -0.01388888889 | AJ8: 00:35:00 | AL8: 00:35:00 | AN8: 00:25:00 | AP8: 00:35:00 | AR8: -0.01041666667 | AS8: 00:20:00 | AT8: -0.01041666667 | AV8: -0.01041666667 | AX8: -0.01388888889 | AZ8: -0.01736111111 | BB8: -0.02430555556 | BD8: -0.06944444444 | BF8: 00:35:00 | BI8: 00:45:00
G9: Place | K9: HOLYHEAD | S9: Beaumaris | U9: SLACK | V9: Menai Bridge | X9: Swellies SLACK | Y9: P'dinorwic | AA9: P.D. SLACK | AB9: Caern'fon | AD9: Victoria Dock Gt | AF9: Ft Belan | AH9: Llanddwyn | AJ9: Trwyn Dimnor | AL9: Moelfre | AN9: Amlwch | AP9: Cemaes | AR9: Skrries SLACK | AS9: Sth.Stck SLACK | AT9: Tr'ddr Bay | AV9: Porth T'castell | AX9: Trefor | AZ9: Porth Dinllaen | BB9: Port Ysgaden | BD9: Bardsey Is | BF9: Sound SLACK | BH9: L'pool G'stone | BI9: Dover (approx)
K10: =$A$1 -> Time | L10: Ht | M10: State | N10: %SpHt | O10: Time | P10: SpTm | Q10: NpTm | R10: %SpTm | S10: Time | T10: Ht | U10: Time | V10: Time | W10: Ht | X10: Time | Y10: Time | Z10: Ht | AA10: Time | AB10: Time | AC10: Ht | AD10: Gate | AE10: Time | AF10: Time | AG10: Ht | AH10: Time | AI10: Ht | AJ10: Time | AK10: Ht | AL10: Time | AM10: Ht | AN10: Time | AO10: Ht | AP10: Time | AQ10: Ht | AR10: Time | AS10: Time | AT10: Time | AU10: Ht | AV10: Time | AW10: Ht | AX10: Time | AY10: Ht | AZ10: Time | BA10: Ht | BB10: Time | BC10: Ht | BD10: Time | BE10: Ht | BF10: Time | BH10: Time | BI10: Time
A11: 0 | B11: =IF(Instructions!$C$2="BST",A11,0) -> 0 | C11: 2022-01-01T02:28:00 | D11: =DATE(YEAR(K11),MONTH(K11),DAY(K11)) -> 2022-01-01 | E11: =IF(D11=D10,IF(J10="","",J10),D11) -> 2022-01-01 | F11: =MONTH(K11) -> 1 | G11: =IF(H11="","",TEXT(F11*29,"mmm")) -> Jan | H11: =IF(I11=I10,"",DAY(K11)) -> 1 | I11: =WEEKDAY(K11,2) -> 6 | J11: =IF(I11=I10,"",TEXT(I11+2,"ddd")) -> Sat | K11: =C11+B11/24 -> 43100.10278 | L11: 1.13 | M11: LW | N11: =IF(M11="HW",(L11-K$2)/(K$1-K$2),(L11-K$3)/(K$4-K$3)) -> 0.679389313 | O11: =C11-INT(C11) -> 02:28:00 | P11: =IF(M11="HW",IF(AND(O11>=L$5,O11<L$6),L$5,IF(AND(O11>=L$6,O11<M$5),M$5,IF(AND(O11>=M$5,O11<M$6),M$5,IF(O11>=M$6,L$5+1,L$5)))),IF(AND(O11>=L$7,O11<L$8),L$7,IF(AND(O11>=L$8,O11<M$7),M$7,IF(AND(O11>=M$7,O11<M$8),M$7,IF(O11>=M$8,L$7+1,L$7))))) -> 05:00:00 | Q11: =IF(M11="HW",IF(AND(O11>=L$5,O11<L$6),L$6,IF(AND(O11>=L$6,O11<M$5),L$6,IF(AND(O11>=M$5,O11<M$6),M$6,IF(O11>=M$6,M$6,M$6-1)))),IF(AND(O11>=L$7,O11<L$8),L$8,IF(AND(O11>=L$8,O11<M$7),L$8,IF(AND(O11>=M$7,O11<M$8),M$8,IF(O11>=M$8,M$8,M$8-1))))) -> -0.04166666667 | R11: =ABS((O11-Q11)/(P11-Q11)) -> 0.5777777778 | S11: =IF($M11="HW",$K11+S$6+(S$5-S$6)*$R11,$K11+S$8+(S$7-S$8)*$R11) -> 43100.13511 | T11: =IF($M11="HW",S$2+(S$1-S$2)*$N11,S$3+(S$4-S$3)*$N11) -> 1.345038168 | U11: 43100.20108 | V11: 43100.11705 | W11: =IF($M11="HW",V$2+(V$1-V$2)*$N11,V$3+(V$4-V$3)*$N11) -> 1.212977099 | X11: =IF($M11="HW",$BL11+X$6,$K11-1/24) -> 43100.06111 | Y11: =IF($M11="HW",$K11+Y$6+(Y$5-Y$6)*$R11,$K11+Y$8+(Y$7-Y$8)*$R11) -> 43100.11481 | Z11: =IF($M11="HW",Y$2+(Y$1-Y$2)*$N11,Y$3+(Y$4-Y$3)*$N11) -> 1.184732824 | AA11: =IF($M11="HW",$K11+AA$6+(AA$5-AA$6)*$R11,$K11+AA$8+(AA$7-AA$8)*$R11) -> 43100.08032 | AB11: =IF($M11="HW",$K11+AB$6+(AB$5-AB$6)*$R11,$K11+AB$8+(AB$7-AB$8)*$R11) -> 43100.10733 | AC11: =IF($M11="HW",AB$2+(AB$1-AB$2)*$N11,AB$3+(AB$4-AB$3)*$N11) -> 1.016793893 | AD11: =IF($M11="HW","Opn","Cls") -> Cls | AE11: =IF($M11="HW",$AB11-AD$8,IF($AB10="HW",$AB11+AD$8,"?")) -> ? | AF11: =IF($M11="HW",$K11+AF$6+(AF$5-AF$6)*$R11,$K11+AF$8+(AF$7-AF$8)*$R11) -> 43100.09128 | AG11: =IF($M11="HW",AF$2+(AF$1-AF$2)*$N11,AF$3+(AF$4-AF$3)*$N11) -> 0.9847328244 | AH11: =IF($M11="HW",$K11+AH$6+(AH$5-AH$6)*$R11,$K11+AH$8+(AH$7-AH$8)*$R11) -> 43100.08488 | AI11: =IF($M11="HW",AH$2+(AH$1-AH$2)*$N11,AH$3+(AH$4-AH$3)*$N11) -> 1.084732824 | AJ11: =IF($M11="HW",$K11+AJ$6+(AJ$5-AJ$6)*$R11,$K11+AJ$8+(AJ$7-AJ$8)*$R11) -> 43100.1331 | AK11: =IF($M11="HW",AJ$2+(AJ$1-AJ$2)*$N11,AJ$3+(AJ$4-AJ$3)*$N11) -> 1.412977099 | AL11: =IF($M11="HW",$K11+AL$6+(AL$5-AL$6)*$R11,$K11+AL$8+(AL$7-AL$8)*$R11) -> 43100.1331 | AM11: =IF($M11="HW",AL$2+(AL$1-AL$2)*$N11,AL$3+(AL$4-AL$3)*$N11) -> 1.412977099 | AN11: =IF($M11="HW",$K11+AN$6+(AN$5-AN$6)*$R11,$K11+AN$8+(AN$7-AN$8)*$R11) -> 43100.12415 | AO11: =IF($M11="HW",AN$2+(AN$1-AN$2)*$N11,AN$3+(AN$4-AN$3)*$N11) -> 1.412977099 | AP11: =IF($M11="HW",$K11+AP$6+(AP$5-AP$6)*$R11,$K11+AP$8+(AP$7-AP$8)*$R11) -> 43100.12909 | AQ11: =IF($M11="HW",AP$2+(AP$1-AP$2)*$N11,AP$3+(AP$4-AP$3)*$N11) -> 1.280916031 | AR11: =IF($M11="HW",$K11+AR$6+(AR$5-AR$6)*$R11,$K11+AR$8+(AR$7-AR$8)*$R11) -> 43100.09236 | AS11: 43100.11667 | AT11: =IF($M11="HW",$K11+AT$6+(AT$5-AT$6)*$R11,$K11+AT$8+(AT$7-AT$8)*$R11) -> 43100.09236 | AU11: =IF($M11="HW",AT$2+(AT$1-AT$2)*$N11,AT$3+(AT$4-AT$3)*$N11) -> 1.184732824 | AV11: =IF($M11="HW",$K11+AV$6+(AV$5-AV$6)*$R11,$K11+AV$8+(AV$7-AV$8)*$R11) -> 43100.09637 | AW11: =IF($M11="HW",AV$2+(AV$1-AV$2)*$N11,AV$3+(AV$4-AV$3)*$N11) -> 1.116793893 | AX11: =IF($M11="HW",$K11+AX$6+(AX$5-AX$6)*$R11,$K11+AX$8+(AX$7-AX$8)*$R11) -> 43100.08488 | AY11: =IF($M11="HW",AX$2+(AX$1-AX$2)*$N11,AX$3+(AX$4-AX$3)*$N11) -> 0.9847328244 | AZ11: =IF($M11="HW",$K11+AZ$6+(AZ$5-AZ$6)*$R11,$K11+AZ$8+(AZ$7-AZ$8)*$R11) -> 43100.0814 | BA11: =IF($M11="HW",AZ$2+(AZ$1-AZ$2)*$N11,AZ$3+(AZ$4-AZ$3)*$N11) -> 0.9167938931 | BB11: =IF($M11="HW",$K11+BB$6+(BB$5-BB$6)*$R11,$K11+BB$8+(BB$7-BB$8)*$R11) -> 43100.07647 | BC11: =IF($M11="HW",BB$2+(BB$1-BB$2)*$N11,BB$3+(BB$4-BB$3)*$N11) -> 1.016793893 | BD11: =IF($M11="HW",$K11+BD$6+(BD$5-BD$6)*$R11,$K11+BD$8+(BD$7-BD$8)*$R11) -> 43100.03133 | BE11: =IF($M11="HW",BD$2+(BD$1-BD$2)*$N11,BD$3+(BD$4-BD$3)*$N11) -> 0.8885496183 | BF11: =IF($M11="HW",$K11+BF$6+(BF$5-BF$6)*$R11,$K11+BF$8+(BF$7-BF$8)*$R11) -> 43100.12708 | BH11: =BL11 -> 43100.16458 | BI11: 43100.13403 | BK11: 2022-01-01T03:57:00 | BL11: =BK11+B11/24 -> 43100.16458
A12: 0 | B12: =IF(Instructions!$C$2="BST",A12,0) -> 0 | C12: 2022-01-01T08:46:00 | D12: 2022-01-01 | E12: Sat | F12: =MONTH(K12) -> 1 | G12: =IF(H12="","",TEXT(F12*29,"mmm")) ->  | H12: =IF(I12=I11,"",DAY(K12)) ->  | I12: 6 | J12: =IF(I12=I11,"",TEXT(I12+2,"ddd")) ->  | K12: 43100.36528 | L12: 5.45 | M12: HW | N12: 0.8347826087 | O12: 08:46:00 | P12: 12:00:00 | Q12: 06:00:00 | R12: =ABS((O12-Q12)/(P12-Q12)) -> 0.4611111111 | S12: 43100.37703 | T12: 7.335652174 | U12: 43100.443 | V12: 43100.37863 | W12: 7.052173913 | X12: =IF($M12="HW",$BK12+X$6+$B12/24,$BK11+4/24+$B12/24) -> 43100.31111 | Y12: 43100.35112 | Z12: =IF($M12="HW",Y$2+(Y$1-Y$2)*$N12,Y$3+(Y$4-Y$3)*$N12) -> 5.40173913 | AA12: 43100.3407 | AB12: 43100.34444 | AC12: =IF($M12="HW",AB$2+(AB$1-AB$2)*$N12,AB$3+(AB$4-AB$3)*$N12) -> 5.00173913 | AD12: Opn | AE12: =IF($M12="HW",$AB12-AD$8,$AB11+AD$8) -> 43100.22986 | AF12: 43100.34686 | AG12: =IF($M12="HW",AF$2+(AF$1-AF$2)*$N12,AF$3+(AF$4-AF$3)*$N12) -> 4.41826087 | AH12: 43100.32068 | AI12: =IF($M12="HW",AH$2+(AH$1-AH$2)*$N12,AH$3+(AH$4-AH$3)*$N12) -> 4.734782609 | AJ12: 43100.3789 | AK12: =IF($M12="HW",AJ$2+(AJ$1-AJ$2)*$N12,AJ$3+(AJ$4-AJ$3)*$N12) -> 7.235652174 | AL12: 43100.38077 | AM12: =IF($M12="HW",AL$2+(AL$1-AL$2)*$N12,AL$3+(AL$4-AL$3)*$N12) -> 7.219130435 | AN12: 43100.37542 | AO12: =IF($M12="HW",AN$2+(AN$1-AN$2)*$N12,AN$3+(AN$4-AN$3)*$N12) -> 6.952173913 | AP12: 43100.38104 | AQ12: =IF($M12="HW",AP$2+(AP$1-AP$2)*$N12,AP$3+(AP$4-AP$3)*$N12) -> 6.352173913 | AR12: 43100.35486 | AS12: 43100.37569 | AT12: 43100.34151 | AU12: =IF($M12="HW",AT$2+(AT$1-AT$2)*$N12,AT$3+(AT$4-AT$3)*$N12) -> 5.00173913 | AV12: 43100.34151 | AW12: =IF($M12="HW",AV$2+(AV$1-AV$2)*$N12,AV$3+(AV$4-AV$3)*$N12) -> 4.80173913 | AX12: 43100.31881 | AY12: =IF($M12="HW",AX$2+(AX$1-AX$2)*$N12,AX$3+(AX$4-AX$3)*$N12) -> 4.585217391 | AZ12: 43100.31534 | BA12: =IF($M12="HW",AZ$2+(AZ$1-AZ$2)*$N12,AZ$3+(AZ$4-AZ$3)*$N12) -> 4.40173913 | BB12: 43100.31186 | BC12: =IF($M12="HW",BB$2+(BB$1-BB$2)*$N12,BB$3+(BB$4-BB$3)*$N12) -> 4.31826087 | BD12: 43100.26057 | BE12: =IF($M12="HW",BD$2+(BD$1-BD$2)*$N12,BD$3+(BD$4-BD$3)*$N12) -> 4.20173913 | BF12: 43100.35486 | BH12: 43100.39444 | BI12: 43100.39653 | BK12: 2022-01-01T09:28:00 | BL12: 43100.39444
A13: 0 | B13: =IF(Instructions!$C$2="BST",A13,0) -> 0 | C13: 2022-01-01T14:52:00 | D13: 2022-01-01 | F13: 1 | I13: 6 | K13: 43100.61944 | L13: 1.13 | M13: LW | N13: 0.679389313 | O13: 14:52:00 | P13: 17:00:00 | Q13: 11:00:00 | R13: 0.6444444444 | S13: 43100.6527 | T13: 1.345038168 | U13: 43100.71867 | V13: 43100.63256 | W13: 1.212977099 | X13: 43100.56111 | Y13: 43100.63287 | Z13: 1.184732824 | AA13: 43100.5956 | AB13: 43100.62492 | AC13: 1.016793893 | AD13: Cls | AE13: 43100.45903 | AF13: 43100.60702 | AG13: 0.9847328244 | AH13: 43100.60108 | AI13: 1.084732824 | AJ13: 43100.65046 | AK13: 1.412977099 | AL13: 43100.65046 | AM13: 1.412977099 | AN13: 43100.64128 | AO13: 1.412977099 | AP13: 43100.64599 | AQ13: 1.280916031 | AR13: 43100.60903 | AS13: 43100.63333 | AT13: 43100.60903 | AU13: 1.184732824 | AV13: 43100.6135 | AW13: 1.116793893 | AX13: 43100.60108 | AY13: 0.9847328244 | AZ13: 43100.59761 | BA13: 0.9167938931 | BB13: 43100.5929 | BC13: 1.016793893 | BD13: 43100.54776 | BE13: 0.8885496183 | BF13: 43100.64375 | BH13: 43100.68333 | BI13: 43100.65069 | BK13: 2022-01-01T16:24:00 | BL13: 43100.68333
A14: 0 | B14: =IF(Instructions!$C$2="BST",A14,0) -> 0 | C14: 2022-01-01T21:11:00 | D14: 2022-01-01 | F14: 1 | I14: 6 | J14: =IF(I14=I13,"",TEXT(I14+2,"ddd")) ->  | K14: 43100.88264 | L14: 5.55 | M14: HW | N14: 0.9217391304 | O14: 21:11:00 | P14: 1 | Q14: 18:00:00 | R14: 0.5305555556 | S14: 43100.89511 | T14: 7.474782609 | U14: 43100.96108 | V14: 43100.89695 | W14: 7.182608696 | X14: 43100.82917 | Y14: 43100.86896 | Z14: =IF($M14="HW",Y$2+(Y$1-Y$2)*$N14,Y$3+(Y$4-Y$3)*$N14) -> 5.506086957 | AA14: 43100.85855 | AB14: 43100.86181 | AC14: =IF($M14="HW",AB$2+(AB$1-AB$2)*$N14,AB$3+(AB$4-AB$3)*$N14) -> 5.106086957 | AD14: Opn | AE14: 43100.74722 | AF14: 43100.86301 | AG14: =IF($M14="HW",AF$2+(AF$1-AF$2)*$N14,AF$3+(AF$4-AF$3)*$N14) -> 4.513913043 | AH14: 43100.83708 | AI14: =IF($M14="HW",AH$2+(AH$1-AH$2)*$N14,AH$3+(AH$4-AH$3)*$N14) -> 4.82173913 | AJ14: 43100.89674 | AK14: =IF($M14="HW",AJ$2+(AJ$1-AJ$2)*$N14,AJ$3+(AJ$4-AJ$3)*$N14) -> 7.374782609 | AL14: 43100.89837 | AM14: =IF($M14="HW",AL$2+(AL$1-AL$2)*$N14,AL$3+(AL$4-AL$3)*$N14) -> 7.366956522 | AN14: 43100.89327 | AO14: =IF($M14="HW",AN$2+(AN$1-AN$2)*$N14,AN$3+(AN$4-AN$3)*$N14) -> 7.082608696 | AP14: 43100.89816 | AQ14: =IF($M14="HW",AP$2+(AP$1-AP$2)*$N14,AP$3+(AP$4-AP$3)*$N14) -> 6.482608696 | AR14: 43100.87222 | AS14: 43100.89306 | AT14: 43100.85791 | AU14: =IF($M14="HW",AT$2+(AT$1-AT$2)*$N14,AT$3+(AT$4-AT$3)*$N14) -> 5.106086957 | AV14: 43100.85791 | AW14: =IF($M14="HW",AV$2+(AV$1-AV$2)*$N14,AV$3+(AV$4-AV$3)*$N14) -> 4.906086957 | AX14: 43100.83545 | AY14: =IF($M14="HW",AX$2+(AX$1-AX$2)*$N14,AX$3+(AX$4-AX$3)*$N14) -> 4.69826087 | AZ14: 43100.83197 | BA14: =IF($M14="HW",AZ$2+(AZ$1-AZ$2)*$N14,AZ$3+(AZ$4-AZ$3)*$N14) -> 4.506086957 | BB14: 43100.8285 | BC14: =IF($M14="HW",BB$2+(BB$1-BB$2)*$N14,BB$3+(BB$4-BB$3)*$N14) -> 4.413913043 | BD14: 43100.7789 | BE14: =IF($M14="HW",BD$2+(BD$1-BD$2)*$N14,BD$3+(BD$4-BD$3)*$N14) -> 4.306086957 | BF14: 43100.87222 | BH14: 43100.9125 | BI14: 43100.91389 | BK14: 2022-01-01T21:54:00 | BL14: 43100.9125
A15: 0 | B15: =IF(Instructions!$C$2="BST",A15,0) -> 0 | C15: 2022-01-02T03:20:00 | D15: 2022-01-02 | E15: 2022-01-02 | F15: 1 | G15: Jan | H15: 2 | I15: 7 | J15: Sun | K15: 43101.13889 | L15: 0.96 | M15: LW | N15: 0.8091603053 | O15: 03:20:00 | P15: 05:00:00 | Q15: -0.04166666667 | R15: 0.7222222222 | S15: 43101.17323 | T15: 1.124427481 | U15: 43101.2392 | V15: 43101.15066 | W15: 1.005343511 | X15: 43101.07917 | Y15: 43101.15394 | Z15: 1.029007634 | AA15: 43101.11343 | AB15: 43101.14545 | AC15: 0.8480916031 | AD15: Cls | AE15: 43100.97639 | AF15: 43101.12539 | AG15: 0.8290076336 | AH15: 43101.11998 | AI15: 0.9290076336 | AJ15: 43101.17072 | AK15: 1.205343511 | AL15: 43101.17072 | AM15: 1.205343511 | AN15: 43101.16127 | AO15: 1.205343511 | AP15: 43101.1657 | AQ15: 1.086259542 | AR15: 43101.12847 | AS15: 43101.15278 | AT15: 43101.12847 | AU15: 1.029007634 | AV15: 43101.13349 | AW15: 0.9480916031 | AX15: 43101.11998 | AY15: 0.8290076336 | AZ15: 43101.11651 | BA15: 0.7480916031 | BB15: 43101.11208 | BC15: 0.8480916031 | BD15: 43101.06694 | BE15: 0.7717557252 | BF15: 43101.16319 | BH15: 43101.20347 | BI15: 43101.17014 | BK15: 2022-01-02T04:53:00 | BL15: 43101.20347
A16: 0 | B16: =IF(Instructions!$C$2="BST",A16,0) -> 0 | C16: 2022-01-02T09:36:00 | D16: 2022-01-02 | E16: Sun | F16: 1 | I16: 7 | K16: 43101.4 | L16: 5.7 | M16: HW | N16: 1.052173913 | O16: 09:36:00 | P16: 12:00:00 | Q16: 06:00:00 | R16: 0.6 | S16: 43101.41319 | T16: 7.683478261 | U16: 43101.47917 | V16: 43101.41528 | W16: 7.37826087 | X16: 43101.34722 | Y16: 43101.38681 | Z16: 5.662608696 | AA16: 43101.37639 | AB16: 43101.37917 | AC16: 5.262608696 | AD16: Opn | AE16: 43101.26458 | AF16: 43101.37917 | AG16: 4.657391304 | AH16: 43101.35347 | AI16: 4.952173913 | AJ16: 43101.41458 | AK16: 7.583478261 | AL16: 43101.41597 | AM16: 7.588695652 | AN16: 43101.41111 | AO16: 7.27826087 | AP16: 43101.41528 | AQ16: 6.67826087 | AR16: 43101.38958 | AS16: 43101.41042 | AT16: 43101.37431 | AU16: 5.262608696 | AV16: 43101.37431 | AW16: 5.062608696 | AX16: 43101.35208 | AY16: 4.867826087 | AZ16: 43101.34861 | BA16: 4.662608696 | BB16: 43101.34514 | BC16: 4.557391304 | BD16: 43101.29722 | BE16: 4.462608696 | BF16: 43101.38958 | BH16: 43101.43056 | BI16: 43101.43125 | BK16: 2022-01-02T10:20:00 | BL16: 43101.43056
A17: 0 | B17: =IF(Instructions!$C$2="BST",A17,0) -> 0 | C17: 2022-01-02T15:44:00 | D17: 2022-01-02 | F17: 1 | I17: 7 | K17: 43101.65556 | L17: 0.86 | M17: LW | N17: 0.8854961832 | O17: 15:44:00 | P17: 17:00:00 | Q17: 11:00:00 | R17: 0.7888888889 | S17: 43101.69082 | T17: 0.9946564885 | U17: 43101.75679 | V17: 43101.66617 | W17: 0.8832061069 | X17: 43101.59722 | Y17: 43101.67199 | Z17: 0.9374045802 | AA17: 43101.6287 | AB17: 43101.66304 | AC17: 0.7488549618 | AD17: Cls | AE17: 43101.49375 | AF17: 43101.64113 | AG17: 0.7374045802 | AH17: 43101.63619 | AI17: 0.8374045802 | AJ17: 43101.68808 | AK17: 1.083206107 | AL17: 43101.68808 | AM17: 1.083206107 | AN17: 43101.6784 | AO17: 1.083206107 | AP17: 43101.6826 | AQ17: 0.9717557252 | AR17: 43101.64514 | AS17: 43101.66944 | AT17: 43101.64514 | AU17: 0.9374045802 | AV17: 43101.65062 | AW17: 0.8488549618 | AX17: 43101.63619 | AY17: 0.7374045802 | AZ17: 43101.63272 | BA17: 0.6488549618 | BB17: 43101.62851 | BC17: 0.7488549618 | BD17: 43101.58337 | BE17: 0.7030534351 | BF17: 43101.67986 | BH17: 43101.72222 | BI17: 43101.68681 | BK17: 2022-01-02T17:20:00 | BL17: 43101.72222
A18: 0 | B18: =IF(Instructions!$C$2="BST",A18,0) -> 0 | C18: 2022-01-02T22:03:00 | D18: 2022-01-02 | F18: 1 | I18: 7 | K18: 43101.91875 | L18: 5.69 | M18: HW | N18: 1.043478261 | O18: 22:03:00 | P18: 1 | Q18: 18:00:00 | R18: 0.675 | S18: 43101.93273 | T18: 7.669565217 | U18: 43101.9987 | V18: 43101.93507 | W18: 7.365217391 | X18: 43101.86597 | Y18: 43101.90608 | Z18: =IF($M18="HW",Y$2+(Y$1-Y$2)*$N18,Y$3+(Y$4-Y$3)*$N18) -> 5.652173913 | AA18: 43101.89566 | AB18: 43101.89792 | AC18: =IF($M18="HW",AB$2+(AB$1-AB$2)*$N18,AB$3+(AB$4-AB$3)*$N18) -> 5.252173913 | AD18: Opn | AE18: 43101.78333 | AF18: 43101.89661 | AG18: =IF($M18="HW",AF$2+(AF$1-AF$2)*$N18,AF$3+(AF$4-AF$3)*$N18) -> 4.647826087 | AH18: 43101.87118 | AI18: =IF($M18="HW",AH$2+(AH$1-AH$2)*$N18,AH$3+(AH$4-AH$3)*$N18) -> 4.943478261 | AJ18: 43101.93385 | AK18: =IF($M18="HW",AJ$2+(AJ$1-AJ$2)*$N18,AJ$3+(AJ$4-AJ$3)*$N18) -> 7.569565217 | AL18: 43101.93498 | AM18: =IF($M18="HW",AL$2+(AL$1-AL$2)*$N18,AL$3+(AL$4-AL$3)*$N18) -> 7.573913043 | AN18: 43101.93038 | AO18: =IF($M18="HW",AN$2+(AN$1-AN$2)*$N18,AN$3+(AN$4-AN$3)*$N18) -> 7.265217391 | AP18: 43101.93377 | AQ18: =IF($M18="HW",AP$2+(AP$1-AP$2)*$N18,AP$3+(AP$4-AP$3)*$N18) -> 6.665217391 | AR18: 43101.90833 | AS18: 43101.92917 | AT18: 43101.89201 | AU18: =IF($M18="HW",AT$2+(AT$1-AT$2)*$N18,AT$3+(AT$4-AT$3)*$N18) -> 5.252173913 | AV18: 43101.89201 | AW18: =IF($M18="HW",AV$2+(AV$1-AV$2)*$N18,AV$3+(AV$4-AV$3)*$N18) -> 5.052173913 | AX18: 43101.87005 | AY18: =IF($M18="HW",AX$2+(AX$1-AX$2)*$N18,AX$3+(AX$4-AX$3)*$N18) -> 4.856521739 | AZ18: 43101.86658 | BA18: =IF($M18="HW",AZ$2+(AZ$1-AZ$2)*$N18,AZ$3+(AZ$4-AZ$3)*$N18) -> 4.652173913 | BB18: 43101.86311 | BC18: =IF($M18="HW",BB$2+(BB$1-BB$2)*$N18,BB$3+(BB$4-BB$3)*$N18) -> 4.547826087 | BD18: 43101.81701 | BE18: =IF($M18="HW",BD$2+(BD$1-BD$2)*$N18,BD$3+(BD$4-BD$3)*$N18) -> 4.452173913 | BF18: 43101.90833 | BH18: 43101.94931 | BI18: 43101.95 | BK18: 2022-01-02T22:47:00 | BL18: 43101.94931
A19: 0 | B19: =IF(Instructions!$C$2="BST",A19,0) -> 0 | C19: 2022-01-03T04:09:00 | D19: 2022-01-03 | E19: 2022-01-03 | F19: 1 | G19: Jan | H19: 3 | I19: 1 | J19: Mon | K19: 43102.17292 | L19: 0.85 | M19: LW | N19: 0.893129771 | O19: 04:09:00 | P19: 05:00:00 | Q19: -0.04166666667 | R19: 0.8583333333 | S19: 43102.20914 | T19: 0.9816793893 | U19: 43102.27512 | V19: 43102.18232 | W19: 0.8709923664 | X19: 43102.11597 | Y19: 43102.1908 | Z19: 0.9282442748 | AA19: 43102.14462 | AB19: 43102.18137 | AC19: 0.7389312977 | AD19: Cls | AE19: 43102.0125 | AF19: 43102.15752 | AG19: 0.7282442748 | AH19: 43102.15307 | AI19: 0.8282442748 | AJ19: 43102.20616 | AK19: 1.070992366 | AL19: 43102.20616 | AM19: 1.070992366 | AN19: 43102.19624 | AO19: 1.070992366 | AP19: 43102.2002 | AQ19: 0.9603053435 | AR19: 43102.1625 | AS19: 43102.18681 | AT19: 43102.1625 | AU19: 0.9282442748 | AV19: 43102.16846 | AW19: 0.8389312977 | AX19: 43102.15307 | AY19: 0.7282442748 | AZ19: 43102.14959 | BA19: 0.6389312977 | BB19: 43102.14563 | BC19: 0.7389312977 | BD19: 43102.10049 | BE19: 0.6961832061 | BF19: 43102.19722 | BH19: 43102.23958 | BI19: 43102.20417 | BK19: 2022-01-03T05:45:00 | BL19: 43102.23958
A20: 0 | B20: =IF(Instructions!$C$2="BST",A20,0) -> 0 | C20: 2022-01-03T10:25:00 | D20: 2022-01-03 | E20: Mon | F20: 1 | I20: 1 | K20: 43102.43403 | L20: 5.88 | M20: HW | N20: 1.208695652 | O20: 10:25:00 | P20: 12:00:00 | Q20: 06:00:00 | R20: 0.7361111111 | S20: 43102.44864 | T20: 7.933913043 | U20: 43102.51461 | V20: 43102.4512 | W20: 7.613043478 | X20: 43102.38194 | Y20: 43102.42178 | Z20: 5.850434783 | AA20: 43102.41136 | AB20: 43102.41319 | AC20: 5.450434783 | AD20: Opn | AE20: 43102.29861 | AF20: 43102.41083 | AG20: 4.829565217 | AH20: 43102.38561 | AI20: 5.108695652 | AJ20: 43102.44956 | AK20: 7.833913043 | AL20: 43102.45047 | AM20: 7.854782609 | AN20: 43102.44608 | AO20: 7.513043478 | AP20: 43102.44883 | AQ20: 6.913043478 | AR20: 43102.42361 | AS20: 43102.44444 | AT20: 43102.40644 | AU20: 5.450434783 | AV20: 43102.40644 | AW20: 5.250434783 | AX20: 43102.38469 | AY20: 5.071304348 | AZ20: 43102.38122 | BA20: 4.850434783 | BB20: 43102.37775 | BC20: 4.729565217 | BD20: 43102.33314 | BE20: 4.650434783 | BF20: 43102.42361 | BH20: 43102.46528 | BI20: 43102.46528 | BK20: 2022-01-03T11:10:00 | BL20: 43102.46528
A21: 0 | B21: =IF(Instructions!$C$2="BST",A21,0) -> 0 | C21: 2022-01-03T16:35:00 | D21: 2022-01-03 | F21: 1 | I21: 1 | K21: 43102.69097 | L21: 0.67 | M21: LW | N21: 1.030534351 | O21: 16:35:00 | P21: 17:00:00 | Q21: 11:00:00 | R21: 0.9305555555 | S21: 43102.7282 | T21: 0.7480916031 | U21: 43102.79417 | V21: 43102.69912 | W21: 0.6511450382 | X21: 43102.63194 | Y21: 43102.71036 | Z21: 0.7633587786 | AA21: 43102.66117 | AB21: 43102.70042 | AC21: 0.5603053435 | AD21: Cls | AE21: 43102.52778 | AF21: 43102.67458 | AG21: 0.5633587786 | AH21: 43102.67062 | AI21: 0.6633587786 | AJ21: 43102.72497 | AK21: 0.8511450382 | AL21: 43102.72497 | AM21: 0.8511450382 | AN21: 43102.7148 | AO21: 0.8511450382 | AP21: 43102.71851 | AQ21: 0.7541984733 | AR21: 43102.68056 | AS21: 43102.70486 | AT21: 43102.68056 | AU21: 0.7633587786 | AV21: 43102.68702 | AW21: 0.6603053435 | AX21: 43102.67062 | AY21: 0.5633587786 | AZ21: 43102.66715 | BA21: 0.4603053435 | BB21: 43102.66344 | BC21: 0.5603053435 | BD21: 43102.6183 | BE21: 0.572519084 | BF21: 43102.71528 | BH21: 43102.75833 | BI21: 43102.72222 | BK21: 2022-01-03T18:12:00 | BL21: 43102.75833
A22: 0 | B22: =IF(Instructions!$C$2="BST",A22,0) -> 0 | C22: 2022-01-03T22:54:00 | D22: 2022-01-03 | F22: 1 | I22: 1 | K22: 43102.95417 | L22: 5.73 | M22: HW | N22: 1.07826087 | O22: 22:54:00 | P22: 1 | Q22: 18:00:00 | R22: 0.8166666667 | S22: 43102.96962 | T22: 7.725217391 | U22: 43103.03559 | V22: 43102.97245 | W22: 7.417391304 | X22: 43102.90208 | Y22: 43102.94248 | Z22: 5.693913043 | AA22: 43102.93206 | AB22: 43102.93333 | AC22: 5.293913043 | AD22: Opn | AE22: 43102.81875 | AF22: 43102.92957 | AG22: 4.686086957 | AH22: 43102.90463 | AI22: 4.97826087 | AJ22: 43102.97025 | AK22: 7.625217391 | AL22: 43102.97089 | AM22: 7.633043478 | AN22: 43102.96678 | AO22: 7.317391304 | AP22: 43102.96869 | AQ22: 6.717391304 | AR22: 43102.94375 | AS22: 43102.96458 | AT22: 43102.92546 | AU22: 5.293913043 | AV22: 43102.92546 | AW22: 5.093913043 | AX22: 43102.90399 | AY22: 4.90173913 | AZ22: 43102.90052 | BA22: 4.693913043 | BB22: 43102.89705 | BC22: 4.586086957 | BD22: 43102.8544 | BE22: 4.493913043 | BF22: 43102.94375 | BH22: 43102.98542 | BI22: 43102.98542 | BK22: 2022-01-03T23:39:00 | BL22: 43102.98542
A23: 0 | B23: =IF(Instructions!$C$2="BST",A23,0) -> 0 | C23: 2022-01-04T04:58:00 | D23: 2022-01-04 | E23: 2022-01-04 | F23: 1 | G23: Jan | H23: 4 | I23: 2 | J23: Tue | K23: 43103.20694 | L23: 0.82 | M23: LW | N23: 0.9160305344 | O23: 04:58:00 | P23: 05:00:00 | Q23: -0.04166666667 | R23: 0.9944444444 | S23: 43103.24506 | T23: 0.9427480916 | U23: 43103.31103 | V23: 43103.21399 | W23: 0.834351145 | X23: 43103.15208 | Y23: 43103.22766 | Z23: 0.9007633588 | AA23: 43103.17581 | AB23: 43103.21728 | AC23: 0.7091603053 | AD23: Cls | AE23: 43103.04792 | AF23: 43103.18966 | AG23: 0.7007633588 | AH23: 43103.18615 | AI23: 0.8007633588 | AJ23: 43103.24161 | AK23: 1.034351145 | AL23: 43103.24161 | AM23: 1.034351145 | AN23: 43103.23121 | AO23: 1.034351145 | AP23: 43103.2347 | AQ23: 0.9259541985 | AR23: 43103.19653 | AS23: 43103.22083 | AT23: 43103.19653 | AU23: 0.9007633588 | AV23: 43103.20343 | AW23: 0.8091603053 | AX23: 43103.18615 | AY23: 0.7007633588 | AZ23: 43103.18268 | BA23: 0.6091603053 | BB23: 43103.17919 | BC23: 0.7091603053 | BD23: 43103.13405 | BE23: 0.6755725191 | BF23: 43103.23125 | BH23: 43103.27361 | BI23: 43103.23819 | BK23: 2022-01-04T06:34:00 | BL23: 43103.27361
A24: 0 | B24: =IF(Instructions!$C$2="BST",A24,0) -> 0 | C24: 2022-01-04T11:13:00 | D24: 2022-01-04 | E24: Tue | F24: 1 | I24: 2 | K24: 43103.46736 | L24: 5.97 | M24: HW | N24: 1.286956522 | O24: 11:13:00 | P24: 12:00:00 | Q24: 06:00:00 | R24: 0.8694444445 | S24: 43103.48336 | T24: 8.059130435 | U24: 43103.54933 | V24: 43103.48638 | W24: 7.730434783 | X24: 43103.41667 | Y24: 43103.45604 | Z24: 5.944347826 | AA24: 43103.44562 | AB24: 43103.44653 | AC24: 5.544347826 | AD24: Opn | AE24: 43103.33194 | AF24: 43103.44185 | AG24: 4.915652174 | AH24: 43103.41709 | AI24: 5.186956522 | AJ24: 43103.48382 | AK24: 7.959130435 | AL24: 43103.48427 | AM24: 7.987826087 | AN24: 43103.48034 | AO24: 7.630434783 | AP24: 43103.4817 | AQ24: 7.030434783 | AR24: 43103.45694 | AS24: 43103.47778 | AT24: 43103.43792 | AU24: 5.544347826 | AV24: 43103.43792 | AW24: 5.344347826 | AX24: 43103.41664 | AY24: 5.173043478 | AZ24: 43103.41317 | BA24: 4.944347826 | BB24: 43103.40969 | BC24: 4.815652174 | BD24: 43103.36833 | BE24: 4.744347826 | BF24: 43103.45694 | BH24: 43103.5 | BI24: 43103.49861 | BK24: 2022-01-04T12:00:00 | BL24: 43103.5
A25: 0 | B25: =IF(Instructions!$C$2="BST",A25,0) -> 0 | C25: 2022-01-04T17:25:00 | D25: 2022-01-04 | F25: 1 | I25: 2 | K25: 43103.72569 | L25: 0.59 | M25: LW | N25: 1.091603053 | O25: 17:25:00 | P25: 17:00:00 | Q25: 23:00:00 | R25: 0.9305555556 | S25: 43103.76292 | T25: 0.6442748092 | U25: 43103.8289 | V25: 43103.73384 | W25: 0.5534351145 | X25: 43103.66667 | Y25: 43103.74508 | Z25: 0.6900763359 | AA25: 43103.69589 | AB25: 43103.73515 | AC25: 0.4809160305 | AD25: Cls | AE25: 43103.56111 | AF25: 43103.7093 | AG25: 0.4900763359 | AH25: 43103.70534 | AI25: 0.5900763359 | AJ25: 43103.75969 | AK25: 0.7534351145 | AL25: 43103.75969 | AM25: 0.7534351145 | AN25: 43103.74952 | AO25: 0.7534351145 | AP25: 43103.75323 | AQ25: 0.6625954198 | AR25: 43103.71528 | AS25: 43103.73958 | AT25: 43103.71528 | AU25: 0.6900763359 | AV25: 43103.72174 | AW25: 0.5809160305 | AX25: 43103.70534 | AY25: 0.4900763359 | AZ25: 43103.70187 | BA25: 0.3809160305 | BB25: 43103.69816 | BC25: 0.4809160305 | BD25: 43103.65302 | BE25: 0.5175572519 | BF25: 43103.75 | BH25: 43103.79306 | BI25: 43103.75694 | BK25: 2022-01-04T19:02:00 | BL25: 43103.79306
A26: 0 | B26: =IF(Instructions!$C$2="BST",A26,0) -> 0 | C26: 2022-01-04T23:44:00 | D26: 2022-01-04 | F26: 1 | I26: 2 | K26: 43103.98889 | L26: 5.67 | M26: HW | N26: 1.026086957 | O26: 23:44:00 | P26: 1 | Q26: 18:00:00 | R26: 0.9555555556 | S26: 43104.00579 | T26: 7.64173913 | U26: 43104.07176 | V26: 43104.0091 | W26: 7.339130435 | X26: 43103.9375 | Y26: 43103.97816 | Z26: =IF($M26="HW",Y$2+(Y$1-Y$2)*$N26,Y$3+(Y$4-Y$3)*$N26) -> 5.631304348 | AA26: 43103.96775 | AB26: 43103.96806 | AC26: =IF($M26="HW",AB$2+(AB$1-AB$2)*$N26,AB$3+(AB$4-AB$3)*$N26) -> 5.231304348 | AD26: Opn | AE26: 43103.85347 | AF26: 43103.96188 | AG26: =IF($M26="HW",AF$2+(AF$1-AF$2)*$N26,AF$3+(AF$4-AF$3)*$N26) -> 4.628695652 | AH26: 43103.93742 | AI26: =IF($M26="HW",AH$2+(AH$1-AH$2)*$N26,AH$3+(AH$4-AH$3)*$N26) -> 4.926086957 | AJ26: 43104.00594 | AK26: =IF($M26="HW",AJ$2+(AJ$1-AJ$2)*$N26,AJ$3+(AJ$4-AJ$3)*$N26) -> 7.54173913 | AL26: 43104.0061 | AM26: =IF($M26="HW",AL$2+(AL$1-AL$2)*$N26,AL$3+(AL$4-AL$3)*$N26) -> 7.544347826 | AN26: 43104.00247 | AO26: =IF($M26="HW",AN$2+(AN$1-AN$2)*$N26,AN$3+(AN$4-AN$3)*$N26) -> 7.239130435 | AP26: 43104.00293 | AQ26: =IF($M26="HW",AP$2+(AP$1-AP$2)*$N26,AP$3+(AP$4-AP$3)*$N26) -> 6.639130435 | AR26: 43103.97847 | AS26: 43103.99931 | AT26: 43103.95826 | AU26: =IF($M26="HW",AT$2+(AT$1-AT$2)*$N26,AT$3+(AT$4-AT$3)*$N26) -> 5.231304348 | AV26: 43103.95826 | AW26: =IF($M26="HW",AV$2+(AV$1-AV$2)*$N26,AV$3+(AV$4-AV$3)*$N26) -> 5.031304348 | AX26: 43103.93727 | AY26: =IF($M26="HW",AX$2+(AX$1-AX$2)*$N26,AX$3+(AX$4-AX$3)*$N26) -> 4.833913043 | AZ26: 43103.9338 | BA26: =IF($M26="HW",AZ$2+(AZ$1-AZ$2)*$N26,AZ$3+(AZ$4-AZ$3)*$N26) -> 4.631304348 | BB26: 43103.93032 | BC26: =IF($M26="HW",BB$2+(BB$1-BB$2)*$N26,BB$3+(BB$4-BB$3)*$N26) -> 4.528695652 | BD26: 43103.89105 | BE26: =IF($M26="HW",BD$2+(BD$1-BD$2)*$N26,BD$3+(BD$4-BD$3)*$N26) -> 4.431304348 | BF26: 43103.97847 | BH26: 43104.02083 | BI26: 43104.02014 | BK26: 2022-01-05T00:30:00 | BL26: 43104.02083
A27: 0 | B27: =IF(Instructions!$C$2="BST",A27,0) -> 0 | C27: 2022-01-05T05:46:00 | D27: 2022-01-05 | E27: 2022-01-05 | F27: 1 | G27: Jan | H27: 5 | I27: 3 | J27: Wed | K27: 43104.24028 | L27: 0.89 | M27: LW | N27: 0.8625954198 | O27: 05:46:00 | P27: 05:00:00 | Q27: 11:00:00 | R27: 0.8722222222 | S27: 43104.2767 | T27: 1.033587786 | U27: 43104.34267 | V27: 43104.24944 | W27: 0.9198473282 | X27: 43104.1875 | Y27: 43104.25845 | Z27: 0.9648854962 | AA27: 43104.21169 | AB27: 43104.24892 | AC27: 0.7786259542 | AD27: Cls | AE27: 43104.08264 | AF27: 43104.22469 | AG27: 0.7648854962 | AH27: 43104.22033 | AI27: 0.8648854962 | AJ27: 43104.27367 | AK27: 1.119847328 | AL27: 43104.27367 | AM27: 1.119847328 | AN27: 43104.2637 | AO27: 1.119847328 | AP27: 43104.26761 | AQ27: 1.00610687 | AR27: 43104.22986 | AS27: 43104.25417 | AT27: 43104.22986 | AU27: 0.9648854962 | AV27: 43104.23592 | AW27: 0.8786259542 | AX27: 43104.22033 | AY27: 0.7648854962 | AZ27: 43104.21686 | BA27: 0.6786259542 | BB27: 43104.21294 | BC27: 0.7786259542 | BD27: 43104.1678 | BE27: 0.7236641221 | BF27: 43104.26458 | BH27: 43104.30694 | BI27: 43104.27153 | BK27: 2022-01-05T07:22:00 | BL27: 43104.30694
A28: 0 | B28: =IF(Instructions!$C$2="BST",A28,0) -> 0 | C28: 2022-01-05T12:01:00 | D28: 2022-01-05 | E28: Wed | F28: 1 | I28: 3 | K28: 43104.50069 | L28: 5.95 | M28: HW | N28: 1.269565217 | O28: 12:01:00 | P28: 12:00:00 | Q28: 18:00:00 | R28: 0.9972222222 | S28: =IF($M28="HW",$K28+S$6+(S$5-S$6)*$R28,$K28+S$8+(S$7-S$8)*$R28) -> 43104.51803 | T28: 8.031304348 | U28: 43104.584 | V28: 43104.52149 | W28: 7.704347826 | X28: 43104.45 | Y28: =IF($M28="HW",$K28+Y$6+(Y$5-Y$6)*$R28,$K28+Y$8+(Y$7-Y$8)*$R28) -> 43104.49026 | Z28: 5.923478261 | AA28: 43104.47984 | AB28: 43104.47986 | AC28: 5.523478261 | AD28: Opn | AE28: 43104.36528 | AF28: 43104.47296 | AG28: 4.896521739 | AH28: 43104.44865 | AI28: 5.169565217 | AJ28: 43104.51804 | AK28: 7.931304348 | AL28: 43104.51805 | AM28: 7.95826087 | AN28: 43104.51456 | AO28: 7.604347826 | AP28: 43104.51459 | AQ28: 7.004347826 | AR28: =IF($M28="HW",$K28+AR$6+(AR$5-AR$6)*$R28,$K28+AR$8+(AR$7-AR$8)*$R28) -> 43104.49028 | AS28: 43104.51111 | AT28: 43104.46948 | AU28: 5.523478261 | AV28: 43104.46948 | AW28: 5.323478261 | AX28: 43104.44864 | AY28: 5.150434783 | AZ28: 43104.44517 | BA28: 4.923478261 | BB28: 43104.4417 | BC28: 4.796521739 | BD28: 43104.40343 | BE28: 4.723478261 | BF28: =IF($M28="HW",$K28+BF$6+(BF$5-BF$6)*$R28,$K28+BF$8+(BF$7-BF$8)*$R28) -> 43104.49028 | BH28: 43104.53333 | BI28: 43104.53194 | BK28: 2022-01-05T12:48:00 | BL28: 43104.53333
A29: 0 | B29: =IF(Instructions!$C$2="BST",A29,0) -> 0 | C29: 2022-01-05T18:15:00 | D29: 2022-01-05 | F29: 1 | I29: 3 | K29: 43104.76042 | L29: 0.64 | M29: LW | N29: 1.053435115 | O29: 18:15:00 | P29: 17:00:00 | Q29: 23:00:00 | R29: 0.7916666667 | S29: 43104.79572 | T29: 0.7091603053 | U29: 43104.86169 | V29: 43104.77098 | W29: 0.6145038168 | X29: 43104.7 | Y29: 43104.77691 | Z29: 0.7358778626 | AA29: 43104.73351 | AB29: 43104.76794 | AC29: 0.5305343511 | AD29: Cls | AE29: 43104.59444 | AF29: 43104.74595 | AG29: 0.5358778626 | AH29: 43104.74103 | AI29: 0.6358778626 | AJ29: 43104.79297 | AK29: 0.8145038168 | AL29: 43104.79297 | AM29: 0.8145038168 | AN29: 43104.78328 | AO29: 0.8145038168 | AP29: 43104.78747 | AQ29: 0.7198473282 | AR29: 43104.75 | AS29: 43104.77431 | AT29: 43104.75 | AU29: 0.7358778626 | AV29: 43104.7555 | AW29: 0.6305343511 | AX29: 43104.74103 | AY29: 0.5358778626 | AZ29: 43104.73756 | BA29: 0.4305343511 | BB29: 43104.73336 | BC29: 0.5305343511 | BD29: 43104.68822 | BE29: 0.5519083969 | BF29: 43104.78472 | BH29: 43104.82569 | BI29: 43104.79167 | BK29: 2022-01-05T19:49:00 | BL29: 43104.82569
A30: 0 | B30: =IF(Instructions!$C$2="BST",A30,0) -> 0 | C30: 2022-01-06T00:33:00 | D30: 2022-01-06 | E30: 2022-01-06 | F30: 1 | G30: Jan | H30: 6 | I30: 4 | J30: Thu | K30: 43105.02292 | L30: 5.52 | M30: HW | N30: 0.8956521739 | O30: 00:33:00 | P30: 00:00:00 | Q30: 06:00:00 | R30: 0.9083333333 | S30: 43105.03932 | T30: 7.433043478 | U30: 43105.1053 | V30: 43105.04248 | W30: 7.143478261 | X30: 43104.97222 | Y30: 43105.01186 | Z30: 5.474782609 | AA30: 43105.00145 | AB30: 43105.00208 | AC30: 5.074782609 | AD30: Opn | AE30: 43104.8875 | AF30: 43104.99673 | AG30: 4.485217391 | AH30: 43104.97211 | AI30: 4.795652174 | AJ30: 43105.03964 | AK30: 7.333043478 | AL30: 43105.03996 | AM30: 7.322608696 | AN30: 43105.03617 | AO30: 7.043478261 | AP30: 43105.03712 | AQ30: 6.443478261 | AR30: 43105.0125 | AS30: 43105.03333 | AT30: 43104.99294 | AU30: 5.074782609 | AV30: 43104.99294 | AW30: 4.874782609 | AX30: 43104.97179 | AY30: 4.664347826 | AZ30: 43104.96832 | BA30: 4.474782609 | BB30: 43104.96484 | BC30: 4.385217391 | BD30: 43104.92442 | BE30: 4.274782609 | BF30: 43105.0125 | BH30: 43105.05556 | BI30: 43105.05417 | BK30: 2022-01-06T01:20:00 | BL30: 43105.05556
A31: 0 | B31: =IF(Instructions!$C$2="BST",A31,0) -> 0 | C31: 2022-01-06T06:34:00 | D31: 2022-01-06 | E31: Thu | F31: 1 | I31: 4 | K31: 43105.27361 | L31: 1.04 | M31: LW | N31: 0.7480916031 | O31: 06:34:00 | P31: 05:00:00 | Q31: 11:00:00 | R31: 0.7388888889 | S31: 43105.30818 | T31: 1.228244275 | U31: 43105.37415 | V31: 43105.28509 | W31: 1.103053435 | X31: 43105.22222 | Y31: 43105.289 | Z31: 1.102290076 | AA31: 43105.2478 | AB31: 43105.2804 | AC31: 0.927480916 | AD31: Cls | AE31: 43105.11667 | AF31: 43105.25988 | AG31: 0.9022900763 | AH31: 43105.25459 | AI31: 1.002290076 | AJ31: 43105.30561 | AK31: 1.303053435 | AL31: 43105.30561 | AM31: 1.303053435 | AN31: 43105.2961 | AO31: 1.303053435 | AP31: 43105.30048 | AQ31: 1.177862595 | AR31: 43105.26319 | AS31: 43105.2875 | AT31: 43105.26319 | AU31: 1.102290076 | AV31: 43105.26833 | AW31: 1.027480916 | AX31: 43105.25459 | AY31: 0.9022900763 | AZ31: 43105.25112 | BA31: 0.827480916 | BB31: 43105.24674 | BC31: 0.927480916 | BD31: 43105.2016 | BE31: 0.8267175573 | BF31: 43105.29792 | BH31: 43105.33889 | BI31: 43105.30486 | BK31: 2022-01-06T08:08:00 | BL31: 43105.33889
A32: 0 | B32: =IF(Instructions!$C$2="BST",A32,0) -> 0 | C32: 2022-01-06T12:49:00 | D32: 2022-01-06 | F32: 1 | I32: 4 | K32: 43105.53403 | L32: 5.83 | M32: HW | N32: 1.165217391 | O32: 12:49:00 | P32: 12:00:00 | Q32: 18:00:00 | R32: 0.8638888889 | S32: 43105.54997 | T32: 7.864347826 | U32: 43105.61594 | V32: 43105.55297 | W32: 7.547826087 | X32: 43105.48333 | Y32: 43105.52267 | Z32: 5.79826087 | AA32: 43105.51225 | AB32: 43105.51319 | AC32: 5.39826087 | AD32: Opn | AE32: 43105.39861 | AF32: 43105.50861 | AG32: 4.78173913 | AH32: 43105.48383 | AI32: 5.065217391 | AJ32: 43105.55044 | AK32: 7.764347826 | AL32: 43105.55092 | AM32: 7.780869565 | AN32: 43105.54697 | AO32: 7.447826087 | AP32: 43105.54839 | AQ32: 6.847826087 | AR32: 43105.52361 | AS32: 43105.54444 | AT32: 43105.50467 | AU32: 5.39826087 | AV32: 43105.50467 | AW32: 5.19826087 | AX32: 43105.48336 | AY32: 5.014782609 | AZ32: 43105.47989 | BA32: 4.79826087 | BB32: 43105.47642 | BC32: 4.68173913 | BD32: 43105.43492 | BE32: 4.59826087 | BF32: 43105.52361 | BH32: 43105.56667 | BI32: 43105.56528 | BK32: 2022-01-06T13:36:00 | BL32: 43105.56667
A33: 0 | B33: =IF(Instructions!$C$2="BST",A33,0) -> 0 | C33: 2022-01-06T19:05:00 | D33: 2022-01-06 | F33: 1 | I33: 4 | K33: 43105.79514 | L33: 0.79 | M33: LW | N33: 0.9389312977 | O33: 19:05:00 | P33: 17:00:00 | Q33: 23:00:00 | R33: 0.6527777778 | S33: 43105.82851 | T33: 0.9038167939 | U33: 43105.89448 | V33: 43105.80811 | W33: 0.7977099237 | X33: 43105.73333 | Y33: 43105.80874 | Z33: 0.8732824427 | AA33: 43105.77112 | AB33: 43105.80073 | AC33: 0.679389313 | AD33: Cls | AE33: 43105.62778 | AF33: 43105.7826 | AG33: 0.6732824427 | AH33: 43105.77672 | AI33: 0.7732824427 | AJ33: 43105.82624 | AK33: 0.9977099237 | AL33: 43105.82624 | AM33: 0.9977099237 | AN33: 43105.81703 | AO33: 0.9977099237 | AP33: 43105.82171 | AQ33: 0.8916030534 | AR33: 43105.78472 | AS33: 43105.80903 | AT33: 43105.78472 | AU33: 0.8732824427 | AV33: 43105.78926 | AW33: 0.779389313 | AX33: 43105.77672 | AY33: 0.6732824427 | AZ33: 43105.77324 | BA33: 0.579389313 | BB33: 43105.76857 | BC33: 0.679389313 | BD33: 43105.72343 | BE33: 0.6549618321 | BF33: 43105.81944 | BH33: 43105.85833 | BI33: 43105.82639 | BK33: 2022-01-06T20:36:00 | BL33: 43105.85833
A34: 0 | B34: =IF(Instructions!$C$2="BST",A34,0) -> 0 | C34: 2022-01-07T01:23:00 | D34: 2022-01-07 | E34: 2022-01-07 | F34: 1 | G34: Jan | H34: 7 | I34: 5 | J34: Fri | K34: 43106.05764 | L34: 5.29 | M34: HW | N34: 0.6956521739 | O34: 01:23:00 | P34: 00:00:00 | Q34: 06:00:00 | R34: 0.7694444444 | S34: 43106.0726 | T34: 7.113043478 | U34: 43106.13857 | V34: 43106.07527 | W34: 6.843478261 | X34: 43106.00556 | Y34: 43106.04562 | Z34: 5.234782609 | AA34: 43106.0352 | AB34: 43106.03681 | AC34: 4.834782609 | AD34: Opn | AE34: 43105.92222 | AF34: 43106.03386 | AG34: 4.265217391 | AH34: 43106.00876 | AI34: 4.595652174 | AJ34: 43106.0734 | AK34: 7.013043478 | AL34: 43106.0742 | AM34: 6.982608696 | AN34: 43106.06993 | AO34: 6.743478261 | AP34: 43106.07233 | AQ34: 6.143478261 | AR34: 43106.04722 | AS34: 43106.06806 | AT34: 43106.02959 | AU34: 4.834782609 | AV34: 43106.02959 | AW34: 4.634782609 | AX34: 43106.00796 | AY34: 4.404347826 | AZ34: 43106.00448 | BA34: 4.234782609 | BB34: 43106.00101 | BC34: 4.165217391 | BD34: 43105.95721 | BE34: 4.034782609 | BF34: 43106.04722 | BH34: 43106.08889 | BI34: 43106.08889 | BK34: 2022-01-07T02:08:00 | BL34: 43106.08889
A35: 0 | B35: =IF(Instructions!$C$2="BST",A35,0) -> 0 | C35: 2022-01-07T07:22:00 | D35: 2022-01-07 | E35: Fri | F35: 1 | I35: 5 | K35: 43106.30694 | L35: 1.26 | M35: LW | N35: 0.5801526718 | O35: 07:22:00 | P35: 05:00:00 | Q35: 11:00:00 | R35: 0.6055555556 | S35: 43106.33966 | T35: 1.513740458 | U35: 43106.40563 | V35: 43106.32074 | W35: 1.371755725 | X35: 43106.25556 | Y35: 43106.31956 | Z35: 1.303816794 | AA35: 43106.28391 | AB35: 43106.31188 | AC35: 1.145801527 | AD35: Cls | AE35: 43106.15139 | AF35: 43106.29506 | AG35: 1.103816794 | AH35: 43106.28885 | AI35: 1.203816794 | AJ35: 43106.33756 | AK35: 1.571755725 | AL35: 43106.33756 | AM35: 1.571755725 | AN35: 43106.32851 | AO35: 1.571755725 | AP35: 43106.33335 | AQ35: 1.429770992 | AR35: 43106.29653 | AS35: 43106.32083 | AT35: 43106.29653 | AU35: 1.303816794 | AV35: 43106.30073 | AW35: 1.245801527 | AX35: 43106.28885 | AY35: 1.103816794 | AZ35: 43106.28538 | BA35: 1.045801527 | BB35: 43106.28054 | BC35: 1.145801527 | BD35: 43106.2354 | BE35: 0.9778625954 | BF35: 43106.33125 | BH35: 43106.37014 | BI35: 43106.33819 | BK35: 2022-01-07T08:53:00 | BL35: 43106.37014
A36: 0 | B36: =IF(Instructions!$C$2="BST",A36,0) -> 0 | C36: 2022-01-07T13:37:00 | D36: 2022-01-07 | F36: 1 | I36: 5 | K36: 43106.56736 | L36: 5.63 | M36: HW | N36: 0.9913043478 | O36: 13:37:00 | P36: 12:00:00 | Q36: 18:00:00 | R36: 0.7305555556 | S36: 43106.58192 | T36: 7.586086957 | U36: 43106.64789 | V36: 43106.58445 | W36: 7.286956522 | X36: 43106.51667 | Y36: 43106.55507 | Z36: 5.589565217 | AA36: 43106.54466 | AB36: 43106.54653 | AC36: 5.189565217 | AD36: Opn | AE36: 43106.43194 | AF36: 43106.54426 | AG36: 4.590434783 | AH36: 43106.51902 | AI36: 4.891304348 | AJ36: 43106.58285 | AK36: 7.486086957 | AL36: 43106.58379 | AM36: 7.485217391 | AN36: 43106.57938 | AO36: 7.186956522 | AP36: 43106.58219 | AQ36: 6.586956522 | AR36: 43106.55694 | AS36: 43106.57778 | AT36: 43106.53985 | AU36: 5.189565217 | AV36: 43106.53985 | AW36: 4.989565217 | AX36: 43106.51808 | AY36: 4.788695652 | AZ36: 43106.51461 | BA36: 4.589565217 | BB36: 43106.51114 | BC36: 4.490434783 | BD36: 43106.4664 | BE36: 4.389565217 | BF36: 43106.55694 | BH36: 43106.6 | BI36: 43106.59861 | BK36: 2022-01-07T14:24:00 | BL36: 43106.6
A37: 0 | B37: =IF(Instructions!$C$2="BST",A37,0) -> 0 | C37: 2022-01-07T19:55:00 | D37: 2022-01-07 | F37: 1 | I37: 5 | K37: 43106.82986 | L37: 1.03 | M37: LW | N37: 0.7557251908 | O37: 19:55:00 | P37: 17:00:00 | Q37: 23:00:00 | R37: 0.5138888889 | S37: 43106.8613 | T37: 1.215267176 | U37: 43106.92728 | V37: 43106.84524 | W37: 1.090839695 | X37: 43106.76667 | Y37: 43106.84057 | Z37: 1.093129771 | AA37: 43106.80874 | AB37: 43106.83353 | AC37: 0.9175572519 | AD37: Cls | AE37: 43106.66111 | AF37: 43106.81925 | AG37: 0.893129771 | AH37: 43106.8124 | AI37: 0.993129771 | AJ37: 43106.85952 | AK37: 1.290839695 | AL37: 43106.85952 | AM37: 1.290839695 | AN37: 43106.85079 | AO37: 1.290839695 | AP37: 43106.85595 | AQ37: 1.166412214 | AR37: 43106.81944 | AS37: 43106.84375 | AT37: 43106.81944 | AU37: 1.093129771 | AV37: 43106.82301 | AW37: 1.017557252 | AX37: 43106.8124 | AY37: 0.893129771 | AZ37: 43106.80893 | BA37: 0.8175572519 | BB37: 43106.80377 | BC37: 0.9175572519 | BD37: 43106.75863 | BE37: 0.8198473282 | BF37: 43106.85417 | BH37: 43106.89028 | BI37: 43106.86111 | BK37: 2022-01-07T21:22:00 | BL37: 43106.89028
A38: 0 | B38: =IF(Instructions!$C$2="BST",A38,0) -> 0 | C38: 2022-01-08T02:13:00 | D38: 2022-01-08 | E38: 2022-01-08 | F38: 1 | G38: Jan | H38: 8 | I38: 6 | J38: Sat | K38: 43107.09236 | L38: 5.02 | M38: HW | N38: 0.4608695652 | O38: 02:13:00 | P38: 00:00:00 | Q38: 06:00:00 | R38: 0.6305555555 | S38: 43107.10587 | T38: 6.737391304 | U38: 43107.17185 | V38: 43107.10806 | W38: 6.491304348 | X38: 43107.03889 | Y38: 43107.07938 | Z38: 4.953043478 | AA38: 43107.06896 | AB38: 43107.07153 | AC38: 4.553043478 | AD38: Opn | AE38: 43106.95694 | AF38: 43107.071 | AG38: 4.006956522 | AH38: 43107.04541 | AI38: 4.360869565 | AJ38: 43107.10716 | AK38: 6.637391304 | AL38: 43107.10844 | AM38: 6.583478261 | AN38: 43107.10368 | AO38: 6.391304348 | AP38: 43107.10753 | AQ38: 5.791304348 | AR38: 43107.08194 | AS38: 43107.10278 | AT38: 43107.06624 | AU38: 4.553043478 | AV38: 43107.06624 | AW38: 4.353043478 | AX38: 43107.04413 | AY38: 4.099130435 | AZ38: 43107.04065 | BA38: 3.953043478 | BB38: 43107.03718 | BC38: 3.906956522 | BD38: 43106.99001 | BE38: 3.753043478 | BF38: 43107.08194 | BH38: 43107.12222 | BI38: 43107.12361 | BK38: 2022-01-08T02:56:00 | BL38: 43107.12222
A39: 0 | B39: =IF(Instructions!$C$2="BST",A39,0) -> 0 | C39: 2022-01-08T08:11:00 | D39: 2022-01-08 | E39: Sat | F39: 1 | I39: 6 | K39: 43107.34097 | L39: 1.52 | M39: LW | N39: 0.3816793893 | O39: 08:11:00 | P39: 05:00:00 | Q39: 11:00:00 | R39: 0.4694444445 | S39: 43107.3718 | T39: 1.851145038 | U39: 43107.43777 | V39: 43107.35713 | W39: 1.689312977 | X39: 43107.28889 | Y39: 43107.35075 | Z39: 1.541984733 | AA39: 43107.32078 | AB39: 43107.34402 | AC39: 1.403816794 | AD39: Cls | AE39: 43107.18611 | AF39: 43107.33098 | AG39: 1.341984733 | AH39: 43107.32382 | AI39: 1.441984733 | AJ39: 43107.37017 | AK39: 1.889312977 | AL39: 43107.37017 | AM39: 1.889312977 | AN39: 43107.36159 | AO39: 1.889312977 | AP39: 43107.36691 | AQ39: 1.727480916 | AR39: 43107.33056 | AS39: 43107.35486 | AT39: 43107.33056 | AU39: 1.541984733 | AV39: 43107.33382 | AW39: 1.503816794 | AX39: 43107.32382 | AY39: 1.341984733 | AZ39: 43107.32035 | BA39: 1.303816794 | BB39: 43107.31504 | BC39: 1.403816794 | BD39: 43107.2699 | BE39: 1.15648855 | BF39: 43107.36528 | BH39: 43107.40069 | BI39: 43107.37222 | BK39: 2022-01-08T09:37:00 | BL39: 43107.40069
A40: 0 | B40: =IF(Instructions!$C$2="BST",A40,0) -> 0 | C40: 2022-01-08T14:26:00 | D40: 2022-01-08 | F40: 1 | I40: 6 | K40: 43107.60139 | L40: 5.37 | M40: HW | N40: 0.7652173913 | O40: 14:26:00 | P40: 12:00:00 | Q40: 18:00:00 | R40: 0.5944444444 | S40: 43107.61453 | T40: 7.224347826 | U40: 43107.6805 | V40: 43107.61659 | W40: 6.947826087 | X40: 43107.54931 | Y40: 43107.58816 | Z40: 5.31826087 | AA40: 43107.57774 | AB40: 43107.58056 | AC40: 4.91826087 | AD40: Opn | AE40: 43107.46597 | AF40: 43107.58065 | AG40: 4.34173913 | AH40: 43107.55494 | AI40: 4.665217391 | AJ40: 43107.61593 | AK40: 7.124347826 | AL40: 43107.61734 | AM40: 7.100869565 | AN40: 43107.61246 | AO40: 6.847826087 | AP40: 43107.61669 | AQ40: 6.247826087 | AR40: 43107.59097 | AS40: 43107.61181 | AT40: 43107.57577 | AU40: 4.91826087 | AV40: 43107.57577 | AW40: 4.71826087 | AX40: 43107.55353 | AY40: 4.494782609 | AZ40: 43107.55006 | BA40: 4.31826087 | BB40: 43107.54659 | BC40: 4.24173913 | BD40: 43107.49853 | BE40: 4.11826087 | BF40: 43107.59097 | BH40: 43107.63264 | BI40: 43107.63264 | BK40: 2022-01-08T15:11:00 | BL40: 43107.63264
A41: 0 | B41: =IF(Instructions!$C$2="BST",A41,0) -> 0 | C41: 2022-01-08T20:47:00 | D41: 2022-01-08 | F41: 1 | I41: 6 | K41: 43107.86597 | L41: 1.31 | M41: LW | N41: 0.5419847328 | O41: 20:47:00 | P41: 17:00:00 | Q41: 23:00:00 | R41: 0.3694444444 | S41: 43107.89541 | T41: 1.578625954 | U41: 43107.96138 | V41: 43107.88386 | W41: 1.432824427 | X41: 43107.79931 | Y41: 43107.87367 | Z41: 1.349618321 | AA41: 43107.84786 | AB41: 43107.86763 | AC41: 1.195419847 | AD41: Cls | AE41: 43107.69514 | AF41: 43107.85737 | AG41: 1.149618321 | AH41: 43107.84952 | AI41: 1.249618321 | AJ41: 43107.89413 | AK41: 1.632824427 | AL41: 43107.89413 | AM41: 1.632824427 | AN41: 43107.8859 | AO41: 1.632824427 | AP41: 43107.89156 | AQ41: 1.487022901 | AR41: 43107.85556 | AS41: 43107.87986 | AT41: 43107.85556 | AU41: 1.349618321 | AV41: 43107.85812 | AW41: 1.295419847 | AX41: 43107.84952 | AY41: 1.149618321 | AZ41: 43107.84605 | BA41: 1.095419847 | BB41: 43107.84038 | BC41: 1.195419847 | BD41: 43107.79524 | BE41: 1.01221374 | BF41: 43107.89028 | BH41: 43107.92292 | BI41: 43107.89722 | BK41: 2022-01-08T22:09:00 | BL41: 43107.92292
A42: 0 | B42: =IF(Instructions!$C$2="BST",A42,0) -> 0 | C42: 2022-01-09T03:05:00 | D42: 2022-01-09 | E42: 2022-01-09 | F42: 1 | G42: Jan | H42: 9 | I42: 7 | J42: Sun | K42: 43108.12847 | L42: 4.76 | M42: HW | N42: 0.2347826087 | O42: 03:05:00 | P42: 00:00:00 | Q42: 06:00:00 | R42: 0.4861111111 | S42: 43108.14048 | T42: 6.375652174 | U42: 43108.20645 | V42: 43108.14217 | W42: 6.152173913 | X42: 43108.07292 | Y42: 43108.11449 | Z42: =IF($M42="HW",Y$2+(Y$1-Y$2)*$N42,Y$3+(Y$4-Y$3)*$N42) -> 4.68173913 | AA42: 43108.10407 | AB42: 43108.10764 | AC42: =IF($M42="HW",AB$2+(AB$1-AB$2)*$N42,AB$3+(AB$4-AB$3)*$N42) -> 4.28173913 | AD42: Opn | AE42: 43107.99306 | AF42: 43108.10962 | AG42: =IF($M42="HW",AF$2+(AF$1-AF$2)*$N42,AF$3+(AF$4-AF$3)*$N42) -> 3.75826087 | AH42: 43108.08353 | AI42: =IF($M42="HW",AH$2+(AH$1-AH$2)*$N42,AH$3+(AH$4-AH$3)*$N42) -> 4.134782609 | AJ42: 43108.14226 | AK42: =IF($M42="HW",AJ$2+(AJ$1-AJ$2)*$N42,AJ$3+(AJ$4-AJ$3)*$N42) -> 6.275652174 | AL42: 43108.14405 | AM42: =IF($M42="HW",AL$2+(AL$1-AL$2)*$N42,AL$3+(AL$4-AL$3)*$N42) -> 6.199130435 | AN42: 43108.13879 | AO42: =IF($M42="HW",AN$2+(AN$1-AN$2)*$N42,AN$3+(AN$4-AN$3)*$N42) -> 6.052173913 | AP42: 43108.14415 | AQ42: =IF($M42="HW",AP$2+(AP$1-AP$2)*$N42,AP$3+(AP$4-AP$3)*$N42) -> 5.452173913 | AR42: 43108.11806 | AS42: 43108.13889 | AT42: 43108.10436 | AU42: =IF($M42="HW",AT$2+(AT$1-AT$2)*$N42,AT$3+(AT$4-AT$3)*$N42) -> 4.28173913 | AV42: 43108.10436 | AW42: =IF($M42="HW",AV$2+(AV$1-AV$2)*$N42,AV$3+(AV$4-AV$3)*$N42) -> 4.08173913 | AX42: 43108.08174 | AY42: =IF($M42="HW",AX$2+(AX$1-AX$2)*$N42,AX$3+(AX$4-AX$3)*$N42) -> 3.805217391 | AZ42: 43108.07827 | BA42: =IF($M42="HW",AZ$2+(AZ$1-AZ$2)*$N42,AZ$3+(AZ$4-AZ$3)*$N42) -> 3.68173913 | BB42: 43108.0748 | BC42: =IF($M42="HW",BB$2+(BB$1-BB$2)*$N42,BB$3+(BB$4-BB$3)*$N42) -> 3.65826087 | BD42: 43108.02411 | BE42: =IF($M42="HW",BD$2+(BD$1-BD$2)*$N42,BD$3+(BD$4-BD$3)*$N42) -> 3.48173913 | BF42: 43108.11806 | BH42: 43108.15625 | BI42: 43108.15972 | BK42: 2022-01-09T03:45:00 | BL42: 43108.15625
A43: 0 | B43: =IF(Instructions!$C$2="BST",A43,0) -> 0 | C43: 2022-01-09T09:04:00 | D43: 2022-01-09 | E43: Sun | F43: 1 | I43: 7 | K43: 43108.37778 | L43: 1.79 | M43: LW | N43: 0.1755725191 | O43: 09:04:00 | P43: 05:00:00 | Q43: 11:00:00 | R43: 0.3222222222 | S43: 43108.40656 | T43: 2.201526718 | U43: 43108.47253 | V43: 43108.39649 | W43: 2.019083969 | X43: 43108.32292 | Y43: 43108.38449 | Z43: 1.789312977 | AA43: 43108.36065 | AB43: 43108.37878 | AC43: 1.671755725 | AD43: Cls | AE43: 43108.22222 | AF43: 43108.36983 | AG43: 1.589312977 | AH43: 43108.36165 | AI43: 1.689312977 | AJ43: 43108.40544 | AK43: 2.219083969 | AL43: 43108.40544 | AM43: 2.219083969 | AN43: 43108.39738 | AO43: 2.219083969 | AP43: 43108.4032 | AQ43: 2.036641221 | AR43: 43108.36736 | AS43: 43108.39167 | AT43: 43108.36736 | AU43: 1.789312977 | AV43: 43108.3696 | AW43: 1.771755725 | AX43: 43108.36165 | AY43: 1.589312977 | AZ43: 43108.35818 | BA43: 1.571755725 | BB43: 43108.35235 | BC43: 1.671755725 | BD43: 43108.30721 | BE43: 1.341984733 | BF43: 43108.40208 | BH43: 43108.43333 | BI43: 43108.40903 | BK43: 2022-01-09T10:24:00 | BL43: 43108.43333
A44: 0 | B44: =IF(Instructions!$C$2="BST",A44,0) -> 0 | C44: 2022-01-09T15:18:00 | D44: 2022-01-09 | F44: 1 | I44: 7 | K44: 43108.6375 | L44: 5.09 | M44: HW | N44: 0.5217391304 | O44: 15:18:00 | P44: 12:00:00 | Q44: 18:00:00 | R44: 0.45 | S44: =IF($M44="HW",$K44+S$6+(S$5-S$6)*$R44,$K44+S$8+(S$7-S$8)*$R44) -> 43108.64913 | T44: 6.834782609 | U44: 43108.7151 | V44: 43108.65069 | W44: 6.582608696 | X44: 43108.58403 | Y44: =IF($M44="HW",$K44+Y$6+(Y$5-Y$6)*$R44,$K44+Y$8+(Y$7-Y$8)*$R44) -> 43108.62326 | Z44: 5.026086957 | AA44: 43108.61285 | AB44: 43108.61667 | AC44: 4.626086957 | AD44: Opn | AE44: 43108.50208 | AF44: 43108.61927 | AG44: 4.073913043 | AH44: 43108.59306 | AI44: 4.42173913 | AJ44: 43108.65104 | AK44: 6.734782609 | AL44: 43108.65295 | AM44: 6.686956522 | AN44: 43108.64757 | AO44: 6.482608696 | AP44: 43108.6533 | AQ44: 5.882608696 | AR44: =IF($M44="HW",$K44+AR$6+(AR$5-AR$6)*$R44,$K44+AR$8+(AR$7-AR$8)*$R44) -> 43108.62708 | AS44: 43108.64792 | AT44: 43108.61389 | AU44: 4.626086957 | AV44: 43108.61389 | AW44: 4.426086957 | AX44: 43108.59115 | AY44: 4.17826087 | AZ44: 43108.58767 | BA44: 4.026086957 | BB44: 43108.5842 | BC44: 3.973913043 | BD44: 43108.53264 | BE44: 3.826086957 | BF44: =IF($M44="HW",$K44+BF$6+(BF$5-BF$6)*$R44,$K44+BF$8+(BF$7-BF$8)*$R44) -> 43108.62708 | BH44: 43108.66736 | BI44: 43108.66875 | BK44: 2022-01-09T16:01:00 | BL44: 43108.66736
A45: 0 | B45: =IF(Instructions!$C$2="BST",A45,0) -> 0 | C45: 2022-01-09T21:43:00 | D45: 2022-01-09 | F45: 1 | I45: 7 | K45: 43108.90486 | L45: 1.6 | M45: LW | N45: 0.320610687 | O45: 21:43:00 | P45: 17:00:00 | Q45: 23:00:00 | R45: 0.2138888889 | S45: 43108.93214 | T45: 1.954961832 | U45: 43108.99811 | V45: 43108.92545 | W45: 1.787022901 | X45: 43108.83403 | Y45: 43108.90932 | Z45: 1.615267176 | AA45: 43108.88999 | AB45: 43108.90436 | AC45: 1.483206107 | AD45: Cls | AE45: 43108.73125 | AF45: 43108.89842 | AG45: 1.415267176 | AH45: 43108.88949 | AI45: 1.515267176 | AJ45: 43108.93139 | AK45: 1.987022901 | AL45: 43108.93139 | AM45: 1.987022901 | AN45: 43108.92371 | AO45: 1.987022901 | AP45: 43108.92991 | AQ45: 1.819083969 | AR45: 43108.89444 | AS45: 43108.91875 | AT45: 43108.89444 | AU45: 1.615267176 | AV45: 43108.89593 | AW45: 1.583206107 | AX45: 43108.88949 | AY45: 1.415267176 | AZ45: 43108.88601 | BA45: 1.383206107 | BB45: 43108.87981 | BC45: 1.483206107 | BD45: 43108.83467 | BE45: 1.211450382 | BF45: 43108.92917 | BH45: 43108.95764 | BI45: 43108.93611 | BK45: 2022-01-09T22:59:00 | BL45: 43108.95764
A46: 0 | B46: =IF(Instructions!$C$2="BST",A46,0) -> 0 | C46: 2022-01-10T04:02:00 | D46: 2022-01-10 | E46: 2022-01-10 | F46: 1 | G46: Jan | H46: 10 | I46: 1 | J46: Mon | K46: 43109.16806 | L46: 4.54 | M46: HW | N46: 0.04347826087 | O46: 04:02:00 | P46: 00:00:00 | Q46: 06:00:00 | R46: 0.3277777778 | S46: 43109.17841 | T46: 6.069565217 | U46: 43109.24439 | V46: 43109.17955 | W46: 5.865217391 | X46: 43109.10903 | Y46: 43109.15297 | Z46: 4.452173913 | AA46: 43109.14255 | AB46: 43109.14722 | AC46: 4.052173913 | AD46: Opn | AE46: 43109.03264 | AF46: 43109.15195 | AG46: 3.547826087 | AH46: 43109.12531 | AI46: 3.943478261 | AJ46: 43109.18075 | AK46: 5.969565217 | AL46: 43109.18308 | AM46: 5.873913043 | AN46: 43109.17728 | AO46: 5.765217391 | AP46: 43109.18428 | AQ46: 5.165217391 | AR46: 43109.15764 | AS46: 43109.17847 | AT46: 43109.14614 | AU46: 4.052173913 | AV46: 43109.14614 | AW46: 3.852173913 | AX46: 43109.12297 | AY46: 3.556521739 | AZ46: 43109.1195 | BA46: 3.452173913 | BB46: 43109.11603 | BC46: 3.447826087 | BD46: 43109.0615 | BE46: 3.252173913 | BF46: 43109.15764 | BH46: 43109.19236 | BI46: 43109.19931 | BK46: 2022-01-10T04:37:00 | BL46: 43109.19236
A47: 0 | B47: =IF(Instructions!$C$2="BST",A47,0) -> 0 | C47: 2022-01-10T10:02:00 | D47: 2022-01-10 | E47: Mon | F47: 1 | I47: 1 | K47: 43109.41806 | L47: 2.02 | M47: LW | N47: 0 | O47: 10:02:00 | P47: 05:00:00 | Q47: 11:00:00 | R47: 0.1611111111 | S47: 43109.4446 | T47: 2.5 | U47: 43109.51057 | V47: 43109.43956 | W47: 2.3 | X47: 43109.35903 | Y47: 43109.42141 | Z47: 2 | AA47: 43109.40428 | AB47: 43109.41682 | AC47: 1.9 | AD47: Cls | AE47: 43109.26181 | AF47: 43109.41235 | AG47: 1.8 | AH47: 43109.40305 | AI47: 1.9 | AJ47: 43109.44404 | AK47: 2.5 | AL47: 43109.44404 | AM47: 2.5 | AN47: 43109.43654 | AO47: 2.5 | AP47: 43109.44292 | AQ47: 2.3 | AR47: 43109.40764 | AS47: 43109.43194 | AT47: 43109.40764 | AU47: 2 | AV47: 43109.40876 | AW47: 2 | AX47: 43109.40305 | AY47: 1.8 | AZ47: 43109.39958 | BA47: 1.8 | BB47: 43109.39319 | BC47: 1.9 | BD47: 43109.34805 | BE47: 1.5 | BF47: 43109.44236 | BH47: 43109.47014 | BI47: 43109.44931 | BK47: 2022-01-10T11:17:00 | BL47: 43109.47014
A48: 0 | B48: =IF(Instructions!$C$2="BST",A48,0) -> 0 | C48: 2022-01-10T16:16:00 | D48: 2022-01-10 | F48: 1 | I48: 1 | K48: 43109.67778 | L48: 4.84 | M48: HW | N48: 0.3043478261 | O48: 16:16:00 | P48: 12:00:00 | Q48: 18:00:00 | R48: 0.2888888889 | S48: 43109.68773 | T48: 6.486956522 | U48: 43109.7537 | V48: 43109.68873 | W48: 6.256521739 | X48: 43109.62153 | Y48: 43109.66242 | Z48: 4.765217391 | AA48: 43109.65201 | AB48: 43109.65694 | AC48: 4.365217391 | AD48: Opn | AE48: 43109.54236 | AF48: 43109.66235 | AG48: 3.834782609 | AH48: 43109.63557 | AI48: 4.204347826 | AJ48: 43109.6902 | AK48: 6.386956522 | AL48: 43109.69267 | AM48: 6.317391304 | AN48: 43109.68673 | AO48: 6.156521739 | AP48: 43109.69414 | AQ48: 5.556521739 | AR48: 43109.66736 | AS48: 43109.68819 | AT48: 43109.6564 | AU48: 4.365217391 | AV48: 43109.6564 | AW48: 4.165217391 | AX48: 43109.6331 | AY48: 3.895652174 | AZ48: 43109.62963 | BA48: 3.765217391 | BB48: 43109.62616 | BC48: 3.734782609 | BD48: 43109.57068 | BE48: 3.565217391 | BF48: 43109.66736 | BH48: 43109.70486 | BI48: 43109.70903 | BK48: 2022-01-10T16:55:00 | BL48: 43109.70486
A49: 0 | B49: =IF(Instructions!$C$2="BST",A49,0) -> 0 | C49: 2022-01-10T22:44:00 | D49: 2022-01-10 | F49: 1 | I49: 1 | K49: 43109.94722 | L49: 1.84 | M49: LW | N49: 0.1374045802 | O49: 22:44:00 | P49: 17:00:00 | Q49: 23:00:00 | R49: 0.04444444443 | S49: 43109.97215 | T49: 2.266412214 | U49: 43110.03812 | V49: 43109.97076 | W49: 2.080152672 | X49: 43109.87153 | Y49: 43109.94815 | Z49: 1.835114504 | AA49: 43109.93588 | AB49: 43109.94437 | AC49: 1.721374046 | AD49: Cls | AE49: 43109.77153 | AF49: 43109.94313 | AG49: 1.635114504 | AH49: 43109.93302 | AI49: 1.735114504 | AJ49: 43109.97199 | AK49: 2.280152672 | AL49: 43109.97199 | AM49: 2.280152672 | AN49: 43109.96489 | AO49: 2.280152672 | AP49: 43109.97168 | AQ49: 2.09389313 | AR49: 43109.93681 | AS49: 43109.96111 | AT49: 43109.93681 | AU49: 1.835114504 | AV49: 43109.93711 | AW49: 1.821374046 | AX49: 43109.93302 | AY49: 1.635114504 | AZ49: 43109.92955 | BA49: 1.621374046 | BB49: 43109.92276 | BC49: 1.721374046 | BD49: 43109.87762 | BE49: 1.376335878 | BF49: 43109.97153 | BH49: 43109.99722 | BI49: 43109.97847 | BK49: 2022-01-10T23:56:00 | BL49: 43109.99722
A50: 0 | B50: =IF(Instructions!$C$2="BST",A50,0) -> 0 | C50: 2022-01-11T05:06:00 | D50: 2022-01-11 | E50: 2022-01-11 | F50: 1 | G50: Jan | H50: 11 | I50: 2 | J50: Tue | K50: 43110.2125 | L50: 4.42 | M50: HW | N50: -0.06086956522 | O50: 05:06:00 | P50: 00:00:00 | Q50: 06:00:00 | R50: 0.15 | S50: 43110.22101 | T50: 5.902608696 | U50: 43110.28698 | V50: 43110.22153 | W50: 5.708695652 | X50: 43110.14931 | Y50: 43110.19618 | Z50: 4.326956522 | AA50: 43110.18576 | AB50: 43110.19167 | AC50: 3.926956522 | AD50: Opn | AE50: 43110.07708 | AF50: 43110.19948 | AG50: 3.433043478 | AH50: 43110.17222 | AI50: 3.839130435 | AJ50: 43110.22396 | AK50: 5.802608696 | AL50: 43110.22691 | AM50: 5.696521739 | AN50: 43110.22049 | AO50: 5.608695652 | AP50: 43110.22934 | AQ50: 5.008695652 | AR50: 43110.20208 | AS50: 43110.22292 | AT50: 43110.19306 | AU50: 3.926956522 | AV50: 43110.19306 | AW50: 3.726956522 | AX50: 43110.16927 | AY50: 3.420869565 | AZ50: 43110.1658 | BA50: 3.326956522 | BB50: 43110.16233 | BC50: 3.333043478 | BD50: 43110.10347 | BE50: 3.126956522 | BF50: 43110.20208 | BH50: 43110.23264 | BI50: 43110.24375 | BK50: 2022-01-11T05:35:00 | BL50: 43110.23264
A51: 0 | B51: =IF(Instructions!$C$2="BST",A51,0) -> 0 | C51: 2022-01-11T11:09:00 | D51: 2022-01-11 | E51: Tue | F51: 1 | I51: 2 | K51: 43110.46458 | L51: 2.18 | M51: LW | N51: -0.1221374046 | O51: 11:09:00 | P51: 17:00:00 | Q51: 11:00:00 | R51: 0.025 | S51: 43110.48924 | T51: 2.707633588 | U51: 43110.55521 | V51: 43110.48845 | W51: 2.495419847 | X51: 43110.39931 | Y51: 43110.4651 | Z51: 2.146564885 | AA51: 43110.45365 | AB51: 43110.46146 | AC51: 2.058778626 | AD51: Cls | AE51: 43110.30625 | AF51: 43110.46076 | AG51: 1.946564885 | AH51: 43110.45052 | AI51: 2.046564885 | AJ51: 43110.48915 | AK51: 2.695419847 | AL51: 43110.48915 | AM51: 2.695419847 | AN51: 43110.48212 | AO51: 2.695419847 | AP51: 43110.48898 | AQ51: 2.483206107 | AR51: 43110.45417 | AS51: 43110.47847 | AT51: 43110.45417 | AU51: 2.146564885 | AV51: 43110.45434 | AW51: 2.158778626 | AX51: 43110.45052 | AY51: 1.946564885 | AZ51: 43110.44705 | BA51: 1.958778626 | BB51: 43110.44019 | BC51: 2.058778626 | BD51: 43110.39505 | BE51: 1.609923664 | BF51: 43110.48889 | BH51: 43110.51319 | BI51: 43110.49583 | BK51: 2022-01-11T12:19:00 | BL51: 43110.51319
A52: 0 | B52: =IF(Instructions!$C$2="BST",A52,0) -> 0 | C52: 2022-01-11T17:22:00 | D52: 2022-01-11 | F52: 1 | I52: 2 | K52: 43110.72361 | L52: 4.67 | M52: HW | N52: 0.1565217391 | O52: 17:22:00 | P52: 12:00:00 | Q52: 18:00:00 | R52: 0.1055555556 | S52: 43110.73166 | T52: 6.250434783 | U52: 43110.79763 | V52: 43110.73202 | W52: 6.034782609 | X52: 43110.66458 | Y52: 43110.70698 | Z52: 4.587826087 | AA52: 43110.69657 | AB52: 43110.70278 | AC52: 4.187826087 | AD52: Opn | AE52: 43110.58819 | AF52: 43110.71136 | AG52: 3.672173913 | AH52: 43110.68395 | AI52: 4.056521739 | AJ52: 43110.73476 | AK52: 6.150434783 | AL52: 43110.73787 | AM52: 6.066086957 | AN52: 43110.73129 | AO52: 5.934782609 | AP52: 43110.74061 | AQ52: 5.334782609 | AR52: 43110.71319 | AS52: 43110.73403 | AT52: 43110.70478 | AU52: 4.187826087 | AV52: 43110.70478 | AW52: 3.987826087 | AX52: 43110.68084 | AY52: 3.703478261 | AZ52: 43110.67737 | BA52: 3.587826087 | BB52: 43110.6739 | BC52: 3.572173913 | BD52: 43110.61397 | BE52: 3.387826087 | BF52: 43110.71319 | BH52: 43110.74792 | BI52: 43110.75486 | BK52: 2022-01-11T17:57:00 | BL52: 43110.74792
A53: 0 | B53: =IF(Instructions!$C$2="BST",A53,0) -> 0 | C53: 2022-01-11T23:50:00 | D53: 2022-01-11 | F53: 1 | I53: 2 | K53: 43110.99306 | L53: 1.98 | M53: LW | N53: 0.03053435115 | O53: 23:50:00 | P53: 1.208333333 | Q53: 23:00:00 | R53: 0.1388888889 | S53: 43111.01929 | T53: 2.448091603 | U53: 43111.08526 | V53: 43111.01495 | W53: 2.251145038 | X53: 43110.91458 | Y53: 43110.99595 | Z53: 1.963358779 | AA53: 43110.97975 | AB53: 43110.99151 | AC53: 1.860305344 | AD53: Cls | AE53: 43110.81736 | AF53: 43110.98765 | AG53: 1.763358779 | AH53: 43110.9782 | AI53: 1.863358779 | AJ53: 43111.01881 | AK53: 2.451145038 | AL53: 43111.01881 | AM53: 2.451145038 | AN53: 43111.01138 | AO53: 2.451145038 | AP53: 43111.01784 | AQ53: 2.254198473 | AR53: 43110.98264 | AS53: 43111.00694 | AT53: 43110.98264 | AU53: 1.963358779 | AV53: 43110.9836 | AW53: 1.960305344 | AX53: 43110.9782 | AY53: 1.763358779 | AZ53: 43110.97473 | BA53: 1.760305344 | BB53: 43110.96827 | BC53: 1.860305344 | BD53: 43110.92313 | BE53: 1.472519084 | BF53: 43111.01736 | BH53: 43111.04097 | BI53: 43111.02431 | BK53: 2022-01-12T00:59:00 | BL53: 43111.04097
A54: 0 | B54: =IF(Instructions!$C$2="BST",A54,0) -> 0 | C54: 2022-01-12T06:16:00 | D54: 2022-01-12 | E54: 2022-01-12 | F54: 1 | G54: Jan | H54: 12 | I54: 3 | J54: Wed | K54: 43111.26111 | L54: 4.42 | M54: HW | N54: -0.06086956522 | O54: 06:16:00 | P54: 12:00:00 | Q54: 06:00:00 | R54: 0.04444444444 | S54: 43111.26852 | T54: 5.902608696 | U54: 43111.33449 | V54: 43111.26867 | W54: 5.708695652 | X54: 43111.19583 | Y54: 43111.24406 | Z54: 4.326956522 | AA54: 43111.23364 | AB54: 43111.24028 | AC54: 3.926956522 | AD54: Opn | AE54: 43111.12569 | AF54: 43111.24992 | AG54: 3.433043478 | AH54: 43111.2223 | AI54: 3.839130435 | AJ54: 43111.27184 | AK54: 5.802608696 | AL54: 43111.27515 | AM54: 5.696521739 | AN54: 43111.26836 | AO54: 5.608695652 | AP54: 43111.27832 | AQ54: 5.008695652 | AR54: 43111.25069 | AS54: 43111.27153 | AT54: 43111.24313 | AU54: 3.926956522 | AV54: 43111.24313 | AW54: 3.726956522 | AX54: 43111.21898 | AY54: 3.420869565 | AZ54: 43111.21551 | BA54: 3.326956522 | BB54: 43111.21204 | BC54: 3.333043478 | BD54: 43111.15062 | BE54: 3.126956522 | BF54: 43111.25069 | BH54: 43111.27917 | BI54: 43111.29236 | BK54: 2022-01-12T06:42:00 | BL54: 43111.27917
A55: 0 | B55: =IF(Instructions!$C$2="BST",A55,0) -> 0 | C55: 2022-01-12T12:20:00 | D55: 2022-01-12 | E55: Wed | F55: 1 | I55: 3 | K55: 43111.51389 | L55: 2.2 | M55: LW | N55: -0.1374045802 | O55: 12:20:00 | P55: 17:00:00 | Q55: 11:00:00 | R55: 0.2222222222 | S55: 43111.54128 | T55: 2.733587786 | U55: 43111.60725 | V55: 43111.53434 | W55: 2.519847328 | X55: 43111.44583 | Y55: 43111.51852 | Z55: 2.164885496 | AA55: 43111.49884 | AB55: 43111.5135 | AC55: 2.078625954 | AD55: Cls | AE55: 43111.35486 | AF55: 43111.50733 | AG55: 1.964885496 | AH55: 43111.49846 | AI55: 2.064885496 | AJ55: 43111.54051 | AK55: 2.719847328 | AL55: 43111.54051 | AM55: 2.719847328 | AN55: 43111.53279 | AO55: 2.719847328 | AP55: 43111.53897 | AQ55: 2.50610687 | AR55: 43111.50347 | AS55: 43111.52778 | AT55: 43111.50347 | AU55: 2.164885496 | AV55: 43111.50502 | AW55: 2.178625954 | AX55: 43111.49846 | AY55: 1.964885496 | AZ55: 43111.49498 | BA55: 1.978625954 | BB55: 43111.48881 | BC55: 2.078625954 | BD55: 43111.44367 | BE55: 1.623664122 | BF55: 43111.53819 | BH55: 43111.56111 | BI55: 43111.54514 | BK55: 2022-01-12T13:28:00 | BL55: 43111.56111
A56: 0 | B56: =IF(Instructions!$C$2="BST",A56,0) -> 0 | C56: 2022-01-12T18:33:00 | D56: 2022-01-12 | F56: 1 | I56: 3 | K56: 43111.77292 | L56: 4.61 | M56: HW | N56: 0.1043478261 | O56: 18:33:00 | P56: 1 | Q56: 18:00:00 | R56: 0.09166666667 | S56: 43111.78082 | T56: 6.166956522 | U56: 43111.84679 | V56: 43111.78113 | W56: 5.956521739 | X56: 43111.71319 | Y56: 43111.75619 | Z56: 4.525217391 | AA56: 43111.74578 | AB56: 43111.75208 | AC56: 4.125217391 | AD56: Opn | AE56: 43111.6375 | AF56: 43111.76091 | AG56: 3.614782609 | AH56: 43111.73345 | AI56: 4.004347826 | AJ56: 43111.78397 | AK56: 6.066956522 | AL56: 43111.78712 | AM56: 5.977391304 | AN56: 43111.7805 | AO56: 5.856521739 | AP56: 43111.78996 | AQ56: 5.256521739 | AR56: 43111.7625 | AS56: 43111.78333 | AT56: 43111.75428 | AU56: 4.125217391 | AV56: 43111.75428 | AW56: 3.925217391 | AX56: 43111.7303 | AY56: 3.635652174 | AZ56: 43111.72682 | BA56: 3.525217391 | BB56: 43111.72335 | BC56: 3.514782609 | BD56: 43111.66308 | BE56: 3.325217391 | BF56: 43111.7625 | BH56: 43111.79653 | BI56: 43111.80417 | BK56: 2022-01-12T19:07:00 | BL56: 43111.79653
A57: 0 | B57: =IF(Instructions!$C$2="BST",A57,0) -> 0 | C57: 2022-01-13T00:54:00 | D57: 2022-01-13 | E57: 2022-01-13 | F57: 1 | G57: Jan | H57: 13 | I57: 4 | J57: Thu | K57: 43112.0375 | L57: 2.01 | M57: LW | N57: 0.007633587786 | O57: 00:54:00 | P57: 05:00:00 | Q57: -0.04166666667 | R57: 0.3166666667 | S57: 43112.0662 | T57: 2.487022901 | U57: 43112.13218 | V57: 43112.05631 | W57: 2.28778626 | X57: 43111.96319 | Y57: 43112.0441 | Z57: 1.990839695 | AA57: 43112.02049 | AB57: 43112.03843 | AC57: 1.890076336 | AD57: Cls | AE57: 43111.86667 | AF57: 43112.02963 | AG57: 1.790839695 | AH57: 43112.02141 | AI57: 1.890839695 | AJ57: 43112.0651 | AK57: 2.48778626 | AL57: 43112.0651 | AM57: 2.48778626 | AN57: 43112.05706 | AO57: 2.48778626 | AP57: 43112.06291 | AQ57: 2.288549618 | AR57: 43112.02708 | AS57: 43112.05139 | AT57: 43112.02708 | AU57: 1.990839695 | AV57: 43112.02928 | AW57: 1.990076336 | AX57: 43112.02141 | AY57: 1.790839695 | AZ57: 43112.01794 | BA57: 1.790076336 | BB57: 43112.01209 | BC57: 1.890076336 | BD57: 43111.96696 | BE57: 1.493129771 | BF57: 43112.06181 | BH57: 43112.08472 | BI57: 43112.06875 | BK57: 2022-01-13T02:02:00 | BL57: 43112.08472
A58: 0 | B58: =IF(Instructions!$C$2="BST",A58,0) -> 0 | C58: 2022-01-13T07:19:00 | D58: 2022-01-13 | E58: Thu | F58: 1 | I58: 4 | K58: 43112.30486 | L58: 4.54 | M58: HW | N58: 0.04347826087 | O58: 07:19:00 | P58: 12:00:00 | Q58: 06:00:00 | R58: 0.2194444444 | S58: 43112.31409 | T58: 6.069565217 | U58: 43112.38006 | V58: 43112.31485 | W58: 5.865217391 | X58: 43112.24375 | Y58: 43112.28902 | Z58: 4.452173913 | AA58: 43112.27861 | AB58: 43112.28403 | AC58: 4.052173913 | AD58: Opn | AE58: 43112.16944 | AF58: 43112.29063 | AG58: 3.547826087 | AH58: 43112.26362 | AI58: 3.943478261 | AJ58: 43112.3168 | AK58: 5.969565217 | AL58: 43112.31951 | AM58: 5.873913043 | AN58: 43112.31333 | AO58: 5.765217391 | AP58: 43112.32146 | AQ58: 5.165217391 | AR58: 43112.29444 | AS58: 43112.31528 | AT58: 43112.28445 | AU58: 4.052173913 | AV58: 43112.28445 | AW58: 3.852173913 | AX58: 43112.26091 | AY58: 3.556521739 | AZ58: 43112.25744 | BA58: 3.452173913 | BB58: 43112.25396 | BC58: 3.447826087 | BD58: 43112.1968 | BE58: 3.252173913 | BF58: 43112.29444 | BH58: 43112.32708 | BI58: 43112.33611 | BK58: 2022-01-13T07:51:00 | BL58: 43112.32708
A59: 0 | B59: =IF(Instructions!$C$2="BST",A59,0) -> 0 | C59: 2022-01-13T13:23:00 | D59: 2022-01-13 | F59: 1 | I59: 4 | K59: 43112.55764 | L59: 2.12 | M59: LW | N59: -0.07633587786 | O59: 13:23:00 | P59: 17:00:00 | Q59: 11:00:00 | R59: 0.3972222222 | S59: 43112.58746 | T59: 2.629770992 | U59: 43112.65343 | V59: 43112.57505 | W59: 2.422137405 | X59: 43112.49375 | Y59: 43112.56591 | Z59: 2.091603053 | AA59: 43112.53895 | AB59: 43112.55968 | AC59: 1.999236641 | AD59: Cls | AE59: 43112.39861 | AF59: 43112.54865 | AG59: 1.891603053 | AH59: 43112.54099 | AI59: 1.991603053 | AJ59: 43112.58608 | AK59: 2.622137405 | AL59: 43112.58608 | AM59: 2.622137405 | AN59: 43112.57776 | AO59: 2.622137405 | AP59: 43112.58332 | AQ59: 2.414503817 | AR59: 43112.54722 | AS59: 43112.57153 | AT59: 43112.54722 | AU59: 2.091603053 | AV59: 43112.54998 | AW59: 2.099236641 | AX59: 43112.54099 | AY59: 1.891603053 | AZ59: 43112.53752 | BA59: 1.899236641 | BB59: 43112.53195 | BC59: 1.999236641 | BD59: 43112.48682 | BE59: 1.56870229 | BF59: 43112.58194 | BH59: 43112.60625 | BI59: 43112.58889 | BK59: 2022-01-13T14:33:00 | BL59: 43112.60625
A60: 0 | B60: =IF(Instructions!$C$2="BST",A60,0) -> 0 | C60: 2022-01-13T19:36:00 | D60: 2022-01-13 | F60: 1 | I60: 4 | K60: 43112.81667 | L60: 4.67 | M60: HW | N60: 0.1565217391 | O60: 19:36:00 | P60: 1 | Q60: 18:00:00 | R60: 0.2666666667 | S60: 43112.82639 | T60: 6.250434783 | U60: 43112.89236 | V60: 43112.82731 | W60: 6.034782609 | X60: 43112.75972 | Y60: 43112.80116 | Z60: 4.587826087 | AA60: 43112.79074 | AB60: 43112.79583 | AC60: 4.187826087 | AD60: Opn | AE60: 43112.68125 | AF60: 43112.80162 | AG60: 3.672173913 | AH60: 43112.77477 | AI60: 4.056521739 | AJ60: 43112.82894 | AK60: 6.150434783 | AL60: 43112.83148 | AM60: 6.066086957 | AN60: 43112.82546 | AO60: 5.934782609 | AP60: 43112.8331 | AQ60: 5.334782609 | AR60: 43112.80625 | AS60: 43112.82708 | AT60: 43112.7956 | AU60: 4.187826087 | AV60: 43112.7956 | AW60: 3.987826087 | AX60: 43112.77222 | AY60: 3.703478261 | AZ60: 43112.76875 | BA60: 3.587826087 | BB60: 43112.76528 | BC60: 3.572173913 | BD60: 43112.70926 | BE60: 3.387826087 | BF60: 43112.80625 | BH60: 43112.84306 | BI60: 43112.84792 | BK60: 2022-01-13T20:14:00 | BL60: 43112.84306
A61: 0 | B61: =IF(Instructions!$C$2="BST",A61,0) -> 0 | C61: 2022-01-14T01:48:00 | D61: 2022-01-14 | E61: 2022-01-14 | F61: 1 | G61: Jan | H61: 14 | I61: 5 | J61: Fri | K61: 43113.075 | L61: 1.95 | M61: LW | N61: 0.0534351145 | O61: 01:48:00 | P61: 05:00:00 | Q61: -0.04166666667 | R61: 0.4666666667 | S61: =IF($M61="HW",$K61+S$6+(S$5-S$6)*$R61,$K61+S$8+(S$7-S$8)*$R61) -> 43113.10579 | T61: 2.409160305 | U61: 43113.17176 | V61: 43113.0912 | W61: 2.214503817 | X61: 43113.00972 | Y61: =IF($M61="HW",$K61+Y$6+(Y$5-Y$6)*$R61,$K61+Y$8+(Y$7-Y$8)*$R61) -> 43113.08472 | Z61: 1.935877863 | AA61: 43113.05486 | AB61: 43113.07801 | AC61: 1.830534351 | AD61: Cls | AE61: 43112.91042 | AF61: 43113.06505 | AG61: 1.735877863 | AH61: 43113.05787 | AI61: 1.835877863 | AJ61: 43113.10417 | AK61: 2.414503817 | AL61: 43113.10417 | AM61: 2.414503817 | AN61: 43113.0956 | AO61: 2.414503817 | AP61: 43113.10093 | AQ61: 2.219847328 | AR61: =IF($M61="HW",$K61+AR$6+(AR$5-AR$6)*$R61,$K61+AR$8+(AR$7-AR$8)*$R61) -> 43113.06458 | AS61: 43113.08889 | AT61: 43113.06458 | AU61: 1.935877863 | AV61: 43113.06782 | AW61: 1.930534351 | AX61: 43113.05787 | AY61: 1.735877863 | AZ61: 43113.0544 | BA61: 1.730534351 | BB61: 43113.04907 | BC61: 1.830534351 | BD61: 43113.00394 | BE61: 1.451908397 | BF61: =IF($M61="HW",$K61+BF$6+(BF$5-BF$6)*$R61,$K61+BF$8+(BF$7-BF$8)*$R61) -> 43113.09931 | BH61: 43113.12431 | BI61: 43113.10625 | BK61: 2022-01-14T02:59:00 | BL61: 43113.12431
A62: 0 | B62: =IF(Instructions!$C$2="BST",A62,0) -> 0 | C62: 2022-01-14T08:12:00 | D62: 2022-01-14 | E62: Fri | F62: 1 | I62: 5 | K62: 43113.34167 | L62: 4.74 | M62: HW | N62: 0.2173913043 | O62: 08:12:00 | P62: 12:00:00 | Q62: 06:00:00 | R62: 0.3666666667 | S62: 43113.35243 | T62: 6.347826087 | U62: 43113.4184 | V62: 43113.3537 | W62: 6.126086957 | X62: 43113.28403 | Y62: 43113.32685 | Z62: 4.660869565 | AA62: 43113.31644 | AB62: 43113.32083 | AC62: 4.260869565 | AD62: Opn | AE62: 43113.20625 | AF62: 43113.32488 | AG62: 3.739130435 | AH62: 43113.29838 | AI62: 4.117391304 | AJ62: 43113.35463 | AK62: 6.247826087 | AL62: 43113.35683 | AM62: 6.169565217 | AN62: 43113.35116 | AO62: 6.026086957 | AP62: 43113.35775 | AQ62: 5.426086957 | AR62: 43113.33125 | AS62: 43113.35208 | AT62: 43113.31921 | AU62: 4.260869565 | AV62: 43113.31921 | AW62: 4.060869565 | AX62: 43113.29618 | AY62: 3.782608696 | AZ62: 43113.29271 | BA62: 3.660869565 | BB62: 43113.28924 | BC62: 3.639130435 | BD62: 43113.23565 | BE62: 3.460869565 | BF62: 43113.33125 | BH62: 43113.36736 | BI62: 43113.37292 | BK62: 2022-01-14T08:49:00 | BL62: 43113.36736
A63: 0 | B63: =IF(Instructions!$C$2="BST",A63,0) -> 0 | C63: 2022-01-14T14:16:00 | D63: 2022-01-14 | F63: 1 | I63: 5 | K63: 43113.59444 | L63: 1.96 | M63: LW | N63: 0.04580152672 | O63: 14:16:00 | P63: 17:00:00 | Q63: 11:00:00 | R63: 0.5444444445 | S63: 43113.62631 | T63: 2.422137405 | U63: 43113.69228 | V63: 43113.6093 | W63: 2.226717557 | X63: 43113.53403 | Y63: 43113.60579 | Z63: 1.945038168 | AA63: 43113.57269 | AB63: 43113.59853 | AC63: 1.840458015 | AD63: Cls | AE63: 43113.43542 | AF63: 43113.58341 | AG63: 1.745038168 | AH63: 43113.57677 | AI63: 1.845038168 | AJ63: 43113.62442 | AK63: 2.426717557 | AL63: 43113.62442 | AM63: 2.426717557 | AN63: 43113.61559 | AO63: 2.426717557 | AP63: 43113.62064 | AQ63: 2.23129771 | AR63: 43113.58403 | AS63: 43113.60833 | AT63: 43113.58403 | AU63: 1.945038168 | AV63: 43113.58781 | AW63: 1.940458015 | AX63: 43113.57677 | AY63: 1.745038168 | AZ63: 43113.5733 | BA63: 1.740458015 | BB63: 43113.56825 | BC63: 1.840458015 | BD63: 43113.52311 | BE63: 1.458778626 | BF63: 43113.61875 | BH63: 43113.64514 | BI63: 43113.62569 | BK63: 2022-01-14T15:29:00 | BL63: 43113.64514
A64: 0 | B64: =IF(Instructions!$C$2="BST",A64,0) -> 0 | C64: 2022-01-14T20:27:00 | D64: 2022-01-14 | F64: 1 | I64: 5 | K64: 43113.85208 | L64: 4.79 | M64: HW | N64: 0.2608695652 | O64: 20:27:00 | P64: 1 | Q64: 18:00:00 | R64: 0.4083333333 | S64: 43113.86328 | T64: 6.417391304 | U64: 43113.92925 | V64: 43113.8647 | W64: 6.191304348 | X64: 43113.79722 | Y64: 43113.83756 | Z64: 4.713043478 | AA64: 43113.82714 | AB64: 43113.83125 | AC64: 4.313043478 | AD64: Opn | AE64: 43113.71667 | AF64: 43113.83458 | AG64: 3.786956522 | AH64: 43113.80822 | AI64: 4.160869565 | AJ64: 43113.86534 | AK64: 6.317391304 | AL64: 43113.86739 | AM64: 6.243478261 | AN64: 43113.86186 | AO64: 6.091304348 | AP64: 43113.86803 | AQ64: 5.491304348 | AR64: 43113.84167 | AS64: 43113.8625 | AT64: 43113.82905 | AU64: 4.313043478 | AV64: 43113.82905 | AW64: 4.113043478 | AX64: 43113.80616 | AY64: 3.839130435 | AZ64: 43113.80269 | BA64: 3.713043478 | BB64: 43113.79922 | BC64: 3.686956522 | BD64: 43113.74664 | BE64: 3.513043478 | BF64: 43113.84167 | BH64: 43113.88056 | BI64: 43113.88333 | BK64: 2022-01-14T21:08:00 | BL64: 43113.88056
A65: 0 | B65: =IF(Instructions!$C$2="BST",A65,0) -> 0 | C65: 2022-01-15T02:34:00 | D65: 2022-01-15 | E65: 2022-01-15 | F65: 1 | G65: Jan | H65: 15 | I65: 6 | J65: Sat | K65: 43114.10694 | L65: 1.83 | M65: LW | N65: 0.1450381679 | O65: 02:34:00 | P65: 05:00:00 | Q65: -0.04166666667 | R65: 0.5944444444 | S65: 43114.13951 | T65: 2.253435115 | U65: 43114.20548 | V65: 43114.12093 | W65: 2.067938931 | X65: 43114.04722 | Y65: 43114.11933 | Z65: 1.825954198 | AA65: 43114.08414 | AB65: 43114.11173 | AC65: 1.711450382 | AD65: Cls | AE65: 43113.94583 | AF65: 43114.09522 | AG65: 1.625954198 | AH65: 43114.08893 | AI65: 1.725954198 | AJ65: 43114.13744 | AK65: 2.267938931 | AL65: 43114.13744 | AM65: 2.267938931 | AN65: 43114.12843 | AO65: 2.267938931 | AP65: 43114.13331 | AQ65: 2.082442748 | AR65: 43114.09653 | AS65: 43114.12083 | AT65: 43114.09653 | AU65: 1.825954198 | AV65: 43114.10066 | AW65: 1.811450382 | AX65: 43114.08893 | AY65: 1.625954198 | AZ65: 43114.08546 | BA65: 1.611450382 | BB65: 43114.08057 | BC65: 1.711450382 | BD65: 43114.03544 | BE65: 1.369465649 | BF65: 43114.13125 | BH65: 43114.15694 | BI65: 43114.13819 | BK65: 2022-01-15T03:46:00 | BL65: 43114.15694
A66: 0 | B66: =IF(Instructions!$C$2="BST",A66,0) -> 0 | C66: 2022-01-15T08:55:00 | D66: 2022-01-15 | E66: Sat | F66: 1 | I66: 6 | K66: 43114.37153 | L66: 4.96 | M66: HW | N66: 0.4086956522 | O66: 08:55:00 | P66: 12:00:00 | Q66: 06:00:00 | R66: 0.4861111111 | S66: 43114.38354 | T66: 6.653913043 | U66: 43114.44951 | V66: 43114.38522 | W66: 6.413043478 | X66: 43114.31667 | Y66: 43114.35754 | Z66: 4.890434783 | AA66: 43114.34713 | AB66: 43114.35069 | AC66: 4.490434783 | AD66: Opn | AE66: 43114.23611 | AF66: 43114.35267 | AG66: 3.949565217 | AH66: 43114.32658 | AI66: 4.308695652 | AJ66: 43114.38532 | AK66: 6.553913043 | AL66: 43114.3871 | AM66: 6.494782609 | AN66: 43114.38185 | AO66: 6.313043478 | AP66: 43114.3872 | AQ66: 5.713043478 | AR66: 43114.36111 | AS66: 43114.38194 | AT66: 43114.34742 | AU66: 4.490434783 | AV66: 43114.34742 | AW66: 4.290434783 | AX66: 43114.3248 | AY66: 4.031304348 | AZ66: 43114.32133 | BA66: 3.890434783 | BB66: 43114.31785 | BC66: 3.849565217 | BD66: 43114.26717 | BE66: 3.690434783 | BF66: 43114.36111 | BH66: 43114.4 | BI66: 43114.40278 | BK66: 2022-01-15T09:36:00 | BL66: 43114.4
A67: 0 | B67: =IF(Instructions!$C$2="BST",A67,0) -> 0 | C67: 2022-01-15T15:01:00 | D67: 2022-01-15 | F67: 1 | I67: 6 | K67: 43114.62569 | L67: 1.77 | M67: LW | N67: 0.1908396947 | O67: 15:01:00 | P67: 17:00:00 | Q67: 11:00:00 | R67: 0.6694444445 | S67: 43114.6593 | T67: 2.175572519 | U67: 43114.72527 | V67: 43114.63838 | W67: 1.994656489 | X67: 43114.56667 | Y67: 43114.63964 | Z67: 1.770992366 | AA67: 43114.60133 | AB67: 43114.63152 | AC67: 1.651908397 | AD67: Cls | AE67: 43114.46528 | AF67: 43114.61292 | AG67: 1.570992366 | AH67: 43114.60716 | AI67: 1.670992366 | AJ67: 43114.65697 | AK67: 2.194656489 | AL67: 43114.65697 | AM67: 2.194656489 | AN67: 43114.6477 | AO67: 2.194656489 | AP67: 43114.65232 | AQ67: 2.013740458 | AR67: 43114.61528 | AS67: 43114.63958 | AT67: 43114.61528 | AU67: 1.770992366 | AV67: 43114.61993 | AW67: 1.751908397 | AX67: 43114.60716 | AY67: 1.570992366 | AZ67: 43114.60368 | BA67: 1.551908397 | BB67: 43114.59906 | BC67: 1.651908397 | BD67: 43114.55393 | BE67: 1.328244275 | BF67: 43114.65 | BH67: 43114.67708 | BI67: 43114.65694 | BK67: 2022-01-15T16:15:00 | BL67: 43114.67708
A68: 0 | B68: =IF(Instructions!$C$2="BST",A68,0) -> 0 | C68: 2022-01-15T21:10:00 | D68: 2022-01-15 | F68: 1 | I68: 6 | K68: 43114.88194 | L68: 4.93 | M68: HW | N68: 0.3826086957 | O68: 21:10:00 | P68: 1 | Q68: 18:00:00 | R68: 0.5277777778 | S68: 43114.89439 | T68: 6.612173913 | U68: 43114.96036 | V68: 43114.89622 | W68: 6.373913043 | X68: 43114.82917 | Y68: 43114.86825 | Z68: 4.859130435 | AA68: 43114.85783 | AB68: 43114.86111 | AC68: 4.459130435 | AD68: Opn | AE68: 43114.74653 | AF68: 43114.86236 | AG68: 3.920869565 | AH68: 43114.83642 | AI68: 4.282608696 | AJ68: 43114.89603 | AK68: 6.512173913 | AL68: 43114.89767 | AM68: 6.450434783 | AN68: 43114.89255 | AO68: 6.273913043 | AP68: 43114.89747 | AQ68: 5.673913043 | AR68: 43114.87153 | AS68: 43114.89236 | AT68: 43114.85725 | AU68: 4.459130435 | AV68: 43114.85725 | AW68: 4.259130435 | AX68: 43114.83478 | AY68: 3.997391304 | AZ68: 43114.83131 | BA68: 3.859130435 | BB68: 43114.82784 | BC68: 3.820869565 | BD68: 43114.77816 | BE68: 3.659130435 | BF68: 43114.87153 | BH68: 43114.9125 | BI68: 43114.91319 | BK68: 2022-01-15T21:54:00 | BL68: 43114.9125
A69: 0 | B69: =IF(Instructions!$C$2="BST",A69,0) -> 0 | C69: 2022-01-16T03:13:00 | D69: 2022-01-16 | E69: 2022-01-16 | F69: 1 | G69: Jan | H69: 16 | I69: 7 | J69: Sun | K69: 43115.13403 | L69: 1.69 | M69: LW | N69: 0.2519083969 | O69: 03:13:00 | P69: 05:00:00 | Q69: -0.04166666667 | R69: 0.7027777778 | S69: 43115.16809 | T69: 2.071755725 | U69: 43115.23407 | V69: 43115.14613 | W69: 1.896946565 | X69: 43115.07917 | Y69: 43115.14867 | Z69: 1.697709924 | AA69: 43115.10897 | AB69: 43115.14032 | AC69: 1.572519084 | AD69: Cls | AE69: 43114.97569 | AF69: 43115.12079 | AG69: 1.497709924 | AH69: 43115.11526 | AI69: 1.597709924 | AJ69: 43115.16565 | AK69: 2.096946565 | AL69: 43115.16565 | AM69: 2.096946565 | AN69: 43115.15627 | AO69: 2.096946565 | AP69: 43115.16077 | AQ69: 1.922137405 | AR69: 43115.12361 | AS69: 43115.14792 | AT69: 43115.12361 | AU69: 1.697709924 | AV69: 43115.12849 | AW69: 1.672519084 | AX69: 43115.11526 | AY69: 1.497709924 | AZ69: 43115.11179 | BA69: 1.472519084 | BB69: 43115.10728 | BC69: 1.572519084 | BD69: 43115.06214 | BE69: 1.273282443 | BF69: 43115.15833 | BH69: 43115.18611 | BI69: 43115.16528 | BK69: 2022-01-16T04:28:00 | BL69: 43115.18611
A70: 0 | B70: =IF(Instructions!$C$2="BST",A70,0) -> 0 | C70: 2022-01-16T09:32:00 | D70: 2022-01-16 | E70: Sun | F70: 1 | I70: 7 | K70: 43115.39722 | L70: 5.17 | M70: HW | N70: 0.5913043478 | O70: 09:32:00 | P70: 12:00:00 | Q70: 06:00:00 | R70: 0.5888888889 | S70: 43115.4103 | T70: 6.946086957 | U70: 43115.47627 | V70: 43115.41235 | W70: 6.686956522 | X70: 43115.34444 | Y70: 43115.38395 | Z70: 5.109565217 | AA70: 43115.37353 | AB70: 43115.37639 | AC70: 4.709565217 | AD70: Opn | AE70: 43115.26181 | AF70: 43115.37658 | AG70: 4.150434783 | AH70: 43115.35085 | AI70: 4.491304348 | AJ70: 43115.41173 | AK70: 6.846086957 | AL70: 43115.41316 | AM70: 6.805217391 | AN70: 43115.40826 | AO70: 6.586956522 | AP70: 43115.41254 | AQ70: 5.986956522 | AR70: 43115.38681 | AS70: 43115.40764 | AT70: 43115.37168 | AU70: 4.709565217 | AV70: 43115.37168 | AW70: 4.509565217 | AX70: 43115.34942 | AY70: 4.268695652 | AZ70: 43115.34595 | BA70: 4.109565217 | BB70: 43115.34248 | BC70: 4.050434783 | BD70: 43115.29429 | BE70: 3.909565217 | BF70: 43115.38681 | BH70: 43115.42778 | BI70: 43115.42847 | BK70: 2022-01-16T10:16:00 | BL70: 43115.42778
A71: 0 | B71: =IF(Instructions!$C$2="BST",A71,0) -> 0 | C71: 2022-01-16T15:40:00 | D71: 2022-01-16 | F71: 1 | I71: 7 | K71: 43115.65278 | L71: 1.58 | M71: LW | N71: 0.3358778626 | O71: 15:40:00 | P71: 17:00:00 | Q71: 11:00:00 | R71: 0.7777777778 | S71: 43115.68789 | T71: 1.929007634 | U71: 43115.75386 | V71: 43115.66358 | W71: 1.76259542 | X71: 43115.59444 | Y71: 43115.66898 | Z71: 1.596946565 | AA71: 43115.62616 | AB71: 43115.66011 | AC71: 1.463358779 | AD71: Cls | AE71: 43115.49097 | AF71: 43115.6385 | AG71: 1.396946565 | AH71: 43115.63349 | AI71: 1.496946565 | AJ71: 43115.68519 | AK71: 1.96259542 | AL71: 43115.68519 | AM71: 1.96259542 | AN71: 43115.67554 | AO71: 1.96259542 | AP71: 43115.67978 | AQ71: 1.796183206 | AR71: 43115.64236 | AS71: 43115.66667 | AT71: 43115.64236 | AU71: 1.596946565 | AV71: 43115.64776 | AW71: 1.563358779 | AX71: 43115.63349 | AY71: 1.396946565 | AZ71: 43115.63002 | BA71: 1.363358779 | BB71: 43115.62577 | BC71: 1.463358779 | BD71: 43115.58063 | BE71: 1.197709924 | BF71: 43115.67708 | BH71: 43115.70625 | BI71: 43115.68403 | BK71: 2022-01-16T16:57:00 | BL71: 43115.70625
A72: 0 | B72: =IF(Instructions!$C$2="BST",A72,0) -> 0 | C72: 2022-01-16T21:49:00 | D72: 2022-01-16 | F72: 1 | I72: 7 | K72: 43115.90903 | L72: 5.07 | M72: HW | N72: 0.5043478261 | O72: 21:49:00 | P72: 1 | Q72: 18:00:00 | R72: 0.6361111111 | S72: 43115.9226 | T72: 6.806956522 | U72: 43115.98857 | V72: 43115.92481 | W72: 6.556521739 | X72: 43115.85694 | Y72: 43115.89608 | Z72: 5.005217391 | AA72: 43115.88567 | AB72: 43115.88819 | AC72: 4.605217391 | AD72: Opn | AE72: 43115.77361 | AF72: 43115.88757 | AG72: 4.054782609 | AH72: 43115.862 | AI72: 4.404347826 | AJ72: 43115.92386 | AK72: 6.706956522 | AL72: 43115.92513 | AM72: 6.657391304 | AN72: 43115.92039 | AO72: 6.456521739 | AP72: 43115.92418 | AQ72: 5.856521739 | AR72: 43115.89861 | AS72: 43115.91944 | AT72: 43115.88283 | AU72: 4.605217391 | AV72: 43115.88283 | AW72: 4.405217391 | AX72: 43115.86073 | AY72: 4.155652174 | AZ72: 43115.85726 | BA72: 4.005217391 | BB72: 43115.85379 | BC72: 3.954782609 | BD72: 43115.80675 | BE72: 3.805217391 | BF72: 43115.89861 | BH72: 43115.94028 | BI72: 43115.94028 | BK72: 2022-01-16T22:34:00 | BL72: 43115.94028
A73: 0 | B73: =IF(Instructions!$C$2="BST",A73,0) -> 0 | C73: 2022-01-17T03:49:00 | D73: 2022-01-17 | E73: 2022-01-17 | F73: 1 | G73: Jan | H73: 17 | I73: 1 | J73: Mon | K73: 43116.15903 | L73: 1.55 | M73: LW | N73: 0.358778626 | O73: 03:49:00 | P73: 05:00:00 | Q73: -0.04166666667 | R73: 0.8027777778 | S73: 43116.19448 | T73: 1.890076336 | U73: 43116.26046 | V73: 43116.1694 | W73: 1.725954198 | X73: 43116.10694 | Y73: 43116.17575 | Z73: 1.569465649 | AA73: 43116.13189 | AB73: 43116.16671 | AC73: 1.433587786 | AD73: Cls | AE73: 43116.00278 | AF73: 43116.14441 | AG73: 1.369465649 | AH73: 43116.13956 | AI73: 1.469465649 | AJ73: 43116.1917 | AK73: 1.925954198 | AL73: 43116.1917 | AM73: 1.925954198 | AN73: 43116.18196 | AO73: 1.925954198 | AP73: 43116.18612 | AQ73: 1.761832061 | AR73: 43116.14861 | AS73: 43116.17292 | AT73: 43116.14861 | AU73: 1.569465649 | AV73: 43116.15419 | AW73: 1.533587786 | AX73: 43116.13956 | AY73: 1.369465649 | AZ73: 43116.13609 | BA73: 1.333587786 | BB73: 43116.13193 | BC73: 1.433587786 | BD73: 43116.0868 | BE73: 1.177099237 | BF73: 43116.18333 | BH73: 43116.2125 | BI73: 43116.19028 | BK73: 2022-01-17T05:06:00 | BL73: 43116.2125
A74: 0 | B74: =IF(Instructions!$C$2="BST",A74,0) -> 0 | C74: 2022-01-17T10:07:00 | D74: 2022-01-17 | E74: Mon | F74: 1 | I74: 1 | K74: 43116.42153 | L74: 5.35 | M74: HW | N74: 0.747826087 | O74: 10:07:00 | P74: 12:00:00 | Q74: 06:00:00 | R74: 0.6861111111 | S74: 43116.43562 | T74: 7.196521739 | U74: 43116.50159 | V74: 43116.438 | W74: 6.92173913 | X74: 43116.36944 | Y74: 43116.40893 | Z74: =IF($M74="HW",Y$2+(Y$1-Y$2)*$N74,Y$3+(Y$4-Y$3)*$N74) -> 5.297391304 | AA74: 43116.39851 | AB74: 43116.40069 | AC74: =IF($M74="HW",AB$2+(AB$1-AB$2)*$N74,AB$3+(AB$4-AB$3)*$N74) -> 4.897391304 | AD74: Opn | AE74: 43116.28611 | AF74: 43116.3992 | AG74: =IF($M74="HW",AF$2+(AF$1-AF$2)*$N74,AF$3+(AF$4-AF$3)*$N74) -> 4.322608696 | AH74: 43116.3738 | AI74: =IF($M74="HW",AH$2+(AH$1-AH$2)*$N74,AH$3+(AH$4-AH$3)*$N74) -> 4.647826087 | AJ74: 43116.43671 | AK74: =IF($M74="HW",AJ$2+(AJ$1-AJ$2)*$N74,AJ$3+(AJ$4-AJ$3)*$N74) -> 7.096521739 | AL74: 43116.4378 | AM74: =IF($M74="HW",AL$2+(AL$1-AL$2)*$N74,AL$3+(AL$4-AL$3)*$N74) -> 7.071304348 | AN74: 43116.43324 | AO74: =IF($M74="HW",AN$2+(AN$1-AN$2)*$N74,AN$3+(AN$4-AN$3)*$N74) -> 6.82173913 | AP74: 43116.43651 | AQ74: =IF($M74="HW",AP$2+(AP$1-AP$2)*$N74,AP$3+(AP$4-AP$3)*$N74) -> 6.22173913 | AR74: 43116.41111 | AS74: 43116.43194 | AT74: 43116.39464 | AU74: =IF($M74="HW",AT$2+(AT$1-AT$2)*$N74,AT$3+(AT$4-AT$3)*$N74) -> 4.897391304 | AV74: 43116.39464 | AW74: =IF($M74="HW",AV$2+(AV$1-AV$2)*$N74,AV$3+(AV$4-AV$3)*$N74) -> 4.697391304 | AX74: 43116.37271 | AY74: =IF($M74="HW",AX$2+(AX$1-AX$2)*$N74,AX$3+(AX$4-AX$3)*$N74) -> 4.472173913 | AZ74: 43116.36924 | BA74: =IF($M74="HW",AZ$2+(AZ$1-AZ$2)*$N74,AZ$3+(AZ$4-AZ$3)*$N74) -> 4.297391304 | BB74: 43116.36577 | BC74: =IF($M74="HW",BB$2+(BB$1-BB$2)*$N74,BB$3+(BB$4-BB$3)*$N74) -> 4.222608696 | BD74: 43116.31995 | BE74: =IF($M74="HW",BD$2+(BD$1-BD$2)*$N74,BD$3+(BD$4-BD$3)*$N74) -> 4.097391304 | BF74: 43116.41111 | BH74: 43116.45278 | BI74: 43116.45278 | BK74: 2022-01-17T10:52:00 | BL74: 43116.45278
A75: 0 | B75: =IF(Instructions!$C$2="BST",A75,0) -> 0 | C75: 2022-01-17T16:16:00 | D75: =DATE(YEAR(K75),MONTH(K75),DAY(K75)) -> 2022-01-17 | E75: =IF(D75=D74,IF(J74="","",J74),D75) ->  | F75: 1 | I75: 1 | K75: =C75+B75/24 -> 43116.67778 | L75: 1.41 | M75: LW | N75: =IF(M75="HW",(L75-K$2)/(K$1-K$2),(L75-K$3)/(K$4-K$3)) -> 0.465648855 | O75: =C75-INT(C75) -> 16:16:00 | P75: =IF(M75="HW",IF(AND(O75>=L$5,O75<L$6),L$5,IF(AND(O75>=L$6,O75<M$5),M$5,IF(AND(O75>=M$5,O75<M$6),M$5,IF(O75>=M$6,L$5+1,L$5)))),IF(AND(O75>=L$7,O75<L$8),L$7,IF(AND(O75>=L$8,O75<M$7),M$7,IF(AND(O75>=M$7,O75<M$8),M$7,IF(O75>=M$8,L$7+1,L$7))))) -> 17:00:00 | Q75: =IF(M75="HW",IF(AND(O75>=L$5,O75<L$6),L$6,IF(AND(O75>=L$6,O75<M$5),L$6,IF(AND(O75>=M$5,O75<M$6),M$6,IF(O75>=M$6,M$6,M$6-1)))),IF(AND(O75>=L$7,O75<L$8),L$8,IF(AND(O75>=L$8,O75<M$7),L$8,IF(AND(O75>=M$7,O75<M$8),M$8,IF(O75>=M$8,M$8,M$8-1))))) -> 11:00:00 | R75: 0.8777777778 | S75: 43116.71427 | T75: =IF($M75="HW",S$2+(S$1-S$2)*$N75,S$3+(S$4-S$3)*$N75) -> 1.708396947 | U75: 43116.78025 | V75: 43116.68684 | W75: =IF($M75="HW",V$2+(V$1-V$2)*$N75,V$3+(V$4-V$3)*$N75) -> 1.554961832 | X75: 43116.61944 | Y75: 43116.69606 | Z75: 1.441221374 | AA75: 43116.64907 | AB75: =IF($M75="HW",$K75+AB$6+(AB$5-AB$6)*$R75,$K75+AB$8+(AB$7-AB$8)*$R75) -> 43116.6865 | AC75: 1.294656489 | AD75: =IF($M75="HW","Opn","Cls") -> Cls | AE75: 43116.51528 | AF75: =IF($M75="HW",$K75+AF$6+(AF$5-AF$6)*$R75,$K75+AF$8+(AF$7-AF$8)*$R75) -> 43116.66211 | AG75: 1.241221374 | AH75: =IF($M75="HW",$K75+AH$6+(AH$5-AH$6)*$R75,$K75+AH$8+(AH$7-AH$8)*$R75) -> 43116.65779 | AI75: 1.341221374 | AJ75: =IF($M75="HW",$K75+AJ$6+(AJ$5-AJ$6)*$R75,$K75+AJ$8+(AJ$7-AJ$8)*$R75) -> 43116.71123 | AK75: 1.754961832 | AL75: =IF($M75="HW",$K75+AL$6+(AL$5-AL$6)*$R75,$K75+AL$8+(AL$7-AL$8)*$R75) -> 43116.71123 | AM75: 1.754961832 | AN75: =IF($M75="HW",$K75+AN$6+(AN$5-AN$6)*$R75,$K75+AN$8+(AN$7-AN$8)*$R75) -> 43116.70123 | AO75: 1.754961832 | AP75: =IF($M75="HW",$K75+AP$6+(AP$5-AP$6)*$R75,$K75+AP$8+(AP$7-AP$8)*$R75) -> 43116.70513 | AQ75: 1.601526718 | AR75: 43116.66736 | AS75: 43116.69167 | AT75: =IF($M75="HW",$K75+AT$6+(AT$5-AT$6)*$R75,$K75+AT$8+(AT$7-AT$8)*$R75) -> 43116.66736 | AU75: 1.441221374 | AV75: =IF($M75="HW",$K75+AV$6+(AV$5-AV$6)*$R75,$K75+AV$8+(AV$7-AV$8)*$R75) -> 43116.67346 | AW75: 1.394656489 | AX75: =IF($M75="HW",$K75+AX$6+(AX$5-AX$6)*$R75,$K75+AX$8+(AX$7-AX$8)*$R75) -> 43116.65779 | AY75: 1.241221374 | AZ75: =IF($M75="HW",$K75+AZ$6+(AZ$5-AZ$6)*$R75,$K75+AZ$8+(AZ$7-AZ$8)*$R75) -> 43116.65432 | BA75: 1.194656489 | BB75: =IF($M75="HW",$K75+BB$6+(BB$5-BB$6)*$R75,$K75+BB$8+(BB$7-BB$8)*$R75) -> 43116.65042 | BC75: 1.294656489 | BD75: =IF($M75="HW",$K75+BD$6+(BD$5-BD$6)*$R75,$K75+BD$8+(BD$7-BD$8)*$R75) -> 43116.60529 | BE75: 1.080916031 | BF75: 43116.70208 | BH75: =BL75 -> 43116.73264 | BI75: 43116.70903 | BK75: 2022-01-17T17:35:00 | BL75: =BK75+B75/24 -> 43116.73264
A76: 0 | B76: =IF(Instructions!$C$2="BST",A76,0) -> 0 | C76: 2022-01-17T22:25:00 | D76: 2022-01-17 | F76: =MONTH(K76) -> 1 | G76: =IF(H76="","",TEXT(F76*29,"mmm")) ->  | H76: =IF(I76=I75,"",DAY(K76)) ->  | I76: =WEEKDAY(K76,2) -> 1 | J76: =IF(I76=I75,"",TEXT(I76+2,"ddd")) ->  | K76: 43116.93403 | L76: 5.18 | M76: HW | N76: 0.6 | O76: 22:25:00 | P76: 1 | Q76: 18:00:00 | R76: =ABS((O76-Q76)/(P76-Q76)) -> 0.7361111111 | S76: 43116.94864 | T76: 6.96 | U76: 43117.01461 | V76: 43116.9512 | W76: 6.7 | X76: =IF($M76="HW",$BK76+X$6+$B76/24,$BK75+4/24+$B76/24) -> 43116.88264 | Y76: 43116.92178 | Z76: 5.12 | AA76: =IF($M76="HW",$K76+AA$6+(AA$5-AA$6)*$R76,$K76+AA$8+(AA$7-AA$8)*$R76) -> 43116.91136 | AB76: 43116.91319 | AC76: 4.72 | AD76: Opn | AE76: =IF($M76="HW",$AB76-AD$8,$AB75+AD$8) -> 43116.79861 | AF76: 43116.91083 | AG76: 4.16 | AH76: 43116.88561 | AI76: 4.5 | AJ76: 43116.94956 | AK76: 6.86 | AL76: 43116.95047 | AM76: 6.82 | AN76: 43116.94608 | AO76: 6.6 | AP76: 43116.94883 | AQ76: 6 | AR76: 43116.92361 | AS76: 43116.94444 | AT76: 43116.90644 | AU76: 4.72 | AV76: 43116.90644 | AW76: 4.52 | AX76: 43116.88469 | AY76: 4.28 | AZ76: 43116.88122 | BA76: 4.12 | BB76: 43116.87775 | BC76: 4.06 | BD76: 43116.83314 | BE76: 3.92 | BF76: 43116.92361 | BH76: 43116.96597 | BI76: 43116.96528 | BK76: 2022-01-17T23:11:00 | BL76: 43116.96597
A77: 0 | B77: =IF(Instructions!$C$2="BST",A77,0) -> 0 | C77: 2022-01-18T04:24:00 | D77: 2022-01-18 | E77: 2022-01-18 | F77: 1 | G77: Jan | H77: 18 | I77: 2 | J77: Tue | K77: 43117.18333 | L77: 1.43 | M77: LW | N77: 0.4503816794 | O77: 04:24:00 | P77: 05:00:00 | Q77: -0.04166666667 | R77: 0.9 | S77: =IF($M77="HW",$K77+S$6+(S$5-S$6)*$R77,$K77+S$8+(S$7-S$8)*$R77) -> 43117.22014 | T77: 1.734351145 | U77: 43117.28611 | V77: 43117.19201 | W77: 1.579389313 | X77: 43117.13264 | Y77: =IF($M77="HW",$K77+Y$6+(Y$5-Y$6)*$R77,$K77+Y$8+(Y$7-Y$8)*$R77) -> 43117.20208 | Z77: 1.459541985 | AA77: 43117.15417 | AB77: 43117.19236 | AC77: 1.314503817 | AD77: Cls | AE77: 43117.02778 | AF77: 43117.16736 | AG77: 1.259541985 | AH77: 43117.16319 | AI77: 1.359541985 | AJ77: 43117.21701 | AK77: 1.779389313 | AL77: 43117.21701 | AM77: 1.779389313 | AN77: 43117.20694 | AO77: 1.779389313 | AP77: 43117.21076 | AQ77: 1.624427481 | AR77: =IF($M77="HW",$K77+AR$6+(AR$5-AR$6)*$R77,$K77+AR$8+(AR$7-AR$8)*$R77) -> 43117.17292 | AS77: 43117.19722 | AT77: 43117.17292 | AU77: 1.459541985 | AV77: 43117.17917 | AW77: 1.414503817 | AX77: 43117.16319 | AY77: 1.259541985 | AZ77: 43117.15972 | BA77: 1.214503817 | BB77: 43117.1559 | BC77: 1.314503817 | BD77: 43117.11076 | BE77: 1.094656489 | BF77: =IF($M77="HW",$K77+BF$6+(BF$5-BF$6)*$R77,$K77+BF$8+(BF$7-BF$8)*$R77) -> 43117.20764 | BH77: 43117.23819 | BI77: 43117.21458 | BK77: 2022-01-18T05:43:00 | BL77: 43117.23819
A78: 0 | B78: =IF(Instructions!$C$2="BST",A78,0) -> 0 | C78: 2022-01-18T10:41:00 | D78: 2022-01-18 | E78: Tue | F78: 1 | I78: 2 | K78: 43117.44514 | L78: 5.47 | M78: HW | N78: 0.852173913 | O78: 10:41:00 | P78: 12:00:00 | Q78: 06:00:00 | R78: 0.7805555556 | S78: 43117.46021 | T78: 7.363478261 | U78: 43117.52619 | V78: 43117.46292 | W78: 7.07826087 | X78: 43117.39306 | Y78: 43117.4332 | Z78: 5.422608696 | AA78: 43117.42278 | AB78: 43117.42431 | AC78: 5.022608696 | AD78: Opn | AE78: 43117.30972 | AF78: 43117.42117 | AG78: 4.437391304 | AH78: 43117.3961 | AI78: 4.752173913 | AJ78: 43117.46098 | AK78: 7.263478261 | AL78: 43117.46174 | AM78: 7.248695652 | AN78: 43117.4575 | AO78: 6.97826087 | AP78: 43117.45979 | AQ78: 6.37826087 | AR78: 43117.43472 | AS78: 43117.45556 | AT78: 43117.41694 | AU78: 5.022608696 | AV78: 43117.41694 | AW78: 4.822608696 | AX78: 43117.39534 | AY78: 4.607826087 | AZ78: 43117.39187 | BA78: 4.422608696 | BB78: 43117.3884 | BC78: 4.337391304 | BD78: 43117.34487 | BE78: 4.222608696 | BF78: 43117.43472 | BH78: 43117.47639 | BI78: 43117.47639 | BK78: 2022-01-18T11:26:00 | BL78: 43117.47639
A79: 0 | B79: =IF(Instructions!$C$2="BST",A79,0) -> 0 | C79: 2022-01-18T16:51:00 | D79: 2022-01-18 | F79: 1 | I79: 2 | K79: 43117.70208 | L79: 1.28 | M79: LW | N79: 0.5648854962 | O79: 16:51:00 | P79: 17:00:00 | Q79: 11:00:00 | R79: 0.975 | S79: 43117.73993 | T79: 1.539694656 | U79: 43117.8059 | V79: 43117.70946 | W79: 1.396183206 | X79: 43117.64306 | Y79: 43117.7224 | Z79: 1.322137405 | AA79: 43117.67135 | AB79: 43117.71215 | AC79: 1.165648855 | AD79: Cls | AE79: 43117.53889 | AF79: 43117.68507 | AG79: 1.122137405 | AH79: 43117.68142 | AI79: 1.222137405 | AJ79: 43117.73655 | AK79: 1.596183206 | AL79: 43117.73655 | AM79: 1.596183206 | AN79: 43117.72622 | AO79: 1.596183206 | AP79: 43117.72977 | AQ79: 1.452671756 | AR79: 43117.69167 | AS79: 43117.71597 | AT79: 43117.69167 | AU79: 1.322137405 | AV79: 43117.69844 | AW79: 1.265648855 | AX79: 43117.68142 | AY79: 1.122137405 | AZ79: 43117.67795 | BA79: 1.065648855 | BB79: 43117.67439 | BC79: 1.165648855 | BD79: 43117.62925 | BE79: 0.9916030534 | BF79: 43117.72639 | BH79: 43117.75833 | BI79: 43117.73333 | BK79: 2022-01-18T18:12:00 | BL79: 43117.75833
A80: 0 | B80: =IF(Instructions!$C$2="BST",A80,0) -> 0 | C80: 2022-01-18T23:00:00 | D80: 2022-01-18 | F80: 1 | I80: 2 | K80: 43117.95833 | L80: 5.25 | M80: HW | N80: 0.6608695652 | O80: 23:00:00 | P80: 1 | Q80: 18:00:00 | R80: 0.8333333333 | S80: 43117.97396 | T80: 7.057391304 | U80: 43118.03993 | V80: 43117.97685 | W80: 6.791304348 | X80: 43117.90833 | Y80: 43117.94676 | Z80: 5.193043478 | AA80: 43117.93634 | AB80: 43117.9375 | AC80: 4.793043478 | AD80: Opn | AE80: 43117.82292 | AF80: 43117.93345 | AG80: 4.226956522 | AH80: 43117.90856 | AI80: 4.560869565 | AJ80: 43117.97454 | AK80: 6.957391304 | AL80: 43117.97512 | AM80: 6.923478261 | AN80: 43117.97106 | AO80: 6.691304348 | AP80: 43117.9728 | AQ80: 6.091304348 | AR80: 43117.94792 | AS80: 43117.96875 | AT80: 43117.9294 | AU80: 4.793043478 | AV80: 43117.9294 | AW80: 4.593043478 | AX80: 43117.90799 | AY80: 4.359130435 | AZ80: 43117.90451 | BA80: 4.193043478 | BB80: 43117.90104 | BC80: 4.126956522 | BD80: 43117.8588 | BE80: 3.993043478 | BF80: 43117.94792 | BH80: 43117.99167 | BI80: 43117.98958 | BK80: 2022-01-18T23:48:00 | BL80: 43117.99167
A81: 0 | B81: =IF(Instructions!$C$2="BST",A81,0) -> 0 | C81: 2022-01-19T04:57:00 | D81: 2022-01-19 | E81: 2022-01-19 | F81: 1 | G81: Jan | H81: 19 | I81: 3 | J81: Wed | K81: 43118.20625 | L81: 1.35 | M81: LW | N81: 0.5114503817 | O81: 04:57:00 | P81: 05:00:00 | Q81: -0.04166666667 | R81: 0.9916666667 | S81: 43118.24433 | T81: 1.630534351 | U81: 43118.3103 | V81: 43118.21334 | W81: 1.481679389 | X81: 43118.15833 | Y81: 43118.22691 | Z81: 1.386259542 | AA81: 43118.17517 | AB81: 43118.21655 | AC81: 1.235114504 | AD81: Cls | AE81: 43118.05208 | AF81: 43118.189 | AG81: 1.186259542 | AH81: 43118.18547 | AI81: 1.286259542 | AJ81: 43118.24089 | AK81: 1.681679389 | AL81: 43118.24089 | AM81: 1.681679389 | AN81: 43118.2305 | AO81: 1.681679389 | AP81: 43118.234 | AQ81: 1.532824427 | AR81: 43118.19583 | AS81: 43118.22014 | AT81: 43118.19583 | AU81: 1.386259542 | AV81: 43118.20272 | AW81: 1.335114504 | AX81: 43118.18547 | AY81: 1.186259542 | AZ81: 43118.182 | BA81: 1.135114504 | BB81: 43118.1785 | BC81: 1.235114504 | BD81: 43118.13336 | BE81: 1.039694656 | BF81: 43118.23056 | BH81: 43118.26319 | BI81: 43118.2375 | BK81: 2022-01-19T06:19:00 | BL81: 43118.26319
A82: 0 | B82: =IF(Instructions!$C$2="BST",A82,0) -> 0 | C82: 2022-01-19T11:14:00 | D82: 2022-01-19 | E82: Wed | F82: 1 | I82: 3 | K82: 43118.46806 | L82: 5.54 | M82: HW | N82: 0.9130434783 | O82: 11:14:00 | P82: 12:00:00 | Q82: 06:00:00 | R82: 0.8722222222 | S82: 43118.48409 | T82: 7.460869565 | U82: 43118.55006 | V82: 43118.48711 | W82: 7.169565217 | X82: 43118.41667 | Y82: 43118.45675 | Z82: 5.495652174 | AA82: 43118.44633 | AB82: 43118.44722 | AC82: 5.095652174 | AD82: Opn | AE82: 43118.33264 | AF82: 43118.4425 | AG82: 4.504347826 | AH82: 43118.41775 | AI82: 4.813043478 | AJ82: 43118.48453 | AK82: 7.360869565 | AL82: 43118.48497 | AM82: 7.352173913 | AN82: 43118.48106 | AO82: 7.069565217 | AP82: 43118.48239 | AQ82: 6.469565217 | AR82: 43118.45764 | AS82: 43118.47847 | AT82: 43118.43858 | AU82: 5.095652174 | AV82: 43118.43858 | AW82: 4.895652174 | AX82: 43118.4173 | AY82: 4.686956522 | AZ82: 43118.41383 | BA82: 4.495652174 | BB82: 43118.41036 | BC82: 4.404347826 | BD82: 43118.36906 | BE82: 4.295652174 | BF82: 43118.45764 | BH82: 43118.5 | BI82: 43118.49931 | BK82: 2022-01-19T12:00:00 | BL82: 43118.5
A83: 0 | B83: =IF(Instructions!$C$2="BST",A83,0) -> 0 | C83: 2022-01-19T17:25:00 | D83: 2022-01-19 | F83: 1 | I83: 3 | K83: 43118.72569 | L83: 1.19 | M83: LW | N83: 0.6335877863 | O83: 17:25:00 | P83: 17:00:00 | Q83: 23:00:00 | R83: 0.9305555556 | S83: 43118.76292 | T83: 1.422900763 | U83: 43118.8289 | V83: 43118.73384 | W83: 1.286259542 | X83: 43118.66667 | Y83: 43118.74508 | Z83: 1.239694656 | AA83: 43118.69589 | AB83: 43118.73515 | AC83: 1.076335878 | AD83: Cls | AE83: 43118.56181 | AF83: 43118.7093 | AG83: 1.039694656 | AH83: 43118.70534 | AI83: 1.139694656 | AJ83: 43118.75969 | AK83: 1.486259542 | AL83: 43118.75969 | AM83: 1.486259542 | AN83: 43118.74952 | AO83: 1.486259542 | AP83: 43118.75323 | AQ83: 1.349618321 | AR83: 43118.71528 | AS83: 43118.73958 | AT83: 43118.71528 | AU83: 1.239694656 | AV83: 43118.72174 | AW83: 1.176335878 | AX83: 43118.70534 | AY83: 1.039694656 | AZ83: 43118.70187 | BA83: 0.9763358779 | BB83: 43118.69816 | BC83: 1.076335878 | BD83: 43118.65302 | BE83: 0.9297709924 | BF83: 43118.75 | BH83: 43118.78403 | BI83: 43118.75694 | BK83: 2022-01-19T18:49:00 | BL83: 43118.78403
A84: 0 | B84: =IF(Instructions!$C$2="BST",A84,0) -> 0 | C84: 2022-01-19T23:35:00 | D84: 2022-01-19 | F84: 1 | I84: 3 | K84: 43118.98264 | L84: 5.27 | M84: HW | N84: 0.6782608696 | O84: 23:35:00 | P84: 1 | Q84: 18:00:00 | R84: 0.9305555556 | S84: 43118.99928 | T84: 7.085217391 | U84: 43119.06525 | V84: 43119.00251 | W84: 6.817391304 | X84: 43118.93264 | Y84: 43118.97174 | Z84: 5.213913043 | AA84: 43118.96132 | AB84: 43118.96181 | AC84: 4.813913043 | AD84: Opn | AE84: 43118.84722 | AF84: 43118.95607 | AG84: 4.246086957 | AH84: 43118.93152 | AI84: 4.57826087 | AJ84: 43118.99952 | AK84: 6.985217391 | AL84: 43118.99976 | AM84: 6.953043478 | AN84: 43118.99605 | AO84: 6.717391304 | AP84: 43118.99677 | AQ84: 6.117391304 | AR84: 43118.97222 | AS84: 43118.99306 | AT84: 43118.95235 | AU84: 4.813913043 | AV84: 43118.95235 | AW84: 4.613913043 | AX84: 43118.93128 | AY84: 4.38173913 | AZ84: 43118.92781 | BA84: 4.213913043 | BB84: 43118.92433 | BC84: 4.146086957 | BD84: 43118.88445 | BE84: 4.013913043 | BF84: 43118.97222 | BH84: 43119.01597 | BI84: 43119.01389 | BK84: 2022-01-20T00:23:00 | BL84: 43119.01597
A85: 0 | B85: =IF(Instructions!$C$2="BST",A85,0) -> 0 | C85: 2022-01-20T05:31:00 | D85: 2022-01-20 | E85: 2022-01-20 | F85: 1 | G85: Jan | H85: 20 | I85: 4 | J85: Thu | K85: 43119.22986 | L85: 1.31 | M85: LW | N85: 0.5419847328 | O85: 05:31:00 | P85: 05:00:00 | Q85: 11:00:00 | R85: 0.9138888889 | S85: 43119.26686 | T85: 1.578625954 | U85: 43119.33283 | V85: 43119.2383 | W85: 1.432824427 | X85: 43119.18264 | Y85: 43119.2489 | Z85: 1.349618321 | AA85: 43119.20041 | AB85: 43119.23908 | AC85: 1.195419847 | AD85: Cls | AE85: 43119.07639 | AF85: 43119.2137 | AG85: 1.149618321 | AH85: 43119.20963 | AI85: 1.249618321 | AJ85: 43119.26369 | AK85: 1.632824427 | AL85: 43119.26369 | AM85: 1.632824427 | AN85: 43119.25357 | AO85: 1.632824427 | AP85: 43119.25734 | AQ85: 1.487022901 | AR85: 43119.21944 | AS85: 43119.24375 | AT85: 43119.21944 | AU85: 1.349618321 | AV85: 43119.22579 | AW85: 1.295419847 | AX85: 43119.20963 | AY85: 1.149618321 | AZ85: 43119.20615 | BA85: 1.095419847 | BB85: 43119.20238 | BC85: 1.195419847 | BD85: 43119.15724 | BE85: 1.01221374 | BF85: 43119.25417 | BH85: 43119.28889 | BI85: 43119.26111 | BK85: 2022-01-20T06:56:00 | BL85: 43119.28889
A86: 0 | B86: =IF(Instructions!$C$2="BST",A86,0) -> 0 | C86: 2022-01-20T11:48:00 | D86: 2022-01-20 | E86: Thu | F86: 1 | I86: 4 | K86: 43119.49167 | L86: 5.55 | M86: HW | N86: 0.9217391304 | O86: 11:48:00 | P86: 12:00:00 | Q86: 06:00:00 | R86: 0.9666666667 | S86: 43119.50868 | T86: 7.474782609 | U86: 43119.57465 | V86: 43119.51204 | W86: 7.182608696 | X86: 43119.43889 | Y86: 43119.48102 | Z86: 5.506086957 | AA86: 43119.4706 | AB86: 43119.47083 | AC86: 5.106086957 | AD86: Opn | AE86: 43119.35625 | AF86: 43119.46447 | AG86: 4.513913043 | AH86: 43119.44005 | AI86: 4.82173913 | AJ86: 43119.5088 | AK86: 7.374782609 | AL86: 43119.50891 | AM86: 7.366956522 | AN86: 43119.50532 | AO86: 7.082608696 | AP86: 43119.50567 | AQ86: 6.482608696 | AR86: 43119.48125 | AS86: 43119.50208 | AT86: 43119.46088 | AU86: 5.106086957 | AV86: 43119.46088 | AW86: 4.906086957 | AX86: 43119.43993 | AY86: 4.69826087 | AZ86: 43119.43646 | BA86: 4.506086957 | BB86: 43119.43299 | BC86: 4.413913043 | BD86: 43119.39398 | BE86: 4.306086957 | BF86: 43119.48125 | BH86: 43119.52222 | BI86: 43119.52292 | BK86: 2022-01-20T12:32:00 | BL86: 43119.52222
A87: 0 | B87: =IF(Instructions!$C$2="BST",A87,0) -> 0 | C87: 2022-01-20T18:00:00 | D87: 2022-01-20 | F87: 1 | I87: 4 | K87: 43119.75 | L87: 1.14 | M87: LW | N87: 0.6717557252 | O87: 18:00:00 | P87: 17:00:00 | Q87: 23:00:00 | R87: 0.8333333333 | S87: 43119.78588 | T87: 1.358015267 | U87: 43119.85185 | V87: 43119.75984 | W87: 1.22519084 | X87: 43119.68889 | Y87: 43119.76736 | Z87: 1.19389313 | AA87: 43119.72222 | AB87: 43119.7581 | AC87: 1.026717557 | AD87: Cls | AE87: 43119.58542 | AF87: 43119.73495 | AG87: 0.9938931298 | AH87: 43119.73032 | AI87: 1.09389313 | AJ87: 43119.78299 | AK87: 1.42519084 | AL87: 43119.78299 | AM87: 1.42519084 | AN87: 43119.77315 | AO87: 1.42519084 | AP87: 43119.7772 | AQ87: 1.292366412 | AR87: 43119.73958 | AS87: 43119.76389 | AT87: 43119.73958 | AU87: 1.19389313 | AV87: 43119.74537 | AW87: 1.126717557 | AX87: 43119.73032 | AY87: 0.9938931298 | AZ87: 43119.72685 | BA87: 0.9267175573 | BB87: 43119.7228 | BC87: 1.026717557 | BD87: 43119.67766 | BE87: 0.8954198473 | BF87: 43119.77431 | BH87: 43119.80903 | BI87: 43119.78125 | BK87: 2022-01-20T19:25:00 | BL87: 43119.80903
A88: 0 | B88: =IF(Instructions!$C$2="BST",A88,0) -> 0 | C88: 2022-01-21T00:09:00 | D88: 2022-01-21 | E88: 2022-01-21 | F88: 1 | G88: Jan | H88: 21 | I88: 5 | J88: Fri | K88: 43120.00625 | L88: 5.24 | M88: HW | N88: 0.652173913 | O88: 00:09:00 | P88: 00:00:00 | Q88: 06:00:00 | R88: 0.975 | S88: 43120.02335 | T88: 7.043478261 | U88: 43120.08932 | V88: 43120.02674 | W88: 6.77826087 | X88: 43119.95625 | Y88: 43119.99566 | Z88: 5.182608696 | AA88: 43119.98524 | AB88: 43119.98542 | AC88: 4.782608696 | AD88: Opn | AE88: 43119.87083 | AF88: 43119.97891 | AG88: 4.217391304 | AH88: 43119.95451 | AI88: 4.552173913 | AJ88: 43120.02344 | AK88: 6.943478261 | AL88: 43120.02352 | AM88: 6.908695652 | AN88: 43120.01997 | AO88: 6.67826087 | AP88: 43120.02023 | AQ88: 6.07826087 | AR88: 43119.99583 | AS88: 43120.01667 | AT88: 43119.97535 | AU88: 4.782608696 | AV88: 43119.97535 | AW88: 4.582608696 | AX88: 43119.95443 | AY88: 4.347826087 | AZ88: 43119.95095 | BA88: 4.182608696 | BB88: 43119.94748 | BC88: 4.117391304 | BD88: 43119.90868 | BE88: 3.982608696 | BF88: 43119.99583 | BH88: 43120.03958 | BI88: 43120.0375 | BK88: 2022-01-21T00:57:00 | BL88: 43120.03958
A89: 0 | B89: =IF(Instructions!$C$2="BST",A89,0) -> 0 | C89: 2022-01-21T06:06:00 | D89: 2022-01-21 | E89: Fri | F89: 1 | I89: 5 | K89: 43120.25417 | L89: 1.31 | M89: LW | N89: 0.5419847328 | O89: 06:06:00 | P89: 05:00:00 | Q89: 11:00:00 | R89: 0.8166666667 | S89: 43120.28981 | T89: 1.578625954 | U89: 43120.35579 | V89: 43120.26429 | W89: 1.432824427 | X89: 43120.20625 | Y89: 43120.27118 | Z89: 1.349618321 | AA89: 43120.22674 | AB89: 43120.26204 | AC89: 1.195419847 | AD89: Cls | AE89: 43120.1 | AF89: 43120.23935 | AG89: 1.149618321 | AH89: 43120.23461 | AI89: 1.249618321 | AJ89: 43120.28698 | AK89: 1.632824427 | AL89: 43120.28698 | AM89: 1.632824427 | AN89: 43120.2772 | AO89: 1.632824427 | AP89: 43120.28131 | AQ89: 1.487022901 | AR89: 43120.24375 | AS89: 43120.26806 | AT89: 43120.24375 | AU89: 1.349618321 | AV89: 43120.24942 | AW89: 1.295419847 | AX89: 43120.23461 | AY89: 1.149618321 | AZ89: 43120.23113 | BA89: 1.095419847 | BB89: 43120.22703 | BC89: 1.195419847 | BD89: 43120.18189 | BE89: 1.01221374 | BF89: 43120.27847 | BH89: 43120.31389 | BI89: 43120.28542 | BK89: 2022-01-21T07:32:00 | BL89: 43120.31389
A90: 0 | B90: =IF(Instructions!$C$2="BST",A90,0) -> 0 | C90: 2022-01-21T12:21:00 | D90: 2022-01-21 | F90: 1 | I90: 5 | K90: 43120.51458 | L90: 5.53 | M90: HW | N90: 0.9043478261 | O90: 12:21:00 | P90: 12:00:00 | Q90: 18:00:00 | R90: 0.9416666667 | S90: 43120.53134 | T90: 7.446956522 | U90: 43120.59731 | V90: 43120.53461 | W90: 7.156521739 | X90: 43120.46111 | Y90: 43120.50376 | Z90: 5.485217391 | AA90: 43120.49334 | AB90: 43120.49375 | AC90: 5.085217391 | AD90: Opn | AE90: 43120.37917 | AF90: 43120.48782 | AG90: 4.494782609 | AH90: 43120.46331 | AI90: 4.804347826 | AJ90: 43120.53154 | AK90: 7.346956522 | AL90: 43120.53174 | AM90: 7.337391304 | AN90: 43120.52807 | AO90: 7.056521739 | AP90: 43120.52867 | AQ90: 6.456521739 | AR90: 43120.50417 | AS90: 43120.525 | AT90: 43120.48414 | AU90: 5.085217391 | AV90: 43120.48414 | AW90: 4.885217391 | AX90: 43120.46311 | AY90: 4.675652174 | AZ90: 43120.45964 | BA90: 4.485217391 | BB90: 43120.45616 | BC90: 4.394782609 | BD90: 43120.41655 | BE90: 4.285217391 | BF90: 43120.50417 | BH90: 43120.54444 | BI90: 43120.54583 | BK90: 2022-01-21T13:04:00 | BL90: 43120.54444
A91: 0 | B91: =IF(Instructions!$C$2="BST",A91,0) -> 0 | C91: 2022-01-21T18:35:00 | D91: 2022-01-21 | F91: 1 | I91: 5 | K91: 43120.77431 | L91: 1.13 | M91: LW | N91: 0.679389313 | O91: 18:35:00 | P91: 17:00:00 | Q91: 23:00:00 | R91: 0.7361111111 | S91: 43120.80883 | T91: 1.345038168 | U91: 43120.87481 | V91: 43120.78583 | W91: 1.212977099 | X91: 43120.71111 | Y91: 43120.78964 | Z91: 1.184732824 | AA91: 43120.74855 | AB91: 43120.78106 | AC91: 1.016793893 | AD91: Cls | AE91: 43120.60833 | AF91: 43120.76061 | AG91: 0.9847328244 | AH91: 43120.7553 | AI91: 1.084732824 | AJ91: 43120.80628 | AK91: 1.412977099 | AL91: 43120.80628 | AM91: 1.412977099 | AN91: 43120.79678 | AO91: 1.412977099 | AP91: 43120.80117 | AQ91: 1.280916031 | AR91: 43120.76389 | AS91: 43120.78819 | AT91: 43120.76389 | AU91: 1.184732824 | AV91: 43120.769 | AW91: 1.116793893 | AX91: 43120.7553 | AY91: 0.9847328244 | AZ91: 43120.75183 | BA91: 0.9167938931 | BB91: 43120.74744 | BC91: 1.016793893 | BD91: 43120.70231 | BE91: 0.8885496183 | BF91: 43120.79861 | BH91: 43120.83403 | BI91: 43120.80556 | BK91: 2022-01-21T20:01:00 | BL91: 43120.83403
A92: 0 | B92: =IF(Instructions!$C$2="BST",A92,0) -> 0 | C92: 2022-01-22T00:46:00 | D92: 2022-01-22 | E92: 2022-01-22 | F92: 1 | G92: Jan | H92: 22 | I92: 6 | J92: Sat | K92: 43121.03194 | L92: 5.19 | M92: HW | N92: 0.6086956522 | O92: 00:46:00 | P92: 00:00:00 | Q92: 06:00:00 | R92: 0.8722222222 | S92: 43121.04797 | T92: 6.973913043 | U92: 43121.11395 | V92: 43121.051 | W92: 6.713043478 | X92: 43120.98056 | Y92: 43121.02064 | Z92: 5.130434783 | AA92: 43121.01022 | AB92: 43121.01111 | AC92: 4.730434783 | AD92: Opn | AE92: 43120.89653 | AF92: 43121.00639 | AG92: 4.169565217 | AH92: 43120.98164 | AI92: 4.508695652 | AJ92: 43121.04842 | AK92: 6.873913043 | AL92: 43121.04886 | AM92: 6.834782609 | AN92: 43121.04495 | AO92: 6.613043478 | AP92: 43121.04628 | AQ92: 6.013043478 | AR92: 43121.02153 | AS92: 43121.04236 | AT92: 43121.00247 | AU92: 4.730434783 | AV92: 43121.00247 | AW92: 4.530434783 | AX92: 43120.98119 | AY92: 4.291304348 | AZ92: 43120.97772 | BA92: 4.130434783 | BB92: 43120.97425 | BC92: 4.069565217 | BD92: 43120.93295 | BE92: 3.930434783 | BF92: 43121.02153 | BH92: 43121.06389 | BI92: 43121.06319 | BK92: 2022-01-22T01:32:00 | BL92: 43121.06389
A93: 0 | B93: =IF(Instructions!$C$2="BST",A93,0) -> 0 | C93: 2022-01-22T06:42:00 | D93: 2022-01-22 | E93: Sat | F93: 1 | I93: 6 | K93: 43121.27917 | L93: 1.35 | M93: LW | N93: 0.5114503817 | O93: 06:42:00 | P93: 05:00:00 | Q93: 11:00:00 | R93: 0.7166666667 | S93: 43121.31343 | T93: 1.630534351 | U93: 43121.3794 | V93: 43121.29103 | W93: 1.481679389 | X93: 43121.23056 | Y93: 43121.2941 | Z93: 1.386259542 | AA93: 43121.25382 | AB93: 43121.28565 | AC93: 1.235114504 | AD93: Cls | AE93: 43121.12569 | AF93: 43121.26574 | AG93: 1.186259542 | AH93: 43121.2603 | AI93: 1.286259542 | AJ93: 43121.31094 | AK93: 1.681679389 | AL93: 43121.31094 | AM93: 1.681679389 | AN93: 43121.3015 | AO93: 1.681679389 | AP93: 43121.30596 | AQ93: 1.532824427 | AR93: 43121.26875 | AS93: 43121.29306 | AT93: 43121.26875 | AU93: 1.386259542 | AV93: 43121.27373 | AW93: 1.335114504 | AX93: 43121.2603 | AY93: 1.186259542 | AZ93: 43121.25683 | BA93: 1.135114504 | BB93: 43121.25237 | BC93: 1.235114504 | BD93: 43121.20723 | BE93: 1.039694656 | BF93: 43121.30347 | BH93: 43121.33819 | BI93: 43121.31042 | BK93: 2022-01-22T08:07:00 | BL93: 43121.33819
A94: 0 | B94: =IF(Instructions!$C$2="BST",A94,0) -> 0 | C94: 2022-01-22T12:56:00 | D94: 2022-01-22 | F94: 1 | I94: 6 | K94: 43121.53889 | L94: 5.47 | M94: HW | N94: 0.852173913 | O94: 12:56:00 | P94: 12:00:00 | Q94: 18:00:00 | R94: 0.8444444444 | S94: =IF($M94="HW",$K94+S$6+(S$5-S$6)*$R94,$K94+S$8+(S$7-S$8)*$R94) -> 43121.55463 | T94: 7.363478261 | U94: 43121.6206 | V94: 43121.55756 | W94: 7.07826087 | X94: 43121.48403 | Y94: =IF($M94="HW",$K94+Y$6+(Y$5-Y$6)*$R94,$K94+Y$8+(Y$7-Y$8)*$R94) -> 43121.52739 | Z94: 5.422608696 | AA94: 43121.51698 | AB94: 43121.51806 | AC94: 5.022608696 | AD94: Opn | AE94: 43121.40347 | AF94: 43121.51381 | AG94: 4.437391304 | AH94: 43121.48897 | AI94: 4.752173913 | AJ94: 43121.55517 | AK94: 7.263478261 | AL94: 43121.55571 | AM94: 7.248695652 | AN94: 43121.5517 | AO94: 6.97826087 | AP94: 43121.55332 | AQ94: 6.37826087 | AR94: =IF($M94="HW",$K94+AR$6+(AR$5-AR$6)*$R94,$K94+AR$8+(AR$7-AR$8)*$R94) -> 43121.52847 | AS94: 43121.54931 | AT94: 43121.5098 | AU94: 5.022608696 | AV94: 43121.5098 | AW94: 4.822608696 | AX94: 43121.48843 | AY94: 4.607826087 | AZ94: 43121.48495 | BA94: 4.422608696 | BB94: 43121.48148 | BC94: 4.337391304 | BD94: 43121.43951 | BE94: 4.222608696 | BF94: =IF($M94="HW",$K94+BF$6+(BF$5-BF$6)*$R94,$K94+BF$8+(BF$7-BF$8)*$R94) -> 43121.52847 | BH94: 43121.56736 | BI94: 43121.57014 | BK94: 2022-01-22T13:37:00 | BL94: 43121.56736
A95: 0 | B95: =IF(Instructions!$C$2="BST",A95,0) -> 0 | C95: 2022-01-22T19:13:00 | D95: 2022-01-22 | F95: 1 | I95: 6 | K95: 43121.80069 | L95: 1.16 | M95: LW | N95: 0.6564885496 | O95: 19:13:00 | P95: 17:00:00 | Q95: 23:00:00 | R95: 0.6305555556 | S95: 43121.83376 | T95: 1.383969466 | U95: 43121.89973 | V95: 43121.81405 | W95: 1.249618321 | X95: 43121.73403 | Y95: 43121.81383 | Z95: 1.21221374 | AA95: 43121.77714 | AB95: 43121.80598 | AC95: 1.046564885 | AD95: Cls | AE95: 43121.63264 | AF95: 43121.78846 | AG95: 1.01221374 | AH95: 43121.78243 | AI95: 1.11221374 | AJ95: 43121.83157 | AK95: 1.449618321 | AL95: 43121.83157 | AM95: 1.449618321 | AN95: 43121.82243 | AO95: 1.449618321 | AP95: 43121.82719 | AQ95: 1.315267176 | AR95: 43121.79028 | AS95: 43121.81458 | AT95: 43121.79028 | AU95: 1.21221374 | AV95: 43121.79466 | AW95: 1.146564885 | AX95: 43121.78243 | AY95: 1.01221374 | AZ95: 43121.77895 | BA95: 0.9465648855 | BB95: 43121.7742 | BC95: 1.046564885 | BD95: 43121.72906 | BE95: 0.9091603053 | BF95: 43121.825 | BH95: 43121.85903 | BI95: 43121.83194 | BK95: 2022-01-22T20:37:00 | BL95: 43121.85903
A96: 0 | B96: =IF(Instructions!$C$2="BST",A96,0) -> 0 | C96: 2022-01-23T01:24:00 | D96: 2022-01-23 | E96: 2022-01-23 | F96: 1 | G96: Jan | H96: 23 | I96: 7 | J96: Sun | K96: 43122.05833 | L96: 5.1 | M96: HW | N96: 0.5304347826 | O96: 01:24:00 | P96: 00:00:00 | Q96: 06:00:00 | R96: 0.7666666667 | S96: 43122.07326 | T96: 6.848695652 | U96: 43122.13924 | V96: 43122.07593 | W96: 6.595652174 | X96: 43122.00556 | Y96: 43122.0463 | Z96: 5.036521739 | AA96: 43122.03588 | AB96: 43122.0375 | AC96: 4.636521739 | AD96: Opn | AE96: 43121.92292 | AF96: 43122.03461 | AG96: 4.083478261 | AH96: 43122.00949 | AI96: 4.430434783 | AJ96: 43122.07407 | AK96: 6.748695652 | AL96: 43122.07488 | AM96: 6.70173913 | AN96: 43122.0706 | AO96: 6.495652174 | AP96: 43122.07303 | AQ96: 5.895652174 | AR96: 43122.04792 | AS96: 43122.06875 | AT96: 43122.03032 | AU96: 4.636521739 | AV96: 43122.03032 | AW96: 4.436521739 | AX96: 43122.00868 | AY96: 4.189565217 | AZ96: 43122.00521 | BA96: 4.036521739 | BB96: 43122.00174 | BC96: 3.983478261 | BD96: 43121.95787 | BE96: 3.836521739 | BF96: 43122.04792 | BH96: 43122.08889 | BI96: 43122.08958 | BK96: 2022-01-23T02:08:00 | BL96: 43122.08889
A97: 0 | B97: =IF(Instructions!$C$2="BST",A97,0) -> 0 | C97: 2022-01-23T07:21:00 | D97: 2022-01-23 | E97: Sun | F97: 1 | I97: 7 | K97: 43122.30625 | L97: 1.42 | M97: LW | N97: 0.4580152672 | O97: 07:21:00 | P97: 05:00:00 | Q97: 11:00:00 | R97: 0.6083333333 | S97: 43122.339 | T97: 1.721374046 | U97: 43122.40498 | V97: 43122.31999 | W97: 1.567175573 | X97: 43122.25556 | Y97: 43122.31892 | Z97: 1.450381679 | AA97: 43122.28316 | AB97: 43122.31123 | AC97: 1.304580153 | AD97: Cls | AE97: 43122.15208 | AF97: 43122.29433 | AG97: 1.250381679 | AH97: 43122.28814 | AI97: 1.350381679 | AJ97: 43122.33689 | AK97: 1.767175573 | AL97: 43122.33689 | AM97: 1.767175573 | AN97: 43122.32784 | AO97: 1.767175573 | AP97: 43122.33267 | AQ97: 1.612977099 | AR97: 43122.29583 | AS97: 43122.32014 | AT97: 43122.29583 | AU97: 1.450381679 | AV97: 43122.30006 | AW97: 1.404580153 | AX97: 43122.28814 | AY97: 1.250381679 | AZ97: 43122.28466 | BA97: 1.204580153 | BB97: 43122.27983 | BC97: 1.304580153 | BD97: 43122.23469 | BE97: 1.08778626 | BF97: 43122.33056 | BH97: 43122.36389 | BI97: 43122.3375 | BK97: 2022-01-23T08:44:00 | BL97: 43122.36389
A98: 0 | B98: =IF(Instructions!$C$2="BST",A98,0) -> 0 | C98: 2022-01-23T13:34:00 | D98: 2022-01-23 | F98: 1 | I98: 7 | K98: 43122.56528 | L98: 5.38 | M98: HW | N98: 0.7739130435 | O98: 13:34:00 | P98: 12:00:00 | Q98: 18:00:00 | R98: 0.7388888889 | S98: 43122.57992 | T98: 7.23826087 | U98: 43122.64589 | V98: 43122.58248 | W98: 6.960869565 | X98: 43122.50972 | Y98: 43122.55305 | Z98: 5.328695652 | AA98: 43122.54263 | AB98: 43122.54444 | AC98: 4.928695652 | AD98: Opn | AE98: 43122.42986 | AF98: 43122.54203 | AG98: 4.351304348 | AH98: 43122.51682 | AI98: 4.673913043 | AJ98: 43122.58083 | AK98: 7.13826087 | AL98: 43122.58173 | AM98: 7.115652174 | AN98: 43122.57735 | AO98: 6.860869565 | AP98: 43122.58007 | AQ98: 6.260869565 | AR98: 43122.55486 | AS98: 43122.57569 | AT98: 43122.53765 | AU98: 4.928695652 | AV98: 43122.53765 | AW98: 4.728695652 | AX98: 43122.51591 | AY98: 4.506086957 | AZ98: 43122.51244 | BA98: 4.328695652 | BB98: 43122.50897 | BC98: 4.251304348 | BD98: 43122.46443 | BE98: 4.128695652 | BF98: 43122.55486 | BH98: 43122.59306 | BI98: 43122.59653 | BK98: 2022-01-23T14:14:00 | BL98: 43122.59306
A99: 0 | B99: =IF(Instructions!$C$2="BST",A99,0) -> 0 | C99: 2022-01-23T19:55:00 | D99: 2022-01-23 | F99: 1 | I99: 7 | K99: 43122.82986 | L99: 1.24 | M99: LW | N99: 0.5954198473 | O99: 19:55:00 | P99: 17:00:00 | Q99: 23:00:00 | R99: 0.5138888889 | S99: 43122.8613 | T99: 1.48778626 | U99: 43122.92728 | V99: 43122.84524 | W99: 1.347328244 | X99: 43122.75972 | Y99: 43122.84057 | Z99: 1.285496183 | AA99: 43122.80874 | AB99: 43122.83353 | AC99: 1.125954198 | AD99: Cls | AE99: 43122.65903 | AF99: 43122.81925 | AG99: 1.085496183 | AH99: 43122.8124 | AI99: 1.185496183 | AJ99: 43122.85952 | AK99: 1.547328244 | AL99: 43122.85952 | AM99: 1.547328244 | AN99: 43122.85079 | AO99: 1.547328244 | AP99: 43122.85595 | AQ99: 1.406870229 | AR99: 43122.81944 | AS99: 43122.84375 | AT99: 43122.81944 | AU99: 1.285496183 | AV99: 43122.82301 | AW99: 1.225954198 | AX99: 43122.8124 | AY99: 1.085496183 | AZ99: 43122.80893 | BA99: 1.025954198 | BB99: 43122.80377 | BC99: 1.125954198 | BD99: 43122.75863 | BE99: 0.9641221374 | BF99: 43122.85417 | BH99: 43122.88611 | BI99: 43122.86111 | BK99: 2022-01-23T21:16:00 | BL99: 43122.88611
A100: 0 | B100: =IF(Instructions!$C$2="BST",A100,0) -> 0 | C100: 2022-01-24T02:06:00 | D100: 2022-01-24 | E100: 2022-01-24 | F100: 1 | G100: Jan | H100: 24 | I100: 1 | J100: Mon | K100: 43123.0875 | L100: 4.99 | M100: HW | N100: 0.4347826087 | O100: 02:06:00 | P100: 00:00:00 | Q100: 06:00:00 | R100: 0.65 | S100: 43123.10122 | T100: 6.695652174 | U100: 43123.16719 | V100: 43123.10347 | W100: 6.452173913 | X100: 43123.03264 | Y100: 43123.07465 | Z100: 4.92173913 | AA100: 43123.06424 | AB100: 43123.06667 | AC100: 4.52173913 | AD100: Opn | AE100: 43122.95208 | AF100: 43123.0658 | AG100: 3.97826087 | AH100: 43123.04028 | AI100: 4.334782609 | AJ100: 43123.10243 | AK100: 6.595652174 | AL100: 43123.10365 | AM100: 6.539130435 | AN100: 43123.09896 | AO100: 6.352173913 | AP100: 43123.1026 | AQ100: 5.752173913 | AR100: 43123.07708 | AS100: 43123.09792 | AT100: 43123.06111 | AU100: 4.52173913 | AV100: 43123.06111 | AW100: 4.32173913 | AX100: 43123.03906 | AY100: 4.065217391 | AZ100: 43123.03559 | BA100: 3.92173913 | BB100: 43123.03212 | BC100: 3.87826087 | BD100: 43122.98542 | BE100: 3.72173913 | BF100: 43123.07708 | BH100: 43123.11597 | BI100: 43123.11875 | BK100: 2022-01-24T02:47:00 | BL100: 43123.11597
A101: 0 | B101: =IF(Instructions!$C$2="BST",A101,0) -> 0 | C101: 2022-01-24T08:05:00 | D101: 2022-01-24 | E101: Mon | F101: 1 | I101: 1 | K101: 43123.33681 | L101: 1.55 | M101: LW | N101: 0.358778626 | O101: 08:05:00 | P101: 05:00:00 | Q101: 11:00:00 | R101: 0.4861111111 | S101: 43123.36786 | T101: 1.890076336 | U101: 43123.43383 | V101: 43123.35267 | W101: 1.725954198 | X101: 43123.28264 | Y101: 43123.34693 | Z101: 1.569465649 | AA101: 43123.31626 | AB101: 43123.34008 | AC101: 1.433587786 | AD101: Cls | AE101: 43123.18125 | AF101: 43123.32658 | AG101: 1.369465649 | AH101: 43123.31954 | AI101: 1.469465649 | AJ101: 43123.36617 | AK101: 1.925954198 | AL101: 43123.36617 | AM101: 1.925954198 | AN101: 43123.35754 | AO101: 1.925954198 | AP101: 43123.3628 | AQ101: 1.761832061 | AR101: 43123.32639 | AS101: 43123.35069 | AT101: 43123.32639 | AU101: 1.569465649 | AV101: 43123.32976 | AW101: 1.533587786 | AX101: 43123.31954 | AY101: 1.369465649 | AZ101: 43123.31607 | BA101: 1.333587786 | BB101: 43123.31081 | BC101: 1.433587786 | BD101: 43123.26567 | BE101: 1.177099237 | BF101: 43123.36111 | BH101: 43123.39167 | BI101: 43123.36806 | BK101: 2022-01-24T09:24:00 | BL101: 43123.39167
A102: 0 | B102: =IF(Instructions!$C$2="BST",A102,0) -> 0 | C102: 2022-01-24T14:18:00 | D102: 2022-01-24 | F102: 1 | I102: 1 | K102: 43123.59583 | L102: 5.25 | M102: HW | N102: 0.6608695652 | O102: 14:18:00 | P102: 12:00:00 | Q102: 18:00:00 | R102: 0.6166666667 | S102: 43123.6092 | T102: 7.057391304 | U102: 43123.67517 | V102: 43123.61134 | W102: 6.791304348 | X102: 43123.53958 | Y102: 43123.58275 | Z102: 5.193043478 | AA102: 43123.57234 | AB102: 43123.575 | AC102: 4.793043478 | AD102: Opn | AE102: 43123.46042 | AF102: 43123.57471 | AG102: 4.226956522 | AH102: 43123.54907 | AI102: 4.560869565 | AJ102: 43123.61053 | AK102: 6.957391304 | AL102: 43123.61186 | AM102: 6.923478261 | AN102: 43123.60706 | AO102: 6.691304348 | AP102: 43123.61105 | AQ102: 6.091304348 | AR102: 43123.58542 | AS102: 43123.60625 | AT102: 43123.56991 | AU102: 4.793043478 | AV102: 43123.56991 | AW102: 4.593043478 | AX102: 43123.54774 | AY102: 4.359130435 | AZ102: 43123.54427 | BA102: 4.193043478 | BB102: 43123.5408 | BC102: 4.126956522 | BD102: 43123.49329 | BE102: 3.993043478 | BF102: 43123.58542 | BH102: 43123.62292 | BI102: 43123.62708 | BK102: 2022-01-24T14:57:00 | BL102: 43123.62292
A103: 0 | B103: =IF(Instructions!$C$2="BST",A103,0) -> 0 | C103: 2022-01-24T20:43:00 | D103: 2022-01-24 | F103: 1 | I103: 1 | K103: 43123.86319 | L103: 1.38 | M103: LW | N103: 0.4885496183 | O103: 20:43:00 | P103: 17:00:00 | Q103: 23:00:00 | R103: 0.3805555556 | S103: 43123.89279 | T103: 1.669465649 | U103: 43123.95876 | V103: 43123.88089 | W103: 1.518320611 | X103: 43123.78958 | Y103: 43123.87112 | Z103: 1.413740458 | AA103: 43123.84485 | AB103: 43123.86501 | AC103: 1.264885496 | AD103: Cls | AE103: 43123.68958 | AF103: 43123.85444 | AG103: 1.213740458 | AH103: 43123.84666 | AI103: 1.313740458 | AJ103: 43123.89146 | AK103: 1.718320611 | AL103: 43123.89146 | AM103: 1.718320611 | AN103: 43123.8832 | AO103: 1.718320611 | AP103: 43123.88882 | AQ103: 1.567175573 | AR103: 43123.85278 | AS103: 43123.87708 | AT103: 43123.85278 | AU103: 1.413740458 | AV103: 43123.85542 | AW103: 1.364885496 | AX103: 43123.84666 | AY103: 1.213740458 | AZ103: 43123.84319 | BA103: 1.164885496 | BB103: 43123.83757 | BC103: 1.264885496 | BD103: 43123.79243 | BE103: 1.060305344 | BF103: 43123.8875 | BH103: 43123.91667 | BI103: 43123.89444 | BK103: 2022-01-24T22:00:00 | BL103: 43123.91667
A104: 0 | B104: =IF(Instructions!$C$2="BST",A104,0) -> 0 | C104: 2022-01-25T02:55:00 | D104: 2022-01-25 | E104: 2022-01-25 | F104: 1 | G104: Jan | H104: 25 | I104: 2 | J104: Tue | K104: 43124.12153 | L104: 4.85 | M104: HW | N104: 0.3130434783 | O104: 02:55:00 | P104: 00:00:00 | Q104: 06:00:00 | R104: 0.5138888889 | S104: 43124.13383 | T104: 6.500869565 | U104: 43124.1998 | V104: 43124.13561 | W104: 6.269565217 | X104: 43124.06528 | Y104: 43124.10774 | Z104: 4.775652174 | AA104: 43124.09732 | AB104: 43124.10069 | AC104: 4.375652174 | AD104: Opn | AE104: 43123.98611 | AF104: 43124.10219 | AG104: 3.844347826 | AH104: 43124.0762 | AI104: 4.213043478 | AJ104: 43124.13551 | AK104: 6.400869565 | AL104: 43124.1372 | AM104: 6.332173913 | AN104: 43124.13204 | AO104: 6.169565217 | AP104: 43124.1371 | AQ104: 5.569565217 | AR104: 43124.11111 | AS104: 43124.13194 | AT104: 43124.09703 | AU104: 4.375652174 | AV104: 43124.09703 | AW104: 4.175652174 | AX104: 43124.07451 | AY104: 3.906956522 | AZ104: 43124.07104 | BA104: 3.775652174 | BB104: 43124.06756 | BC104: 3.744347826 | BD104: 43124.01755 | BE104: 3.575652174 | BF104: 43124.11111 | BH104: 43124.14861 | BI104: 43124.15278 | BK104: 2022-01-25T03:34:00 | BL104: 43124.14861
A105: 0 | B105: =IF(Instructions!$C$2="BST",A105,0) -> 0 | C105: 2022-01-25T08:56:00 | D105: 2022-01-25 | E105: Tue | F105: 1 | I105: 2 | K105: 43124.37222 | L105: 1.71 | M105: LW | N105: 0.2366412214 | O105: 08:56:00 | P105: 05:00:00 | Q105: 11:00:00 | R105: 0.3444444445 | S105: 43124.40131 | T105: 2.097709924 | U105: 43124.46728 | V105: 43124.39055 | W105: 1.921374046 | X105: 43124.31528 | Y105: 43124.3794 | Z105: 1.716030534 | AA105: 43124.35463 | AB105: 43124.37353 | AC105: 1.592366412 | AD105: Cls | AE105: 43124.21528 | AF105: 43124.36397 | AG105: 1.516030534 | AH105: 43124.35594 | AI105: 1.616030534 | AJ105: 43124.40012 | AK105: 2.121374046 | AL105: 43124.40012 | AM105: 2.121374046 | AN105: 43124.39198 | AO105: 2.121374046 | AP105: 43124.39772 | AQ105: 1.945038168 | AR105: 43124.36181 | AS105: 43124.38611 | AT105: 43124.36181 | AU105: 1.716030534 | AV105: 43124.3642 | AW105: 1.692366412 | AX105: 43124.35594 | AY105: 1.516030534 | AZ105: 43124.35247 | BA105: 1.492366412 | BB105: 43124.34672 | BC105: 1.592366412 | BD105: 43124.30158 | BE105: 1.287022901 | BF105: 43124.39653 | BH105: 43124.42431 | BI105: 43124.40347 | BK105: 2022-01-25T10:11:00 | BL105: 43124.42431
A106: 0 | B106: =IF(Instructions!$C$2="BST",A106,0) -> 0 | C106: 2022-01-25T15:10:00 | D106: 2022-01-25 | F106: 1 | I106: 2 | K106: 43124.63194 | L106: 5.08 | M106: HW | N106: 0.5130434783 | O106: 15:10:00 | P106: 12:00:00 | Q106: 18:00:00 | R106: 0.4722222222 | S106: 43124.64381 | T106: 6.820869565 | U106: 43124.70978 | V106: 43124.64545 | W106: 6.569565217 | X106: 43124.57569 | Y106: 43124.61786 | Z106: 5.015652174 | AA106: 43124.60745 | AB106: 43124.61111 | AC106: 4.615652174 | AD106: Opn | AE106: 43124.49653 | AF106: 43124.61333 | AG106: 4.064347826 | AH106: 43124.58719 | AI106: 4.413043478 | AJ106: 43124.64564 | AK106: 6.720869565 | AL106: 43124.64747 | AM106: 6.672173913 | AN106: 43124.64217 | AO106: 6.469565217 | AP106: 43124.64767 | AQ106: 5.869565217 | AR106: 43124.62153 | AS106: 43124.64236 | AT106: 43124.60802 | AU106: 4.615652174 | AV106: 43124.60802 | AW106: 4.415652174 | AX106: 43124.58536 | AY106: 4.166956522 | AZ106: 43124.58189 | BA106: 4.015652174 | BB106: 43124.57841 | BC106: 3.964347826 | BD106: 43124.52739 | BE106: 3.815652174 | BF106: 43124.62153 | BH106: 43124.65903 | BI106: 43124.66319 | BK106: 2022-01-25T15:49:00 | BL106: 43124.65903
A107: 0 | B107: =IF(Instructions!$C$2="BST",A107,0) -> 0 | C107: 2022-01-25T21:39:00 | D107: 2022-01-25 | F107: 1 | I107: 2 | K107: 43124.90208 | L107: 1.56 | M107: LW | N107: 0.3511450382 | O107: 21:39:00 | P107: 17:00:00 | Q107: 23:00:00 | R107: 0.225 | S107: 43124.92951 | T107: 1.903053435 | U107: 43124.99549 | V107: 43124.92248 | W107: 1.738167939 | X107: 43124.82569 | Y107: 43124.90677 | Z107: 1.578625954 | AA107: 43124.88698 | AB107: 43124.90174 | AC107: 1.44351145 | AD107: Cls | AE107: 43124.72569 | AF107: 43124.89549 | AG107: 1.378625954 | AH107: 43124.88663 | AI107: 1.478625954 | AJ107: 43124.92873 | AK107: 1.938167939 | AL107: 43124.92873 | AM107: 1.938167939 | AN107: 43124.92101 | AO107: 1.938167939 | AP107: 43124.92717 | AQ107: 1.773282443 | AR107: 43124.89167 | AS107: 43124.91597 | AT107: 43124.89167 | AU107: 1.578625954 | AV107: 43124.89323 | AW107: 1.54351145 | AX107: 43124.88663 | AY107: 1.378625954 | AZ107: 43124.88316 | BA107: 1.34351145 | BB107: 43124.877 | BC107: 1.44351145 | BD107: 43124.83186 | BE107: 1.183969466 | BF107: 43124.92639 | BH107: 43124.95278 | BI107: 43124.93333 | BK107: 2022-01-25T22:52:00 | BL107: 43124.95278
A108: 0 | B108: =IF(Instructions!$C$2="BST",A108,0) -> 0 | C108: 2022-01-26T03:53:00 | D108: 2022-01-26 | E108: 2022-01-26 | F108: 1 | G108: Jan | H108: 26 | I108: 3 | J108: Wed | K108: 43125.16181 | L108: 4.72 | M108: HW | N108: 0.2 | O108: 03:53:00 | P108: 00:00:00 | Q108: 06:00:00 | R108: 0.3527777778 | S108: 43125.17242 | T108: 6.32 | U108: 43125.2384 | V108: 43125.17365 | W108: 6.1 | X108: 43125.10417 | Y108: 43125.14689 | Z108: 4.64 | AA108: 43125.13648 | AB108: 43125.14097 | AC108: 4.24 | AD108: Opn | AE108: 43125.02639 | AF108: 43125.14526 | AG108: 3.72 | AH108: 43125.11871 | AI108: 4.1 | AJ108: 43125.17467 | AK108: 6.22 | AL108: 43125.17692 | AM108: 6.14 | AN108: 43125.1712 | AO108: 6 | AP108: 43125.17794 | AQ108: 5.4 | AR108: 43125.15139 | AS108: 43125.17222 | AT108: 43125.13954 | AU108: 4.24 | AV108: 43125.13954 | AW108: 4.04 | AX108: 43125.11646 | AY108: 3.76 | AZ108: 43125.11299 | BA108: 3.64 | BB108: 43125.10952 | BC108: 3.62 | BD108: 43125.05559 | BE108: 3.44 | BF108: 43125.15139 | BH108: 43125.1875 | BI108: 43125.19306 | BK108: 2022-01-26T04:30:00 | BL108: 43125.1875
A109: 0 | B109: =IF(Instructions!$C$2="BST",A109,0) -> 0 | C109: 2022-01-26T09:58:00 | D109: 2022-01-26 | E109: Wed | F109: 1 | I109: 3 | K109: 43125.41528 | L109: 1.87 | M109: LW | N109: 0.1145038168 | O109: 09:58:00 | P109: 05:00:00 | Q109: 11:00:00 | R109: 0.1722222222 | S109: 43125.44198 | T109: 2.305343511 | U109: 43125.50795 | V109: 43125.43659 | W109: 2.116793893 | X109: 43125.35417 | Y109: 43125.41887 | Z109: 1.86259542 | AA109: 43125.40127 | AB109: 43125.4142 | AC109: 1.751145038 | AD109: Cls | AE109: 43125.25556 | AF109: 43125.40941 | AG109: 1.66259542 | AH109: 43125.40019 | AI109: 1.76259542 | AJ109: 43125.44138 | AK109: 2.316793893 | AL109: 43125.44138 | AM109: 2.316793893 | AN109: 43125.43383 | AO109: 2.316793893 | AP109: 43125.44018 | AQ109: 2.128244275 | AR109: 43125.40486 | AS109: 43125.42917 | AT109: 43125.40486 | AU109: 1.86259542 | AV109: 43125.40606 | AW109: 1.851145038 | AX109: 43125.40019 | AY109: 1.66259542 | AZ109: 43125.39672 | BA109: 1.651145038 | BB109: 43125.39037 | BC109: 1.751145038 | BD109: 43125.34524 | BE109: 1.396946565 | BF109: 43125.43958 | BH109: 43125.46458 | BI109: 43125.44653 | BK109: 2022-01-26T11:09:00 | BL109: 43125.46458
A110: 0 | B110: =IF(Instructions!$C$2="BST",A110,0) -> 0 | C110: 2022-01-26T16:14:00 | D110: 2022-01-26 | F110: 1 | I110: 3 | K110: 43125.67639 | L110: 4.9 | M110: HW | N110: 0.3565217391 | O110: 16:14:00 | P110: 12:00:00 | Q110: 18:00:00 | R110: 0.2944444444 | S110: =IF($M110="HW",$K110+S$6+(S$5-S$6)*$R110,$K110+S$8+(S$7-S$8)*$R110) -> 43125.6864 | T110: 6.570434783 | U110: 43125.75237 | V110: 43125.68742 | W110: 6.334782609 | X110: 43125.61875 | Y110: =IF($M110="HW",$K110+Y$6+(Y$5-Y$6)*$R110,$K110+Y$8+(Y$7-Y$8)*$R110) -> 43125.66107 | Z110: 4.827826087 | AA110: 43125.65066 | AB110: 43125.65556 | AC110: 4.427826087 | AD110: Opn | AE110: 43125.54097 | AF110: 43125.66086 | AG110: 3.892173913 | AH110: 43125.6341 | AI110: 4.256521739 | AJ110: 43125.68885 | AK110: 6.470434783 | AL110: 43125.6913 | AM110: 6.406086957 | AN110: 43125.68538 | AO110: 6.234782609 | AP110: 43125.69273 | AQ110: 5.634782609 | AR110: =IF($M110="HW",$K110+AR$6+(AR$5-AR$6)*$R110,$K110+AR$8+(AR$7-AR$8)*$R110) -> 43125.66597 | AS110: 43125.68681 | AT110: 43125.65494 | AU110: 4.427826087 | AV110: 43125.65494 | AW110: 4.227826087 | AX110: 43125.63166 | AY110: 3.963478261 | AZ110: 43125.62818 | BA110: 3.827826087 | BB110: 43125.62471 | BC110: 3.792173913 | BD110: 43125.56937 | BE110: 3.627826087 | BF110: =IF($M110="HW",$K110+BF$6+(BF$5-BF$6)*$R110,$K110+BF$8+(BF$7-BF$8)*$R110) -> 43125.66597 | BH110: 43125.70208 | BI110: 43125.70764 | BK110: 2022-01-26T16:51:00 | BL110: 43125.70208
A111: 0 | B111: =IF(Instructions!$C$2="BST",A111,0) -> 0 | C111: 2022-01-26T22:47:00 | D111: 2022-01-26 | F111: 1 | I111: 3 | K111: 43125.94931 | L111: 1.71 | M111: LW | N111: 0.2366412214 | O111: 22:47:00 | P111: 17:00:00 | Q111: 23:00:00 | R111: 0.0361111111 | S111: 43125.97411 | T111: 2.097709924 | U111: 43126.04008 | V111: 43125.97298 | W111: 1.921374046 | X111: 43125.86875 | Y111: 43125.95006 | Z111: 1.716030534 | AA111: 43125.93814 | AB111: 43125.94633 | AC111: 1.592366412 | AD111: Cls | AE111: 43125.77014 | AF111: 43125.94533 | AG111: 1.516030534 | AH111: 43125.93517 | AI111: 1.616030534 | AJ111: 43125.97399 | AK111: 2.121374046 | AL111: 43125.97399 | AM111: 2.121374046 | AN111: 43125.96692 | AO111: 2.121374046 | AP111: 43125.97374 | AQ111: 1.945038168 | AR111: 43125.93889 | AS111: 43125.96319 | AT111: 43125.93889 | AU111: 1.716030534 | AV111: 43125.93914 | AW111: 1.692366412 | AX111: 43125.93517 | AY111: 1.516030534 | AZ111: 43125.93169 | BA111: 1.492366412 | BB111: 43125.92487 | BC111: 1.592366412 | BD111: 43125.87974 | BE111: 1.287022901 | BF111: 43125.97361 | BH111: 43125.99722 | BI111: 43125.98056 | BK111: 2022-01-26T23:56:00 | BL111: 43125.99722
A112: 0 | B112: =IF(Instructions!$C$2="BST",A112,0) -> 0 | C112: 2022-01-27T05:03:00 | D112: 2022-01-27 | E112: 2022-01-27 | F112: 1 | G112: Jan | H112: 27 | I112: 4 | J112: Thu | K112: 43126.21042 | L112: 4.65 | M112: HW | N112: 0.1391304348 | O112: 05:03:00 | P112: 00:00:00 | Q112: 06:00:00 | R112: 0.1583333333 | S112: 43126.21901 | T112: 6.222608696 | U112: 43126.28498 | V112: 43126.21956 | W112: 6.008695652 | X112: 43126.15069 | Y112: 43126.19416 | Z112: 4.566956522 | AA112: 43126.18374 | AB112: 43126.18958 | AC112: 4.166956522 | AD112: Opn | AE112: 43126.075 | AF112: 43126.19725 | AG112: 3.653043478 | AH112: 43126.17002 | AI112: 4.039130435 | AJ112: 43126.22193 | AK112: 6.122608696 | AL112: 43126.22486 | AM112: 6.036521739 | AN112: 43126.21846 | AO112: 5.908695652 | AP112: 43126.22723 | AQ112: 5.308695652 | AR112: 43126.2 | AS112: 43126.22083 | AT112: 43126.19086 | AU112: 4.166956522 | AV112: 43126.19086 | AW112: 3.966956522 | AX112: 43126.1671 | AY112: 3.680869565 | AZ112: 43126.16363 | BA112: 3.566956522 | BB112: 43126.16016 | BC112: 3.553043478 | BD112: 43126.1015 | BE112: 3.366956522 | BF112: 43126.2 | BH112: 43126.23403 | BI112: 43126.24167 | BK112: 2022-01-27T05:37:00 | BL112: 43126.23403
A113: 0 | B113: =IF(Instructions!$C$2="BST",A113,0) -> 0 | C113: 2022-01-27T11:13:00 | D113: 2022-01-27 | E113: Thu | F113: 1 | I113: 4 | K113: 43126.46736 | L113: 1.94 | M113: LW | N113: 0.06106870229 | O113: 11:13:00 | P113: 17:00:00 | Q113: 11:00:00 | R113: 0.03611111112 | S113: 43126.49217 | T113: 2.396183206 | U113: 43126.55814 | V113: 43126.49104 | W113: 2.202290076 | X113: 43126.40069 | Y113: 43126.46811 | Z113: 1.926717557 | AA113: 43126.45619 | AB113: 43126.46439 | AC113: 1.820610687 | AD113: Cls | AE113: 43126.30417 | AF113: 43126.46339 | AG113: 1.726717557 | AH113: 43126.45322 | AI113: 1.826717557 | AJ113: 43126.49204 | AK113: 2.402290076 | AL113: 43126.49204 | AM113: 2.402290076 | AN113: 43126.48497 | AO113: 2.402290076 | AP113: 43126.49179 | AQ113: 2.208396947 | AR113: 43126.45694 | AS113: 43126.48125 | AT113: 43126.45694 | AU113: 1.926717557 | AV113: 43126.4572 | AW113: 1.920610687 | AX113: 43126.45322 | AY113: 1.726717557 | AZ113: 43126.44975 | BA113: 1.720610687 | BB113: 43126.44293 | BC113: 1.820610687 | BD113: 43126.39779 | BE113: 1.445038168 | BF113: 43126.49167 | BH113: 43126.51389 | BI113: 43126.49861 | BK113: 2022-01-27T12:20:00 | BL113: 43126.51389
A114: 0 | B114: =IF(Instructions!$C$2="BST",A114,0) -> 0 | C114: 2022-01-27T17:33:00 | D114: 2022-01-27 | F114: 1 | I114: 4 | K114: 43126.73125 | L114: 4.8 | M114: HW | N114: 0.2695652174 | O114: 17:33:00 | P114: 12:00:00 | Q114: 18:00:00 | R114: 0.07500000001 | S114: 43126.73898 | T114: 6.431304348 | U114: 43126.80495 | V114: 43126.73924 | W114: 6.204347826 | X114: 43126.67083 | Y114: 43126.71441 | Z114: 4.723478261 | AA114: 43126.70399 | AB114: 43126.71042 | AC114: 4.323478261 | AD114: Opn | AE114: 43126.59583 | AF114: 43126.71953 | AG114: 3.796521739 | AH114: 43126.69201 | AI114: 4.169565217 | AJ114: 43126.74219 | AK114: 6.331304348 | AL114: 43126.7454 | AM114: 6.25826087 | AN114: 43126.73872 | AO114: 6.104347826 | AP114: 43126.74835 | AQ114: 5.504347826 | AR114: 43126.72083 | AS114: 43126.74167 | AT114: 43126.71285 | AU114: 4.323478261 | AV114: 43126.71285 | AW114: 4.123478261 | AX114: 43126.6888 | AY114: 3.850434783 | AZ114: 43126.68533 | BA114: 3.723478261 | BB114: 43126.68186 | BC114: 3.696521739 | BD114: 43126.62118 | BE114: 3.523478261 | BF114: 43126.72083 | BH114: 43126.75417 | BI114: 43126.7625 | BK114: 2022-01-27T18:06:00 | BL114: 43126.75417
A115: 0 | B115: =IF(Instructions!$C$2="BST",A115,0) -> 0 | C115: 2022-01-28T00:03:00 | D115: 2022-01-28 | E115: 2022-01-28 | F115: 1 | G115: Jan | H115: 28 | I115: 5 | J115: Fri | K115: 43127.00208 | L115: 1.74 | M115: LW | N115: 0.213740458 | O115: 00:03:00 | P115: 05:00:00 | Q115: -0.04166666667 | R115: 0.175 | S115: 43127.02882 | T115: 2.136641221 | U115: 43127.09479 | V115: 43127.02335 | W115: 1.958015267 | X115: 43126.92083 | Y115: 43127.00573 | Z115: 1.74351145 | AA115: 43126.98802 | AB115: 43127.00104 | AC115: 1.622137405 | AD115: Cls | AE115: 43126.825 | AF115: 43126.99618 | AG115: 1.54351145 | AH115: 43126.98698 | AI115: 1.64351145 | AJ115: 43127.02821 | AK115: 2.158015267 | AL115: 43127.02821 | AM115: 2.158015267 | AN115: 43127.02066 | AO115: 2.158015267 | AP115: 43127.027 | AQ115: 1.979389313 | AR115: 43126.99167 | AS115: 43127.01597 | AT115: 43126.99167 | AU115: 1.74351145 | AV115: 43126.99288 | AW115: 1.722137405 | AX115: 43126.98698 | AY115: 1.54351145 | AZ115: 43126.98351 | BA115: 1.522137405 | BB115: 43126.97717 | BC115: 1.622137405 | BD115: 43126.93203 | BE115: 1.307633588 | BF115: 43127.02639 | BH115: 43127.04931 | BI115: 43127.03333 | BK115: 2022-01-28T01:11:00 | BL115: 43127.04931
A116: 0 | B116: =IF(Instructions!$C$2="BST",A116,0) -> 0 | C116: 2022-01-28T06:23:00 | D116: 2022-01-28 | E116: Fri | F116: 1 | I116: 5 | K116: 43127.26597 | L116: 4.72 | M116: HW | N116: 0.2 | O116: 06:23:00 | P116: 12:00:00 | Q116: 06:00:00 | R116: 0.06388888889 | S116: 43127.27358 | T116: 6.32 | U116: 43127.33955 | V116: 43127.2738 | W116: 6.1 | X116: 43127.20556 | Y116: 43127.24905 | Z116: 4.64 | AA116: 43127.23864 | AB116: 43127.24514 | AC116: 4.24 | AD116: Opn | AE116: 43127.13056 | AF116: 43127.25445 | AG116: 3.72 | AH116: 43127.22689 | AI116: 4.1 | AJ116: 43127.27683 | AK116: 6.22 | AL116: 43127.28008 | AM116: 6.14 | AN116: 43127.27336 | AO116: 6 | AP116: 43127.28311 | AQ116: 5.4 | AR116: 43127.25556 | AS116: 43127.27639 | AT116: 43127.24772 | AU116: 4.24 | AV116: 43127.24772 | AW116: 4.04 | AX116: 43127.22364 | AY116: 3.76 | AZ116: 43127.22017 | BA116: 3.64 | BB116: 43127.2167 | BC116: 3.62 | BD116: 43127.15575 | BE116: 3.44 | BF116: 43127.25556 | BH116: 43127.28889 | BI116: 43127.29722 | BK116: 2022-01-28T06:56:00 | BL116: 43127.28889
A117: 0 | B117: =IF(Instructions!$C$2="BST",A117,0) -> 0 | C117: 2022-01-28T12:33:00 | D117: 2022-01-28 | F117: 1 | I117: 5 | K117: 43127.52292 | L117: 1.84 | M117: LW | N117: 0.1374045802 | O117: 12:33:00 | P117: 17:00:00 | Q117: 11:00:00 | R117: 0.2583333333 | S117: 43127.55081 | T117: 2.266412214 | U117: 43127.61678 | V117: 43127.54274 | W117: 2.080152672 | X117: 43127.45556 | Y117: 43127.5283 | Z117: 1.835114504 | AA117: 43127.50712 | AB117: 43127.52303 | AC117: 1.721374046 | AD117: Cls | AE117: 43127.35972 | AF117: 43127.51586 | AG117: 1.635114504 | AH117: 43127.50723 | AI117: 1.735114504 | AJ117: 43127.54991 | AK117: 2.280152672 | AL117: 43127.54991 | AM117: 2.280152672 | AN117: 43127.54207 | AO117: 2.280152672 | AP117: 43127.54812 | AQ117: 2.09389313 | AR117: 43127.5125 | AS117: 43127.53681 | AT117: 43127.5125 | AU117: 1.835114504 | AV117: 43127.51429 | AW117: 1.821374046 | AX117: 43127.50723 | AY117: 1.635114504 | AZ117: 43127.50376 | BA117: 1.621374046 | BB117: 43127.49771 | BC117: 1.721374046 | BD117: 43127.45258 | BE117: 1.376335878 | BF117: 43127.54722 | BH117: 43127.57292 | BI117: 43127.55417 | BK117: 2022-01-28T13:45:00 | BL117: 43127.57292
A118: 0 | B118: =IF(Instructions!$C$2="BST",A118,0) -> 0 | C118: 2022-01-28T18:58:00 | D118: 2022-01-28 | F118: 1 | I118: 5 | K118: 43127.79028 | L118: 4.87 | M118: HW | N118: 0.3304347826 | O118: 18:58:00 | P118: 1 | Q118: 18:00:00 | R118: 0.1611111111 | S118: 43127.7989 | T118: 6.528695652 | U118: 43127.86487 | V118: 43127.79946 | W118: 6.295652174 | X118: 43127.73125 | Y118: 43127.77404 | Z118: 4.796521739 | AA118: 43127.76362 | AB118: 43127.76944 | AC118: 4.396521739 | AD118: Opn | AE118: 43127.65486 | AF118: 43127.77706 | AG118: 3.863478261 | AH118: 43127.74985 | AI118: 4.230434783 | AJ118: 43127.80181 | AK118: 6.428695652 | AL118: 43127.80473 | AM118: 6.36173913 | AN118: 43127.79834 | AO118: 6.195652174 | AP118: 43127.80708 | AQ118: 5.595652174 | AR118: 43127.77986 | AS118: 43127.80069 | AT118: 43127.77068 | AU118: 4.396521739 | AV118: 43127.77068 | AW118: 4.196521739 | AX118: 43127.74693 | AY118: 3.929565217 | AZ118: 43127.74346 | BA118: 3.796521739 | BB118: 43127.73999 | BC118: 3.763478261 | BD118: 43127.6814 | BE118: 3.596521739 | BF118: 43127.77986 | BH118: 43127.81458 | BI118: 43127.82153 | BK118: 2022-01-28T19:33:00 | BL118: 43127.81458
A119: 0 | B119: =IF(Instructions!$C$2="BST",A119,0) -> 0 | C119: 2022-01-29T01:16:00 | D119: 2022-01-29 | E119: 2022-01-29 | F119: 1 | G119: Jan | H119: 29 | I119: 6 | J119: Sat | K119: 43128.05278 | L119: 1.61 | M119: LW | N119: 0.3129770992 | O119: 01:16:00 | P119: 05:00:00 | Q119: -0.04166666667 | R119: 0.3777777778 | S119: 43128.08233 | T119: 1.967938931 | U119: 43128.1483 | V119: 43128.07052 | W119: 1.799236641 | X119: 43127.98125 | Y119: 43128.06065 | Z119: 1.624427481 | AA119: 43128.03449 | AB119: 43128.05455 | AC119: 1.493129771 | AD119: Cls | AE119: 43127.88403 | AF119: 43128.04406 | AG119: 1.424427481 | AH119: 43128.03627 | AI119: 1.524427481 | AJ119: 43128.08102 | AK119: 1.999236641 | AL119: 43128.08102 | AM119: 1.999236641 | AN119: 43128.07276 | AO119: 1.999236641 | AP119: 43128.0784 | AQ119: 1.830534351 | AR119: 43128.04236 | AS119: 43128.06667 | AT119: 43128.04236 | AU119: 1.624427481 | AV119: 43128.04498 | AW119: 1.593129771 | AX119: 43128.03627 | AY119: 1.424427481 | AZ119: 43128.03279 | BA119: 1.393129771 | BB119: 43128.02716 | BC119: 1.493129771 | BD119: 43127.98202 | BE119: 1.218320611 | BF119: 43128.07708 | BH119: 43128.10625 | BI119: 43128.08403 | BK119: 2022-01-29T02:33:00 | BL119: 43128.10625
A120: 0 | B120: =IF(Instructions!$C$2="BST",A120,0) -> 0 | C120: 2022-01-29T07:37:00 | D120: 2022-01-29 | E120: Sat | F120: 1 | I120: 6 | K120: 43128.31736 | L120: 4.96 | M120: HW | N120: 0.4086956522 | O120: 07:37:00 | P120: 12:00:00 | Q120: 06:00:00 | R120: 0.2694444444 | S120: 43128.32711 | T120: 6.653913043 | U120: 43128.39308 | V120: 43128.32805 | W120: 6.413043478 | X120: 43128.26111 | Y120: 43128.30187 | Z120: 4.890434783 | AA120: 43128.29145 | AB120: 43128.29653 | AC120: 4.490434783 | AD120: Opn | AE120: 43128.18194 | AF120: 43128.30227 | AG120: 3.949565217 | AH120: 43128.27542 | AI120: 4.308695652 | AJ120: 43128.32965 | AK120: 6.553913043 | AL120: 43128.33219 | AM120: 6.494782609 | AN120: 43128.32618 | AO120: 6.313043478 | AP120: 43128.33379 | AQ120: 5.713043478 | AR120: 43128.30694 | AS120: 43128.32778 | AT120: 43128.29626 | AU120: 4.490434783 | AV120: 43128.29626 | AW120: 4.290434783 | AX120: 43128.27289 | AY120: 4.031304348 | AZ120: 43128.26942 | BA120: 3.890434783 | BB120: 43128.26594 | BC120: 3.849565217 | BD120: 43128.20999 | BE120: 3.690434783 | BF120: 43128.30694 | BH120: 43128.34444 | BI120: 43128.34861 | BK120: 2022-01-29T08:16:00 | BL120: 43128.34444
A121: 0 | B121: =IF(Instructions!$C$2="BST",A121,0) -> 0 | C121: 2022-01-29T13:45:00 | D121: 2022-01-29 | F121: 1 | I121: 6 | K121: 43128.57292 | L121: 1.56 | M121: LW | N121: 0.3511450382 | O121: 13:45:00 | P121: 17:00:00 | Q121: 11:00:00 | R121: 0.4583333333 | S121: 43128.60359 | T121: 1.903053435 | U121: 43128.66956 | V121: 43128.58927 | W121: 1.738167939 | X121: 43128.51111 | Y121: 43128.58247 | Z121: 1.578625954 | AA121: 43128.55295 | AB121: 43128.57581 | AC121: 1.44351145 | AD121: Cls | AE121: 43128.41111 | AF121: 43128.56308 | AG121: 1.378625954 | AH121: 43128.55584 | AI121: 1.478625954 | AJ121: 43128.602 | AK121: 1.938167939 | AL121: 43128.602 | AM121: 1.938167939 | AN121: 43128.59346 | AO121: 1.938167939 | AP121: 43128.59881 | AQ121: 1.773282443 | AR121: 43128.5625 | AS121: 43128.58681 | AT121: 43128.5625 | AU121: 1.578625954 | AV121: 43128.56568 | AW121: 1.54351145 | AX121: 43128.55584 | AY121: 1.378625954 | AZ121: 43128.55237 | BA121: 1.34351145 | BB121: 43128.54702 | BC121: 1.44351145 | BD121: 43128.50188 | BE121: 1.183969466 | BF121: 43128.59722 | BH121: 43128.63056 | BI121: 43128.60417 | BK121: 2022-01-29T15:08:00 | BL121: 43128.63056
A122: 0 | B122: =IF(Instructions!$C$2="BST",A122,0) -> 0 | C122: 2022-01-29T20:10:00 | D122: 2022-01-29 | F122: 1 | I122: 6 | K122: 43128.84028 | L122: 5.08 | M122: HW | N122: 0.5130434783 | O122: 20:10:00 | P122: 1 | Q122: 18:00:00 | R122: 0.3611111111 | S122: 43128.85098 | T122: 6.820869565 | U122: 43128.91696 | V122: 43128.85224 | W122: 6.569565217 | X122: 43128.78611 | Y122: 43128.82542 | Z122: 5.015652174 | AA122: 43128.81501 | AB122: 43128.81944 | AC122: 4.615652174 | AD122: Opn | AE122: 43128.70486 | AF122: 43128.82359 | AG122: 4.064347826 | AH122: 43128.79707 | AI122: 4.413043478 | AJ122: 43128.8532 | AK122: 6.720869565 | AL122: 43128.85542 | AM122: 6.672173913 | AN122: 43128.84973 | AO122: 6.469565217 | AP122: 43128.85639 | AQ122: 5.869565217 | AR122: 43128.82986 | AS122: 43128.85069 | AT122: 43128.8179 | AU122: 4.615652174 | AV122: 43128.8179 | AW122: 4.415652174 | AX122: 43128.79485 | AY122: 4.166956522 | AZ122: 43128.79138 | BA122: 4.015652174 | BB122: 43128.78791 | BC122: 3.964347826 | BD122: 43128.73418 | BE122: 3.815652174 | BF122: 43128.82986 | BH122: 43128.86944 | BI122: 43128.87153 | BK122: 2022-01-29T20:52:00 | BL122: 43128.86944
A123: 0 | B123: =IF(Instructions!$C$2="BST",A123,0) -> 0 | C123: 2022-01-30T02:18:00 | D123: 2022-01-30 | E123: 2022-01-30 | F123: 1 | G123: Jan | H123: 30 | I123: 7 | J123: Sun | K123: 43129.09583 | L123: 1.38 | M123: LW | N123: 0.4885496183 | O123: 02:18:00 | P123: 05:00:00 | Q123: -0.04166666667 | R123: 0.55 | S123: 43129.12778 | T123: 1.669465649 | U123: 43129.19375 | V123: 43129.11059 | W123: 1.518320611 | X123: 43129.03611 | Y123: 43129.10729 | Z123: 1.413740458 | AA123: 43129.07396 | AB123: 43129.1 | AC123: 1.264885496 | AD123: Cls | AE123: 43128.93403 | AF123: 43129.08472 | AG123: 1.213740458 | AH123: 43129.07812 | AI123: 1.313740458 | AJ123: 43129.12587 | AK123: 1.718320611 | AL123: 43129.12587 | AM123: 1.718320611 | AN123: 43129.11701 | AO123: 1.718320611 | AP123: 43129.12205 | AQ123: 1.567175573 | AR123: 43129.08542 | AS123: 43129.10972 | AT123: 43129.08542 | AU123: 1.413740458 | AV123: 43129.08924 | AW123: 1.364885496 | AX123: 43129.07812 | AY123: 1.213740458 | AZ123: 43129.07465 | BA123: 1.164885496 | BB123: 43129.06962 | BC123: 1.264885496 | BD123: 43129.02448 | BE123: 1.060305344 | BF123: 43129.12014 | BH123: 43129.15556 | BI123: 43129.12708 | BK123: 2022-01-30T03:44:00 | BL123: 43129.15556
A124: 0 | B124: =IF(Instructions!$C$2="BST",A124,0) -> 0 | C124: 2022-01-30T08:37:00 | D124: 2022-01-30 | E124: Sun | F124: 1 | I124: 7 | K124: 43129.35903 | L124: 5.28 | M124: HW | N124: 0.6869565217 | O124: 08:37:00 | P124: 12:00:00 | Q124: 06:00:00 | R124: 0.4361111111 | S124: 43129.37052 | T124: 7.099130435 | U124: 43129.43649 | V124: 43129.37203 | W124: 6.830434783 | X124: 43129.30694 | Y124: 43129.3447 | Z124: 5.224347826 | AA124: 43129.33428 | AB124: 43129.33819 | AC124: 4.824347826 | AD124: Opn | AE124: 43129.22361 | AF124: 43129.34104 | AG124: 4.255652174 | AH124: 43129.31478 | AI124: 4.586956522 | AJ124: 43129.37247 | AK124: 6.999130435 | AL124: 43129.37443 | AM124: 6.967826087 | AN124: 43129.369 | AO124: 6.730434783 | AP124: 43129.37487 | AQ124: 6.130434783 | AR124: 43129.34861 | AS124: 43129.36944 | AT124: 43129.33561 | AU124: 4.824347826 | AV124: 43129.33561 | AW124: 4.624347826 | AX124: 43129.31282 | AY124: 4.393043478 | AZ124: 43129.30935 | BA124: 4.224347826 | BB124: 43129.30587 | BC124: 4.155652174 | BD124: 43129.25397 | BE124: 4.024347826 | BF124: 43129.34861 | BH124: 43129.39028 | BI124: 43129.39028 | BK124: 2022-01-30T09:22:00 | BL124: 43129.39028
A125: 0 | B125: =IF(Instructions!$C$2="BST",A125,0) -> 0 | C125: 2022-01-30T14:46:00 | D125: 2022-01-30 | F125: 1 | I125: 7 | K125: 43129.61528 | L125: 1.19 | M125: LW | N125: 0.6335877863 | O125: 14:46:00 | P125: 17:00:00 | Q125: 11:00:00 | R125: 0.6277777778 | S125: 43129.6483 | T125: 1.422900763 | U125: 43129.71427 | V125: 43129.62868 | W125: 1.286259542 | X125: 43129.55694 | Y125: 43129.62836 | Z125: 1.239694656 | AA125: 43129.59178 | AB125: 43129.62052 | AC125: 1.076335878 | AD125: Cls | AE125: 43129.45278 | AF125: 43129.60309 | AG125: 1.039694656 | AH125: 43129.59703 | AI125: 1.139694656 | AJ125: 43129.64612 | AK125: 1.486259542 | AL125: 43129.64612 | AM125: 1.486259542 | AN125: 43129.637 | AO125: 1.486259542 | AP125: 43129.64176 | AQ125: 1.349618321 | AR125: 43129.60486 | AS125: 43129.62917 | AT125: 43129.60486 | AU125: 1.239694656 | AV125: 43129.60922 | AW125: 1.176335878 | AX125: 43129.59703 | AY125: 1.039694656 | AZ125: 43129.59356 | BA125: 0.9763358779 | BB125: 43129.58879 | BC125: 1.076335878 | BD125: 43129.54365 | BE125: 0.9297709924 | BF125: 43129.63958 | BH125: 43129.67778 | BI125: 43129.64653 | BK125: 2022-01-30T16:16:00 | BL125: 43129.67778
A126: 0 | B126: =IF(Instructions!$C$2="BST",A126,0) -> 0 | C126: 2022-01-30T21:08:00 | D126: 2022-01-30 | F126: 1 | I126: 7 | K126: 43129.88056 | L126: 5.33 | M126: HW | N126: 0.7304347826 | O126: 21:08:00 | P126: 1 | Q126: 18:00:00 | R126: 0.5222222222 | S126: 43129.89294 | T126: 7.168695652 | U126: 43129.95891 | V126: 43129.89475 | W126: 6.895652174 | X126: 43129.82917 | Y126: 43129.86682 | Z126: 5.276521739 | AA126: 43129.8564 | AB126: 43129.85972 | AC126: 4.876521739 | AD126: Opn | AE126: 43129.74514 | AF126: 43129.86107 | AG126: 4.303478261 | AH126: 43129.83511 | AI126: 4.630434783 | AJ126: 43129.8946 | AK126: 7.068695652 | AL126: 43129.89626 | AM126: 7.04173913 | AN126: 43129.89113 | AO126: 6.795652174 | AP126: 43129.8961 | AQ126: 6.195652174 | AR126: 43129.87014 | AS126: 43129.89097 | AT126: 43129.85594 | AU126: 4.876521739 | AV126: 43129.85594 | AW126: 4.676521739 | AX126: 43129.83345 | AY126: 4.449565217 | AZ126: 43129.82998 | BA126: 4.276521739 | BB126: 43129.8265 | BC126: 4.203478261 | BD126: 43129.7767 | BE126: 4.076521739 | BF126: 43129.87014 | BH126: 43129.9125 | BI126: 43129.91181 | BK126: 2022-01-30T21:54:00 | BL126: 43129.9125
A127: 0 | B127: =IF(Instructions!$C$2="BST",A127,0) -> 0 | C127: 2022-01-31T03:12:00 | D127: 2022-01-31 | E127: 2022-01-31 | F127: 1 | G127: Jan | H127: 31 | I127: 1 | J127: Mon | K127: 43130.13333 | L127: 1.12 | M127: LW | N127: 0.6870229008 | O127: 03:12:00 | P127: 05:00:00 | Q127: -0.04166666667 | R127: 0.7 | S127: =IF($M127="HW",$K127+S$6+(S$5-S$6)*$R127,$K127+S$8+(S$7-S$8)*$R127) -> 43130.16736 | T127: 1.332061069 | U127: 43130.23333 | V127: 43130.14549 | W127: 1.200763359 | X127: 43130.07917 | Y127: =IF($M127="HW",$K127+Y$6+(Y$5-Y$6)*$R127,$K127+Y$8+(Y$7-Y$8)*$R127) -> 43130.14792 | Z127: 1.175572519 | AA127: 43130.10833 | AB127: 43130.13958 | AC127: 1.006870229 | AD127: Cls | AE127: 43129.97431 | AF127: 43130.12014 | AG127: 0.9755725191 | AH127: 43130.11458 | AI127: 1.075572519 | AJ127: 43130.16493 | AK127: 1.400763359 | AL127: 43130.16493 | AM127: 1.400763359 | AN127: 43130.15556 | AO127: 1.400763359 | AP127: 43130.16007 | AQ127: 1.269465649 | AR127: =IF($M127="HW",$K127+AR$6+(AR$5-AR$6)*$R127,$K127+AR$8+(AR$7-AR$8)*$R127) -> 43130.12292 | AS127: 43130.14722 | AT127: 43130.12292 | AU127: 1.175572519 | AV127: 43130.12778 | AW127: 1.106870229 | AX127: 43130.11458 | AY127: 0.9755725191 | AZ127: 43130.11111 | BA127: 0.906870229 | BB127: 43130.1066 | BC127: 1.006870229 | BD127: 43130.06146 | BE127: 0.8816793893 | BF127: =IF($M127="HW",$K127+BF$6+(BF$5-BF$6)*$R127,$K127+BF$8+(BF$7-BF$8)*$R127) -> 43130.15764 | BH127: 43130.19722 | BI127: 43130.16458 | BK127: 2022-01-31T04:44:00 | BL127: 43130.19722
A128: 0 | B128: =IF(Instructions!$C$2="BST",A128,0) -> 0 | C128: 2022-01-31T09:29:00 | D128: 2022-01-31 | E128: Mon | F128: 1 | I128: 1 | K128: 43130.39514 | L128: 5.59 | M128: HW | N128: 0.9565217391 | O128: 09:29:00 | P128: 12:00:00 | Q128: 06:00:00 | R128: 0.5805555556 | S128: 43130.40813 | T128: 7.530434783 | U128: 43130.4741 | V128: 43130.41015 | W128: 7.234782609 | X128: 43130.34444 | Y128: 43130.38181 | Z128: 5.547826087 | AA128: 43130.37139 | AB128: 43130.37431 | AC128: 5.147826087 | AD128: Opn | AE128: 43130.25972 | AF128: 43130.37464 | AG128: 4.552173913 | AH128: 43130.34888 | AI128: 4.856521739 | AJ128: 43130.40959 | AK128: 7.430434783 | AL128: 43130.41104 | AM128: 7.426086957 | AN128: 43130.40611 | AO128: 7.134782609 | AP128: 43130.41048 | AQ128: 6.534782609 | AR128: 43130.38472 | AS128: 43130.40556 | AT128: 43130.36971 | AU128: 5.147826087 | AV128: 43130.36971 | AW128: 4.947826087 | AX128: 43130.34742 | AY128: 4.743478261 | AZ128: 43130.34395 | BA128: 4.547826087 | BB128: 43130.34048 | BC128: 4.452173913 | BD128: 43130.29209 | BE128: 4.347826087 | BF128: 43130.38472 | BH128: 43130.42778 | BI128: 43130.42639 | BK128: 2022-01-31T10:16:00 | BL128: 43130.42778
A129: 0 | B129: =IF(Instructions!$C$2="BST",A129,0) -> 0 | C129: 2022-01-31T15:39:00 | D129: 2022-01-31 | F129: 1 | I129: 1 | K129: 43130.65208 | L129: 0.85 | M129: LW | N129: 0.893129771 | O129: 15:39:00 | P129: 17:00:00 | Q129: 11:00:00 | R129: 0.775 | S129: 43130.68715 | T129: 0.9816793893 | U129: 43130.75313 | V129: 43130.66293 | W129: 0.8709923664 | X129: 43130.59444 | Y129: 43130.66823 | Z129: 0.9282442748 | AA129: 43130.62552 | AB129: 43130.65938 | AC129: 0.7389312977 | AD129: Cls | AE129: 43130.48889 | AF129: 43130.63785 | AG129: 0.7282442748 | AH129: 43130.63281 | AI129: 0.8282442748 | AJ129: 43130.68446 | AK129: 1.070992366 | AL129: 43130.68446 | AM129: 1.070992366 | AN129: 43130.67483 | AO129: 1.070992366 | AP129: 43130.67908 | AQ129: 0.9603053435 | AR129: 43130.64167 | AS129: 43130.66597 | AT129: 43130.64167 | AU129: 0.9282442748 | AV129: 43130.64705 | AW129: 0.8389312977 | AX129: 43130.63281 | AY129: 0.7282442748 | AZ129: 43130.62934 | BA129: 0.6389312977 | BB129: 43130.62509 | BC129: 0.7389312977 | BD129: 43130.57995 | BE129: 0.6961832061 | BF129: 43130.67639 | BH129: 43130.71736 | BI129: 43130.68333 | BK129: 2022-01-31T17:13:00 | BL129: 43130.71736
A130: 0 | B130: =IF(Instructions!$C$2="BST",A130,0) -> 0 | C130: 2022-01-31T21:59:00 | D130: 2022-01-31 | F130: 1 | I130: 1 | K130: 43130.91597 | L130: 5.53 | M130: HW | N130: 0.9043478261 | O130: 21:59:00 | P130: 1 | Q130: 18:00:00 | R130: 0.6638888889 | S130: 43130.92983 | T130: 7.446956522 | U130: 43130.9958 | V130: 43130.93214 | W130: 7.156521739 | X130: 43130.86458 | Y130: 43130.90322 | Z130: 5.485217391 | AA130: 43130.8928 | AB130: 43130.89514 | AC130: 5.085217391 | AD130: Opn | AE130: 43130.78056 | AF130: 43130.89403 | AG130: 4.494782609 | AH130: 43130.86856 | AI130: 4.804347826 | AJ130: 43130.931 | AK130: 7.346956522 | AL130: 43130.93217 | AM130: 7.337391304 | AN130: 43130.92753 | AO130: 7.056521739 | AP130: 43130.93103 | AQ130: 6.456521739 | AR130: 43130.90556 | AS130: 43130.92639 | AT130: 43130.88939 | AU130: 5.085217391 | AV130: 43130.88939 | AW130: 4.885217391 | AX130: 43130.86739 | AY130: 4.675652174 | AZ130: 43130.86392 | BA130: 4.485217391 | BB130: 43130.86045 | BC130: 4.394782609 | BD130: 43130.81408 | BE130: 4.285217391 | BF130: 43130.90556 | BH130: 43130.94792 | BI130: 43130.94722 | BK130: 2022-01-31T22:45:00 | BL130: 43130.94792
A131: 0 | B131: =IF(Instructions!$C$2="BST",A131,0) -> 0 | C131: 2022-02-01T04:01:00 | D131: 2022-02-01 | E131: 2022-02-01 | F131: 2 | G131: Feb | H131: 1 | I131: 2 | J131: Tue | K131: 43131.16736 | L131: 0.89 | M131: LW | N131: 0.8625954198 | O131: 04:01:00 | P131: 05:00:00 | Q131: -0.04166666667 | R131: 0.8361111111 | S131: 43131.20328 | T131: 1.033587786 | U131: 43131.26925 | V131: 43131.17715 | W131: 0.9198473282 | X131: 43131.11458 | Y131: 43131.18478 | Z131: 0.9648854962 | AA131: 43131.13953 | AB131: 43131.1755 | AC131: 0.7786259542 | AD131: Cls | AE131: 43131.00972 | AF131: 43131.15228 | AG131: 0.7648854962 | AH131: 43131.14767 | AI131: 0.8648854962 | AJ131: 43131.20038 | AK131: 1.119847328 | AL131: 43131.20038 | AM131: 1.119847328 | AN131: 43131.19053 | AO131: 1.119847328 | AP131: 43131.19457 | AQ131: 1.00610687 | AR131: 43131.15694 | AS131: 43131.18125 | AT131: 43131.15694 | AU131: 0.9648854962 | AV131: 43131.16275 | AW131: 0.8786259542 | AX131: 43131.14767 | AY131: 0.7648854962 | AZ131: 43131.14419 | BA131: 0.6786259542 | BB131: 43131.14015 | BC131: 0.7786259542 | BD131: 43131.09501 | BE131: 0.7236641221 | BF131: 43131.19167 | BH131: 43131.23264 | BI131: 43131.19861 | BK131: 2022-02-01T05:35:00 | BL131: 43131.23264
A132: 0 | B132: =IF(Instructions!$C$2="BST",A132,0) -> 0 | C132: 2022-02-01T10:17:00 | D132: 2022-02-01 | E132: Tue | F132: 2 | I132: 2 | K132: 43131.42847 | L132: 5.84 | M132: HW | N132: 1.173913043 | O132: 10:17:00 | P132: 12:00:00 | Q132: 06:00:00 | R132: 0.7138888889 | S132: 43131.44285 | T132: 7.87826087 | U132: 43131.50883 | V132: 43131.44533 | W132: 7.560869565 | X132: 43131.37847 | Y132: 43131.41607 | Z132: 5.808695652 | AA132: 43131.40565 | AB132: 43131.40764 | AC132: 5.408695652 | AD132: Opn | AE132: 43131.29306 | AF132: 43131.40566 | AG132: 4.791304348 | AH132: 43131.38036 | AI132: 5.073913043 | AJ132: 43131.44385 | AK132: 7.77826087 | AL132: 43131.44484 | AM132: 7.795652174 | AN132: 43131.44037 | AO132: 7.460869565 | AP132: 43131.44335 | AQ132: 6.860869565 | AR132: 43131.41806 | AS132: 43131.43889 | AT132: 43131.4012 | AU132: 5.408695652 | AV132: 43131.4012 | AW132: 5.208695652 | AX132: 43131.37937 | AY132: 5.026086957 | AZ132: 43131.3759 | BA132: 4.808695652 | BB132: 43131.37242 | BC132: 4.691304348 | BD132: 43131.32728 | BE132: 4.608695652 | BF132: 43131.41806 | BH132: 43131.46181 | BI132: 43131.45972 | BK132: 2022-02-01T11:05:00 | BL132: 43131.46181
A133: 0 | B133: =IF(Instructions!$C$2="BST",A133,0) -> 0 | C133: 2022-02-01T16:27:00 | D133: 2022-02-01 | F133: 2 | I133: 2 | K133: 43131.68542 | L133: 0.58 | M133: LW | N133: 1.099236641 | O133: 16:27:00 | P133: 17:00:00 | Q133: 11:00:00 | R133: 0.9083333333 | S133: 43131.72234 | T133: 0.6312977099 | U133: 43131.78831 | V133: 43131.69395 | W133: 0.541221374 | X133: 43131.62847 | Y133: 43131.70434 | Z133: 0.6809160305 | AA133: 43131.65608 | AB133: 43131.69456 | AC133: 0.4709923664 | AD133: Cls | AE133: 43131.52222 | AF133: 43131.66933 | AG133: 0.4809160305 | AH133: 43131.66522 | AI133: 0.5809160305 | AJ133: 43131.71918 | AK133: 0.741221374 | AL133: 43131.71918 | AM133: 0.741221374 | AN133: 43131.70909 | AO133: 0.741221374 | AP133: 43131.71288 | AQ133: 0.6511450382 | AR133: 43131.675 | AS133: 43131.69931 | AT133: 43131.675 | AU133: 0.6809160305 | AV133: 43131.68131 | AW133: 0.5709923664 | AX133: 43131.66522 | AY133: 0.4809160305 | AZ133: 43131.66175 | BA133: 0.3709923664 | BB133: 43131.65796 | BC133: 0.4709923664 | BD133: 43131.61282 | BE133: 0.5106870229 | BF133: 43131.70972 | BH133: 43131.75208 | BI133: 43131.71667 | BK133: 2022-02-01T18:03:00 | BL133: 43131.75208
A134: 0 | B134: =IF(Instructions!$C$2="BST",A134,0) -> 0 | C134: 2022-02-01T22:46:00 | D134: 2022-02-01 | F134: 2 | I134: 2 | K134: 43131.94861 | L134: 5.64 | M134: HW | N134: 1 | O134: 22:46:00 | P134: 1 | Q134: 18:00:00 | R134: 0.7944444444 | S134: 43131.96383 | T134: 7.6 | U134: 43132.0298 | V134: 43131.96659 | W134: 7.3 | X134: 43131.89792 | Y134: 43131.93677 | Z134: 5.6 | AA134: 43131.92635 | AB134: 43131.92778 | AC134: 5.2 | AD134: Opn | AE134: 43131.81319 | AF134: 43131.9244 | AG134: 4.6 | AH134: 43131.89938 | AI134: 4.9 | AJ134: 43131.96454 | AK134: 7.5 | AL134: 43131.96526 | AM134: 7.5 | AN134: 43131.96107 | AO134: 7.2 | AP134: 43131.96321 | AQ134: 6.6 | AR134: 43131.93819 | AS134: 43131.95903 | AT134: 43131.92022 | AU134: 5.2 | AV134: 43131.92022 | AW134: 5 | AX134: 43131.89867 | AY134: 4.8 | AZ134: 43131.8952 | BA134: 4.6 | BB134: 43131.89172 | BC134: 4.5 | BD134: 43131.84853 | BE134: 4.4 | BF134: 43131.93819 | BH134: 43131.98125 | BI134: 43131.97986 | BK134: 2022-02-01T23:33:00 | BL134: 43131.98125
A135: 0 | B135: =IF(Instructions!$C$2="BST",A135,0) -> 0 | C135: 2022-02-02T04:46:00 | D135: 2022-02-02 | E135: 2022-02-02 | F135: 2 | G135: Feb | H135: 2 | I135: 3 | J135: Wed | K135: 43132.19861 | L135: 0.75 | M135: LW | N135: 0.9694656489 | O135: 04:46:00 | P135: 05:00:00 | Q135: -0.04166666667 | R135: 0.9611111111 | S135: 43132.23627 | T135: 0.8519083969 | U135: 43132.30224 | V135: 43132.20623 | W135: 0.7488549618 | X135: 43132.14792 | Y135: 43132.21863 | Z135: 0.8366412214 | AA135: 43132.16817 | AB135: 43132.20849 | AC135: 0.6396946565 | AD135: Cls | AE135: 43132.04236 | AF135: 43132.18179 | AG135: 0.6366412214 | AH135: 43132.17805 | AI135: 0.7366412214 | AJ135: 43132.23293 | AK135: 0.9488549618 | AL135: 43132.23293 | AM135: 0.9488549618 | AN135: 43132.22265 | AO135: 0.9488549618 | AP135: 43132.22625 | AQ135: 0.8458015267 | AR135: 43132.18819 | AS135: 43132.2125 | AT135: 43132.18819 | AU135: 0.8366412214 | AV135: 43132.19487 | AW135: 0.7396946565 | AX135: 43132.17805 | AY135: 0.6366412214 | AZ135: 43132.17458 | BA135: 0.5396946565 | BB135: 43132.17097 | BC135: 0.6396946565 | BD135: 43132.12583 | BE135: 0.627480916 | BF135: 43132.22292 | BH135: 43132.26597 | BI135: 43132.22986 | BK135: 2022-02-02T06:23:00 | BL135: 43132.26597
A136: 0 | B136: =IF(Instructions!$C$2="BST",A136,0) -> 0 | C136: 2022-02-02T11:01:00 | D136: 2022-02-02 | E136: Wed | F136: 2 | I136: 3 | K136: 43132.45903 | L136: 5.99 | M136: HW | N136: 1.304347826 | O136: 11:01:00 | P136: 12:00:00 | Q136: 06:00:00 | R136: 0.8361111111 | S136: 43132.47468 | T136: 8.086956522 | U136: 43132.54065 | V136: 43132.47758 | W136: 7.756521739 | X136: 43132.40972 | Y136: 43132.44747 | Z136: 5.965217391 | AA136: 43132.43706 | AB136: 43132.43819 | AC136: 5.565217391 | AD136: Opn | AE136: 43132.32361 | AF136: 43132.4341 | AG136: 4.934782609 | AH136: 43132.40922 | AI136: 5.204347826 | AJ136: 43132.47525 | AK136: 7.986956522 | AL136: 43132.47582 | AM136: 8.017391304 | AN136: 43132.47178 | AO136: 7.656521739 | AP136: 43132.47349 | AQ136: 7.056521739 | AR136: 43132.44861 | AS136: 43132.46944 | AT136: 43132.43005 | AU136: 5.565217391 | AV136: 43132.43005 | AW136: 5.365217391 | AX136: 43132.40865 | AY136: 5.195652174 | AZ136: 43132.40518 | BA136: 4.965217391 | BB136: 43132.40171 | BC136: 4.834782609 | BD136: 43132.35953 | BE136: 4.765217391 | BF136: 43132.44861 | BH136: 43132.49306 | BI136: 43132.49028 | BK136: 2022-02-02T11:50:00 | BL136: 43132.49306
A137: 0 | B137: =IF(Instructions!$C$2="BST",A137,0) -> 0 | C137: 2022-02-02T17:13:00 | D137: 2022-02-02 | F137: 2 | I137: 3 | K137: 43132.71736 | L137: 0.44 | M137: LW | N137: 1.20610687 | O137: 17:13:00 | P137: 17:00:00 | Q137: 23:00:00 | R137: 0.9638888889 | S137: 43132.75505 | T137: 0.4496183206 | U137: 43132.82103 | V137: 43132.72493 | W137: 0.3702290076 | X137: 43132.65972 | Y137: 43132.73744 | Z137: 0.5526717557 | AA137: 43132.68686 | AB137: 43132.72728 | AC137: 0.3320610687 | AD137: Cls | AE137: 43132.55278 | AF137: 43132.7005 | AG137: 0.3526717557 | AH137: 43132.69678 | AI137: 0.4526717557 | AJ137: 43132.75171 | AK137: 0.5702290076 | AL137: 43132.75171 | AM137: 0.5702290076 | AN137: 43132.74142 | AO137: 0.5702290076 | AP137: 43132.74501 | AQ137: 0.4908396947 | AR137: 43132.70694 | AS137: 43132.73125 | AT137: 43132.70694 | AU137: 0.5526717557 | AV137: 43132.71364 | AW137: 0.4320610687 | AX137: 43132.69678 | AY137: 0.3526717557 | AZ137: 43132.69331 | BA137: 0.2320610687 | BB137: 43132.68971 | BC137: 0.3320610687 | BD137: 43132.64457 | BE137: 0.4145038168 | BF137: 43132.74167 | BH137: 43132.78403 | BI137: 43132.74861 | BK137: 2022-02-02T18:49:00 | BL137: 43132.78403
A138: 0 | B138: =IF(Instructions!$C$2="BST",A138,0) -> 0 | C138: 2022-02-02T23:31:00 | D138: 2022-02-02 | F138: 2 | I138: 3 | K138: 43132.97986 | L138: 5.65 | M138: HW | N138: 1.008695652 | O138: 23:31:00 | P138: 1 | Q138: 18:00:00 | R138: 0.9194444444 | S138: 43132.99638 | T138: 7.613913043 | U138: 43133.06236 | V138: 43132.99958 | W138: 7.313043478 | X138: 43132.92847 | Y138: 43132.96889 | Z138: =IF($M138="HW",Y$2+(Y$1-Y$2)*$N138,Y$3+(Y$4-Y$3)*$N138) -> 5.610434783 | AA138: 43132.95847 | AB138: 43132.95903 | AC138: =IF($M138="HW",AB$2+(AB$1-AB$2)*$N138,AB$3+(AB$4-AB$3)*$N138) -> 5.210434783 | AD138: Opn | AE138: 43132.84444 | AF138: 43132.95348 | AG138: =IF($M138="HW",AF$2+(AF$1-AF$2)*$N138,AF$3+(AF$4-AF$3)*$N138) -> 4.609565217 | AH138: 43132.9289 | AI138: =IF($M138="HW",AH$2+(AH$1-AH$2)*$N138,AH$3+(AH$4-AH$3)*$N138) -> 4.908695652 | AJ138: 43132.99666 | AK138: =IF($M138="HW",AJ$2+(AJ$1-AJ$2)*$N138,AJ$3+(AJ$4-AJ$3)*$N138) -> 7.513913043 | AL138: 43132.99694 | AM138: =IF($M138="HW",AL$2+(AL$1-AL$2)*$N138,AL$3+(AL$4-AL$3)*$N138) -> 7.514782609 | AN138: 43132.99319 | AO138: =IF($M138="HW",AN$2+(AN$1-AN$2)*$N138,AN$3+(AN$4-AN$3)*$N138) -> 7.213043478 | AP138: 43132.99403 | AQ138: =IF($M138="HW",AP$2+(AP$1-AP$2)*$N138,AP$3+(AP$4-AP$3)*$N138) -> 6.613043478 | AR138: 43132.96944 | AS138: 43132.99028 | AT138: 43132.94973 | AU138: =IF($M138="HW",AT$2+(AT$1-AT$2)*$N138,AT$3+(AT$4-AT$3)*$N138) -> 5.210434783 | AV138: 43132.94973 | AW138: =IF($M138="HW",AV$2+(AV$1-AV$2)*$N138,AV$3+(AV$4-AV$3)*$N138) -> 5.010434783 | AX138: 43132.92862 | AY138: =IF($M138="HW",AX$2+(AX$1-AX$2)*$N138,AX$3+(AX$4-AX$3)*$N138) -> 4.811304348 | AZ138: 43132.92514 | BA138: =IF($M138="HW",AZ$2+(AZ$1-AZ$2)*$N138,AZ$3+(AZ$4-AZ$3)*$N138) -> 4.610434783 | BB138: 43132.92167 | BC138: =IF($M138="HW",BB$2+(BB$1-BB$2)*$N138,BB$3+(BB$4-BB$3)*$N138) -> 4.509565217 | BD138: 43132.88152 | BE138: =IF($M138="HW",BD$2+(BD$1-BD$2)*$N138,BD$3+(BD$4-BD$3)*$N138) -> 4.410434783 | BF138: 43132.96944 | BH138: 43133.01181 | BI138: 43133.01111 | BK138: 2022-02-03T00:17:00 | BL138: 43133.01181
A139: 0 | B139: =IF(Instructions!$C$2="BST",A139,0) -> 0 | C139: 2022-02-03T05:30:00 | D139: =DATE(YEAR(K139),MONTH(K139),DAY(K139)) -> 2022-02-03 | E139: =IF(D139=D138,IF(J138="","",J138),D139) -> 2022-02-03 | F139: 2 | G139: Feb | H139: 3 | I139: 4 | J139: Thu | K139: =C139+B139/24 -> 43133.22917 | L139: 0.71 | M139: LW | N139: =IF(M139="HW",(L139-K$2)/(K$1-K$2),(L139-K$3)/(K$4-K$3)) -> 1 | O139: =C139-INT(C139) -> 05:30:00 | P139: =IF(M139="HW",IF(AND(O139>=L$5,O139<L$6),L$5,IF(AND(O139>=L$6,O139<M$5),M$5,IF(AND(O139>=M$5,O139<M$6),M$5,IF(O139>=M$6,L$5+1,L$5)))),IF(AND(O139>=L$7,O139<L$8),L$7,IF(AND(O139>=L$8,O139<M$7),M$7,IF(AND(O139>=M$7,O139<M$8),M$7,IF(O139>=M$8,L$7+1,L$7))))) -> 05:00:00 | Q139: =IF(M139="HW",IF(AND(O139>=L$5,O139<L$6),L$6,IF(AND(O139>=L$6,O139<M$5),L$6,IF(AND(O139>=M$5,O139<M$6),M$6,IF(O139>=M$6,M$6,M$6-1)))),IF(AND(O139>=L$7,O139<L$8),L$8,IF(AND(O139>=L$8,O139<M$7),L$8,IF(AND(O139>=M$7,O139<M$8),M$8,IF(O139>=M$8,M$8,M$8-1))))) -> 11:00:00 | R139: 0.9166666667 | S139: 43133.2662 | T139: =IF($M139="HW",S$2+(S$1-S$2)*$N139,S$3+(S$4-S$3)*$N139) -> 0.8 | U139: 43133.33218 | V139: 43133.23756 | W139: =IF($M139="HW",V$2+(V$1-V$2)*$N139,V$3+(V$4-V$3)*$N139) -> 0.7 | X139: 43133.17847 | Y139: 43133.24826 | Z139: 0.8 | AA139: 43133.19965 | AB139: =IF($M139="HW",$K139+AB$6+(AB$5-AB$6)*$R139,$K139+AB$8+(AB$7-AB$8)*$R139) -> 43133.23843 | AC139: 0.6 | AD139: =IF($M139="HW","Opn","Cls") -> Cls | AE139: 43133.07361 | AF139: =IF($M139="HW",$K139+AF$6+(AF$5-AF$6)*$R139,$K139+AF$8+(AF$7-AF$8)*$R139) -> 43133.21296 | AG139: 0.6 | AH139: =IF($M139="HW",$K139+AH$6+(AH$5-AH$6)*$R139,$K139+AH$8+(AH$7-AH$8)*$R139) -> 43133.20891 | AI139: 0.7 | AJ139: =IF($M139="HW",$K139+AJ$6+(AJ$5-AJ$6)*$R139,$K139+AJ$8+(AJ$7-AJ$8)*$R139) -> 43133.26302 | AK139: 0.9 | AL139: =IF($M139="HW",$K139+AL$6+(AL$5-AL$6)*$R139,$K139+AL$8+(AL$7-AL$8)*$R139) -> 43133.26302 | AM139: 0.9 | AN139: =IF($M139="HW",$K139+AN$6+(AN$5-AN$6)*$R139,$K139+AN$8+(AN$7-AN$8)*$R139) -> 43133.25289 | AO139: 0.9 | AP139: =IF($M139="HW",$K139+AP$6+(AP$5-AP$6)*$R139,$K139+AP$8+(AP$7-AP$8)*$R139) -> 43133.25666 | AQ139: 0.8 | AR139: 43133.21875 | AS139: 43133.24306 | AT139: =IF($M139="HW",$K139+AT$6+(AT$5-AT$6)*$R139,$K139+AT$8+(AT$7-AT$8)*$R139) -> 43133.21875 | AU139: 0.8 | AV139: =IF($M139="HW",$K139+AV$6+(AV$5-AV$6)*$R139,$K139+AV$8+(AV$7-AV$8)*$R139) -> 43133.22512 | AW139: 0.7 | AX139: =IF($M139="HW",$K139+AX$6+(AX$5-AX$6)*$R139,$K139+AX$8+(AX$7-AX$8)*$R139) -> 43133.20891 | AY139: 0.6 | AZ139: =IF($M139="HW",$K139+AZ$6+(AZ$5-AZ$6)*$R139,$K139+AZ$8+(AZ$7-AZ$8)*$R139) -> 43133.20544 | BA139: 0.5 | BB139: =IF($M139="HW",$K139+BB$6+(BB$5-BB$6)*$R139,$K139+BB$8+(BB$7-BB$8)*$R139) -> 43133.20168 | BC139: 0.6 | BD139: =IF($M139="HW",$K139+BD$6+(BD$5-BD$6)*$R139,$K139+BD$8+(BD$7-BD$8)*$R139) -> 43133.15654 | BE139: 0.6 | BF139: 43133.25347 | BH139: =BL139 -> 43133.29653 | BI139: 43133.26042 | BK139: 2022-02-03T07:07:00 | BL139: =BK139+B139/24 -> 43133.29653
A140: 0 | B140: =IF(Instructions!$C$2="BST",A140,0) -> 0 | C140: 2022-02-03T11:45:00 | D140: 2022-02-03 | E140: Thu | F140: =MONTH(K140) -> 2 | G140: =IF(H140="","",TEXT(F140*29,"mmm")) ->  | H140: =IF(I140=I139,"",DAY(K140)) ->  | I140: =WEEKDAY(K140,2) -> 4 | J140: =IF(I140=I139,"",TEXT(I140+2,"ddd")) ->  | K140: 43133.48958 | L140: 6.01 | M140: HW | N140: 1.32173913 | O140: 11:45:00 | P140: 12:00:00 | Q140: 06:00:00 | R140: =ABS((O140-Q140)/(P140-Q140)) -> 0.9583333333 | S140: 43133.50651 | T140: 8.114782609 | U140: 43133.57248 | V140: 43133.50984 | W140: 7.782608696 | X140: =IF($M140="HW",$BK140+X$6+$B140/24,$BK139+4/24+$B140/24) -> 43133.43958 | Y140: 43133.47888 | Z140: 5.986086957 | AA140: =IF($M140="HW",$K140+AA$6+(AA$5-AA$6)*$R140,$K140+AA$8+(AA$7-AA$8)*$R140) -> 43133.46846 | AB140: 43133.46875 | AC140: 5.586086957 | AD140: Opn | AE140: =IF($M140="HW",$AB140-AD$8,$AB139+AD$8) -> 43133.35417 | AF140: 43133.46253 | AG140: 4.953913043 | AH140: 43133.43808 | AI140: 5.22173913 | AJ140: 43133.50666 | AK140: 8.014782609 | AL140: 43133.5068 | AM140: 8.046956522 | AN140: 43133.50318 | AO140: 7.682608696 | AP140: 43133.50362 | AQ140: 7.082608696 | AR140: 43133.47917 | AS140: 43133.5 | AT140: 43133.45891 | AU140: 5.586086957 | AV140: 43133.45891 | AW140: 5.386086957 | AX140: 43133.43793 | AY140: 5.21826087 | AZ140: 43133.43446 | BA140: 4.986086957 | BB140: 43133.43099 | BC140: 4.853913043 | BD140: 43133.39178 | BE140: 4.786086957 | BF140: 43133.47917 | BH140: 43133.52292 | BI140: 43133.52083 | BK140: 2022-02-03T12:33:00 | BL140: 43133.52292
A141: 0 | B141: =IF(Instructions!$C$2="BST",A141,0) -> 0 | C141: 2022-02-03T17:57:00 | D141: 2022-02-03 | F141: 2 | I141: 4 | K141: 43133.74792 | L141: 0.44 | M141: LW | N141: 1.20610687 | O141: 17:57:00 | P141: 17:00:00 | Q141: 23:00:00 | R141: 0.8416666667 | S141: 43133.78391 | T141: 0.4496183206 | U141: 43133.84988 | V141: 43133.75761 | W141: 0.3702290076 | X141: 43133.68958 | Y141: 43133.76545 | Z141: 0.5526717557 | AA141: 43133.71997 | AB141: 43133.75613 | AC141: 0.3320610687 | AD141: Cls | AE141: 43133.58333 | AF141: 43133.73275 | AG141: 0.3526717557 | AH141: 43133.72818 | AI141: 0.4526717557 | AJ141: 43133.78099 | AK141: 0.5702290076 | AL141: 43133.78099 | AM141: 0.5702290076 | AN141: 43133.77112 | AO141: 0.5702290076 | AP141: 43133.77514 | AQ141: 0.4908396947 | AR141: 43133.7375 | AS141: 43133.76181 | AT141: 43133.7375 | AU141: 0.5526717557 | AV141: 43133.74334 | AW141: 0.4320610687 | AX141: 43133.72818 | AY141: 0.3526717557 | AZ141: 43133.72471 | BA141: 0.2320610687 | BB141: 43133.72069 | BC141: 0.3320610687 | BD141: 43133.67555 | BE141: 0.4145038168 | BF141: 43133.77222 | BH141: 43133.81458 | BI141: 43133.77917 | BK141: 2022-02-03T19:33:00 | BL141: 43133.81458
A142: 0 | B142: =IF(Instructions!$C$2="BST",A142,0) -> 0 | C142: 2022-02-04T00:13:00 | D142: 2022-02-04 | E142: 2022-02-04 | F142: 2 | G142: Feb | H142: 4 | I142: 5 | J142: Fri | K142: 43134.00903 | L142: 5.55 | M142: HW | N142: 0.9217391304 | O142: 00:13:00 | P142: 00:00:00 | Q142: 06:00:00 | R142: 0.9638888889 | S142: 43134.02601 | T142: 7.474782609 | U142: 43134.09198 | V142: 43134.02936 | W142: 7.182608696 | X142: 43133.95833 | Y142: 43133.99836 | Z142: 5.506086957 | AA142: 43133.98794 | AB142: 43133.98819 | AC142: 5.106086957 | AD142: Opn | AE142: 43133.87361 | AF142: 43133.98188 | AG142: 4.513913043 | AH142: 43133.95745 | AI142: 4.82173913 | AJ142: 43134.02614 | AK142: 7.374782609 | AL142: 43134.02626 | AM142: 7.366956522 | AN142: 43134.02267 | AO142: 7.082608696 | AP142: 43134.02304 | AQ142: 6.482608696 | AR142: 43133.99861 | AS142: 43134.01944 | AT142: 43133.97828 | AU142: 5.106086957 | AV142: 43133.97828 | AW142: 4.906086957 | AX142: 43133.95732 | AY142: 4.69826087 | AZ142: 43133.95385 | BA142: 4.506086957 | BB142: 43133.95038 | BC142: 4.413913043 | BD142: 43133.9113 | BE142: 4.306086957 | BF142: 43133.99861 | BH142: 43134.04167 | BI142: 43134.04028 | BK142: 2022-02-04T01:00:00 | BL142: 43134.04167
A143: 0 | B143: =IF(Instructions!$C$2="BST",A143,0) -> 0 | C143: 2022-02-04T06:13:00 | D143: 2022-02-04 | E143: Fri | F143: 2 | I143: 5 | K143: 43134.25903 | L143: 0.78 | M143: LW | N143: 0.9465648855 | O143: 06:13:00 | P143: 05:00:00 | Q143: 11:00:00 | R143: 0.7972222222 | S143: =IF($M143="HW",$K143+S$6+(S$5-S$6)*$R143,$K143+S$8+(S$7-S$8)*$R143) -> 43134.29441 | T143: 0.8908396947 | U143: 43134.36038 | V143: 43134.26949 | W143: 0.7854961832 | X143: 43134.20833 | Y143: =IF($M143="HW",$K143+Y$6+(Y$5-Y$6)*$R143,$K143+Y$8+(Y$7-Y$8)*$R143) -> 43134.27564 | Z143: 0.8641221374 | AA143: 43134.232 | AB143: 43134.26663 | AC143: 0.6694656489 | AD143: Cls | AE143: 43134.10278 | AF143: 43134.24448 | AG143: 0.6641221374 | AH143: 43134.2396 | AI143: 0.7641221374 | AJ143: 43134.29164 | AK143: 0.9854961832 | AL143: 43134.29164 | AM143: 0.9854961832 | AN143: 43134.28193 | AO143: 0.9854961832 | AP143: 43134.2861 | AQ143: 0.8801526718 | AR143: =IF($M143="HW",$K143+AR$6+(AR$5-AR$6)*$R143,$K143+AR$8+(AR$7-AR$8)*$R143) -> 43134.24861 | AS143: 43134.27292 | AT143: 43134.24861 | AU143: 0.8641221374 | AV143: 43134.25415 | AW143: 0.7694656489 | AX143: 43134.2396 | AY143: 0.6641221374 | AZ143: 43134.23613 | BA143: 0.5694656489 | BB143: 43134.23195 | BC143: 0.6694656489 | BD143: 43134.18682 | BE143: 0.6480916031 | BF143: =IF($M143="HW",$K143+BF$6+(BF$5-BF$6)*$R143,$K143+BF$8+(BF$7-BF$8)*$R143) -> 43134.28333 | BH143: 43134.325 | BI143: 43134.29028 | BK143: 2022-02-04T07:48:00 | BL143: 43134.325
A144: 0 | B144: =IF(Instructions!$C$2="BST",A144,0) -> 0 | C144: 2022-02-04T12:26:00 | D144: 2022-02-04 | F144: 2 | I144: 5 | K144: 43134.51806 | L144: 5.91 | M144: HW | N144: 1.234782609 | O144: 12:26:00 | P144: 12:00:00 | Q144: 18:00:00 | R144: 0.9277777778 | S144: 43134.53466 | T144: 7.975652174 | U144: 43134.60064 | V144: 43134.53789 | W144: 7.652173913 | X144: 43134.46806 | Y144: 43134.50714 | Z144: 5.88173913 | AA144: 43134.49672 | AB144: 43134.49722 | AC144: 5.48173913 | AD144: Opn | AE144: 43134.38264 | AF144: 43134.49153 | AG144: 4.85826087 | AH144: 43134.46698 | AI144: 5.134782609 | AJ144: 43134.53492 | AK144: 7.875652174 | AL144: 43134.53517 | AM144: 7.899130435 | AN144: 43134.53144 | AO144: 7.552173913 | AP144: 43134.5322 | AQ144: 6.952173913 | AR144: 43134.50764 | AS144: 43134.52847 | AT144: 43134.48781 | AU144: 5.48173913 | AV144: 43134.48781 | AW144: 5.28173913 | AX144: 43134.46672 | AY144: 5.105217391 | AZ144: 43134.46325 | BA144: 4.88173913 | BB144: 43134.45978 | BC144: 4.75826087 | BD144: 43134.41983 | BE144: 4.68173913 | BF144: 43134.50764 | BH144: 43134.55139 | BI144: 43134.54931 | BK144: 2022-02-04T13:14:00 | BL144: 43134.55139
A145: 0 | B145: =IF(Instructions!$C$2="BST",A145,0) -> 0 | C145: 2022-02-04T18:40:00 | D145: 2022-02-04 | F145: 2 | I145: 5 | K145: 43134.77778 | L145: 0.58 | M145: LW | N145: 1.099236641 | O145: 18:40:00 | P145: 17:00:00 | Q145: 23:00:00 | R145: 0.7222222222 | S145: 43134.81211 | T145: 0.6312977099 | U145: 43134.87809 | V145: 43134.78954 | W145: 0.541221374 | X145: 43134.71806 | Y145: 43134.79282 | Z145: 0.6809160305 | AA145: 43134.75231 | AB145: 43134.78434 | AC145: 0.4709923664 | AD145: Cls | AE145: 43134.61181 | AF145: 43134.76427 | AG145: 0.4809160305 | AH145: 43134.75887 | AI145: 0.5809160305 | AJ145: 43134.80961 | AK145: 0.741221374 | AL145: 43134.80961 | AM145: 0.741221374 | AN145: 43134.80015 | AO145: 0.741221374 | AP145: 43134.80459 | AQ145: 0.6511450382 | AR145: 43134.76736 | AS145: 43134.79167 | AT145: 43134.76736 | AU145: 0.6809160305 | AV145: 43134.77238 | AW145: 0.5709923664 | AX145: 43134.75887 | AY145: 0.4809160305 | AZ145: 43134.7554 | BA145: 0.3709923664 | BB145: 43134.75096 | BC145: 0.4709923664 | BD145: 43134.70583 | BE145: 0.5106870229 | BF145: 43134.80208 | BH145: 43134.84306 | BI145: 43134.80903 | BK145: 2022-02-04T20:14:00 | BL145: 43134.84306
A146: 0 | B146: =IF(Instructions!$C$2="BST",A146,0) -> 0 | C146: 2022-02-05T00:54:00 | D146: 2022-02-05 | E146: 2022-02-05 | F146: 2 | G146: Feb | H146: 5 | I146: 6 | J146: Sat | K146: 43135.0375 | L146: 5.36 | M146: HW | N146: 0.7565217391 | O146: 00:54:00 | P146: 00:00:00 | Q146: 06:00:00 | R146: 0.85 | S146: 43135.0533 | T146: 7.210434783 | U146: 43135.11927 | V146: 43135.05625 | W146: 6.934782609 | X146: 43134.98611 | Y146: 43135.02604 | Z146: 5.307826087 | AA146: 43135.01562 | AB146: 43135.01667 | AC146: 4.907826087 | AD146: Opn | AE146: 43134.90208 | AF146: 43135.01233 | AG146: 4.332173913 | AH146: 43134.9875 | AI146: 4.656521739 | AJ146: 43135.05382 | AK146: 7.110434783 | AL146: 43135.05434 | AM146: 7.086086957 | AN146: 43135.05035 | AO146: 6.834782609 | AP146: 43135.05191 | AQ146: 6.234782609 | AR146: 43135.02708 | AS146: 43135.04792 | AT146: 43135.00833 | AU146: 4.907826087 | AV146: 43135.00833 | AW146: 4.707826087 | AX146: 43134.98698 | AY146: 4.483478261 | AZ146: 43134.98351 | BA146: 4.307826087 | BB146: 43134.98003 | BC146: 4.232173913 | BD146: 43134.93819 | BE146: 4.107826087 | BF146: 43135.02708 | BH146: 43135.06944 | BI146: 43135.06875 | BK146: 2022-02-05T01:40:00 | BL146: 43135.06944
A147: 0 | B147: =IF(Instructions!$C$2="BST",A147,0) -> 0 | C147: 2022-02-05T06:54:00 | D147: 2022-02-05 | E147: Sat | F147: 2 | I147: 6 | K147: 43135.2875 | L147: 0.95 | M147: LW | N147: 0.8167938931 | O147: 06:54:00 | P147: 05:00:00 | Q147: 11:00:00 | R147: 0.6833333333 | S147: 43135.3213 | T147: 1.111450382 | U147: 43135.38727 | V147: 43135.29994 | W147: 0.993129771 | X147: 43135.23611 | Y147: 43135.30174 | Z147: 1.019847328 | AA147: 43135.26285 | AB147: 43135.29352 | AC147: 0.8381679389 | AD147: Cls | AE147: 43135.13125 | AF147: 43135.27454 | AG147: 0.8198473282 | AH147: 43135.26887 | AI147: 0.9198473282 | AJ147: 43135.31892 | AK147: 1.193129771 | AL147: 43135.31892 | AM147: 1.193129771 | AN147: 43135.30961 | AO147: 1.193129771 | AP147: 43135.31418 | AQ147: 1.07480916 | AR147: 43135.27708 | AS147: 43135.30139 | AT147: 43135.27708 | AU147: 1.019847328 | AV147: 43135.28183 | AW147: 0.9381679389 | AX147: 43135.26887 | AY147: 0.8198473282 | AZ147: 43135.26539 | BA147: 0.7381679389 | BB147: 43135.26082 | BC147: 0.8381679389 | BD147: 43135.21568 | BE147: 0.7648854962 | BF147: 43135.31181 | BH147: 43135.35208 | BI147: 43135.31875 | BK147: 2022-02-05T08:27:00 | BL147: 43135.35208
A148: 0 | B148: =IF(Instructions!$C$2="BST",A148,0) -> 0 | C148: 2022-02-05T13:07:00 | D148: 2022-02-05 | F148: 2 | I148: 6 | K148: 43135.54653 | L148: 5.71 | M148: HW | N148: 1.060869565 | O148: 13:07:00 | P148: 12:00:00 | Q148: 18:00:00 | R148: 0.8138888889 | S148: 43135.56195 | T148: 7.697391304 | U148: 43135.62792 | V148: 43135.56478 | W148: 7.391304348 | X148: 43135.49514 | Y148: 43135.53482 | Z148: 5.673043478 | AA148: 43135.5244 | AB148: 43135.52569 | AC148: 5.273043478 | AD148: Opn | AE148: 43135.41111 | AF148: 43135.52198 | AG148: 4.666956522 | AH148: 43135.49703 | AI148: 4.960869565 | AJ148: 43135.5626 | AK148: 7.597391304 | AL148: 43135.56324 | AM148: 7.603478261 | AN148: 43135.55912 | AO148: 7.291304348 | AP148: 43135.56106 | AQ148: 6.691304348 | AR148: 43135.53611 | AS148: 43135.55694 | AT148: 43135.51786 | AU148: 5.273043478 | AV148: 43135.51786 | AW148: 5.073043478 | AX148: 43135.49638 | AY148: 4.879130435 | AZ148: 43135.49291 | BA148: 4.673043478 | BB148: 43135.48944 | BC148: 4.566956522 | BD148: 43135.44672 | BE148: 4.473043478 | BF148: 43135.53611 | BH148: 43135.57847 | BI148: 43135.57778 | BK148: 2022-02-05T13:53:00 | BL148: 43135.57847
A149: 0 | B149: =IF(Instructions!$C$2="BST",A149,0) -> 0 | C149: 2022-02-05T19:23:00 | D149: 2022-02-05 | F149: 2 | I149: 6 | K149: 43135.80764 | L149: 0.84 | M149: LW | N149: 0.9007633588 | O149: 19:23:00 | P149: 17:00:00 | Q149: 23:00:00 | R149: 0.6027777778 | S149: 43135.84032 | T149: 0.9687022901 | U149: 43135.90629 | V149: 43135.82148 | W149: 0.858778626 | X149: 43135.74514 | Y149: 43135.8202 | Z149: 0.9190839695 | AA149: 43135.78466 | AB149: 43135.81254 | AC149: 0.7290076336 | AD149: Cls | AE149: 43135.64028 | AF149: 43135.79579 | AG149: 0.7190839695 | AH149: 43135.78956 | AI149: 0.8190839695 | AJ149: 43135.83822 | AK149: 1.058778626 | AL149: 43135.83822 | AM149: 1.058778626 | AN149: 43135.82919 | AO149: 1.058778626 | AP149: 43135.83404 | AQ149: 0.9488549618 | AR149: 43135.79722 | AS149: 43135.82153 | AT149: 43135.79722 | AU149: 0.9190839695 | AV149: 43135.80141 | AW149: 0.8290076336 | AX149: 43135.78956 | AY149: 0.7190839695 | AZ149: 43135.78609 | BA149: 0.6290076336 | BB149: 43135.78124 | BC149: 0.7290076336 | BD149: 43135.7361 | BE149: 0.6893129771 | BF149: 43135.83194 | BH149: 43135.86944 | BI149: 43135.83889 | BK149: 2022-02-05T20:52:00 | BL149: 43135.86944
A150: 0 | B150: =IF(Instructions!$C$2="BST",A150,0) -> 0 | C150: 2022-02-06T01:34:00 | D150: 2022-02-06 | E150: 2022-02-06 | F150: 2 | G150: Feb | H150: 6 | I150: 7 | J150: Sun | K150: 43136.06528 | L150: 5.12 | M150: HW | N150: 0.547826087 | O150: 01:34:00 | P150: 00:00:00 | Q150: 06:00:00 | R150: 0.7388888889 | S150: 43136.07992 | T150: 6.876521739 | U150: 43136.14589 | V150: 43136.08248 | W150: 6.62173913 | X150: 43136.01319 | Y150: 43136.05305 | Z150: 5.057391304 | AA150: 43136.04263 | AB150: 43136.04444 | AC150: 4.657391304 | AD150: Opn | AE150: 43135.92986 | AF150: 43136.04203 | AG150: 4.102608696 | AH150: 43136.01682 | AI150: 4.447826087 | AJ150: 43136.08083 | AK150: 6.776521739 | AL150: 43136.08173 | AM150: 6.731304348 | AN150: 43136.07735 | AO150: 6.52173913 | AP150: 43136.08007 | AQ150: 5.92173913 | AR150: 43136.05486 | AS150: 43136.07569 | AT150: 43136.03765 | AU150: 4.657391304 | AV150: 43136.03765 | AW150: 4.457391304 | AX150: 43136.01591 | AY150: 4.212173913 | AZ150: 43136.01244 | BA150: 4.057391304 | BB150: 43136.00897 | BC150: 4.002608696 | BD150: 43135.96443 | BE150: 3.857391304 | BF150: 43136.05486 | BH150: 43136.09653 | BI150: 43136.09653 | BK150: 2022-02-06T02:19:00 | BL150: 43136.09653
A151: 0 | B151: =IF(Instructions!$C$2="BST",A151,0) -> 0 | C151: 2022-02-06T07:35:00 | D151: 2022-02-06 | E151: Sun | F151: 2 | I151: 7 | K151: 43136.31597 | L151: 1.21 | M151: LW | N151: 0.6183206107 | O151: 07:35:00 | P151: 05:00:00 | Q151: 11:00:00 | R151: 0.5694444445 | S151: 43136.34819 | T151: 1.448854962 | U151: 43136.41416 | V151: 43136.33039 | W151: 1.310687023 | X151: 43136.26319 | Y151: 43136.32784 | Z151: 1.258015267 | AA151: 43136.29369 | AB151: 43136.32041 | AC151: 1.096183206 | AD151: Cls | AE151: 43136.15903 | AF151: 43136.30459 | AG151: 1.058015267 | AH151: 43136.29813 | AI151: 1.158015267 | AJ151: 43136.34621 | AK151: 1.510687023 | AL151: 43136.34621 | AM151: 1.510687023 | AN151: 43136.33729 | AO151: 1.510687023 | AP151: 43136.34226 | AQ151: 1.372519084 | AR151: 43136.30556 | AS151: 43136.32986 | AT151: 43136.30556 | AU151: 1.258015267 | AV151: 43136.30951 | AW151: 1.196183206 | AX151: 43136.29813 | AY151: 1.058015267 | AZ151: 43136.29466 | BA151: 0.9961832061 | BB151: 43136.28969 | BC151: 1.096183206 | BD151: 43136.24455 | BE151: 0.9435114504 | BF151: 43136.34028 | BH151: 43136.37778 | BI151: 43136.34722 | BK151: 2022-02-06T09:04:00 | BL151: 43136.37778
A152: 0 | B152: =IF(Instructions!$C$2="BST",A152,0) -> 0 | C152: 2022-02-06T13:48:00 | D152: 2022-02-06 | F152: 2 | I152: 7 | K152: 43136.575 | L152: 5.43 | M152: HW | N152: 0.8173913043 | O152: 13:48:00 | P152: 12:00:00 | Q152: 18:00:00 | R152: 0.7 | S152: 43136.58924 | T152: 7.307826087 | U152: 43136.65521 | V152: 43136.59167 | W152: 7.026086957 | X152: 43136.52222 | Y152: 43136.5625 | Z152: 5.380869565 | AA152: 43136.55208 | AB152: 43136.55417 | AC152: 4.980869565 | AD152: Opn | AE152: 43136.43958 | AF152: 43136.55243 | AG152: 4.399130435 | AH152: 43136.52708 | AI152: 4.717391304 | AJ152: 43136.59028 | AK152: 7.207826087 | AL152: 43136.59132 | AM152: 7.189565217 | AN152: 43136.58681 | AO152: 6.926086957 | AP152: 43136.58993 | AQ152: 6.326086957 | AR152: 43136.56458 | AS152: 43136.58542 | AT152: 43136.54792 | AU152: 4.980869565 | AV152: 43136.54792 | AW152: 4.780869565 | AX152: 43136.52604 | AY152: 4.562608696 | AZ152: 43136.52257 | BA152: 4.380869565 | BB152: 43136.5191 | BC152: 4.299130435 | BD152: 43136.47361 | BE152: 4.180869565 | BF152: 43136.56458 | BH152: 43136.60556 | BI152: 43136.60625 | BK152: 2022-02-06T14:32:00 | BL152: 43136.60556
A153: 0 | B153: =IF(Instructions!$C$2="BST",A153,0) -> 0 | C153: 2022-02-06T20:04:00 | D153: 2022-02-06 | F153: 2 | I153: 7 | K153: 43136.83611 | L153: 1.17 | M153: LW | N153: 0.6488549618 | O153: 20:04:00 | P153: 17:00:00 | Q153: 23:00:00 | R153: 0.4888888889 | S153: 43136.86721 | T153: 1.396946565 | U153: 43136.93318 | V153: 43136.85193 | W153: 1.261832061 | X153: 43136.77222 | Y153: 43136.8463 | Z153: 1.221374046 | AA153: 43136.81551 | AB153: 43136.83943 | AC153: 1.05648855 | AD153: Cls | AE153: 43136.66875 | AF153: 43136.82585 | AG153: 1.021374046 | AH153: 43136.81883 | AI153: 1.121374046 | AJ153: 43136.86551 | AK153: 1.461832061 | AL153: 43136.86551 | AM153: 1.461832061 | AN153: 43136.85687 | AO153: 1.461832061 | AP153: 43136.86211 | AQ153: 1.326717557 | AR153: 43136.82569 | AS153: 43136.85 | AT153: 43136.82569 | AU153: 1.221374046 | AV153: 43136.82909 | AW153: 1.15648855 | AX153: 43136.81883 | AY153: 1.021374046 | AZ153: 43136.81535 | BA153: 0.9564885496 | BB153: 43136.81011 | BC153: 1.05648855 | BD153: 43136.76497 | BE153: 0.9160305344 | BF153: 43136.86042 | BH153: 43136.89514 | BI153: 43136.86736 | BK153: 2022-02-06T21:29:00 | BL153: 43136.89514
A154: 0 | B154: =IF(Instructions!$C$2="BST",A154,0) -> 0 | C154: 2022-02-07T02:14:00 | D154: 2022-02-07 | E154: 2022-02-07 | F154: 2 | G154: Feb | H154: 7 | I154: 1 | J154: Mon | K154: 43137.09306 | L154: 4.86 | M154: HW | N154: 0.3217391304 | O154: 02:14:00 | P154: 00:00:00 | Q154: 06:00:00 | R154: 0.6277777778 | S154: 43137.10654 | T154: 6.514782609 | U154: 43137.17251 | V154: 43137.10872 | W154: 6.282608696 | X154: 43137.03958 | Y154: 43137.08005 | Z154: 4.786086957 | AA154: 43137.06964 | AB154: 43137.07222 | AC154: 4.386086957 | AD154: Opn | AE154: 43136.95764 | AF154: 43137.07174 | AG154: 3.853913043 | AH154: 43137.04614 | AI154: 4.22173913 | AJ154: 43137.10783 | AK154: 6.414782609 | AL154: 43137.10912 | AM154: 6.346956522 | AN154: 43137.10436 | AO154: 6.182608696 | AP154: 43137.10824 | AQ154: 5.582608696 | AR154: 43137.08264 | AS154: 43137.10347 | AT154: 43137.06698 | AU154: 4.386086957 | AV154: 43137.06698 | AW154: 4.186086957 | AX154: 43137.04485 | AY154: 3.91826087 | AZ154: 43137.04138 | BA154: 3.786086957 | BB154: 43137.03791 | BC154: 3.753913043 | BD154: 43136.99066 | BE154: 3.586086957 | BF154: 43137.08264 | BH154: 43137.12292 | BI154: 43137.12431 | BK154: 2022-02-07T02:57:00 | BL154: 43137.12292
A155: 0 | B155: =IF(Instructions!$C$2="BST",A155,0) -> 0 | C155: 2022-02-07T08:17:00 | D155: 2022-02-07 | E155: Mon | F155: 2 | I155: 1 | K155: 43137.34514 | L155: 1.51 | M155: LW | N155: 0.3893129771 | O155: 08:17:00 | P155: 05:00:00 | Q155: 11:00:00 | R155: 0.4527777778 | S155: 43137.37573 | T155: 1.838167939 | U155: 43137.44171 | V155: 43137.36158 | W155: 1.677099237 | X155: 43137.28958 | Y155: 43137.35457 | Z155: 1.532824427 | AA155: 43137.32529 | AB155: 43137.34796 | AC155: 1.39389313 | AD155: Cls | AE155: 43137.18681 | AF155: 43137.33538 | AG155: 1.332824427 | AH155: 43137.32811 | AI155: 1.432824427 | AJ155: 43137.37416 | AK155: 1.877099237 | AL155: 43137.37416 | AM155: 1.877099237 | AN155: 43137.36564 | AO155: 1.877099237 | AP155: 43137.37102 | AQ155: 1.716030534 | AR155: 43137.33472 | AS155: 43137.35903 | AT155: 43137.33472 | AU155: 1.532824427 | AV155: 43137.33787 | AW155: 1.49389313 | AX155: 43137.32811 | AY155: 1.332824427 | AZ155: 43137.32463 | BA155: 1.29389313 | BB155: 43137.31926 | BC155: 1.39389313 | BD155: 43137.27412 | BE155: 1.149618321 | BF155: 43137.36944 | BH155: 43137.40208 | BI155: 43137.37639 | BK155: 2022-02-07T09:39:00 | BL155: 43137.40208
A156: 0 | B156: =IF(Instructions!$C$2="BST",A156,0) -> 0 | C156: 2022-02-07T14:29:00 | D156: 2022-02-07 | F156: 2 | I156: 1 | K156: 43137.60347 | L156: 5.12 | M156: HW | N156: 0.547826087 | O156: 14:29:00 | P156: 12:00:00 | Q156: 18:00:00 | R156: 0.5861111111 | S156: 43137.61652 | T156: 6.876521739 | U156: 43137.68249 | V156: 43137.61856 | W156: 6.62173913 | X156: 43137.55069 | Y156: 43137.59018 | Z156: 5.057391304 | AA156: 43137.57976 | AB156: 43137.58264 | AC156: 4.657391304 | AD156: Opn | AE156: 43137.46806 | AF156: 43137.58288 | AG156: 4.102608696 | AH156: 43137.55714 | AI156: 4.447826087 | AJ156: 43137.61796 | AK156: 6.776521739 | AL156: 43137.6194 | AM156: 6.731304348 | AN156: 43137.61449 | AO156: 6.52173913 | AP156: 43137.6188 | AQ156: 5.92173913 | AR156: 43137.59306 | AS156: 43137.61389 | AT156: 43137.57797 | AU156: 4.657391304 | AV156: 43137.57797 | AW156: 4.457391304 | AX156: 43137.5557 | AY156: 4.212173913 | AZ156: 43137.55223 | BA156: 4.057391304 | BB156: 43137.54876 | BC156: 4.002608696 | BD156: 43137.5005 | BE156: 3.857391304 | BF156: 43137.59306 | BH156: 43137.63403 | BI156: 43137.63472 | BK156: 2022-02-07T15:13:00 | BL156: 43137.63403
A157: 0 | B157: =IF(Instructions!$C$2="BST",A157,0) -> 0 | C157: 2022-02-07T20:47:00 | D157: 2022-02-07 | F157: 2 | I157: 1 | K157: 43137.86597 | L157: 1.54 | M157: LW | N157: 0.3664122137 | O157: 20:47:00 | P157: 17:00:00 | Q157: 23:00:00 | R157: 0.3694444444 | S157: 43137.89541 | T157: 1.877099237 | U157: 43137.96138 | V157: 43137.88386 | W157: 1.713740458 | X157: 43137.80069 | Y157: 43137.87367 | Z157: 1.560305344 | AA157: 43137.84786 | AB157: 43137.86763 | AC157: 1.423664122 | AD157: Cls | AE157: 43137.69722 | AF157: 43137.85737 | AG157: 1.360305344 | AH157: 43137.84952 | AI157: 1.460305344 | AJ157: 43137.89413 | AK157: 1.913740458 | AL157: 43137.89413 | AM157: 1.913740458 | AN157: 43137.8859 | AO157: 1.913740458 | AP157: 43137.89156 | AQ157: 1.750381679 | AR157: 43137.85556 | AS157: 43137.87986 | AT157: 43137.85556 | AU157: 1.560305344 | AV157: 43137.85812 | AW157: 1.523664122 | AX157: 43137.84952 | AY157: 1.360305344 | AZ157: 43137.84605 | BA157: 1.323664122 | BB157: 43137.84038 | BC157: 1.423664122 | BD157: 43137.79524 | BE157: 1.170229008 | BF157: 43137.89028 | BH157: 43137.92014 | BI157: 43137.89722 | BK157: 2022-02-07T22:05:00 | BL157: 43137.92014
A158: 0 | B158: =IF(Instructions!$C$2="BST",A158,0) -> 0 | C158: 2022-02-08T02:56:00 | D158: 2022-02-08 | E158: 2022-02-08 | F158: 2 | G158: Feb | H158: 8 | I158: 2 | J158: Tue | K158: 43138.12222 | L158: 4.6 | M158: HW | N158: 0.09565217391 | O158: 02:56:00 | P158: 00:00:00 | Q158: 06:00:00 | R158: 0.5111111111 | S158: 43138.13449 | T158: 6.153043478 | U158: 43138.20046 | V158: 43138.13627 | W158: 5.943478261 | X158: 43138.06875 | Y158: 43138.10841 | Z158: 4.514782609 | AA158: 43138.09799 | AB158: 43138.10139 | AC158: 4.114782609 | AD158: Opn | AE158: 43137.98681 | AF158: 43138.10293 | AG158: 3.605217391 | AH158: 43138.07693 | AI158: 3.995652174 | AJ158: 43138.13619 | AK158: 6.053043478 | AL158: 43138.13789 | AM158: 5.962608696 | AN158: 43138.13272 | AO158: 5.843478261 | AP158: 43138.13781 | AQ158: 5.243478261 | AR158: 43138.11181 | AS158: 43138.13264 | AT158: 43138.09776 | AU158: 4.114782609 | AV158: 43138.09776 | AW158: 3.914782609 | AX158: 43138.07523 | AY158: 3.624347826 | AZ158: 43138.07176 | BA158: 3.514782609 | BB158: 43138.06829 | BC158: 3.505217391 | BD158: 43138.01821 | BE158: 3.314782609 | BF158: 43138.11181 | BH158: 43138.15208 | BI158: 43138.15347 | BK158: 2022-02-08T03:39:00 | BL158: 43138.15208
A159: 0 | B159: =IF(Instructions!$C$2="BST",A159,0) -> 0 | C159: 2022-02-08T09:03:00 | D159: 2022-02-08 | E159: Tue | F159: 2 | I159: 2 | K159: 43138.37708 | L159: 1.84 | M159: LW | N159: 0.1374045802 | O159: 09:03:00 | P159: 05:00:00 | Q159: 11:00:00 | R159: 0.325 | S159: 43138.4059 | T159: 2.266412214 | U159: 43138.47188 | V159: 43138.39575 | W159: 2.080152672 | X159: 43138.31875 | Y159: 43138.38385 | Z159: 1.835114504 | AA159: 43138.3599 | AB159: 43138.37813 | AC159: 1.721374046 | AD159: Cls | AE159: 43138.21597 | AF159: 43138.3691 | AG159: 1.635114504 | AH159: 43138.36094 | AI159: 1.735114504 | AJ159: 43138.40477 | AK159: 2.280152672 | AL159: 43138.40477 | AM159: 2.280152672 | AN159: 43138.3967 | AO159: 2.280152672 | AP159: 43138.40252 | AQ159: 2.09389313 | AR159: 43138.36667 | AS159: 43138.39097 | AT159: 43138.36667 | AU159: 1.835114504 | AV159: 43138.36892 | AW159: 1.821374046 | AX159: 43138.36094 | AY159: 1.635114504 | AZ159: 43138.35747 | BA159: 1.621374046 | BB159: 43138.35165 | BC159: 1.721374046 | BD159: 43138.30651 | BE159: 1.376335878 | BF159: 43138.40139 | BH159: 43138.42917 | BI159: 43138.40833 | BK159: 2022-02-08T10:18:00 | BL159: 43138.42917
A160: 0 | B160: =IF(Instructions!$C$2="BST",A160,0) -> 0 | C160: 2022-02-08T15:15:00 | D160: 2022-02-08 | F160: 2 | I160: 2 | K160: 43138.63542 | L160: 4.79 | M160: HW | N160: 0.2608695652 | O160: 15:15:00 | P160: 12:00:00 | Q160: 18:00:00 | R160: 0.4583333333 | S160: =IF($M160="HW",$K160+S$6+(S$5-S$6)*$R160,$K160+S$8+(S$7-S$8)*$R160) -> 43138.64714 | T160: 6.417391304 | U160: 43138.71311 | V160: 43138.64873 | W160: 6.191304348 | X160: 43138.58264 | Y160: =IF($M160="HW",$K160+Y$6+(Y$5-Y$6)*$R160,$K160+Y$8+(Y$7-Y$8)*$R160) -> 43138.62124 | Z160: 4.713043478 | AA160: 43138.61082 | AB160: 43138.61458 | AC160: 4.313043478 | AD160: Opn | AE160: 43138.5 | AF160: 43138.61704 | AG160: 3.786956522 | AH160: 43138.59086 | AI160: 4.160869565 | AJ160: 43138.64902 | AK160: 6.317391304 | AL160: 43138.6509 | AM160: 6.243478261 | AN160: 43138.64554 | AO160: 6.091304348 | AP160: 43138.65119 | AQ160: 5.491304348 | AR160: =IF($M160="HW",$K160+AR$6+(AR$5-AR$6)*$R160,$K160+AR$8+(AR$7-AR$8)*$R160) -> 43138.625 | AS160: 43138.64583 | AT160: 43138.61169 | AU160: 4.313043478 | AV160: 43138.61169 | AW160: 4.113043478 | AX160: 43138.58898 | AY160: 3.839130435 | AZ160: 43138.5855 | BA160: 3.713043478 | BB160: 43138.58203 | BC160: 3.686956522 | BD160: 43138.53067 | BE160: 3.513043478 | BF160: =IF($M160="HW",$K160+BF$6+(BF$5-BF$6)*$R160,$K160+BF$8+(BF$7-BF$8)*$R160) -> 43138.625 | BH160: 43138.66597 | BI160: 43138.66667 | BK160: 2022-02-08T15:59:00 | BL160: 43138.66597
A161: 0 | B161: =IF(Instructions!$C$2="BST",A161,0) -> 0 | C161: 2022-02-08T21:36:00 | D161: 2022-02-08 | F161: 2 | I161: 2 | K161: 43138.9 | L161: 1.9 | M161: LW | N161: 0.09160305344 | O161: 21:36:00 | P161: 17:00:00 | Q161: 23:00:00 | R161: 0.2333333333 | S161: 43138.92755 | T161: 2.344274809 | U161: 43138.99352 | V161: 43138.92025 | W161: 2.153435115 | X161: 43138.83264 | Y161: 43138.90486 | Z161: 1.890076336 | AA161: 43138.88472 | AB161: 43138.89977 | AC161: 1.780916031 | AD161: Cls | AE161: 43138.72917 | AF161: 43138.89329 | AG161: 1.690076336 | AH161: 43138.88449 | AI161: 1.790076336 | AJ161: 43138.92674 | AK161: 2.353435115 | AL161: 43138.92674 | AM161: 2.353435115 | AN161: 43138.91898 | AO161: 2.353435115 | AP161: 43138.92512 | AQ161: 2.16259542 | AR161: 43138.88958 | AS161: 43138.91389 | AT161: 43138.88958 | AU161: 1.890076336 | AV161: 43138.8912 | AW161: 1.880916031 | AX161: 43138.88449 | AY161: 1.690076336 | AZ161: 43138.88102 | BA161: 1.680916031 | BB161: 43138.87488 | BC161: 1.780916031 | BD161: 43138.82975 | BE161: 1.417557252 | BF161: 43138.92431 | BH161: 43138.94792 | BI161: 43138.93125 | BK161: 2022-02-08T22:45:00 | BL161: 43138.94792
A162: 0 | B162: =IF(Instructions!$C$2="BST",A162,0) -> 0 | C162: 2022-02-09T03:47:00 | D162: 2022-02-09 | E162: 2022-02-09 | F162: 2 | G162: Feb | H162: 9 | I162: 3 | J162: Wed | K162: 43139.15764 | L162: 4.38 | M162: HW | N162: -0.09565217391 | O162: 03:47:00 | P162: 00:00:00 | Q162: 06:00:00 | R162: 0.3694444445 | S162: 43139.16843 | T162: 5.846956522 | U162: 43139.2344 | V162: 43139.16971 | W162: 5.656521739 | X162: 43139.10278 | Y162: 43139.14284 | Z162: 4.285217391 | AA162: 43139.13243 | AB162: 43139.13681 | AC162: 3.885217391 | AD162: Opn | AE162: 43139.02222 | AF162: 43139.14081 | AG162: 3.394782609 | AH162: 43139.11431 | AI162: 3.804347826 | AJ162: 43139.17062 | AK162: 5.746956522 | AL162: 43139.17281 | AM162: 5.637391304 | AN162: 43139.16715 | AO162: 5.556521739 | AP162: 43139.17372 | AQ162: 4.956521739 | AR162: 43139.14722 | AS162: 43139.16806 | AT162: 43139.13515 | AU162: 3.885217391 | AV162: 43139.13515 | AW162: 3.685217391 | AX162: 43139.11212 | AY162: 3.375652174 | AZ162: 43139.10865 | BA162: 3.285217391 | BB162: 43139.10518 | BC162: 3.294782609 | BD162: 43139.05166 | BE162: 3.085217391 | BF162: 43139.14722 | BH162: 43139.18611 | BI162: 43139.18889 | BK162: 2022-02-09T04:28:00 | BL162: 43139.18611
A163: 0 | B163: =IF(Instructions!$C$2="BST",A163,0) -> 0 | C163: 2022-02-09T10:00:00 | D163: 2022-02-09 | E163: Wed | F163: 2 | I163: 3 | K163: 43139.41667 | L163: 2.15 | M163: LW | N163: -0.09923664122 | O163: 10:00:00 | P163: 05:00:00 | Q163: 11:00:00 | R163: 0.1666666667 | S163: 43139.44329 | T163: 2.66870229 | U163: 43139.50926 | V163: 43139.43808 | W163: 2.458778626 | X163: 43139.35278 | Y163: 43139.42014 | Z163: 2.119083969 | AA163: 43139.40278 | AB163: 43139.41551 | AC163: 2.029007634 | AD163: Cls | AE163: 43139.25139 | AF163: 43139.41088 | AG163: 1.919083969 | AH163: 43139.40162 | AI163: 2.019083969 | AJ163: 43139.44271 | AK163: 2.658778626 | AL163: 43139.44271 | AM163: 2.658778626 | AN163: 43139.43519 | AO163: 2.658778626 | AP163: 43139.44155 | AQ163: 2.448854962 | AR163: 43139.40625 | AS163: 43139.43056 | AT163: 43139.40625 | AU163: 2.119083969 | AV163: 43139.40741 | AW163: 2.129007634 | AX163: 43139.40162 | AY163: 1.919083969 | AZ163: 43139.39815 | BA163: 1.929007634 | BB163: 43139.39178 | BC163: 2.029007634 | BD163: 43139.34664 | BE163: 1.589312977 | BF163: 43139.44097 | BH163: 43139.46319 | BI163: 43139.44792 | BK163: 2022-02-09T11:07:00 | BL163: 43139.46319
A164: 0 | B164: =IF(Instructions!$C$2="BST",A164,0) -> 0 | C164: 2022-02-09T16:12:00 | D164: 2022-02-09 | F164: 2 | I164: 3 | K164: 43139.675 | L164: 4.49 | M164: HW | N164: 0 | O164: 16:12:00 | P164: 12:00:00 | Q164: 18:00:00 | R164: 0.3 | S164: 43139.68507 | T164: 6 | U164: 43139.75104 | V164: 43139.68611 | W164: 5.8 | X164: 43139.62153 | Y164: 43139.65972 | Z164: 4.4 | AA164: 43139.64931 | AB164: 43139.65417 | AC164: 4 | AD164: Opn | AE164: 43139.53958 | AF164: 43139.65938 | AG164: 3.5 | AH164: 43139.63264 | AI164: 3.9 | AJ164: 43139.6875 | AK164: 5.9 | AL164: 43139.68993 | AM164: 5.8 | AN164: 43139.68403 | AO164: 5.7 | AP164: 43139.69132 | AQ164: 5.1 | AR164: 43139.66458 | AS164: 43139.68542 | AT164: 43139.65347 | AU164: 4 | AV164: 43139.65347 | AW164: 3.8 | AX164: 43139.63021 | AY164: 3.5 | AZ164: 43139.62674 | BA164: 3.4 | BB164: 43139.62326 | BC164: 3.4 | BD164: 43139.56806 | BE164: 3.2 | BF164: 43139.66458 | BH164: 43139.70486 | BI164: 43139.70625 | BK164: 2022-02-09T16:55:00 | BL164: 43139.70486
A165: 0 | B165: =IF(Instructions!$C$2="BST",A165,0) -> 0 | C165: 2022-02-09T22:38:00 | D165: 2022-02-09 | F165: 2 | I165: 3 | K165: 43139.94306 | L165: 2.2 | M165: LW | N165: -0.1374045802 | O165: 22:38:00 | P165: 17:00:00 | Q165: 23:00:00 | R165: 0.0611111111 | S165: 43139.96821 | T165: 2.733587786 | U165: 43140.03418 | V165: 43139.9663 | W165: 2.519847328 | X165: 43139.87153 | Y165: 43139.94433 | Z165: 2.164885496 | AA165: 43139.93137 | AB165: 43139.94043 | AC165: 2.078625954 | AD165: Cls | AE165: 43139.76875 | AF165: 43139.93873 | AG165: 1.964885496 | AH165: 43139.92874 | AI165: 2.064885496 | AJ165: 43139.968 | AK165: 2.719847328 | AL165: 43139.968 | AM165: 2.719847328 | AN165: 43139.96084 | AO165: 2.719847328 | AP165: 43139.96757 | AQ165: 2.50610687 | AR165: 43139.93264 | AS165: 43139.95694 | AT165: 43139.93264 | AU165: 2.164885496 | AV165: 43139.93306 | AW165: 2.178625954 | AX165: 43139.92874 | AY165: 1.964885496 | AZ165: 43139.92527 | BA165: 1.978625954 | BB165: 43139.91854 | BC165: 2.078625954 | BD165: 43139.8734 | BE165: 1.623664122 | BF165: 43139.96736 | BH165: 43139.98403 | BI165: 43139.97431 | BK165: 2022-02-09T23:37:00 | BL165: 43139.98403
A166: 0 | B166: =IF(Instructions!$C$2="BST",A166,0) -> 0 | C166: 2022-02-10T04:56:00 | D166: 2022-02-10 | E166: 2022-02-10 | F166: 2 | G166: Feb | H166: 10 | I166: 4 | J166: Thu | K166: 43140.20556 | L166: 4.23 | M166: HW | N166: -0.2260869565 | O166: 04:56:00 | P166: 00:00:00 | Q166: 06:00:00 | R166: 0.1777777778 | S166: 43140.21435 | T166: 5.63826087 | U166: 43140.28032 | V166: 43140.21497 | W166: 5.460869565 | X166: 43140.14722 | Y166: 43140.18943 | Z166: 4.128695652 | AA166: 43140.17901 | AB166: 43140.18472 | AC166: 3.728695652 | AD166: Opn | AE166: 43140.07014 | AF166: 43140.19205 | AG166: 3.251304348 | AH166: 43140.16489 | AI166: 3.673913043 | AJ166: 43140.21721 | AK166: 5.53826087 | AL166: 43140.22006 | AM166: 5.415652174 | AN166: 43140.21373 | AO166: 5.360869565 | AP166: 43140.2223 | AQ166: 4.760869565 | AR166: 43140.19514 | AS166: 43140.21597 | AT166: 43140.18573 | AU166: 3.728695652 | AV166: 43140.18573 | AW166: 3.528695652 | AX166: 43140.16204 | AY166: 3.206086957 | AZ166: 43140.15856 | BA166: 3.128695652 | BB166: 43140.15509 | BC166: 3.151304348 | BD166: 43140.09691 | BE166: 2.928695652 | BF166: 43140.19514 | BH166: 43140.23056 | BI166: 43140.23681 | BK166: 2022-02-10T05:32:00 | BL166: 43140.23056
A167: 0 | B167: =IF(Instructions!$C$2="BST",A167,0) -> 0 | C167: 2022-02-10T11:18:00 | D167: 2022-02-10 | E167: Thu | F167: 2 | I167: 4 | K167: 43140.47083 | L167: 2.36 | M167: LW | N167: -0.2595419847 | O167: 11:18:00 | P167: 17:00:00 | Q167: 11:00:00 | R167: 0.05 | S167: 43140.49583 | T167: 2.941221374 | U167: 43140.56181 | V167: 43140.49427 | W167: 2.715267176 | X167: 43140.39722 | Y167: 43140.47188 | Z167: 2.311450382 | AA167: 43140.45937 | AB167: 43140.46806 | AC167: 2.23740458 | AD167: Cls | AE167: 43140.29931 | AF167: 43140.46667 | AG167: 2.111450382 | AH167: 43140.4566 | AI167: 2.211450382 | AJ167: 43140.49566 | AK167: 2.915267176 | AL167: 43140.49566 | AM167: 2.915267176 | AN167: 43140.48854 | AO167: 2.915267176 | AP167: 43140.49531 | AQ167: 2.689312977 | AR167: 43140.46042 | AS167: 43140.48472 | AT167: 43140.46042 | AU167: 2.311450382 | AV167: 43140.46076 | AW167: 2.33740458 | AX167: 43140.4566 | AY167: 2.111450382 | AZ167: 43140.45312 | BA167: 2.13740458 | BB167: 43140.44635 | BC167: 2.23740458 | BD167: 43140.40122 | BE167: 1.733587786 | BF167: 43140.49514 | BH167: 43140.50972 | BI167: 43140.50208 | BK167: 2022-02-10T12:14:00 | BL167: 43140.50972
A168: 0 | B168: =IF(Instructions!$C$2="BST",A168,0) -> 0 | C168: 2022-02-10T17:31:00 | D168: 2022-02-10 | F168: 2 | I168: 4 | K168: 43140.72986 | L168: 4.3 | M168: HW | N168: -0.1652173913 | O168: 17:31:00 | P168: 12:00:00 | Q168: 18:00:00 | R168: 0.08055555556 | S168: 43140.73764 | T168: 5.735652174 | U168: 43140.80362 | V168: 43140.73792 | W168: 5.552173913 | X168: 43140.67222 | Y168: 43140.71306 | Z168: 4.20173913 | AA168: 43140.70264 | AB168: 43140.70903 | AC168: 3.80173913 | AD168: Opn | AE168: 43140.59444 | AF168: 43140.71805 | AG168: 3.31826087 | AH168: 43140.69055 | AI168: 3.734782609 | AJ168: 43140.74084 | AK168: 5.635652174 | AL168: 43140.74403 | AM168: 5.519130435 | AN168: 43140.73736 | AO168: 5.452173913 | AP168: 43140.74694 | AQ168: 4.852173913 | AR168: 43140.71944 | AS168: 43140.74028 | AT168: 43140.71138 | AU168: 3.80173913 | AV168: 43140.71138 | AW168: 3.60173913 | AX168: 43140.68736 | AY168: 3.285217391 | AZ168: 43140.68388 | BA168: 3.20173913 | BB168: 43140.68041 | BC168: 3.21826087 | BD168: 43140.61987 | BE168: 3.00173913 | BF168: 43140.71944 | BH168: 43140.75556 | BI168: 43140.76111 | BK168: 2022-02-10T18:08:00 | BL168: 43140.75556
A169: 0 | B169: =IF(Instructions!$C$2="BST",A169,0) -> 0 | C169: 2022-02-10T23:58:00 | D169: 2022-02-10 | F169: 2 | I169: 4 | K169: 43140.99861 | L169: 2.35 | M169: LW | N169: -0.2519083969 | O169: 23:58:00 | P169: 1.208333333 | Q169: 23:00:00 | R169: 0.1611111111 | S169: 43141.02515 | T169: 2.928244275 | U169: 43141.09113 | V169: 43141.02012 | W169: 2.703053435 | X169: 43140.92222 | Y169: 43141.00197 | Z169: 2.302290076 | AA169: 43140.98484 | AB169: 43140.99738 | AC169: 2.227480916 | AD169: Cls | AE169: 43140.82361 | AF169: 43140.9929 | AG169: 2.102290076 | AH169: 43140.9836 | AI169: 2.202290076 | AJ169: 43141.02459 | AK169: 2.903053435 | AL169: 43141.02459 | AM169: 2.903053435 | AN169: 43141.01709 | AO169: 2.903053435 | AP169: 43141.02348 | AQ169: 2.677862595 | AR169: 43140.98819 | AS169: 43141.0125 | AT169: 43140.98819 | AU169: 2.302290076 | AV169: 43140.98931 | AW169: 2.327480916 | AX169: 43140.9836 | AY169: 2.102290076 | AZ169: 43140.98013 | BA169: 2.127480916 | BB169: 43140.97375 | BC169: 2.227480916 | BD169: 43140.92861 | BE169: 1.726717557 | BF169: 43141.02292 | BH169: 43141.03403 | BI169: 43141.02986 | BK169: 2022-02-11T00:49:00 | BL169: 43141.03403
A170: 0 | B170: =IF(Instructions!$C$2="BST",A170,0) -> 0 | C170: 2022-02-11T06:27:00 | D170: 2022-02-11 | E170: 2022-02-11 | F170: 2 | G170: Feb | H170: 11 | I170: 5 | J170: Fri | K170: 43141.26875 | L170: 4.26 | M170: HW | N170: -0.2 | O170: 06:27:00 | P170: 12:00:00 | Q170: 06:00:00 | R170: 0.07500000001 | S170: 43141.27648 | T170: 5.68 | U170: 43141.34245 | V170: 43141.27674 | W170: 5.5 | X170: 43141.20486 | Y170: 43141.25191 | Z170: 4.16 | AA170: 43141.24149 | AB170: 43141.24792 | AC170: 3.76 | AD170: Opn | AE170: 43141.13333 | AF170: 43141.25703 | AG170: 3.28 | AH170: 43141.22951 | AI170: 3.7 | AJ170: 43141.27969 | AK170: 5.58 | AL170: 43141.2829 | AM170: 5.46 | AN170: 43141.27622 | AO170: 5.4 | AP170: 43141.28585 | AQ170: 4.8 | AR170: 43141.25833 | AS170: 43141.27917 | AT170: 43141.25035 | AU170: 3.76 | AV170: 43141.25035 | AW170: 3.56 | AX170: 43141.2263 | AY170: 3.24 | AZ170: 43141.22283 | BA170: 3.16 | BB170: 43141.21936 | BC170: 3.18 | BD170: 43141.15868 | BE170: 2.96 | BF170: 43141.25833 | BH170: 43141.28819 | BI170: 43141.3 | BK170: 2022-02-11T06:55:00 | BL170: 43141.28819
A171: 0 | B171: =IF(Instructions!$C$2="BST",A171,0) -> 0 | C171: 2022-02-11T12:46:00 | D171: 2022-02-11 | E171: Fri | F171: 2 | I171: 5 | K171: 43141.53194 | L171: 2.35 | M171: LW | N171: -0.2519083969 | O171: 12:46:00 | P171: 17:00:00 | Q171: 11:00:00 | R171: 0.2944444445 | S171: 43141.56034 | T171: 2.928244275 | U171: 43141.62631 | V171: 43141.55114 | W171: 2.703053435 | X171: 43141.45486 | Y171: 43141.53808 | Z171: 2.302290076 | AA171: 43141.51539 | AB171: 43141.53256 | AC171: 2.227480916 | AD171: Cls | AE171: 43141.3625 | AF171: 43141.52438 | AG171: 2.102290076 | AH171: 43141.51601 | AI171: 2.202290076 | AJ171: 43141.55932 | AK171: 2.903053435 | AL171: 43141.55932 | AM171: 2.903053435 | AN171: 43141.55135 | AO171: 2.903053435 | AP171: 43141.55727 | AQ171: 2.677862595 | AR171: 43141.52153 | AS171: 43141.54583 | AT171: 43141.52153 | AU171: 2.302290076 | AV171: 43141.52357 | AW171: 2.327480916 | AX171: 43141.51601 | AY171: 2.102290076 | AZ171: 43141.51254 | BA171: 2.127480916 | BB171: 43141.50662 | BC171: 2.227480916 | BD171: 43141.46148 | BE171: 1.726717557 | BF171: 43141.55625 | BH171: 43141.57014 | BI171: 43141.56319 | BK171: 2022-02-11T13:41:00 | BL171: 43141.57014
A172: 0 | B172: =IF(Instructions!$C$2="BST",A172,0) -> 0 | C172: 2022-02-11T19:01:00 | D172: 2022-02-11 | F172: 2 | I172: 5 | K172: 43141.79236 | L172: 4.32 | M172: HW | N172: -0.147826087 | O172: 19:01:00 | P172: 1 | Q172: 18:00:00 | R172: 0.1694444444 | S172: 43141.80107 | T172: 5.763478261 | U172: 43141.86704 | V172: 43141.80166 | W172: 5.57826087 | X172: 43141.73194 | Y172: 43141.77618 | Z172: 4.222608696 | AA172: 43141.76576 | AB172: 43141.77153 | AC172: 3.822608696 | AD172: Opn | AE172: 43141.65694 | AF172: 43141.779 | AG172: 3.337391304 | AH172: 43141.75181 | AI172: 3.752173913 | AJ172: 43141.80395 | AK172: 5.663478261 | AL172: 43141.80684 | AM172: 5.548695652 | AN172: 43141.80048 | AO172: 5.47826087 | AP172: 43141.80913 | AQ172: 4.87826087 | AR172: 43141.78194 | AS172: 43141.80278 | AT172: 43141.77265 | AU172: 3.822608696 | AV172: 43141.77265 | AW172: 3.622608696 | AX172: 43141.74893 | AY172: 3.307826087 | AZ172: 43141.74546 | BA172: 3.222608696 | BB172: 43141.74198 | BC172: 3.237391304 | BD172: 43141.6836 | BE172: 3.022608696 | BF172: 43141.78194 | BH172: 43141.81528 | BI172: 43141.82361 | BK172: 2022-02-11T19:34:00 | BL172: 43141.81528
A173: 0 | B173: =IF(Instructions!$C$2="BST",A173,0) -> 0 | C173: 2022-02-12T01:15:00 | D173: 2022-02-12 | E173: 2022-02-12 | F173: 2 | G173: Feb | H173: 12 | I173: 6 | J173: Sat | K173: 43142.05208 | L173: 2.28 | M173: LW | N173: -0.1984732824 | O173: 01:15:00 | P173: 05:00:00 | Q173: -0.04166666667 | R173: 0.375 | S173: 43142.0816 | T173: 2.83740458 | U173: 43142.14757 | V173: 43142.06988 | W173: 2.617557252 | X173: 43141.98194 | Y173: 43142.0599 | Z173: 2.238167939 | AA173: 43142.03385 | AB173: 43142.05382 | AC173: 2.158015267 | AD173: Cls | AE173: 43141.88611 | AF173: 43142.0434 | AG173: 2.038167939 | AH173: 43142.03559 | AI173: 2.138167939 | AJ173: 43142.0803 | AK173: 2.817557252 | AL173: 43142.0803 | AM173: 2.817557252 | AN173: 43142.07205 | AO173: 2.817557252 | AP173: 43142.07769 | AQ173: 2.597709924 | AR173: 43142.04167 | AS173: 43142.06597 | AT173: 43142.04167 | AU173: 2.238167939 | AV173: 43142.04427 | AW173: 2.258015267 | AX173: 43142.03559 | AY173: 2.038167939 | AZ173: 43142.03212 | BA173: 2.058015267 | BB173: 43142.02648 | BC173: 2.158015267 | BD173: 43141.98134 | BE173: 1.678625954 | BF173: 43142.07639 | BH173: 43142.09097 | BI173: 43142.08333 | BK173: 2022-02-12T02:11:00 | BL173: 43142.09097
A174: 0 | B174: =IF(Instructions!$C$2="BST",A174,0) -> 0 | C174: 2022-02-12T07:43:00 | D174: 2022-02-12 | E174: Sat | F174: 2 | I174: 6 | K174: 43142.32153 | L174: 4.48 | M174: HW | N174: -0.008695652174 | O174: 07:43:00 | P174: 12:00:00 | Q174: 06:00:00 | R174: 0.2861111111 | S174: 43142.33145 | T174: 5.986086957 | U174: 43142.39742 | V174: 43142.33245 | W174: 5.786956522 | X174: 43142.26181 | Y174: 43142.30615 | Z174: 4.389565217 | AA174: 43142.29574 | AB174: 43142.30069 | AC174: 3.989565217 | AD174: Opn | AE174: 43142.18611 | AF174: 43142.30614 | AG174: 3.490434783 | AH174: 43142.27936 | AI174: 3.891304348 | AJ174: 43142.33393 | AK174: 5.886086957 | AL174: 43142.33641 | AM174: 5.785217391 | AN174: 43142.33046 | AO174: 5.686956522 | AP174: 43142.3379 | AQ174: 5.086956522 | AR174: 43142.31111 | AS174: 43142.33194 | AT174: 43142.30019 | AU174: 3.989565217 | AV174: 43142.30019 | AW174: 3.789565217 | AX174: 43142.27688 | AY174: 3.488695652 | AZ174: 43142.27341 | BA174: 3.389565217 | BB174: 43142.26994 | BC174: 3.390434783 | BD174: 43142.21439 | BE174: 3.189565217 | BF174: 43142.31111 | BH174: 43142.34514 | BI174: 43142.35278 | BK174: 2022-02-12T08:17:00 | BL174: 43142.34514
A175: 0 | B175: =IF(Instructions!$C$2="BST",A175,0) -> 0 | C175: 2022-02-12T13:54:00 | D175: 2022-02-12 | F175: 2 | I175: 6 | K175: 43142.57917 | L175: 2.14 | M175: LW | N175: -0.09160305344 | O175: 13:54:00 | P175: 17:00:00 | Q175: 11:00:00 | R175: 0.4833333333 | S175: 43142.61019 | T175: 2.655725191 | U175: 43142.67616 | V175: 43142.59508 | W175: 2.446564885 | X175: 43142.51181 | Y175: 43142.58924 | Z175: 2.109923664 | AA175: 43142.55868 | AB175: 43142.58241 | AC175: 2.019083969 | AD175: Cls | AE175: 43142.41528 | AF175: 43142.56898 | AG175: 1.909923664 | AH175: 43142.56192 | AI175: 2.009923664 | AJ175: 43142.60851 | AK175: 2.646564885 | AL175: 43142.60851 | AM175: 2.646564885 | AN175: 43142.59988 | AO175: 2.646564885 | AP175: 43142.60515 | AQ175: 2.43740458 | AR175: 43142.56875 | AS175: 43142.59306 | AT175: 43142.56875 | AU175: 2.109923664 | AV175: 43142.57211 | AW175: 2.119083969 | AX175: 43142.56192 | AY175: 1.909923664 | AZ175: 43142.55845 | BA175: 1.919083969 | BB175: 43142.55318 | BC175: 2.019083969 | BD175: 43142.50804 | BE175: 1.582442748 | BF175: 43142.60347 | BH175: 43142.62361 | BI175: 43142.61042 | BK175: 2022-02-12T14:58:00 | BL175: 43142.62361
A176: 0 | B176: =IF(Instructions!$C$2="BST",A176,0) -> 0 | C176: 2022-02-12T20:08:00 | D176: 2022-02-12 | F176: 2 | I176: 6 | K176: 43142.83889 | L176: 4.52 | M176: HW | N176: 0.02608695652 | O176: 20:08:00 | P176: 1 | Q176: 18:00:00 | R176: 0.3555555556 | S176: =IF($M176="HW",$K176+S$6+(S$5-S$6)*$R176,$K176+S$8+(S$7-S$8)*$R176) -> 43142.84954 | T176: 6.04173913 | U176: 43142.91551 | V176: 43142.85077 | W176: 5.839130435 | X176: 43142.78125 | Y176: =IF($M176="HW",$K176+Y$6+(Y$5-Y$6)*$R176,$K176+Y$8+(Y$7-Y$8)*$R176) -> 43142.824 | Z176: 4.431304348 | AA176: 43142.81358 | AB176: 43142.81806 | AC176: 4.031304348 | AD176: Opn | AE176: 43142.70347 | AF176: 43142.8223 | AG176: 3.528695652 | AH176: 43142.79576 | AI176: 3.926086957 | AJ176: 43142.85177 | AK176: 5.94173913 | AL176: 43142.85401 | AM176: 5.844347826 | AN176: 43142.8483 | AO176: 5.739130435 | AP176: 43142.85502 | AQ176: 5.139130435 | AR176: =IF($M176="HW",$K176+AR$6+(AR$5-AR$6)*$R176,$K176+AR$8+(AR$7-AR$8)*$R176) -> 43142.82847 | AS176: 43142.84931 | AT176: 43142.81659 | AU176: 4.031304348 | AV176: 43142.81659 | AW176: 3.831304348 | AX176: 43142.79352 | AY176: 3.533913043 | AZ176: 43142.79005 | BA176: 3.431304348 | BB176: 43142.78657 | BC176: 3.428695652 | BD176: 43142.73272 | BE176: 3.231304348 | BF176: =IF($M176="HW",$K176+BF$6+(BF$5-BF$6)*$R176,$K176+BF$8+(BF$7-BF$8)*$R176) -> 43142.82847 | BH176: 43142.86458 | BI176: 43142.87014 | BK176: 2022-02-12T20:45:00 | BL176: 43142.86458
A177: 0 | B177: =IF(Instructions!$C$2="BST",A177,0) -> 0 | C177: 2022-02-13T02:12:00 | D177: 2022-02-13 | E177: 2022-02-13 | F177: 2 | G177: Feb | H177: 13 | I177: 7 | J177: Sun | K177: 43143.09167 | L177: 2.07 | M177: LW | N177: -0.03816793893 | O177: 02:12:00 | P177: 05:00:00 | Q177: -0.04166666667 | R177: 0.5333333333 | S177: 43143.12338 | T177: 2.564885496 | U177: 43143.18935 | V177: 43143.10671 | W177: 2.361068702 | X177: 43143.03125 | Y177: 43143.10278 | Z177: 2.045801527 | AA177: 43143.07014 | AB177: 43143.0956 | AC177: 1.949618321 | AD177: Cls | AE177: 43142.93264 | AF177: 43143.08079 | AG177: 1.845801527 | AH177: 43143.07407 | AI177: 1.945801527 | AJ177: 43143.12153 | AK177: 2.561068702 | AL177: 43143.12153 | AM177: 2.561068702 | AN177: 43143.11273 | AO177: 2.561068702 | AP177: 43143.11782 | AQ177: 2.357251908 | AR177: 43143.08125 | AS177: 43143.10556 | AT177: 43143.08125 | AU177: 2.045801527 | AV177: 43143.08495 | AW177: 2.049618321 | AX177: 43143.07407 | AY177: 1.845801527 | AZ177: 43143.0706 | BA177: 1.849618321 | BB177: 43143.06551 | BC177: 1.949618321 | BD177: 43143.02037 | BE177: 1.534351145 | BF177: 43143.11597 | BH177: 43143.13681 | BI177: 43143.12292 | BK177: 2022-02-13T03:17:00 | BL177: 43143.13681
A178: 0 | B178: =IF(Instructions!$C$2="BST",A178,0) -> 0 | C178: 2022-02-13T08:35:00 | D178: 2022-02-13 | E178: Sun | F178: 2 | I178: 7 | K178: 43143.35764 | L178: 4.77 | M178: HW | N178: 0.2434782609 | O178: 08:35:00 | P178: 12:00:00 | Q178: 06:00:00 | R178: 0.4305555556 | S178: 43143.36907 | T178: 6.389565217 | U178: 43143.43504 | V178: 43143.37056 | W178: 6.165217391 | X178: 43143.30139 | Y178: 43143.34327 | Z178: 4.692173913 | AA178: 43143.33285 | AB178: 43143.33681 | AC178: 4.292173913 | AD178: Opn | AE178: 43143.22222 | AF178: 43143.33975 | AG178: 3.767826087 | AH178: 43143.31346 | AI178: 4.143478261 | AJ178: 43143.37105 | AK178: 6.289565217 | AL178: 43143.37302 | AM178: 6.213913043 | AN178: 43143.36757 | AO178: 6.065217391 | AP178: 43143.37351 | AQ178: 5.465217391 | AR178: 43143.34722 | AS178: 43143.36806 | AT178: 43143.3343 | AU178: 4.292173913 | AV178: 43143.3343 | AW178: 4.092173913 | AX178: 43143.31149 | AY178: 3.816521739 | AZ178: 43143.30802 | BA178: 3.692173913 | BB178: 43143.30454 | BC178: 3.667826087 | BD178: 43143.25251 | BE178: 3.492173913 | BF178: 43143.34722 | BH178: 43143.38472 | BI178: 43143.38889 | BK178: 2022-02-13T09:14:00 | BL178: 43143.38472
A179: 0 | B179: =IF(Instructions!$C$2="BST",A179,0) -> 0 | C179: 2022-02-13T14:44:00 | D179: 2022-02-13 | F179: 2 | I179: 7 | K179: 43143.61389 | L179: 1.85 | M179: LW | N179: 0.1297709924 | O179: 14:44:00 | P179: 17:00:00 | Q179: 11:00:00 | R179: 0.6222222222 | S179: 43143.64684 | T179: 2.279389313 | U179: 43143.71281 | V179: 43143.62739 | W179: 2.092366412 | X179: 43143.55139 | Y179: 43143.62685 | Z179: 1.844274809 | AA179: 43143.59051 | AB179: 43143.61906 | AC179: 1.73129771 | AD179: Cls | AE179: 43143.45139 | AF179: 43143.60177 | AG179: 1.644274809 | AH179: 43143.59568 | AI179: 1.744274809 | AJ179: 43143.64468 | AK179: 2.292366412 | AL179: 43143.64468 | AM179: 2.292366412 | AN179: 43143.63557 | AO179: 2.292366412 | AP179: 43143.64035 | AQ179: 2.105343511 | AR179: 43143.60347 | AS179: 43143.62778 | AT179: 43143.60347 | AU179: 1.844274809 | AV179: 43143.60779 | AW179: 1.83129771 | AX179: 43143.59568 | AY179: 1.644274809 | AZ179: 43143.59221 | BA179: 1.63129771 | BB179: 43143.58742 | BC179: 1.73129771 | BD179: 43143.54228 | BE179: 1.383206107 | BF179: 43143.63819 | BH179: 43143.66319 | BI179: 43143.64514 | BK179: 2022-02-13T15:55:00 | BL179: 43143.66319
A180: 0 | B180: =IF(Instructions!$C$2="BST",A180,0) -> 0 | C180: 2022-02-13T20:55:00 | D180: 2022-02-13 | F180: 2 | I180: 7 | K180: 43143.87153 | L180: 4.76 | M180: HW | N180: 0.2347826087 | O180: 20:55:00 | P180: 1 | Q180: 18:00:00 | R180: 0.4861111111 | S180: 43143.88354 | T180: 6.375652174 | U180: 43143.94951 | V180: 43143.88522 | W180: 6.152173913 | X180: 43143.81597 | Y180: 43143.85754 | Z180: 4.68173913 | AA180: 43143.84713 | AB180: 43143.85069 | AC180: 4.28173913 | AD180: Opn | AE180: 43143.73611 | AF180: 43143.85267 | AG180: 3.75826087 | AH180: 43143.82658 | AI180: 4.134782609 | AJ180: 43143.88532 | AK180: 6.275652174 | AL180: 43143.8871 | AM180: 6.199130435 | AN180: 43143.88185 | AO180: 6.052173913 | AP180: 43143.8872 | AQ180: 5.452173913 | AR180: 43143.86111 | AS180: 43143.88194 | AT180: 43143.84742 | AU180: 4.28173913 | AV180: 43143.84742 | AW180: 4.08173913 | AX180: 43143.8248 | AY180: 3.805217391 | AZ180: 43143.82133 | BA180: 3.68173913 | BB180: 43143.81785 | BC180: 3.65826087 | BD180: 43143.76717 | BE180: 3.48173913 | BF180: 43143.86111 | BH180: 43143.89931 | BI180: 43143.90278 | BK180: 2022-02-13T21:35:00 | BL180: 43143.89931
A181: 0 | B181: =IF(Instructions!$C$2="BST",A181,0) -> 0 | C181: 2022-02-14T02:55:00 | D181: 2022-02-14 | E181: 2022-02-14 | F181: 2 | G181: Feb | H181: 14 | I181: 1 | J181: Mon | K181: 43144.12153 | L181: 1.82 | M181: LW | N181: 0.1526717557 | O181: 02:55:00 | P181: 05:00:00 | Q181: -0.04166666667 | R181: 0.6527777778 | S181: 43144.1549 | T181: 2.240458015 | U181: 43144.22087 | V181: 43144.1345 | W181: 2.055725191 | X181: 43144.06597 | Y181: 43144.13513 | Z181: 1.816793893 | AA181: 43144.09751 | AB181: 43144.12712 | AC181: 1.701526718 | AD181: Cls | AE181: 43143.96528 | AF181: 43144.10899 | AG181: 1.616793893 | AH181: 43144.10311 | AI181: 1.716793893 | AJ181: 43144.15263 | AK181: 2.255725191 | AL181: 43144.15263 | AM181: 2.255725191 | AN181: 43144.14342 | AO181: 2.255725191 | AP181: 43144.1481 | AQ181: 2.070992366 | AR181: 43144.11111 | AS181: 43144.13542 | AT181: 43144.11111 | AU181: 1.816793893 | AV181: 43144.11564 | AW181: 1.801526718 | AX181: 43144.10311 | AY181: 1.616793893 | AZ181: 43144.09963 | BA181: 1.601526718 | BB181: 43144.09496 | BC181: 1.701526718 | BD181: 43144.04982 | BE181: 1.36259542 | BF181: 43144.14583 | BH181: 43144.17153 | BI181: 43144.15278 | BK181: 2022-02-14T04:07:00 | BL181: 43144.17153
A182: 0 | B182: =IF(Instructions!$C$2="BST",A182,0) -> 0 | C182: 2022-02-14T09:14:00 | D182: 2022-02-14 | E182: Mon | F182: 2 | I182: 1 | K182: 43144.38472 | L182: 5.05 | M182: HW | N182: 0.4869565217 | O182: 09:14:00 | P182: 12:00:00 | Q182: 06:00:00 | R182: 0.5388888889 | S182: 43144.39728 | T182: 6.779130435 | U182: 43144.46325 | V182: 43144.39915 | W182: 6.530434783 | X182: 43144.33125 | Y182: 43144.3711 | Z182: 4.984347826 | AA182: 43144.36069 | AB182: 43144.36389 | AC182: 4.584347826 | AD182: Opn | AE182: 43144.24931 | AF182: 43144.36495 | AG182: 4.035652174 | AH182: 43144.33904 | AI182: 4.386956522 | AJ182: 43144.39888 | AK182: 6.679130435 | AL182: 43144.40048 | AM182: 6.627826087 | AN182: 43144.39541 | AO182: 6.430434783 | AP182: 43144.40021 | AQ182: 5.830434783 | AR182: 43144.37431 | AS182: 43144.39514 | AT182: 43144.35988 | AU182: 4.584347826 | AV182: 43144.35988 | AW182: 4.384347826 | AX182: 43144.33744 | AY182: 4.133043478 | AZ182: 43144.33397 | BA182: 3.984347826 | BB182: 43144.3305 | BC182: 3.935652174 | BD182: 43144.2811 | BE182: 3.784347826 | BF182: 43144.37431 | BH182: 43144.41458 | BI182: 43144.41597 | BK182: 2022-02-14T09:57:00 | BL182: 43144.41458
A183: 0 | B183: =IF(Instructions!$C$2="BST",A183,0) -> 0 | C183: 2022-02-14T15:23:00 | D183: 2022-02-14 | F183: 2 | I183: 1 | K183: 43144.64097 | L183: 1.56 | M183: LW | N183: 0.3511450382 | O183: 15:23:00 | P183: 17:00:00 | Q183: 11:00:00 | R183: 0.7305555556 | S183: 43144.67542 | T183: 1.903053435 | U183: 43144.7414 | V183: 43144.65259 | W183: 1.738167939 | X183: 43144.58125 | Y183: 43144.65619 | Z183: 1.578625954 | AA183: 43144.61534 | AB183: 43144.64765 | AC183: 1.44351145 | AD183: Cls | AE183: 43144.47847 | AF183: 43144.62735 | AG183: 1.378625954 | AH183: 43144.62201 | AI183: 1.478625954 | AJ183: 43144.67289 | AK183: 1.938167939 | AL183: 43144.67289 | AM183: 1.938167939 | AN183: 43144.66341 | AO183: 1.938167939 | AP183: 43144.66781 | AQ183: 1.773282443 | AR183: 43144.63056 | AS183: 43144.65486 | AT183: 43144.63056 | AU183: 1.578625954 | AV183: 43144.63563 | AW183: 1.54351145 | AX183: 43144.62201 | AY183: 1.378625954 | AZ183: 43144.61854 | BA183: 1.34351145 | BB183: 43144.61413 | BC183: 1.44351145 | BD183: 43144.56899 | BE183: 1.183969466 | BF183: 43144.66528 | BH183: 43144.69375 | BI183: 43144.67222 | BK183: 2022-02-14T16:39:00 | BL183: 43144.69375
A184: 0 | B184: =IF(Instructions!$C$2="BST",A184,0) -> 0 | C184: 2022-02-14T21:33:00 | D184: 2022-02-14 | F184: 2 | I184: 1 | K184: 43144.89792 | L184: 4.99 | M184: HW | N184: 0.4347826087 | O184: 21:33:00 | P184: 1 | Q184: 18:00:00 | R184: 0.5916666667 | S184: 43144.91102 | T184: 6.695652174 | U184: 43144.977 | V184: 43144.91308 | W184: 6.452173913 | X184: 43144.84514 | Y184: 43144.88466 | Z184: 4.92173913 | AA184: 43144.87425 | AB184: 43144.87708 | AC184: 4.52173913 | AD184: Opn | AE184: 43144.7625 | AF184: 43144.87723 | AG184: 3.97826087 | AH184: 43144.8515 | AI184: 4.334782609 | AJ184: 43144.91244 | AK184: 6.595652174 | AL184: 43144.91386 | AM184: 6.539130435 | AN184: 43144.90897 | AO184: 6.352173913 | AP184: 43144.91322 | AQ184: 5.752173913 | AR184: 43144.8875 | AS184: 43144.90833 | AT184: 43144.87234 | AU184: 4.52173913 | AV184: 43144.87234 | AW184: 4.32173913 | AX184: 43144.85009 | AY184: 4.065217391 | AZ184: 43144.84661 | BA184: 3.92173913 | BB184: 43144.84314 | BC184: 3.87826087 | BD184: 43144.79502 | BE184: 3.72173913 | BF184: 43144.8875 | BH184: 43144.92847 | BI184: 43144.92917 | BK184: 2022-02-14T22:17:00 | BL184: 43144.92847
A185: 0 | B185: =IF(Instructions!$C$2="BST",A185,0) -> 0 | C185: 2022-02-15T03:32:00 | D185: 2022-02-15 | E185: 2022-02-15 | F185: 2 | G185: Feb | H185: 15 | I185: 2 | J185: Tue | K185: 43145.14722 | L185: 1.56 | M185: LW | N185: 0.3511450382 | O185: 03:32:00 | P185: 05:00:00 | Q185: -0.04166666667 | R185: 0.7555555556 | S185: 43145.18202 | T185: 1.903053435 | U185: 43145.24799 | V185: 43145.15841 | W185: 1.738167939 | X185: 43145.09514 | Y185: 43145.16296 | Z185: 1.578625954 | AA185: 43145.12106 | AB185: 43145.15424 | AC185: 1.44351145 | AD185: Cls | AE185: 43144.99167 | AF185: 43145.13326 | AG185: 1.378625954 | AH185: 43145.12809 | AI185: 1.478625954 | AJ185: 43145.1794 | AK185: 1.938167939 | AL185: 43145.1794 | AM185: 1.938167939 | AN185: 43145.16983 | AO185: 1.938167939 | AP185: 43145.17415 | AQ185: 1.773282443 | AR185: 43145.13681 | AS185: 43145.16111 | AT185: 43145.13681 | AU185: 1.578625954 | AV185: 43145.14205 | AW185: 1.54351145 | AX185: 43145.12809 | AY185: 1.378625954 | AZ185: 43145.12461 | BA185: 1.34351145 | BB185: 43145.12029 | BC185: 1.44351145 | BD185: 43145.07515 | BE185: 1.183969466 | BF185: 43145.17153 | BH185: 43145.20069 | BI185: 43145.17847 | BK185: 2022-02-15T04:49:00 | BL185: 43145.20069
A186: 0 | B186: =IF(Instructions!$C$2="BST",A186,0) -> 0 | C186: 2022-02-15T09:49:00 | D186: 2022-02-15 | E186: Tue | F186: 2 | I186: 2 | K186: 43145.40903 | L186: 5.29 | M186: HW | N186: 0.6956521739 | O186: 09:49:00 | P186: 12:00:00 | Q186: 06:00:00 | R186: 0.6361111111 | S186: 43145.4226 | T186: 7.113043478 | U186: 43145.48857 | V186: 43145.42481 | W186: 6.843478261 | X186: 43145.35694 | Y186: 43145.39608 | Z186: 5.234782609 | AA186: 43145.38567 | AB186: 43145.38819 | AC186: 4.834782609 | AD186: Opn | AE186: 43145.27361 | AF186: 43145.38757 | AG186: 4.265217391 | AH186: 43145.362 | AI186: 4.595652174 | AJ186: 43145.42386 | AK186: 7.013043478 | AL186: 43145.42513 | AM186: 6.982608696 | AN186: 43145.42039 | AO186: 6.743478261 | AP186: 43145.42418 | AQ186: 6.143478261 | AR186: 43145.39861 | AS186: 43145.41944 | AT186: 43145.38283 | AU186: 4.834782609 | AV186: 43145.38283 | AW186: 4.634782609 | AX186: 43145.36073 | AY186: 4.404347826 | AZ186: 43145.35726 | BA186: 4.234782609 | BB186: 43145.35379 | BC186: 4.165217391 | BD186: 43145.30675 | BE186: 4.034782609 | BF186: 43145.39861 | BH186: 43145.44028 | BI186: 43145.44028 | BK186: 2022-02-15T10:34:00 | BL186: 43145.44028
A187: 0 | B187: =IF(Instructions!$C$2="BST",A187,0) -> 0 | C187: 2022-02-15T15:58:00 | D187: 2022-02-15 | F187: 2 | I187: 2 | K187: 43145.66528 | L187: 1.29 | M187: LW | N187: 0.5572519084 | O187: 15:58:00 | P187: 17:00:00 | Q187: 11:00:00 | R187: 0.8277777778 | S187: 43145.70108 | T187: 1.552671756 | U187: 43145.76705 | V187: 43145.67521 | W187: 1.408396947 | X187: 43145.60694 | Y187: 43145.68252 | Z187: 1.33129771 | AA187: 43145.63762 | AB187: 43145.6733 | AC187: 1.175572519 | AD187: Cls | AE187: 43145.50278 | AF187: 43145.65031 | AG187: 1.13129771 | AH187: 43145.64564 | AI187: 1.23129771 | AJ187: 43145.69821 | AK187: 1.608396947 | AL187: 43145.69821 | AM187: 1.608396947 | AN187: 43145.68839 | AO187: 1.608396947 | AP187: 43145.69246 | AQ187: 1.464122137 | AR187: 43145.65486 | AS187: 43145.67917 | AT187: 43145.65486 | AU187: 1.33129771 | AV187: 43145.66061 | AW187: 1.275572519 | AX187: 43145.64564 | AY187: 1.13129771 | AZ187: 43145.64217 | BA187: 1.075572519 | BB187: 43145.6381 | BC187: 1.175572519 | BD187: 43145.59296 | BE187: 0.9984732824 | BF187: 43145.68958 | BH187: 43145.72083 | BI187: 43145.69653 | BK187: 2022-02-15T17:18:00 | BL187: 43145.72083
A188: 0 | B188: =IF(Instructions!$C$2="BST",A188,0) -> 0 | C188: 2022-02-15T22:07:00 | D188: 2022-02-15 | F188: 2 | I188: 2 | K188: 43145.92153 | L188: 5.18 | M188: HW | N188: 0.6 | O188: 22:07:00 | P188: 1 | Q188: 18:00:00 | R188: 0.6861111111 | S188: 43145.93562 | T188: 6.96 | U188: 43146.00159 | V188: 43145.938 | W188: 6.7 | X188: 43145.87083 | Y188: 43145.90893 | Z188: 5.12 | AA188: 43145.89851 | AB188: 43145.90069 | AC188: 4.72 | AD188: Opn | AE188: 43145.78611 | AF188: 43145.8992 | AG188: 4.16 | AH188: 43145.8738 | AI188: 4.5 | AJ188: 43145.93671 | AK188: 6.86 | AL188: 43145.9378 | AM188: 6.82 | AN188: 43145.93324 | AO188: 6.6 | AP188: 43145.93651 | AQ188: 6 | AR188: 43145.91111 | AS188: 43145.93194 | AT188: 43145.89464 | AU188: 4.72 | AV188: 43145.89464 | AW188: 4.52 | AX188: 43145.87271 | AY188: 4.28 | AZ188: 43145.86924 | BA188: 4.12 | BB188: 43145.86577 | BC188: 4.06 | BD188: 43145.81995 | BE188: 3.92 | BF188: 43145.91111 | BH188: 43145.95417 | BI188: 43145.95278 | BK188: 2022-02-15T22:54:00 | BL188: 43145.95417
A189: 0 | B189: =IF(Instructions!$C$2="BST",A189,0) -> 0 | C189: 2022-02-16T04:05:00 | D189: 2022-02-16 | E189: 2022-02-16 | F189: 2 | G189: Feb | H189: 16 | I189: 3 | J189: Wed | K189: 43146.17014 | L189: 1.33 | M189: LW | N189: 0.5267175573 | O189: 04:05:00 | P189: 05:00:00 | Q189: -0.04166666667 | R189: 0.8472222222 | S189: 43146.20621 | T189: 1.604580153 | U189: 43146.27218 | V189: 43146.17974 | W189: 1.457251908 | X189: 43146.12083 | Y189: 43146.18779 | Z189: 1.367938931 | AA189: 43146.14207 | AB189: 43146.17843 | AC189: 1.215267176 | AD189: Cls | AE189: 43146.01528 | AF189: 43146.1549 | AG189: 1.167938931 | AH189: 43146.15037 | AI189: 1.267938931 | AJ189: 43146.20327 | AK189: 1.657251908 | AL189: 43146.20327 | AM189: 1.657251908 | AN189: 43146.19338 | AO189: 1.657251908 | AP189: 43146.19739 | AQ189: 1.509923664 | AR189: 43146.15972 | AS189: 43146.18403 | AT189: 43146.15972 | AU189: 1.367938931 | AV189: 43146.16561 | AW189: 1.315267176 | AX189: 43146.15037 | AY189: 1.167938931 | AZ189: 43146.14689 | BA189: 1.115267176 | BB189: 43146.14289 | BC189: 1.215267176 | BD189: 43146.09775 | BE189: 1.025954198 | BF189: 43146.19444 | BH189: 43146.22708 | BI189: 43146.20139 | BK189: 2022-02-16T05:27:00 | BL189: 43146.22708
A190: 0 | B190: =IF(Instructions!$C$2="BST",A190,0) -> 0 | C190: 2022-02-16T10:21:00 | D190: 2022-02-16 | E190: Wed | F190: 2 | I190: 3 | K190: 43146.43125 | L190: 5.48 | M190: HW | N190: 0.8608695652 | O190: 10:21:00 | P190: 12:00:00 | Q190: 06:00:00 | R190: 0.725 | S190: 43146.44575 | T190: 7.377391304 | U190: 43146.51172 | V190: 43146.44826 | W190: 7.091304348 | X190: 43146.37986 | Y190: 43146.41892 | Z190: 5.433043478 | AA190: 43146.40851 | AB190: 43146.41042 | AC190: 5.033043478 | AD190: Opn | AE190: 43146.29583 | AF190: 43146.40825 | AG190: 4.446956522 | AH190: 43146.38299 | AI190: 4.760869565 | AJ190: 43146.4467 | AK190: 7.277391304 | AL190: 43146.44766 | AM190: 7.263478261 | AN190: 43146.44323 | AO190: 6.991304348 | AP190: 43146.44609 | AQ190: 6.391304348 | AR190: 43146.42083 | AS190: 43146.44167 | AT190: 43146.40382 | AU190: 5.033043478 | AV190: 43146.40382 | AW190: 4.833043478 | AX190: 43146.38203 | AY190: 4.619130435 | AZ190: 43146.37856 | BA190: 4.433043478 | BB190: 43146.37509 | BC190: 4.346956522 | BD190: 43146.33021 | BE190: 4.233043478 | BF190: 43146.42083 | BH190: 43146.46319 | BI190: 43146.4625 | BK190: 2022-02-16T11:07:00 | BL190: 43146.46319
A191: 0 | B191: =IF(Instructions!$C$2="BST",A191,0) -> 0 | C191: 2022-02-16T16:30:00 | D191: 2022-02-16 | F191: 2 | I191: 3 | K191: 43146.6875 | L191: 1.06 | M191: LW | N191: 0.7328244275 | O191: 16:30:00 | P191: 17:00:00 | Q191: 11:00:00 | R191: 0.9166666667 | S191: 43146.72454 | T191: 1.254198473 | U191: 43146.79051 | V191: 43146.69589 | W191: 1.127480916 | X191: 43146.62986 | Y191: 43146.7066 | Z191: 1.120610687 | AA191: 43146.65799 | AB191: 43146.69676 | AC191: 0.9473282443 | AD191: Cls | AE191: 43146.525 | AF191: 43146.6713 | AG191: 0.920610687 | AH191: 43146.66725 | AI191: 1.020610687 | AJ191: 43146.72135 | AK191: 1.327480916 | AL191: 43146.72135 | AM191: 1.327480916 | AN191: 43146.71123 | AO191: 1.327480916 | AP191: 43146.71499 | AQ191: 1.200763359 | AR191: 43146.67708 | AS191: 43146.70139 | AT191: 43146.67708 | AU191: 1.120610687 | AV191: 43146.68345 | AW191: 1.047328244 | AX191: 43146.66725 | AY191: 0.920610687 | AZ191: 43146.66377 | BA191: 0.8473282443 | BB191: 43146.66001 | BC191: 0.9473282443 | BD191: 43146.61487 | BE191: 0.8404580153 | BF191: 43146.71181 | BH191: 43146.74653 | BI191: 43146.71875 | BK191: 2022-02-16T17:55:00 | BL191: 43146.74653
A192: 0 | B192: =IF(Instructions!$C$2="BST",A192,0) -> 0 | C192: 2022-02-16T22:40:00 | D192: 2022-02-16 | F192: 2 | I192: 3 | K192: 43146.94444 | L192: 5.32 | M192: HW | N192: 0.7217391304 | O192: 22:40:00 | P192: 1 | Q192: 18:00:00 | R192: 0.7777777778 | S192: 43146.95949 | T192: 7.154782609 | U192: 43147.02546 | V192: 43146.96219 | W192: 6.882608696 | X192: 43146.89444 | Y192: 43146.93248 | Z192: 5.266086957 | AA192: 43146.92207 | AB192: 43146.92361 | AC192: 4.866086957 | AD192: Opn | AE192: 43146.80903 | AF192: 43146.92052 | AG192: 4.293913043 | AH192: 43146.89545 | AI192: 4.62173913 | AJ192: 43146.96026 | AK192: 7.054782609 | AL192: 43146.96103 | AM192: 7.026956522 | AN192: 43146.95679 | AO192: 6.782608696 | AP192: 43146.9591 | AQ192: 6.182608696 | AR192: 43146.93403 | AS192: 43146.95486 | AT192: 43146.91628 | AU192: 4.866086957 | AV192: 43146.91628 | AW192: 4.666086957 | AX192: 43146.89468 | AY192: 4.43826087 | AZ192: 43146.8912 | BA192: 4.266086957 | BB192: 43146.88773 | BC192: 4.193913043 | BD192: 43146.84414 | BE192: 4.066086957 | BF192: 43146.93403 | BH192: 43146.97778 | BI192: 43146.97569 | BK192: 2022-02-16T23:28:00 | BL192: 43146.97778
A193: 0 | B193: =IF(Instructions!$C$2="BST",A193,0) -> 0 | C193: 2022-02-17T04:37:00 | D193: 2022-02-17 | E193: 2022-02-17 | F193: 2 | G193: Feb | H193: 17 | I193: 4 | J193: Thu | K193: 43147.19236 | L193: 1.14 | M193: LW | N193: 0.6717557252 | O193: 04:37:00 | P193: 05:00:00 | Q193: -0.04166666667 | R193: 0.9361111111 | S193: =IF($M193="HW",$K193+S$6+(S$5-S$6)*$R193,$K193+S$8+(S$7-S$8)*$R193) -> 43147.22967 | T193: 1.358015267 | U193: 43147.29564 | V193: 43147.20041 | W193: 1.22519084 | X193: 43147.14444 | Y193: =IF($M193="HW",$K193+Y$6+(Y$5-Y$6)*$R193,$K193+Y$8+(Y$7-Y$8)*$R193) -> 43147.21186 | Z193: 1.19389313 | AA193: 43147.16244 | AB193: 43147.20189 | AC193: 1.026717557 | AD193: Cls | AE193: 43147.03819 | AF193: 43147.17589 | AG193: 0.9938931298 | AH193: 43147.17197 | AI193: 1.09389313 | AJ193: 43147.22642 | AK193: 1.42519084 | AL193: 43147.22642 | AM193: 1.42519084 | AN193: 43147.21622 | AO193: 1.42519084 | AP193: 43147.21992 | AQ193: 1.292366412 | AR193: =IF($M193="HW",$K193+AR$6+(AR$5-AR$6)*$R193,$K193+AR$8+(AR$7-AR$8)*$R193) -> 43147.18194 | AS193: 43147.20625 | AT193: 43147.18194 | AU193: 1.19389313 | AV193: 43147.18845 | AW193: 1.126717557 | AX193: 43147.17197 | AY193: 0.9938931298 | AZ193: 43147.1685 | BA193: 0.9267175573 | BB193: 43147.16481 | BC193: 1.026717557 | BD193: 43147.11967 | BE193: 0.8954198473 | BF193: =IF($M193="HW",$K193+BF$6+(BF$5-BF$6)*$R193,$K193+BF$8+(BF$7-BF$8)*$R193) -> 43147.21667 | BH193: 43147.25278 | BI193: 43147.22361 | BK193: 2022-02-17T06:04:00 | BL193: 43147.25278
A194: 0 | B194: =IF(Instructions!$C$2="BST",A194,0) -> 0 | C194: 2022-02-17T10:53:00 | D194: 2022-02-17 | E194: Thu | F194: 2 | I194: 4 | K194: 43147.45347 | L194: 5.62 | M194: HW | N194: 0.9826086957 | O194: 10:53:00 | P194: 12:00:00 | Q194: 06:00:00 | R194: 0.8138888889 | S194: 43147.46889 | T194: 7.572173913 | U194: 43147.53487 | V194: 43147.47172 | W194: 7.273913043 | X194: 43147.40208 | Y194: 43147.44176 | Z194: 5.579130435 | AA194: 43147.43135 | AB194: 43147.43264 | AC194: 5.179130435 | AD194: Opn | AE194: 43147.31806 | AF194: 43147.42893 | AG194: 4.580869565 | AH194: 43147.40397 | AI194: 4.882608696 | AJ194: 43147.46954 | AK194: 7.472173913 | AL194: 43147.47019 | AM194: 7.470434783 | AN194: 43147.46607 | AO194: 7.173913043 | AP194: 43147.46801 | AQ194: 6.573913043 | AR194: 43147.44306 | AS194: 43147.46389 | AT194: 43147.42481 | AU194: 5.179130435 | AV194: 43147.42481 | AW194: 4.979130435 | AX194: 43147.40333 | AY194: 4.777391304 | AZ194: 43147.39986 | BA194: 4.579130435 | BB194: 43147.39638 | BC194: 4.480869565 | BD194: 43147.35367 | BE194: 4.379130435 | BF194: 43147.44306 | BH194: 43147.48542 | BI194: 43147.48472 | BK194: 2022-02-17T11:39:00 | BL194: 43147.48542
A195: 0 | B195: =IF(Instructions!$C$2="BST",A195,0) -> 0 | C195: 2022-02-17T17:03:00 | D195: 2022-02-17 | F195: 2 | I195: 4 | K195: 43147.71042 | L195: 0.88 | M195: LW | N195: 0.8702290076 | O195: 17:03:00 | P195: 17:00:00 | Q195: 23:00:00 | R195: 0.9916666667 | S195: 43147.7485 | T195: 1.020610687 | U195: 43147.81447 | V195: 43147.71751 | W195: 0.9076335878 | X195: 43147.65208 | Y195: 43147.73108 | Z195: 0.9557251908 | AA195: 43147.67934 | AB195: 43147.72072 | AC195: 0.7687022901 | AD195: Cls | AE195: 43147.54722 | AF195: 43147.69317 | AG195: 0.7557251908 | AH195: 43147.68964 | AI195: 0.8557251908 | AJ195: 43147.74505 | AK195: 1.107633588 | AL195: 43147.74505 | AM195: 1.107633588 | AN195: 43147.73466 | AO195: 1.107633588 | AP195: 43147.73817 | AQ195: 0.9946564885 | AR195: 43147.7 | AS195: 43147.72431 | AT195: 43147.7 | AU195: 0.9557251908 | AV195: 43147.70689 | AW195: 0.8687022901 | AX195: 43147.68964 | AY195: 0.7557251908 | AZ195: 43147.68617 | BA195: 0.6687022901 | BB195: 43147.68267 | BC195: 0.7687022901 | BD195: 43147.63753 | BE195: 0.7167938931 | BF195: 43147.73472 | BH195: 43147.77153 | BI195: 43147.74167 | BK195: 2022-02-17T18:31:00 | BL195: 43147.77153
A196: 0 | B196: =IF(Instructions!$C$2="BST",A196,0) -> 0 | C196: 2022-02-17T23:13:00 | D196: 2022-02-17 | F196: 2 | I196: 4 | K196: 43147.96736 | L196: 5.4 | M196: HW | N196: 0.7913043478 | O196: 23:13:00 | P196: 1 | Q196: 18:00:00 | R196: 0.8694444445 | S196: 43147.98336 | T196: 7.266086957 | U196: 43148.04933 | V196: 43147.98638 | W196: 6.986956522 | X196: 43147.91806 | Y196: 43147.95604 | Z196: 5.349565217 | AA196: 43147.94562 | AB196: 43147.94653 | AC196: 4.949565217 | AD196: Opn | AE196: 43147.83194 | AF196: 43147.94185 | AG196: 4.370434783 | AH196: 43147.91709 | AI196: 4.691304348 | AJ196: 43147.98382 | AK196: 7.166086957 | AL196: 43147.98427 | AM196: 7.145217391 | AN196: 43147.98034 | AO196: 6.886956522 | AP196: 43147.9817 | AQ196: 6.286956522 | AR196: 43147.95694 | AS196: 43147.97778 | AT196: 43147.93792 | AU196: 4.949565217 | AV196: 43147.93792 | AW196: 4.749565217 | AX196: 43147.91664 | AY196: 4.528695652 | AZ196: 43147.91317 | BA196: 4.349565217 | BB196: 43147.90969 | BC196: 4.270434783 | BD196: 43147.86833 | BE196: 4.149565217 | BF196: 43147.95694 | BH196: 43148.00139 | BI196: 43147.99861 | BK196: 2022-02-18T00:02:00 | BL196: 43148.00139
A197: 0 | B197: =IF(Instructions!$C$2="BST",A197,0) -> 0 | C197: 2022-02-18T05:10:00 | D197: 2022-02-18 | E197: 2022-02-18 | F197: 2 | G197: Feb | H197: 18 | I197: 5 | J197: Fri | K197: 43148.21528 | L197: 1 | M197: LW | N197: 0.7786259542 | O197: 05:10:00 | P197: 05:00:00 | Q197: 11:00:00 | R197: 0.9722222222 | S197: 43148.25309 | T197: 1.176335878 | U197: 43148.31906 | V197: 43148.2227 | W197: 1.054198473 | X197: 43148.16806 | Y197: 43148.23553 | Z197: 1.065648855 | AA197: 43148.18461 | AB197: 43148.22531 | AC197: 0.8877862595 | AD197: Cls | AE197: 43148.06111 | AF197: 43148.1983 | AG197: 0.865648855 | AH197: 43148.19464 | AI197: 0.965648855 | AJ197: 43148.24971 | AK197: 1.254198473 | AL197: 43148.24971 | AM197: 1.254198473 | AN197: 43148.23939 | AO197: 1.254198473 | AP197: 43148.24296 | AQ197: 1.132061069 | AR197: 43148.20486 | AS197: 43148.22917 | AT197: 43148.20486 | AU197: 1.065648855 | AV197: 43148.21161 | AW197: 0.9877862595 | AX197: 43148.19464 | AY197: 0.865648855 | AZ197: 43148.19117 | BA197: 0.7877862595 | BB197: 43148.1876 | BC197: 0.8877862595 | BD197: 43148.14246 | BE197: 0.7992366412 | BF197: 43148.23958 | BH197: 43148.27708 | BI197: 43148.24653 | BK197: 2022-02-18T06:39:00 | BL197: 43148.27708
A198: 0 | B198: =IF(Instructions!$C$2="BST",A198,0) -> 0 | C198: 2022-02-18T11:25:00 | D198: 2022-02-18 | E198: Fri | F198: 2 | I198: 5 | K198: 43148.47569 | L198: 5.69 | M198: HW | N198: 1.043478261 | O198: 11:25:00 | P198: 12:00:00 | Q198: 06:00:00 | R198: 0.9027777778 | S198: 43148.49204 | T198: 7.669565217 | U198: 43148.55802 | V198: 43148.49518 | W198: 7.365217391 | X198: 43148.42431 | Y198: 43148.4646 | Z198: 5.652173913 | AA198: 43148.45419 | AB198: 43148.45486 | AC198: 5.252173913 | AD198: Opn | AE198: 43148.34028 | AF198: 43148.4496 | AG198: 4.647826087 | AH198: 43148.42496 | AI198: 4.943478261 | AJ198: 43148.49238 | AK198: 7.569565217 | AL198: 43148.49272 | AM198: 7.573913043 | AN198: 43148.48891 | AO198: 7.265217391 | AP198: 43148.48992 | AQ198: 6.665217391 | AR198: 43148.46528 | AS198: 43148.48611 | AT198: 43148.44579 | AU198: 5.252173913 | AV198: 43148.44579 | AW198: 5.052173913 | AX198: 43148.42462 | AY198: 4.856521739 | AZ198: 43148.42115 | BA198: 4.652173913 | BB198: 43148.41768 | BC198: 4.547826087 | BD198: 43148.37712 | BE198: 4.452173913 | BF198: 43148.46528 | BH198: 43148.50764 | BI198: 43148.50694 | BK198: 2022-02-18T12:11:00 | BL198: 43148.50764
A199: 0 | B199: =IF(Instructions!$C$2="BST",A199,0) -> 0 | C199: 2022-02-18T17:35:00 | D199: 2022-02-18 | F199: 2 | I199: 5 | K199: 43148.73264 | L199: 0.77 | M199: LW | N199: 0.9541984733 | O199: 17:35:00 | P199: 17:00:00 | Q199: 23:00:00 | R199: 0.9027777778 | S199: 43148.76948 | T199: 0.8778625954 | U199: 43148.83546 | V199: 43148.74127 | W199: 0.7732824427 | X199: 43148.67431 | Y199: 43148.75145 | Z199: 0.8549618321 | AA199: 43148.70341 | AB199: 43148.74171 | AC199: 0.6595419847 | AD199: Cls | AE199: 43148.56944 | AF199: 43148.71663 | AG199: 0.6549618321 | AH199: 43148.71248 | AI199: 0.7549618321 | AJ199: 43148.76635 | AK199: 0.9732824427 | AL199: 43148.76635 | AM199: 0.9732824427 | AN199: 43148.75627 | AO199: 0.9732824427 | AP199: 43148.76008 | AQ199: 0.8687022901 | AR199: 43148.72222 | AS199: 43148.74653 | AT199: 43148.72222 | AU199: 0.8549618321 | AV199: 43148.72849 | AW199: 0.7595419847 | AX199: 43148.71248 | AY199: 0.6549618321 | AZ199: 43148.70901 | BA199: 0.5595419847 | BB199: 43148.7052 | BC199: 0.6595419847 | BD199: 43148.66006 | BE199: 0.641221374 | BF199: 43148.75694 | BH199: 43148.79583 | BI199: 43148.76389 | BK199: 2022-02-18T19:06:00 | BL199: 43148.79583
A200: 0 | B200: =IF(Instructions!$C$2="BST",A200,0) -> 0 | C200: 2022-02-18T23:46:00 | D200: 2022-02-18 | F200: 2 | I200: 5 | K200: 43148.99028 | L200: 5.44 | M200: HW | N200: 0.8260869565 | O200: 23:46:00 | P200: 1 | Q200: 18:00:00 | R200: 0.9611111111 | S200: 43149.00723 | T200: 7.32173913 | U200: 43149.07321 | V200: 43149.01057 | W200: 7.039130435 | X200: 43148.94028 | Y200: 43148.97959 | Z200: 5.391304348 | AA200: 43148.96917 | AB200: 43148.96944 | AC200: 4.991304348 | AD200: Opn | AE200: 43148.85486 | AF200: 43148.96318 | AG200: 4.408695652 | AH200: 43148.93873 | AI200: 4.726086957 | AJ200: 43149.00737 | AK200: 7.22173913 | AL200: 43149.0075 | AM200: 7.204347826 | AN200: 43149.0039 | AO200: 6.939130435 | AP200: 43149.0043 | AQ200: 6.339130435 | AR200: 43148.97986 | AS200: 43149.00069 | AT200: 43148.95957 | AU200: 4.991304348 | AV200: 43148.95957 | AW200: 4.791304348 | AX200: 43148.9386 | AY200: 4.573913043 | AZ200: 43148.93513 | BA200: 4.391304348 | BB200: 43148.93166 | BC200: 4.308695652 | BD200: 43148.89252 | BE200: 4.191304348 | BF200: 43148.97986 | BH200: 43149.02361 | BI200: 43149.02153 | BK200: 2022-02-19T00:34:00 | BL200: 43149.02361
... 1220 more rows

Sheet Tides Raw (hidden)
A1: HHD Datetime UTC | C1: Height | E1: H/L | F1: Lpl Datetime UTC | G1: Lpl Datetime UTC | I1: Height | K1: Diff | M1: Check
A2: 2022-01-01T02:28:00 | C2: 1.13 | E2: LW | F2: 2025-01-02T06:49:00 | G2: 2022-01-01T03:57:00 | I2: 1.83 | K2: =(G2-A2)*24*60 -> 89
A3: 2022-01-01T08:46:00 | C3: 5.45 | E3: HW | F3: 2025-01-02T12:21:00 | G3: 2022-01-01T09:28:00 | I3: 8.81 | K3: 42 | M3: =(G3-G2)*24 -> 5.516666667
A4: 2022-01-01T14:52:00 | C4: 1.13 | E4: LW | F4: 2025-01-02T19:18:00 | G4: 2022-01-01T16:24:00 | I4: 1.76 | K4: 92.00000001 | M4: =(G4-G3)*24 -> 6.933333333
A5: 2022-01-01T21:11:00 | C5: 5.55 | E5: HW | F5: 2025-01-03T00:48:00 | G5: 2022-01-01T21:54:00 | I5: 8.94 | K5: 42.99999999 | M5: 5.5
A6: 2022-01-02T03:20:00 | C6: 0.96 | E6: LW | F6: 2025-01-03T07:29:00 | G6: 2022-01-02T04:53:00 | I6: 1.53 | K6: 93 | M6: 6.983333333
A7: 2022-01-02T09:36:00 | C7: 5.7 | E7: HW | F7: 2025-01-03T12:58:00 | G7: 2022-01-02T10:20:00 | I7: 9.2 | K7: 44 | M7: 5.45
A8: 2022-01-02T15:44:00 | C8: 0.86 | E8: LW | F8: 2025-01-03T19:59:00 | G8: 2022-01-02T17:20:00 | I8: 1.35 | K8: 96 | M8: 7
A9: 2022-01-02T22:03:00 | C9: 5.69 | E9: HW | F9: 2025-01-04T01:29:00 | G9: 2022-01-02T22:47:00 | I9: 9.18 | K9: 44.00000001 | M9: 5.45
A10: 2022-01-03T04:09:00 | C10: 0.85 | E10: LW | F10: 2025-01-04T08:09:00 | G10: 2022-01-03T05:45:00 | I10: 1.31 | K10: 96 | M10: 6.966666667
A11: 2022-01-03T10:25:00 | C11: 5.88 | E11: HW | F11: 2025-01-04T13:37:00 | G11: 2022-01-03T11:10:00 | I11: 9.48 | K11: 45 | M11: 5.416666667
A12: 2022-01-03T16:35:00 | C12: 0.67 | E12: LW | F12: 2025-01-04T20:41:00 | G12: 2022-01-03T18:12:00 | I12: 1.02 | K12: 97 | M12: 7.033333333
A13: 2022-01-03T22:54:00 | C13: 5.73 | E13: HW | F13: 2025-01-05T02:12:00 | G13: 2022-01-03T23:39:00 | I13: 9.29 | K13: 45 | M13: 5.45
A14: 2022-01-04T04:58:00 | C14: 0.82 | E14: LW | F14: 2025-01-05T08:51:00 | G14: 2022-01-04T06:34:00 | I14: 1.18 | K14: 96 | M14: 6.916666667
A15: 2022-01-04T11:13:00 | C15: 5.97 | E15: HW | F15: 2025-01-05T14:22:00 | G15: 2022-01-04T12:00:00 | I15: 9.61 | K15: 47 | M15: 5.433333333
A16: 2022-01-04T17:25:00 | C16: 0.59 | E16: LW | F16: 2025-01-05T21:26:00 | G16: 2022-01-04T19:02:00 | I16: 0.85 | K16: 97 | M16: 7.033333333
A17: 2022-01-04T23:44:00 | C17: 5.67 | E17: HW | F17: 2025-01-06T03:00:00 | G17: 2022-01-05T00:30:00 | I17: 9.25 | K17: 46 | M17: 5.466666667
A18: 2022-01-05T05:46:00 | C18: 0.89 | E18: LW | F18: 2025-01-06T09:36:00 | G18: 2022-01-05T07:22:00 | I18: 1.2 | K18: 96 | M18: 6.866666667
A19: 2022-01-05T12:01:00 | C19: 5.95 | E19: HW | F19: 2025-01-06T15:12:00 | G19: 2022-01-05T12:48:00 | I19: 9.6 | K19: 47 | M19: 5.433333333
A20: 2022-01-05T18:15:00 | C20: 0.64 | E20: LW | F20: 2025-01-06T22:15:00 | G20: 2022-01-05T19:49:00 | I20: 0.88 | K20: 94 | M20: 7.016666667
A21: 2022-01-06T00:33:00 | C21: 5.52 | E21: HW | F21: 2025-01-07T03:54:00 | G21: 2022-01-06T01:20:00 | I21: 9.07 | K21: 47 | M21: 5.516666667
A22: 2022-01-06T06:34:00 | C22: 1.04 | E22: LW | F22: 2025-01-07T10:29:00 | G22: 2022-01-06T08:08:00 | I22: 1.39 | K22: 94 | M22: 6.8
A23: 2022-01-06T12:49:00 | C23: 5.83 | E23: HW | F23: 2025-01-07T16:09:00 | G23: 2022-01-06T13:36:00 | I23: 9.43 | K23: 47 | M23: 5.466666667
A24: 2022-01-06T19:05:00 | C24: 0.79 | E24: LW | F24: 2025-01-07T23:13:00 | G24: 2022-01-06T20:36:00 | I24: 1.11 | K24: 90.99999999 | M24: 7
A25: 2022-01-07T01:23:00 | C25: 5.29 | E25: HW | F25: 2025-01-08T04:54:00 | G25: 2022-01-07T02:08:00 | I25: 8.77 | K25: 45 | M25: 5.533333333
A26: 2022-01-07T07:22:00 | C26: 1.26 | E26: LW | F26: 2025-01-08T11:30:00 | G26: 2022-01-07T08:53:00 | I26: 1.73 | K26: 91 | M26: 6.75
A27: 2022-01-07T13:37:00 | C27: 5.63 | E27: HW | F27: 2025-01-08T17:13:00 | G27: 2022-01-07T14:24:00 | I27: 9.12 | K27: 47 | M27: 5.516666667
A28: 2022-01-07T19:55:00 | C28: 1.03 | E28: LW | F28: 2025-01-09T00:19:00 | G28: 2022-01-07T21:22:00 | I28: 1.5 | K28: 87 | M28: 6.966666667
A29: 2022-01-08T02:13:00 | C29: 5.02 | E29: HW | F29: 2025-01-09T06:01:00 | G29: 2022-01-08T02:56:00 | I29: 8.39 | K29: 42.99999999 | M29: 5.566666667
A30: 2022-01-08T08:11:00 | C30: 1.52 | E30: LW | F30: 2025-01-09T12:41:00 | G30: 2022-01-08T09:37:00 | I30: 2.17 | K30: 86 | M30: 6.683333333
A31: 2022-01-08T14:26:00 | C31: 5.37 | E31: HW | F31: 2025-01-09T18:25:00 | G31: 2022-01-08T15:11:00 | I31: 8.73 | K31: 45 | M31: 5.566666667
A32: 2022-01-08T20:47:00 | C32: 1.31 | E32: LW | F32: 2025-01-10T01:32:00 | G32: 2022-01-08T22:09:00 | I32: 1.99 | K32: 82.00000001 | M32: 6.966666667
A33: 2022-01-09T03:05:00 | C33: 4.76 | E33: HW | F33: 2025-01-10T07:13:00 | G33: 2022-01-09T03:45:00 | I33: 7.97 | K33: 40 | M33: 5.6
A34: 2022-01-09T09:04:00 | C34: 1.79 | E34: LW | F34: 2025-01-10T13:58:00 | G34: 2022-01-09T10:24:00 | I34: 2.63 | K34: 80 | M34: 6.65
A35: 2022-01-09T15:18:00 | C35: 5.09 | E35: HW | F35: 2025-01-10T19:41:00 | G35: 2022-01-09T16:01:00 | I35: 8.28 | K35: 43 | M35: 5.616666667
A36: 2022-01-09T21:43:00 | C36: 1.6 | E36: LW | F36: 2025-01-11T02:43:00 | G36: 2022-01-09T22:59:00 | I36: 2.48 | K36: 76 | M36: 6.966666667
A37: 2022-01-10T04:02:00 | C37: 4.54 | E37: HW | F37: 2025-01-11T08:23:00 | G37: 2022-01-10T04:37:00 | I37: 7.59 | K37: 35 | M37: 5.633333333
A38: 2022-01-10T10:02:00 | C38: 2.02 | E38: LW | F38: 2025-01-11T15:11:00 | G38: 2022-01-10T11:17:00 | I38: 3.04 | K38: 74.99999999 | M38: 6.666666667
A39: 2022-01-10T16:16:00 | C39: 4.84 | E39: HW | F39: 2025-01-11T20:51:00 | G39: 2022-01-10T16:55:00 | I39: 7.87 | K39: 39 | M39: 5.633333333
A40: 2022-01-10T22:44:00 | C40: 1.84 | E40: LW | F40: 2025-01-12T03:46:00 | G40: 2022-01-10T23:56:00 | I40: 2.87 | K40: 71.99999999 | M40: 7.016666667
A41: 2022-01-11T05:06:00 | C41: 4.42 | E41: HW | F41: 2025-01-12T09:22:00 | G41: 2022-01-11T05:35:00 | I41: 7.32 | K41: 29 | M41: 5.65
A42: 2022-01-11T11:09:00 | C42: 2.18 | E42: LW | F42: 2025-01-12T16:14:00 | G42: 2022-01-11T12:19:00 | I42: 3.29 | K42: 70 | M42: 6.733333333
A43: 2022-01-11T17:22:00 | C43: 4.67 | E43: HW | F43: 2025-01-12T21:49:00 | G43: 2022-01-11T17:57:00 | I43: 7.57 | K43: 35 | M43: 5.633333333
A44: 2022-01-11T23:50:00 | C44: 1.98 | E44: LW | F44: 2025-01-13T04:42:00 | G44: 2022-01-12T00:59:00 | I44: 3.08 | K44: 69 | M44: 7.033333333
A45: 2022-01-12T06:16:00 | C45: 4.42 | E45: HW | F45: 2025-01-13T10:14:00 | G45: 2022-01-12T06:42:00 | I45: 7.24 | K45: 26 | M45: 5.716666667
A46: 2022-01-12T12:20:00 | C46: 2.2 | E46: LW | F46: 2025-01-13T17:09:00 | G46: 2022-01-12T13:28:00 | I46: 3.35 | K46: 68 | M46: 6.766666667
A47: 2022-01-12T18:33:00 | C47: 4.61 | E47: HW | F47: 2025-01-13T22:40:00 | G47: 2022-01-12T19:07:00 | I47: 7.48 | K47: 34 | M47: 5.65
A48: 2022-01-13T00:54:00 | C48: 2.01 | E48: LW | F48: 2025-01-14T05:33:00 | G48: 2022-01-13T02:02:00 | I48: 3.1 | K48: 68 | M48: 6.916666667
A49: 2022-01-13T07:19:00 | C49: 4.54 | E49: HW | F49: 2025-01-14T11:01:00 | G49: 2022-01-13T07:51:00 | I49: 7.39 | K49: 32 | M49: 5.816666667
A50: 2022-01-13T13:23:00 | C50: 2.12 | E50: LW | F50: 2025-01-14T17:59:00 | G50: 2022-01-13T14:33:00 | I50: 3.2 | K50: 70 | M50: 6.7
A51: 2022-01-13T19:36:00 | C51: 4.67 | E51: HW | F51: 2025-01-14T23:27:00 | G51: 2022-01-13T20:14:00 | I51: 7.6 | K51: 38 | M51: 5.683333333
A52: 2022-01-14T01:48:00 | C52: 1.95 | E52: LW | F52: 2025-01-15T06:19:00 | G52: 2022-01-14T02:59:00 | I52: 2.98 | K52: 71 | M52: 6.75
A53: 2022-01-14T08:12:00 | C53: 4.74 | E53: HW | F53: 2025-01-15T11:45:00 | G53: 2022-01-14T08:49:00 | I53: 7.7 | K53: 36.99999999 | M53: 5.833333333
A54: 2022-01-14T14:16:00 | C54: 1.96 | E54: LW | F54: 2025-01-15T18:45:00 | G54: 2022-01-14T15:29:00 | I54: 2.95 | K54: 73 | M54: 6.666666667
A55: 2022-01-14T20:27:00 | C55: 4.79 | E55: HW | F55: 2025-01-16T00:12:00 | G55: 2022-01-14T21:08:00 | I55: 7.85 | K55: 41.00000001 | M55: 5.65
A56: 2022-01-15T02:34:00 | C56: 1.83 | E56: LW | F56: 2025-01-16T07:02:00 | G56: 2022-01-15T03:46:00 | I56: 2.79 | K56: 72 | M56: 6.633333333
A57: 2022-01-15T08:55:00 | C57: 4.96 | E57: HW | F57: 2025-01-16T12:28:00 | G57: 2022-01-15T09:36:00 | I57: 8.04 | K57: 41 | M57: 5.833333333
A58: 2022-01-15T15:01:00 | C58: 1.77 | E58: LW | F58: 2025-01-16T19:28:00 | G58: 2022-01-15T16:15:00 | I58: 2.67 | K58: 74 | M58: 6.65
A59: 2022-01-15T21:10:00 | C59: 4.93 | E59: HW | F59: 2025-01-17T00:55:00 | G59: 2022-01-15T21:54:00 | I59: 8.12 | K59: 44 | M59: 5.65
A60: 2022-01-16T03:13:00 | C60: 1.69 | E60: LW | F60: 2025-01-17T07:43:00 | G60: 2022-01-16T04:28:00 | I60: 2.58 | K60: 75 | M60: 6.566666667
A61: 2022-01-16T09:32:00 | C61: 5.17 | E61: HW | F61: 2025-01-17T13:09:00 | G61: 2022-01-16T10:16:00 | I61: 8.35 | K61: 44 | M61: 5.8
A62: 2022-01-16T15:40:00 | C62: 1.58 | E62: LW | F62: 2025-01-17T20:08:00 | G62: 2022-01-16T16:57:00 | I62: 2.38 | K62: 77 | M62: 6.683333333
A63: 2022-01-16T21:49:00 | C63: 5.07 | E63: HW | F63: 2025-01-18T01:36:00 | G63: 2022-01-16T22:34:00 | I63: 8.35 | K63: 45 | M63: 5.616666667
A64: 2022-01-17T03:49:00 | C64: 1.55 | E64: LW | F64: 2025-01-18T08:20:00 | G64: 2022-01-17T05:06:00 | I64: 2.36 | K64: 77 | M64: 6.533333333
A65: 2022-01-17T10:07:00 | C65: 5.35 | E65: HW | F65: 2025-01-18T13:48:00 | G65: 2022-01-17T10:52:00 | I65: 8.61 | K65: 45 | M65: 5.766666667
A66: 2022-01-17T16:16:00 | C66: 1.41 | E66: LW | F66: 2025-01-18T20:46:00 | G66: 2022-01-17T17:35:00 | I66: 2.12 | K66: =(G66-A66)*24*60 -> 79.00000001 | M66: 6.716666667
A67: 2022-01-17T22:25:00 | C67: 5.18 | E67: HW | F67: 2025-01-19T02:15:00 | G67: 2022-01-17T23:11:00 | I67: 8.53 | K67: 45.99999999 | M67: 5.6
A68: 2022-01-18T04:24:00 | C68: 1.43 | E68: LW | F68: 2025-01-19T08:55:00 | G68: 2022-01-18T05:43:00 | I68: 2.15 | K68: 79 | M68: =(G68-G67)*24 -> 6.533333333
A69: 2022-01-18T10:41:00 | C69: 5.47 | E69: HW | F69: 2025-01-19T14:27:00 | G69: 2022-01-18T11:26:00 | I69: 8.8 | K69: 45 | M69: 5.716666667
A70: 2022-01-18T16:51:00 | C70: 1.28 | E70: LW | F70: 2025-01-19T21:21:00 | G70: 2022-01-18T18:12:00 | I70: 1.89 | K70: 81 | M70: 6.766666667
A71: 2022-01-18T23:00:00 | C71: 5.25 | E71: HW | F71: 2025-01-20T02:54:00 | G71: 2022-01-18T23:48:00 | I71: 8.64 | K71: 48 | M71: 5.6
A72: 2022-01-19T04:57:00 | C72: 1.35 | E72: LW | F72: 2025-01-20T09:29:00 | G72: 2022-01-19T06:19:00 | I72: 1.99 | K72: 81.99999999 | M72: 6.516666667
A73: 2022-01-19T11:14:00 | C73: 5.54 | E73: HW | F73: 2025-01-20T15:08:00 | G73: 2022-01-19T12:00:00 | I73: 8.91 | K73: 46 | M73: 5.683333333
A74: 2022-01-19T17:25:00 | C74: 1.19 | E74: LW | F74: 2025-01-20T21:57:00 | G74: 2022-01-19T18:49:00 | I74: 1.73 | K74: 84 | M74: 6.816666667
A75: 2022-01-19T23:35:00 | C75: 5.27 | E75: HW | F75: 2025-01-21T03:36:00 | G75: 2022-01-20T00:23:00 | I75: 8.67 | K75: 48 | M75: 5.566666667
A76: 2022-01-20T05:31:00 | C76: 1.31 | E76: LW | F76: 2025-01-21T10:08:00 | G76: 2022-01-20T06:56:00 | I76: 1.9 | K76: 85 | M76: 6.55
A77: 2022-01-20T11:48:00 | C77: 5.55 | E77: HW | F77: 2025-01-21T15:52:00 | G77: 2022-01-20T12:32:00 | I77: 8.96 | K77: 44 | M77: 5.6
A78: 2022-01-20T18:00:00 | C78: 1.14 | E78: LW | F78: 2025-01-21T22:38:00 | G78: 2022-01-20T19:25:00 | I78: 1.66 | K78: 85 | M78: 6.883333333
A79: 2022-01-21T00:09:00 | C79: 5.24 | E79: HW | F79: 2025-01-22T04:25:00 | G79: 2022-01-21T00:57:00 | I79: 8.64 | K79: 48 | M79: 5.533333333
A80: 2022-01-21T06:06:00 | C80: 1.31 | E80: LW | F80: 2025-01-22T10:56:00 | G80: 2022-01-21T07:32:00 | I80: 1.9 | K80: 86 | M80: 6.583333333
A81: 2022-01-21T12:21:00 | C81: 5.53 | E81: HW | F81: 2025-01-22T16:45:00 | G81: 2022-01-21T13:04:00 | I81: 8.96 | K81: 43 | M81: 5.533333333
A82: 2022-01-21T18:35:00 | C82: 1.13 | E82: LW | F82: 2025-01-22T23:30:00 | G82: 2022-01-21T20:01:00 | I82: 1.69 | K82: 86 | M82: 6.95
A83: 2022-01-22T00:46:00 | C83: 5.19 | E83: HW | F83: 2025-01-23T05:23:00 | G83: 2022-01-22T01:32:00 | I83: 8.55 | K83: 45.99999999 | M83: 5.516666667
A84: 2022-01-22T06:42:00 | C84: 1.35 | E84: LW | F84: 2025-01-23T11:58:00 | G84: 2022-01-22T08:07:00 | I84: 1.98 | K84: 84.99999999 | M84: 6.583333333
A85: 2022-01-22T12:56:00 | C85: 5.47 | E85: HW | F85: 2025-01-23T17:48:00 | G85: 2022-01-22T13:37:00 | I85: 8.91 | K85: 41 | M85: 5.5
A86: 2022-01-22T19:13:00 | C86: 1.16 | E86: LW | F86: 2025-01-24T00:35:00 | G86: 2022-01-22T20:37:00 | I86: 1.8 | K86: 84 | M86: 7
A87: 2022-01-23T01:24:00 | C87: 5.1 | E87: HW | F87: 2025-01-24T06:34:00 | G87: 2022-01-23T02:08:00 | I87: 8.43 | K87: 44 | M87: 5.516666667
A88: 2022-01-23T07:21:00 | C88: 1.42 | E88: LW | F88: 2025-01-24T13:12:00 | G88: 2022-01-23T08:44:00 | I88: 2.14 | K88: 83 | M88: 6.6
A89: 2022-01-23T13:34:00 | C89: 5.38 | E89: HW | F89: 2025-01-24T19:03:00 | G89: 2022-01-23T14:14:00 | I89: 8.81 | K89: 39.99999999 | M89: 5.5
A90: 2022-01-23T19:55:00 | C90: 1.24 | E90: LW | F90: 2025-01-25T01:44:00 | G90: 2022-01-23T21:16:00 | I90: 1.99 | K90: 81 | M90: 7.033333333
A91: 2022-01-24T02:06:00 | C91: 4.99 | E91: HW | F91: 2025-01-25T07:49:00 | G91: 2022-01-24T02:47:00 | I91: 8.26 | K91: 41 | M91: 5.516666667
A92: 2022-01-24T08:05:00 | C92: 1.55 | E92: LW | F92: 2025-01-25T14:24:00 | G92: 2022-01-24T09:24:00 | I92: 2.35 | K92: 79.00000001 | M92: 6.616666667
A93: 2022-01-24T14:18:00 | C93: 5.25 | E93: HW | F93: 2025-01-25T20:14:00 | G93: 2022-01-24T14:57:00 | I93: 8.62 | K93: 39 | M93: 5.55
A94: 2022-01-24T20:43:00 | C94: 1.38 | E94: LW | F94: 2025-01-26T02:48:00 | G94: 2022-01-24T22:00:00 | I94: 2.24 | K94: 77 | M94: 7.05
A95: 2022-01-25T02:55:00 | C95: 4.85 | E95: HW | F95: 2025-01-26T08:49:00 | G95: 2022-01-25T03:34:00 | I95: 8.03 | K95: 38.99999999 | M95: 5.566666667
A96: 2022-01-25T08:56:00 | C96: 1.71 | E96: LW | F96: 2025-01-26T15:25:00 | G96: 2022-01-25T10:11:00 | I96: 2.6 | K96: 75 | M96: 6.616666667
A97: 2022-01-25T15:10:00 | C97: 5.08 | E97: HW | F97: 2025-01-26T21:10:00 | G97: 2022-01-25T15:49:00 | I97: 8.33 | K97: 39 | M97: 5.633333333
A98: 2022-01-25T21:39:00 | C98: 1.56 | E98: LW | F98: 2025-01-27T03:42:00 | G98: 2022-01-25T22:52:00 | I98: 2.51 | K98: 73 | M98: 7.05
A99: 2022-01-26T03:53:00 | C99: 4.72 | E99: HW | F99: 2025-01-27T09:36:00 | G99: 2022-01-26T04:30:00 | I99: 7.79 | K99: 36.99999999 | M99: 5.633333333
A100: 2022-01-26T09:58:00 | C100: 1.87 | E100: LW | F100: 2025-01-27T16:15:00 | G100: 2022-01-26T11:09:00 | I100: 2.84 | K100: 71 | M100: 6.65
A101: 2022-01-26T16:14:00 | C101: 4.9 | E101: HW | F101: 2025-01-27T21:56:00 | G101: 2022-01-26T16:51:00 | I101: 8.01 | K101: 36.99999999 | M101: 5.7
A102: 2022-01-26T22:47:00 | C102: 1.71 | E102: LW | F102: 2025-01-28T04:30:00 | G102: 2022-01-26T23:56:00 | I102: 2.72 | K102: 68.99999999 | M102: 7.083333333
A103: 2022-01-27T05:03:00 | C103: 4.65 | E103: HW | F103: 2025-01-28T10:16:00 | G103: 2022-01-27T05:37:00 | I103: 7.61 | K103: 34 | M103: 5.683333333
A104: 2022-01-27T11:13:00 | C104: 1.94 | E104: LW | F104: 2025-01-28T17:01:00 | G104: 2022-01-27T12:20:00 | I104: 2.97 | K104: 67 | M104: 6.716666667
A105: 2022-01-27T17:33:00 | C105: 4.8 | E105: HW | F105: 2025-01-28T22:37:00 | G105: 2022-01-27T18:06:00 | I105: 7.79 | K105: 33 | M105: 5.766666667
A106: 2022-01-28T00:03:00 | C106: 1.74 | E106: LW | F106: 2025-01-29T05:14:00 | G106: 2022-01-28T01:11:00 | I106: 2.79 | K106: 68 | M106: 7.083333333
A107: 2022-01-28T06:23:00 | C107: 4.72 | E107: HW | F107: 2025-01-29T10:54:00 | G107: 2022-01-28T06:56:00 | I107: 7.65 | K107: 33 | M107: 5.75
A108: 2022-01-28T12:33:00 | C108: 1.84 | E108: LW | F108: 2025-01-29T17:44:00 | G108: 2022-01-28T13:45:00 | I108: 2.87 | K108: 71.99999999 | M108: 6.816666667
A109: 2022-01-28T18:58:00 | C109: 4.87 | E109: HW | F109: 2025-01-29T23:16:00 | G109: 2022-01-28T19:33:00 | I109: 7.84 | K109: 35 | M109: 5.8
A110: 2022-01-29T01:16:00 | C110: 1.61 | E110: LW | F110: 2025-01-30T05:56:00 | G110: 2022-01-29T02:33:00 | I110: 2.6 | K110: 77 | M110: 7
A111: 2022-01-29T07:37:00 | C111: 4.96 | E111: HW | F111: 2025-01-30T11:30:00 | G111: 2022-01-29T08:16:00 | I111: 7.98 | K111: 39 | M111: 5.716666667
A112: 2022-01-29T13:45:00 | C112: 1.56 | E112: LW | F112: 2025-01-30T18:25:00 | G112: 2022-01-29T15:08:00 | I112: 2.46 | K112: 83.00000001 | M112: 6.866666667
A113: 2022-01-29T20:10:00 | C113: 5.08 | E113: HW | F113: 2025-01-30T23:55:00 | G113: 2022-01-29T20:52:00 | I113: 8.19 | K113: 41.99999999 | M113: 5.733333333
A114: 2022-01-30T02:18:00 | C114: 1.38 | E114: LW | F114: 2025-01-31T06:37:00 | G114: 2022-01-30T03:44:00 | I114: 2.21 | K114: 86 | M114: 6.866666667
A115: 2022-01-30T08:37:00 | C115: 5.28 | E115: HW | F115: 2025-01-31T12:07:00 | G115: 2022-01-30T09:22:00 | I115: 8.49 | K115: 45 | M115: 5.633333333
A116: 2022-01-30T14:46:00 | C116: 1.19 | E116: LW | F116: 2025-01-31T19:06:00 | G116: 2022-01-30T16:16:00 | I116: 1.89 | K116: 90 | M116: 6.9
A117: 2022-01-30T21:08:00 | C117: 5.33 | E117: HW | F117: 2025-02-01T00:34:00 | G117: 2022-01-30T21:54:00 | I117: 8.62 | K117: 45.99999999 | M117: 5.633333333
A118: 2022-01-31T03:12:00 | C118: 1.12 | E118: LW | F118: 2025-02-01T07:17:00 | G118: 2022-01-31T04:44:00 | I118: 1.75 | K118: 92.00000001 | M118: 6.833333333
A119: 2022-01-31T09:29:00 | C119: 5.59 | E119: HW | F119: 2025-02-01T12:44:00 | G119: 2022-01-31T10:16:00 | I119: 9.01 | K119: 47 | M119: 5.533333333
A120: 2022-01-31T15:39:00 | C120: 0.85 | E120: LW | F120: 2025-02-01T19:46:00 | G120: 2022-01-31T17:13:00 | I120: 1.31 | K120: 94 | M120: 6.95
A121: 2022-01-31T21:59:00 | C121: 5.53 | E121: HW | F121: 2025-02-02T01:13:00 | G121: 2022-01-31T22:45:00 | I121: 9 | K121: 45.99999999 | M121: 5.533333333
A122: 2022-02-01T04:01:00 | C122: 0.89 | E122: LW | F122: 2025-02-02T07:56:00 | G122: 2022-02-01T05:35:00 | I122: 1.33 | K122: 94 | M122: 6.833333333
A123: 2022-02-01T10:17:00 | C123: 5.84 | E123: HW | F123: 2025-02-02T13:23:00 | G123: 2022-02-01T11:05:00 | I123: 9.42 | K123: 48 | M123: 5.5
A124: 2022-02-01T16:27:00 | C124: 0.58 | E124: LW | F124: 2025-02-02T20:26:00 | G124: 2022-02-01T18:03:00 | I124: 0.85 | K124: 96 | M124: 6.966666667
A125: 2022-02-01T22:46:00 | C125: 5.64 | E125: HW | F125: 2025-02-03T01:53:00 | G125: 2022-02-01T23:33:00 | I125: 9.24 | K125: 47 | M125: 5.5
A126: 2022-02-02T04:46:00 | C126: 0.75 | E126: LW | F126: 2025-02-03T08:36:00 | G126: 2022-02-02T06:23:00 | I126: 1.04 | K126: 97 | M126: 6.833333333
A127: 2022-02-02T11:01:00 | C127: 5.99 | E127: HW | F127: 2025-02-03T14:04:00 | G127: 2022-02-02T11:50:00 | I127: 9.68 | K127: 49 | M127: 5.45
A128: 2022-02-02T17:13:00 | C128: 0.44 | E128: LW | F128: 2025-02-03T21:07:00 | G128: 2022-02-02T18:49:00 | I128: 0.58 | K128: 96 | M128: 6.983333333
A129: 2022-02-02T23:31:00 | C129: 5.65 | E129: HW | F129: 2025-02-04T02:36:00 | G129: 2022-02-03T00:17:00 | I129: 9.31 | K129: 46 | M129: 5.466666667
A130: 2022-02-03T05:30:00 | C130: 0.71 | E130: LW | F130: 2025-02-04T09:17:00 | G130: 2022-02-03T07:07:00 | I130: 0.93 | K130: =(G130-A130)*24*60 -> 97 | M130: 6.833333333
A131: 2022-02-03T11:45:00 | C131: 6.01 | E131: HW | F131: 2025-02-04T14:49:00 | G131: 2022-02-03T12:33:00 | I131: 9.75 | K131: 48 | M131: 5.433333333
A132: 2022-02-03T17:57:00 | C132: 0.44 | E132: LW | F132: 2025-02-04T21:51:00 | G132: 2022-02-03T19:33:00 | I132: 0.57 | K132: 96 | M132: =(G132-G131)*24 -> 7
A133: 2022-02-04T00:13:00 | C133: 5.55 | E133: HW | F133: 2025-02-05T03:24:00 | G133: 2022-02-04T01:00:00 | I133: 9.22 | K133: 47 | M133: 5.45
A134: 2022-02-04T06:13:00 | C134: 0.78 | E134: LW | F134: 2025-02-05T10:03:00 | G134: 2022-02-04T07:48:00 | I134: 1.04 | K134: 95 | M134: 6.8
A135: 2022-02-04T12:26:00 | C135: 5.91 | E135: HW | F135: 2025-02-05T15:41:00 | G135: 2022-02-04T13:14:00 | I135: 9.64 | K135: 48 | M135: 5.433333333
A136: 2022-02-04T18:40:00 | C136: 0.58 | E136: LW | F136: 2025-02-05T22:42:00 | G136: 2022-02-04T20:14:00 | I136: 0.81 | K136: 93.99999999 | M136: 7
A137: 2022-02-05T00:54:00 | C137: 5.36 | E137: HW | F137: 2025-02-06T04:21:00 | G137: 2022-02-05T01:40:00 | I137: 8.98 | K137: 46 | M137: 5.433333333
A138: 2022-02-05T06:54:00 | C138: 0.95 | E138: LW | F138: 2025-02-06T10:59:00 | G138: 2022-02-05T08:27:00 | I138: 1.34 | K138: 93 | M138: 6.783333333
A139: 2022-02-05T13:07:00 | C139: 5.71 | E139: HW | F139: 2025-02-06T16:44:00 | G139: 2022-02-05T13:53:00 | I139: 9.35 | K139: 46 | M139: 5.433333333
A140: 2022-02-05T19:23:00 | C140: 0.84 | E140: LW | F140: 2025-02-06T23:44:00 | G140: 2022-02-05T20:52:00 | I140: 1.25 | K140: 89 | M140: 6.983333333
A141: 2022-02-06T01:34:00 | C141: 5.12 | E141: HW | F141: 2025-02-07T05:28:00 | G141: 2022-02-06T02:19:00 | I141: 8.62 | K141: 45 | M141: 5.45
A142: 2022-02-06T07:35:00 | C142: 1.21 | E142: LW | F142: 2025-02-07T12:08:00 | G142: 2022-02-06T09:04:00 | I142: 1.8 | K142: 89.00000001 | M142: 6.75
A143: 2022-02-06T13:48:00 | C143: 5.43 | E143: HW | F143: 2025-02-07T18:01:00 | G143: 2022-02-06T14:32:00 | I143: 8.93 | K143: 44.00000001 | M143: 5.466666667
A144: 2022-02-06T20:04:00 | C144: 1.17 | E144: LW | F144: 2025-02-08T01:00:00 | G144: 2022-02-06T21:29:00 | I144: 1.82 | K144: 85 | M144: 6.95
A145: 2022-02-07T02:14:00 | C145: 4.86 | E145: HW | F145: 2025-02-08T06:50:00 | G145: 2022-02-07T02:57:00 | I145: 8.2 | K145: 43 | M145: 5.466666667
A146: 2022-02-07T08:17:00 | C146: 1.51 | E146: LW | F146: 2025-02-08T13:35:00 | G146: 2022-02-07T09:39:00 | I146: 2.32 | K146: 82.00000001 | M146: 6.7
A147: 2022-02-07T14:29:00 | C147: 5.12 | E147: HW | F147: 2025-02-08T19:31:00 | G147: 2022-02-07T15:13:00 | I147: 8.43 | K147: 44 | M147: 5.566666667
A148: 2022-02-07T20:47:00 | C148: 1.54 | E148: LW | F148: 2025-02-09T02:25:00 | G148: 2022-02-07T22:05:00 | I148: 2.42 | K148: 78 | M148: 6.866666667
A149: 2022-02-08T02:56:00 | C149: 4.6 | E149: HW | F149: 2025-02-09T08:12:00 | G149: 2022-02-08T03:39:00 | I149: 7.74 | K149: 43 | M149: 5.566666667
A150: 2022-02-08T09:03:00 | C150: 1.84 | E150: LW | F150: 2025-02-09T15:01:00 | G150: 2022-02-08T10:18:00 | I150: 2.85 | K150: 75 | M150: 6.65
A151: 2022-02-08T15:15:00 | C151: 4.79 | E151: HW | F151: 2025-02-09T20:50:00 | G151: 2022-02-08T15:59:00 | I151: 7.89 | K151: 44.00000001 | M151: 5.683333333
A152: 2022-02-08T21:36:00 | C152: 1.9 | E152: LW | F152: 2025-02-10T03:36:00 | G152: 2022-02-08T22:45:00 | I152: 2.96 | K152: 68.99999999 | M152: 6.766666667
A153: 2022-02-09T03:47:00 | C153: 4.38 | E153: HW | F153: 2025-02-10T09:17:00 | G153: 2022-02-09T04:28:00 | I153: 7.31 | K153: 41.00000001 | M153: 5.716666667
A154: 2022-02-09T10:00:00 | C154: 2.15 | E154: LW | F154: 2025-02-10T16:08:00 | G154: 2022-02-09T11:07:00 | I154: 3.32 | K154: 67 | M154: 6.65
A155: 2022-02-09T16:12:00 | C155: 4.49 | E155: HW | F155: 2025-02-10T21:48:00 | G155: 2022-02-09T16:55:00 | I155: 7.38 | K155: 42.99999999 | M155: 5.8
A156: 2022-02-09T22:38:00 | C156: 2.2 | E156: LW | F156: 2025-02-11T04:34:00 | G156: 2022-02-09T23:37:00 | I156: 3.39 | K156: 58.99999999 | M156: 6.7
A157: 2022-02-10T04:56:00 | C157: 4.23 | E157: HW | F157: 2025-02-11T10:09:00 | G157: 2022-02-10T05:32:00 | I157: 6.98 | K157: 36 | M157: 5.916666667
A158: 2022-02-10T11:18:00 | C158: 2.36 | E158: LW | F158: 2025-02-11T17:02:00 | G158: 2022-02-10T12:14:00 | I158: 3.63 | K158: 56 | M158: 6.7
A159: 2022-02-10T17:31:00 | C159: 4.3 | E159: HW | F159: 2025-02-11T22:36:00 | G159: 2022-02-10T18:08:00 | I159: 7.05 | K159: 37.00000001 | M159: 5.9
A160: 2022-02-10T23:58:00 | C160: 2.35 | E160: LW | F160: 2025-02-12T05:23:00 | G160: 2022-02-11T00:49:00 | I160: 3.61 | K160: 51 | M160: 6.683333333
A161: 2022-02-11T06:27:00 | C161: 4.26 | E161: HW | F161: 2025-02-12T10:53:00 | G161: 2022-02-11T06:55:00 | I161: 6.92 | K161: 28 | M161: 6.1
A162: 2022-02-11T12:46:00 | C162: 2.35 | E162: LW | F162: 2025-02-12T17:49:00 | G162: 2022-02-11T13:41:00 | I162: 3.64 | K162: 55 | M162: 6.766666667
A163: 2022-02-11T19:01:00 | C163: 4.32 | E163: HW | F163: 2025-02-12T23:18:00 | G163: 2022-02-11T19:34:00 | I163: 7.07 | K163: 33 | M163: 5.883333333
A164: 2022-02-12T01:15:00 | C164: 2.28 | E164: LW | F164: 2025-02-13T06:06:00 | G164: 2022-02-12T02:11:00 | I164: 3.52 | K164: 55.99999999 | M164: 6.616666667
A165: 2022-02-12T07:43:00 | C165: 4.48 | E165: HW | F165: 2025-02-13T11:33:00 | G165: 2022-02-12T08:17:00 | I165: 7.22 | K165: 34 | M165: 6.1
A166: 2022-02-12T13:54:00 | C166: 2.14 | E166: LW | F166: 2025-02-13T18:31:00 | G166: 2022-02-12T14:58:00 | I166: 3.32 | K166: 64 | M166: 6.683333333
A167: 2022-02-12T20:08:00 | C167: 4.52 | E167: HW | F167: 2025-02-13T23:57:00 | G167: 2022-02-12T20:45:00 | I167: 7.41 | K167: 37.00000001 | M167: 5.783333333
A168: 2022-02-13T02:12:00 | C168: 2.07 | E168: LW | F168: 2025-02-14T06:45:00 | G168: 2022-02-13T03:17:00 | I168: 3.19 | K168: 65 | M168: 6.533333333
A169: 2022-02-13T08:35:00 | C169: 4.77 | E169: HW | F169: 2025-02-14T12:10:00 | G169: 2022-02-13T09:14:00 | I169: 7.68 | K169: 39 | M169: 5.95
A170: 2022-02-13T14:44:00 | C170: 1.85 | E170: LW | F170: 2025-02-14T19:08:00 | G170: 2022-02-13T15:55:00 | I170: 2.85 | K170: 71 | M170: 6.683333333
A171: 2022-02-13T20:55:00 | C171: 4.76 | E171: HW | F171: 2025-02-15T00:33:00 | G171: 2022-02-13T21:35:00 | I171: 7.84 | K171: 39.99999999 | M171: 5.666666667
A172: 2022-02-14T02:55:00 | C172: 1.82 | E172: LW | F172: 2025-02-15T07:20:00 | G172: 2022-02-14T04:07:00 | I172: 2.77 | K172: 71.99999999 | M172: 6.533333333
A173: 2022-02-14T09:14:00 | C173: 5.05 | E173: HW | F173: 2025-02-15T12:44:00 | G173: 2022-02-14T09:57:00 | I173: 8.14 | K173: 42.99999999 | M173: 5.833333333
A174: 2022-02-14T15:23:00 | C174: 1.56 | E174: LW | F174: 2025-02-15T19:42:00 | G174: 2022-02-14T16:39:00 | I174: 2.37 | K174: 76 | M174: 6.7
A175: 2022-02-14T21:33:00 | C175: 4.99 | E175: HW | F175: 2025-02-16T01:06:00 | G175: 2022-02-14T22:17:00 | I175: 8.25 | K175: 44 | M175: 5.633333333
A176: 2022-02-15T03:32:00 | C176: 1.56 | E176: LW | F176: 2025-02-16T07:52:00 | G176: 2022-02-15T04:49:00 | I176: 2.35 | K176: 77 | M176: 6.533333333
A177: 2022-02-15T09:49:00 | C177: 5.29 | E177: HW | F177: 2025-02-16T13:17:00 | G177: 2022-02-15T10:34:00 | I177: 8.54 | K177: 45 | M177: 5.75
A178: 2022-02-15T15:58:00 | C178: 1.29 | E178: LW | F178: 2025-02-16T20:13:00 | G178: 2022-02-15T17:18:00 | I178: 1.93 | K178: 80 | M178: 6.733333333
A179: 2022-02-15T22:07:00 | C179: 5.18 | E179: HW | F179: 2025-02-17T01:38:00 | G179: 2022-02-15T22:54:00 | I179: 8.58 | K179: 47.00000001 | M179: 5.6
A180: 2022-02-16T04:05:00 | C180: 1.33 | E180: LW | F180: 2025-02-17T08:20:00 | G180: 2022-02-16T05:27:00 | I180: 1.98 | K180: 81.99999999 | M180: 6.55
A181: 2022-02-16T10:21:00 | C181: 5.48 | E181: HW | F181: 2025-02-17T13:50:00 | G181: 2022-02-16T11:07:00 | I181: 8.87 | K181: 45.99999999 | M181: 5.666666667
A182: 2022-02-16T16:30:00 | C182: 1.06 | E182: LW | F182: 2025-02-17T20:40:00 | G182: 2022-02-16T17:55:00 | I182: 1.56 | K182: 85 | M182: 6.8
A183: 2022-02-16T22:40:00 | C183: 5.32 | E183: HW | F183: 2025-02-18T02:10:00 | G183: 2022-02-16T23:28:00 | I183: 8.84 | K183: 48 | M183: 5.55
A184: 2022-02-17T04:37:00 | C184: 1.14 | E184: LW | F184: 2025-02-18T08:47:00 | G184: 2022-02-17T06:04:00 | I184: 1.67 | K184: 87 | M184: 6.6
A185: 2022-02-17T10:53:00 | C185: 5.62 | E185: HW | F185: 2025-02-18T14:24:00 | G185: 2022-02-17T11:39:00 | I185: 9.12 | K185: 46 | M185: 5.583333333
A186: 2022-02-17T17:03:00 | C186: 0.88 | E186: LW | F186: 2025-02-18T21:07:00 | G186: 2022-02-17T18:31:00 | I186: 1.29 | K186: 87.99999999 | M186: 6.866666667
A187: 2022-02-17T23:13:00 | C187: 5.4 | E187: HW | F187: 2025-02-19T02:44:00 | G187: 2022-02-18T00:02:00 | I187: 8.99 | K187: 48.99999999 | M187: 5.516666667
A188: 2022-02-18T05:10:00 | C188: 1 | E188: LW | F188: 2025-02-19T09:18:00 | G188: 2022-02-18T06:39:00 | I188: 1.47 | K188: 89 | M188: 6.616666667
A189: 2022-02-18T11:25:00 | C189: 5.69 | E189: HW | F189: 2025-02-19T15:01:00 | G189: 2022-02-18T12:11:00 | I189: 9.29 | K189: 46 | M189: 5.533333333
A190: 2022-02-18T17:35:00 | C190: 0.77 | E190: LW | F190: 2025-02-19T21:40:00 | G190: 2022-02-18T19:06:00 | I190: 1.15 | K190: 90.99999999 | M190: 6.916666667
A191: 2022-02-18T23:46:00 | C191: 5.44 | E191: HW | F191: 2025-02-20T03:23:00 | G191: 2022-02-19T00:34:00 | I191: 9.05 | K191: 48 | M191: 5.466666667
A192: 2022-02-19T05:43:00 | C192: 0.93 | E192: LW | F192: 2025-02-20T09:58:00 | G192: 2022-02-19T07:14:00 | I192: 1.39 | K192: 91 | M192: 6.666666667
A193: 2022-02-19T11:57:00 | C193: 5.72 | E193: HW | F193: 2025-02-20T15:45:00 | G193: 2022-02-19T12:42:00 | I193: 9.37 | K193: 45 | M193: 5.466666667
A194: 2022-02-19T18:10:00 | C194: 0.74 | E194: LW | F194: 2025-02-20T22:23:00 | G194: 2022-02-19T19:41:00 | I194: 1.15 | K194: =(G194-A194)*24*60 -> 91 | M194: 6.983333333
A195: 2022-02-20T00:20:00 | C195: 5.42 | E195: HW | F195: 2025-02-21T04:12:00 | G195: 2022-02-20T01:07:00 | I195: 9.02 | K195: 47 | M195: 5.433333333
A196: 2022-02-20T06:18:00 | C196: 0.93 | E196: LW | F196: 2025-02-21T10:52:00 | G196: 2022-02-20T07:49:00 | I196: 1.44 | K196: 91 | M196: =(G196-G195)*24 -> 6.7
A197: 2022-02-20T12:32:00 | C197: 5.68 | E197: HW | F197: 2025-02-21T16:44:00 | G197: 2022-02-20T13:14:00 | I197: 9.35 | K197: 42 | M197: 5.416666667
A198: 2022-02-20T18:46:00 | C198: 0.8 | E198: LW | F198: 2025-02-21T23:22:00 | G198: 2022-02-20T20:16:00 | I198: 1.3 | K198: 90 | M198: 7.033333333
A199: 2022-02-21T00:56:00 | C199: 5.35 | E199: HW | F199: 2025-02-22T05:19:00 | G199: 2022-02-21T01:41:00 | I199: 8.9 | K199: 45 | M199: 5.416666667
A200: 2022-02-21T06:56:00 | C200: 1.01 | E200: LW | F200: 2025-02-22T12:05:00 | G200: 2022-02-21T08:24:00 | I200: 1.61 | K200: 87.99999999 | M200: 6.716666667
... 1211 more rows
